Workbook

Sheet Area by Sector
A1: Site ID | B1: SIPS | D1: =CONCATENATE(VLOOKUP(B1,Sheet3!D:E,2,FALSE),", ",VLOOKUP(B1,Sheet3!D:F,3,FALSE)) -> Sipsey Wilderness, AL | G1: =VLOOKUP(B1,rh_results_SEC_v3!A:S,19,FALSE) -> 31.848 | H1: <- 2028 Base Case Light Extinction (Best 20%) (Mm-1)
A2: Species | B2: (All) | D2: =IF(B2="S","Sulfate",IF(B2="N","Nitrate","Sulfate + Nitrate")) -> Sulfate + Nitrate | G2: =VLOOKUP(B1,rh_results_SEC_v3!A:W,23,FALSE) -> 60.036 | H2: <- 2028 Base Case Light Extinction (Most Impaired 20%) (Mm-1)
A3: Sector | B3: NEG | D3: =VLOOKUP(B3,Sheet3!Q:R,2,FALSE) -> Non-EGU Point Sources
B5: Data
A6: Region | B6: Extinction (20% Best) | C6: Extinction (20% Impaired) | E6: =CONCATENATE("Contribution to Light Extinction (Mm-1) from ",D2) -> Contribution to Light Extinction (Mm-1) from Sulfate + Nitrate
A7: Alabama | B7: 0.537 | C7: 0.581 | E7: =CONCATENATE("2028 Contribution of ",D3," to ",D1," from ",D2," (Mm-1)") -> 2028 Contribution of Non-EGU Point Sources to Sipsey Wilderness, AL from Sulfate + Nitrate (Mm-1)
A8: Florida | B8: 0.025 | C8: 0.088 | E8: ="20% Most Impaired Days = " & G2 -> 20% Most Impaired Days = 60.036
A9: Georgia | B9: 0.072 | C9: 0.078 | E9: ="20% Clearest Days = " &G1 -> 20% Clearest Days = 31.848
A10: Kentucky | B10: 0.08 | C10: 0.425
A11: Mississippi | B11: 0.183 | C11: 0.121
A12: North Carolina | B12: 0.009 | C12: 0.037
A13: South Carolina | B13: 0.041 | C13: 0.057
A14: Tennessee | B14: 0.063 | C14: 0.25
A15: Virginia | B15: 0.002 | C15: 0.065
A16: West Virginia | B16: 0 | C16: 0.019
A17: CENRAP | B17: 0.603 | C17: 0.867
A18: LADCO | B18: 0.467 | C18: 3.656
A19: MANE-VU | B19: 0.022 | C19: 0.143
A20: All Other Regions | B20: 0.027 | C20: 0.05
A21: Total | B21: =SUM(B7:B20) -> 2.131 | C21: =SUM(C7:C20) -> 6.437
A23: VISTAS Total | B23: =GETPIVOTDATA("Extinction (20% Best)",$A$5,"Region","Alabama")+GETPIVOTDATA("Extinction (20% Best)",$A$5,"Region","Florida")+GETPIVOTDATA("Extinction (20% Best)",$A$5,"Region","Georgia")+GETPIVOTDATA("Extinction (20% Best)",$A$5,"Region","Kentucky")+GETPIVOTDATA("Extinction (20% Best)",$A$5,"Region","Mississippi")+GETPIVOTDATA("Extinction (20% Best)",$A$5,"Region","North Carolina")+GETPIVOTDATA("Extinction (20% Best)",$A$5,"Region","South Carolina")+GETPIVOTDATA("Extinction (20% Best)",$A$5,"Region","Tennessee")+GETPIVOTDATA("Extinction (20% Best)",$A$5,"Region","Virginia")+GETPIVOTDATA("Extinction (20% Best)",$A$5,"Region","West Virginia") -> 1.012 | C23: =GETPIVOTDATA("Extinction (20% Impaired)",$A$5,"Region","Alabama")+GETPIVOTDATA("Extinction (20% Impaired)",$A$5,"Region","Florida")+GETPIVOTDATA("Extinction (20% Impaired)",$A$5,"Region","Georgia")+GETPIVOTDATA("Extinction (20% Impaired)",$A$5,"Region","Kentucky")+GETPIVOTDATA("Extinction (20% Impaired)",$A$5,"Region","Mississippi")+GETPIVOTDATA("Extinction (20% Impaired)",$A$5,"Region","North Carolina")+GETPIVOTDATA("Extinction (20% Impaired)",$A$5,"Region","South Carolina")+GETPIVOTDATA("Extinction (20% Impaired)",$A$5,"Region","Tennessee")+GETPIVOTDATA("Extinction (20% Impaired)",$A$5,"Region","Virginia")+GETPIVOTDATA("Extinction (20% Impaired)",$A$5,"Region","West Virginia") -> 1.721
B26: Percent of Total 2028 Light Extinction
A27: Region | B27: 20% Best | C27: 20% Most Impaired
A28: =A7 -> Alabama | B28: =GETPIVOTDATA("Extinction (20% Best)",$A$5,"Region",A28)/$G$1 -> 0.01686134137 | C28: =GETPIVOTDATA("Extinction (20% Impaired)",$A$5,"Region",A28)/$G$2 -> 0.009677526817
A29: Florida | B29: 0.0007849786486 | C29: 0.001465787194
A30: Georgia | B30: 0.002260738508 | C30: 0.001299220468
A31: Kentucky | B31: 0.002511931675 | C31: 0.007079085882
A32: Mississippi | B32: 0.005746043708 | C32: 0.002015457392
A33: North Carolina | B33: 0.0002825923135 | C33: 0.0006162968885
A34: South Carolina | B34: 0.001287364984 | C34: 0.0009494303418
A35: Tennessee | B35: 0.001978146194 | C35: 0.004164168166
A36: Virginia | B36: 6.279829189e-05 | C36: 0.001082683723
A37: West Virginia | B37: 0 | C37: 0.0003164767806
A38: CENRAP | B38: 0.018933685 | C38: 0.0144413352
A39: LADCO | B39: 0.01466340116 | C39: 0.06089679526
A40: MANE-VU | B40: 0.0006907812108 | C40: 0.002381904191
A41: All Other Regions | B41: 0.0008477769405 | C41: 0.0008328336332
A42: Total | B42: =SUM(B28:B41) -> 0.06691158001 | C42: =SUM(C28:C41) -> 0.1072190019
A44: =A23 -> VISTAS Total | B44: =B23/G1 -> 0.03177593569 | C44: =C23/G2 -> 0.02866613365

Sheet Sector to Area
A1: Region | B1: All Other Regions | D1: =B1 -> All Other Regions
A2: Sector | B2: EGU | D2: =VLOOKUP(B2,Sheet3!Q:R,2,FALSE) -> EGU Point Sources
A3: Species | B3: (All) | D3: =IF(B3="S","Sulfate",IF(B3="N","Nitrate","Sulfate + Nitrate")) -> Sulfate + Nitrate
A5: Class I Area | B5: Extinction (20% Best) | C5: Extinction (20% Impaired)
A6: ACAD | B6: 0.001 | C6: 0.055 | E6: Contribution of EGU Point Sources to Linville Gorge Wilderness, NC from Nitrate
A7: BADL | B7: 0.152 | C7: 0.961 | E7: =IF(B1<>"Boundary",CONCATENATE("2028 Contribution of ",D2," in ",D1," from ",D3, " (Mm-1)"),CONCATENATE("2028 Contribution of ",D2," from ",D3," (Mm-1)")) -> 2028 Contribution of EGU Point Sources in All Other Regions from Sulfate + Nitrate (Mm-1)
A8: BAND | B8: 0.028 | C8: 0.097 | E8: =CONCATENATE("Contribution to Light Extinction from ",D3," (Mm-1)") -> Contribution to Light Extinction from Sulfate + Nitrate (Mm-1)
A9: BIBE | B9: 0.022 | C9: 0.056
A10: BOAP | B10: 0.03 | C10: 0.104
A11: BOWA | B11: 0.003 | C11: 0.582
A12: BRET2 | B12: 0.13 | C12: 0.17
A13: BRIG | B13: 0.021 | C13: 0.305
A14: CACR | B14: 0.111 | C14: 0.299
A15: CAVE | B15: 0.081 | C15: 0.064
A16: CHAS | B16: 0.038 | C16: 0.075
A17: COHU | B17: 0.053 | C17: 0.104
A18: DOSO | B18: 0.029 | C18: 0.204
A19: EANE | B19: 0.008 | C19: 0.081
A20: EVER | B20: 0.016 | C20: 0.028
A21: FLTO | B21: 0.008 | C21: 0.081
A22: GRGU | B22: 0.01 | C22: 0.116
A23: GRSA | B23: 0.018 | C23: 0.221
A24: GRSM | B24: 0.059 | C24: 0.204
A25: GUMO | B25: 0.081 | C25: 0.064
A26: HEGL | B26: 0.104 | C26: 0.667
A27: ISLE | B27: 0.011 | C27: 0.593
A28: JARI | B28: 0.106 | C28: 0.158
A29: JOYC | B29: 0.062 | C29: 0.208
A30: LIGO | B30: 0.062 | C30: 0.15
A31: LYBR2 | B31: 0.006 | C31: 0.13
A32: MABE | B32: 0.008 | C32: 0.081
A33: MACA | B33: 0.169 | C33: 0.484
A34: MELA | B34: 0.042 | C34: 2.901
A35: MING | B35: 0.118 | C35: 0.57
A36: MOOS | B36: 0.001 | C36: 0.06
A37: MOZI | B37: 0.119 | C37: 0.335
A38: OKEF | B38: 0.083 | C38: 0.157
A39: OTCR | B39: 0.03 | C39: 0.2
A40: PECO | B40: 0.012 | C40: 0.097
A41: PRRA | B41: 0.01 | C41: 0.116
A42: RAWA | B42: 0.119 | C42: 0.335
A43: ROCA | B43: 0.001 | C43: 0.06
A44: ROMA | B44: 0.05 | C44: 0.115
A45: ROMO | B45: 0.051 | C45: 0.369
A46: SACR | B46: 0.082 | C46: 0.159
A47: SAMA | B47: 0.067 | C47: 0.109
A48: SAPE | B48: 0.009 | C48: 0.048
A49: SENE | B49: 0.004 | C49: 0.665
A50: SHEN | B50: 0.037 | C50: 0.124
A51: SHRO | B51: 0.054 | C51: 0.159
A52: SIPS | B52: 0.086 | C52: 0.133
A53: SWAN | B53: 0.041 | C53: 0.095
A54: THRO | B54: 0.174 | C54: 2.562
A55: ULBE | B55: 0.003 | C55: 0.796
A56: UPBU | B56: 0.089 | C56: 0.465
A57: WEEL | B57: 0.008 | C57: 0.081
A58: WHIT | B58: 0.049 | C58: 0.062
A59: WHPE | B59: 0.012 | C59: 0.097
A60: WICA | B60: 0.148 | C60: 1.369
A61: WIMO | B61: 0.207 | C61: 0.568
A62: WOLF | B62: 0.076 | C62: 0.16

Sheet Facility to Area
A1: Region | B1: 057: NEW MADRID POWER PLANT-MARSTON | D1: =VLOOKUP(LEFT(B1,3),PSAT_Round2_Facilities!C:H,6,FALSE) -> NEW MADRID POWER PLANT-MARSTON
A2: Species | B2: (All) | D2: =IF(B2="S","Sulfate",IF(B2="N","Nitrate","Sulfate + Nitrate")) -> Sulfate + Nitrate
A4: Class I Area | B4: Extinction (20% Best) | C4: Extinction (20% Impaired)
A5: ACAD | B5: 0 | C5: 0.021 | E5: Contribution of EGU Point Sources to Linville Gorge Wilderness, NC from Nitrate
A6: BADL | B6: 0 | C6: 0.005 | E6: =CONCATENATE("2028 Contribution of ",D1," from ",D2, " (Mm-1)") -> 2028 Contribution of NEW MADRID POWER PLANT-MARSTON from Sulfate + Nitrate (Mm-1)
A7: BAND | B7: 0 | C7: 0 | E7: =CONCATENATE("Contribution to Light Extinction from ",D2," (Mm-1)") -> Contribution to Light Extinction from Sulfate + Nitrate (Mm-1)
A8: BIBE | B8: 0 | C8: 0.004
A9: BOAP | B9: 0 | C9: 0.001
A10: BOWA | B10: 0 | C10: 0.017
A11: BRET2 | B11: 0.085 | C11: 0.224
A12: BRIG | B12: 0.001 | C12: 0.046
A13: CACR | B13: 0.012 | C13: 0.107
A14: CAVE | B14: 0 | C14: 0.003
A15: CHAS | B15: 0.023 | C15: 0.098
A16: COHU | B16: 0.107 | C16: 0.11
A17: DOSO | B17: 0.035 | C17: 0.133
A18: EANE | B18: 0 | C18: 0
A19: EVER | B19: 0.01 | C19: 0.004
A20: FLTO | B20: 0 | C20: 0
A21: GRGU | B21: 0.001 | C21: 0.047
A22: GRSA | B22: 0 | C22: 0.001
A23: GRSM | B23: 0.048 | C23: 0.151
A24: GUMO | B24: 0 | C24: 0.003
A25: HEGL | B25: 0.009 | C25: 0.337
A26: ISLE | B26: 0 | C26: 0.043
A27: JARI | B27: 0.014 | C27: 0.084
A28: JOYC | B28: 0.051 | C28: 0.153
A29: LIGO | B29: 0.021 | C29: 0.202
A30: LYBR2 | B30: 0 | C30: 0.041
A31: MABE | B31: 0 | C31: 0
A32: MACA | B32: 0.023 | C32: 0.459
A33: MELA | B33: 0 | C33: 0
A34: MING | B34: 0.024 | C34: 0.623
A35: MOOS | B35: 0 | C35: 0.013
A36: MOZI | B36: 0 | C36: 0
A37: OKEF | B37: 0.028 | C37: 0.134
A38: OTCR | B38: 0.037 | C38: 0.138
A39: PECO | B39: 0 | C39: 0.001
A40: PRRA | B40: 0.001 | C40: 0.047
A41: RAWA | B41: 0 | C41: 0
A42: ROCA | B42: 0 | C42: 0.013
A43: ROMA | B43: 0.024 | C43: 0.086
A44: ROMO | B44: 0 | C44: 0
A45: SACR | B45: 0 | C45: 0.003
A46: SAMA | B46: 0.028 | C46: 0.074
A47: SAPE | B47: 0 | C47: 0
A48: SENE | B48: 0.001 | C48: 0.065
A49: SHEN | B49: 0.008 | C49: 0.103
A50: SHRO | B50: 0.025 | C50: 0.238
A51: SIPS | B51: 0.149 | C51: 0.344
A52: SWAN | B52: 0.003 | C52: 0.052
A53: THRO | B53: 0 | C53: 0.006
A54: ULBE | B54: 0 | C54: 0
A55: UPBU | B55: 0.011 | C55: 0.081
A56: WEEL | B56: 0 | C56: 0
A57: WHIT | B57: 0 | C57: 0.002
A58: WHPE | B58: 0 | C58: 0.001
A59: WICA | B59: 0 | C59: 0
A60: WIMO | B60: 0.001 | C60: 0.027
A61: WOLF | B61: 0.026 | C61: 0.111

Sheet Stacked Bar S and N by Area
A1: Site ID | B1: SIPS | D1: =VLOOKUP(B1,Sheet3!D:E,2,FALSE) -> Sipsey Wilderness | G1: ="2028 Contribution to Light Extinction on 20% Most Impaired Days - "&D1 -> 2028 Contribution to Light Extinction on 20% Most Impaired Days - Sipsey Wilderness
D2: =Z27 -> 1 | E2: RATIO | R2: EGU | S2: NEGU | T2: EGU | U2: NEGU
A3: Extinction (Mm-1) | B3: Species | R3: Adjust | S3: Adjust | T3: Adjust | U3: Adjust
A4: Row Labels | B4: Nitrate | C4: Sulfate | D4: Total | G4: Source Region | H4: Total Sulfate | I4: EGU Sulfate | J4: Non-EGU Sulfate | K4: Total Nitrate | L4: EGU Nitrate | M4: Non-EGU Nitrate | O4: Pt. Sulfate | P4: Pt. Nitrate | R4: Sulfate | S4: Sulfate | T4: Nitrate | U4: Nitrate | W4: Source Region | X4: Total Sulfate | Y4: EGU Sulfate | Z4: Non-EGU Sulfate | AA4: Total Nitrate | AB4: EGU Nitrate | AC4: Non-EGU Nitrate
A5: Alabama | B5: 0.597 | C5: 2.283 | D5: 2.88 | G5: Alabama | H5: =GETPIVOTDATA("delta_extw",$A$3,"Region",G5,"Sector","ALL","Species","S")-(Y5-I5)-(Z5-J5) -> 1.711 | I5: =GETPIVOTDATA("delta_extw",$A$3,"Region",G5,"Sector","EGU","Species","S")*(R5) -> 0.089 | J5: =GETPIVOTDATA("delta_extw",$A$3,"Region",G5,"Sector","NEG","Species","S")*(S5) -> 0.483 | K5: =GETPIVOTDATA("delta_extw",$A$3,"Region",G5,"Sector","ALL","Species","Nitrate")-(AB5-L5)-(AC5-M5) -> 0.466 | L5: =GETPIVOTDATA("delta_extw",$A$3,"Region",G5,"Sector","EGU","Species","N")*(T5) -> 0.033 | M5: =GETPIVOTDATA("delta_extw",$A$3,"Region",G5,"Sector","NEG","Species","N")*(U5) -> 0.098 | O5: =(I5+J5)/(H5) -> 0.3343074226 | P5: =(L5+M5)/K5 -> 0.2811158798 | R5: 1 | S5: 1 | T5: 1 | U5: 1 | W5: Alabama | X5: =GETPIVOTDATA("delta_extw",$A$3,"Region",W5,"Sector","ALL","Species","S") -> 1.711 | Y5: =GETPIVOTDATA("delta_extw",$A$3,"Region",W5,"Sector","EGU","Species","S") -> 0.089 | Z5: =GETPIVOTDATA("delta_extw",$A$3,"Region",W5,"Sector","NEG","Species","S") -> 0.483 | AA5: =GETPIVOTDATA("delta_extw",$A$3,"Region",W5,"Sector","ALL","Species","Nitrate") -> 0.466 | AB5: =GETPIVOTDATA("delta_extw",$A$3,"Region",W5,"Sector","EGU","Species","N") -> 0.033 | AC5: =GETPIVOTDATA("delta_extw",$A$3,"Region",W5,"Sector","NEG","Species","N") -> 0.098
A6: ALL | B6: 0.466 | C6: 1.711 | D6: 2.177 | G6: Florida | H6: 0.206 | I6: =GETPIVOTDATA("delta_extw",$A$3,"Region",G6,"Sector","EGU","Species","S")*(R6) -> 0.092 | J6: =GETPIVOTDATA("delta_extw",$A$3,"Region",G6,"Sector","NEG","Species","S")*(S6) -> 0.087 | K6: 0.005 | L6: =GETPIVOTDATA("delta_extw",$A$3,"Region",G6,"Sector","EGU","Species","N")*(T6) -> 0.001 | M6: =GETPIVOTDATA("delta_extw",$A$3,"Region",G6,"Sector","NEG","Species","N")*(U6) -> 0.001 | O6: =(I6+J6)/(H6) -> 0.8689320388 | P6: =(L6+M6)/K6 -> 0.4 | R6: 1 | S6: 1 | T6: 1 | U6: 1 | W6: Florida | X6: =GETPIVOTDATA("delta_extw",$A$3,"Region",W6,"Sector","ALL","Species","S") -> 0.206 | Y6: 0.092 | Z6: 0.087 | AA6: 0.005 | AB6: 0.001 | AC6: 0.001
A7: EGU | B7: 0.033 | C7: 0.089 | D7: 0.122 | G7: Georgia | H7: 0.153 | I7: 0.06 | J7: 0.069 | K7: 0.057 | L7: 0.009 | M7: 0.009 | O7: 0.8431372549 | P7: 0.3157894737 | R7: 1 | S7: 1 | T7: 1 | U7: 1 | W7: Georgia | X7: 0.153 | Y7: 0.06 | Z7: 0.069 | AA7: 0.057 | AB7: 0.009 | AC7: 0.009
A8: NEG | B8: 0.098 | C8: 0.483 | D8: 0.581 | G8: Kentucky | H8: 1.367 | I8: 0.929 | J8: 0.353 | K8: 0.479 | L8: 0.055 | M8: 0.072 | O8: 0.9378200439 | P8: 0.2651356994 | R8: 1 | S8: 1 | T8: 1 | U8: 1 | W8: Kentucky | X8: 1.367 | Y8: 0.929 | Z8: 0.353 | AA8: 0.479 | AB8: 0.055 | AC8: 0.072
A9: Florida | B9: 0.007 | C9: 0.385 | D9: 0.392 | G9: Mississippi | H9: 0.129 | I9: 0.013 | J9: 0.093 | K9: 0.057 | L9: 0.001 | M9: 0.028 | O9: 0.8217054264 | P9: 0.5087719298 | R9: 1 | S9: 1 | T9: 1 | U9: 1 | W9: Mississippi | X9: 0.129 | Y9: 0.013 | Z9: 0.093 | AA9: 0.057 | AB9: 0.001 | AC9: 0.028
A10: ALL | B10: 0.005 | C10: 0.206 | D10: 0.211 | G10: North Carolina | H10: 0.109 | I10: 0.06 | J10: 0.033 | K10: 0.018 | L10: 0.004 | M10: 0.004 | O10: 0.8532110092 | P10: 0.4444444444 | R10: 1 | S10: 1 | T10: 1 | U10: 1 | W10: North Carolina | X10: 0.109 | Y10: 0.06 | Z10: 0.033 | AA10: 0.018 | AB10: 0.004 | AC10: 0.004
A11: EGU | B11: 0.001 | C11: 0.092 | D11: 0.093 | G11: South Carolina | H11: 0.106 | I11: 0.039 | J11: 0.055 | K11: 0.009 | L11: 0.001 | M11: 0.002 | O11: 0.8867924528 | P11: 0.3333333333 | R11: 1 | S11: 1 | T11: 1 | U11: 1 | W11: South Carolina | X11: 0.106 | Y11: 0.039 | Z11: 0.055 | AA11: 0.009 | AB11: 0.001 | AC11: 0.002
A12: NEG | B12: 0.001 | C12: 0.087 | D12: 0.088 | G12: Tennessee | H12: 0.57 | I12: 0.295 | J12: 0.149 | K12: 0.689 | L12: 0.044 | M12: 0.101 | O12: 0.7789473684 | P12: 0.2104499274 | R12: 1 | S12: 1 | T12: 1 | U12: 1 | W12: Tennessee | X12: 0.57 | Y12: 0.295 | Z12: 0.149 | AA12: 0.689 | AB12: 0.044 | AC12: 0.101
A13: Georgia | B13: 0.075 | C13: 0.282 | D13: 0.357 | G13: Virginia | H13: 0.081 | I13: 0.007 | J13: 0.062 | K13: 0.017 | L13: 0.002 | M13: 0.003 | O13: 0.8518518519 | P13: 0.2941176471 | R13: 1 | S13: 1 | T13: 1 | U13: 1 | W13: Virginia | X13: 0.081 | Y13: 0.007 | Z13: 0.062 | AA13: 0.017 | AB13: 0.002 | AC13: 0.003
A14: ALL | B14: 0.057 | C14: 0.153 | D14: 0.21 | G14: West Virginia | H14: 0.274 | I14: 0.24 | J14: 0.013 | K14: 0.045 | L14: 0.012 | M14: 0.006 | O14: 0.9233576642 | P14: 0.4 | R14: 1 | S14: 1 | T14: 1 | U14: 1 | W14: West Virginia | X14: 0.274 | Y14: 0.24 | Z14: 0.013 | AA14: 0.045 | AB14: 0.012 | AC14: 0.006
A15: EGU | B15: 0.009 | C15: 0.06 | D15: 0.069 | G15: CENRAP | H15: 4.653 | I15: 3.688 | J15: 0.689 | K15: 1.344 | L15: 0.29 | M15: 0.178 | O15: 0.94068343 | P15: 0.3482142857 | R15: 1 | S15: 1 | T15: 1 | U15: 1 | W15: CENRAP | X15: 4.653 | Y15: =GETPIVOTDATA("delta_extw",$A$3,"Region",W15,"Sector","EGU","Species","S") -> 3.688 | Z15: 0.689 | AA15: 1.344 | AB15: 0.29 | AC15: 0.178
A16: NEG | B16: 0.009 | C16: 0.069 | D16: 0.078 | G16: LADCO | H16: 12.219 | I16: 8.742 | J16: 3.045 | K16: 2.786 | L16: 0.766 | M16: 0.611 | O16: 0.9646452247 | P16: 0.4942569993 | R16: 1 | S16: 1 | T16: 1 | U16: 1 | W16: LADCO | X16: 12.219 | Y16: =GETPIVOTDATA("delta_extw",$A$3,"Region",W16,"Sector","EGU","Species","S") -> 8.742 | Z16: 3.045 | AA16: 2.786 | AB16: 0.766 | AC16: 0.611
A17: Kentucky | B17: 0.606 | C17: 2.649 | D17: 3.255 | G17: MANE-VU | H17: 0.757 | I17: 0.571 | J17: 0.132 | K17: 0.065 | L17: 0.015 | M17: 0.011 | O17: 0.928665786 | P17: 0.4 | R17: 1 | S17: 1 | T17: 1 | U17: 1 | W17: MANE-VU | X17: 0.757 | Y17: =GETPIVOTDATA("delta_extw",$A$3,"Region",W17,"Sector","EGU","Species","S") -> 0.571 | Z17: 0.132 | AA17: 0.065 | AB17: 0.015 | AC17: 0.011
A18: ALL | B18: 0.479 | C18: 1.367 | D18: 1.846 | G18: All Other Regions | H18: =GETPIVOTDATA("delta_extw",$A$3,"Region",G18,"Sector","ALL","Species","S") -> 1.612 | I18: =GETPIVOTDATA("delta_extw",$A$3,"Region",G18,"Sector","EGU","Species","S") -> 0.123 | J18: =GETPIVOTDATA("delta_extw",$A$3,"Region",G18,"Sector","NEG","Species","S") -> 0.037 | K18: =GETPIVOTDATA("delta_extw",$A$3,"Region",G18,"Sector","ALL","Species","Nitrate") -> 0.245 | L18: =GETPIVOTDATA("delta_extw",$A$3,"Region",G18,"Sector","EGU","Species","N") -> 0.01 | M18: =GETPIVOTDATA("delta_extw",$A$3,"Region",G18,"Sector","NEG","Species","N") -> 0.013 | O18: 0.09925558313 | P18: 0.09387755102 | W18: All Other Regions | X18: 1.612 | Y18: 0.123 | Z18: 0.037 | AA18: 0.245 | AB18: 0.01 | AC18: 0.013
A19: EGU | B19: 0.055 | C19: 0.929 | D19: 0.984 | G19: Northern Boundary | H19: =GETPIVOTDATA("delta_extw",$A$3,"Region","Boundary","Sector","NBC","Species","S") -> 3.056 | K19: =GETPIVOTDATA("delta_extw",$A$3,"Region","Boundary","Sector","NBC","Species","N") -> 0.249 | W19: Northern Boundary | X19: =GETPIVOTDATA("delta_extw",$A$3,"Region","Boundary","Sector","NBC","Species","S") -> 3.056 | AA19: =GETPIVOTDATA("delta_extw",$A$3,"Region","Boundary","Sector","NBC","Species","N") -> 0.249
A20: NEG | B20: 0.072 | C20: 0.353 | D20: 0.425 | G20: Eastern Boundary | H20: =GETPIVOTDATA("delta_extw",$A$3,"Region","Boundary","Sector","EBC","Species","S") -> 0.025 | K20: =GETPIVOTDATA("delta_extw",$A$3,"Region","Boundary","Sector","EBC","Species","N") -> 0 | W20: Eastern Boundary | X20: =GETPIVOTDATA("delta_extw",$A$3,"Region","Boundary","Sector","EBC","Species","S") -> 0.025 | AA20: =GETPIVOTDATA("delta_extw",$A$3,"Region","Boundary","Sector","EBC","Species","N") -> 0
A21: Mississippi | B21: 0.086 | C21: 0.235 | D21: 0.321 | G21: Southern Boundary | H21: =GETPIVOTDATA("delta_extw",$A$3,"Region","Boundary","Sector","SBC","Species","S") -> 0.621 | K21: =GETPIVOTDATA("delta_extw",$A$3,"Region","Boundary","Sector","SBC","Species","N") -> 0.009 | W21: Southern Boundary | X21: =GETPIVOTDATA("delta_extw",$A$3,"Region","Boundary","Sector","SBC","Species","S") -> 0.621 | AA21: =GETPIVOTDATA("delta_extw",$A$3,"Region","Boundary","Sector","SBC","Species","N") -> 0.009
A22: ALL | B22: 0.057 | C22: 0.129 | D22: 0.186 | G22: Western Boundary | H22: =GETPIVOTDATA("delta_extw",$A$3,"Region","Boundary","Sector","WBC","Species","S") -> 1.104 | K22: =GETPIVOTDATA("delta_extw",$A$3,"Region","Boundary","Sector","WBC","Species","N") -> 0.116 | W22: Western Boundary | X22: =GETPIVOTDATA("delta_extw",$A$3,"Region","Boundary","Sector","WBC","Species","S") -> 1.104 | AA22: =GETPIVOTDATA("delta_extw",$A$3,"Region","Boundary","Sector","WBC","Species","N") -> 0.116
A23: EGU | B23: 0.001 | C23: 0.013 | D23: 0.014 | G23: Lateral Bounday | H23: =GETPIVOTDATA("delta_extw",$A$3,"Region","Boundary","Sector","TBC","Species","S") -> 0 | K23: =GETPIVOTDATA("delta_extw",$A$3,"Region","Boundary","Sector","TBC","Species","N") -> 0 | W23: Lateral Bounday | X23: =GETPIVOTDATA("delta_extw",$A$3,"Region","Boundary","Sector","TBC","Species","S") -> 0 | AA23: =GETPIVOTDATA("delta_extw",$A$3,"Region","Boundary","Sector","TBC","Species","N") -> 0
A24: NEG | B24: 0.028 | C24: 0.093 | D24: 0.121 | G24: TOTAL | H24: =SUM(H5:H23) -> 28.753 | I24: =SUM(I5:I23) -> 14.948 | J24: 5.3 | K24: 6.656 | L24: 1.243 | M24: 1.137 | O24: =(I24+J24)/(H24) -> 0.7042047786 | P24: =(L24+M24)/K24 -> 0.3575721154 | W24: TOTAL | X24: =SUM(X5:X23) -> 28.753 | Y24: =SUM(Y5:Y23) -> 14.948 | Z24: 5.3 | AA24: 6.656 | AB24: 1.243 | AC24: 1.137
A25: North Carolina | B25: 0.026 | C25: 0.202 | D25: 0.228
A26: ALL | B26: 0.018 | C26: 0.109 | D26: 0.127 | X26: D Mm-1 | Z26: Sulfate+Nitrate | AA26: Sulfate | AB26: Nitrate
A27: EGU | B27: 0.004 | C27: 0.06 | D27: 0.064 | W27: Sulfate | X27: =X24-H24 -> 0 | Z27: =(Y24+Z24+AB24+AC24)/(I24+J24+L24+M24) -> 1 | AA27: =(Y24+Z24)/(I24+J24) -> 1 | AB27: =(AB24+AC24)/(L24+M24) -> 1
A28: NEG | B28: 0.004 | C28: 0.033 | D28: 0.037 | W28: Nitrate | X28: =AA24-K24 -> 0
A29: South Carolina | B29: 0.012 | C29: 0.2 | D29: 0.212 | W29: TOTAL | X29: =SUM(X27:X28) -> 0
A30: ALL | B30: 0.009 | C30: 0.106 | D30: 0.115
A31: EGU | B31: 0.001 | C31: 0.039 | D31: 0.04
A32: NEG | B32: 0.002 | C32: 0.055 | D32: 0.057
A33: Tennessee | B33: 0.834 | C33: 1.014 | D33: 1.848
A34: ALL | B34: 0.689 | C34: 0.57 | D34: 1.259
A35: EGU | B35: 0.044 | C35: 0.295 | D35: 0.339
A36: NEG | B36: 0.101 | C36: 0.149 | D36: 0.25
A37: Virginia | B37: 0.022 | C37: 0.15 | D37: 0.172
A38: ALL | B38: 0.017 | C38: 0.081 | D38: 0.098
A39: EGU | B39: 0.002 | C39: 0.007 | D39: 0.009
A40: NEG | B40: 0.003 | C40: 0.062 | D40: 0.065
A41: West Virginia | B41: 0.063 | C41: 0.527 | D41: 0.59
A42: ALL | B42: 0.045 | C42: 0.274 | D42: 0.319
A43: EGU | B43: 0.012 | C43: 0.24 | D43: 0.252
A44: NEG | B44: 0.006 | C44: 0.013 | D44: 0.019
A45: CENRAP | B45: 1.812 | C45: 9.03 | D45: 10.842
A46: ALL | B46: 1.344 | C46: 4.653 | D46: 5.997
A47: EGU | B47: 0.29 | C47: 3.688 | D47: 3.978
A48: NEG | B48: 0.178 | C48: 0.689 | D48: 0.867
A49: LADCO | B49: 4.163 | C49: 24.006 | D49: 28.169
A50: ALL | B50: 2.786 | C50: 12.219 | D50: 15.005
A51: EGU | B51: 0.766 | C51: 8.742 | D51: 9.508
A52: NEG | B52: 0.611 | C52: 3.045 | D52: 3.656
A53: MANE-VU | B53: 0.091 | C53: 1.46 | D53: 1.551
A54: ALL | B54: 0.065 | C54: 0.757 | D54: 0.822
A55: EGU | B55: 0.015 | C55: 0.571 | D55: 0.586
A56: NEG | B56: 0.011 | C56: 0.132 | D56: 0.143
A57: All Other Regions | B57: 0.268 | C57: 1.772 | D57: 2.04
A58: ALL | B58: 0.245 | C58: 1.612 | D58: 1.857
A59: EGU | B59: 0.01 | C59: 0.123 | D59: 0.133
A60: NEG | B60: 0.013 | C60: 0.037 | D60: 0.05
A61: Boundary | B61: 0.749 | C61: 9.636 | D61: 10.385
A62: BC | B62: 0.375 | C62: 4.83 | D62: 5.205
A63: EBC | B63: 0 | C63: 0.025 | D63: 0.025
A64: NBC | B64: 0.249 | C64: 3.056 | D64: 3.305
A65: SBC | B65: 0.009 | C65: 0.621 | D65: 0.63
A66: TBC | B66: 0 | C66: 0 | D66: 0
A67: WBC | B67: 0.116 | C67: 1.104 | D67: 1.22
A68: Initial | B68: 0 | C68: 0 | D68: 0
A69: IC | B69: 0 | C69: 0 | D69: 0
A70: Total | B70: 9.411 | C70: 53.831 | D70: 63.242

Sheet Stacked Bar S and N by Area_ADJ
A1: Site ID | B1: SIPS | D1: =VLOOKUP(B1,Sheet3!D:E,2,FALSE) -> Sipsey Wilderness | G1: ="2028 Contribution to Light Extinction on 20% Most Impaired Days - "&D1 -> 2028 Contribution to Light Extinction on 20% Most Impaired Days - Sipsey Wilderness
D2: =Z27 -> 1.382315012 | E2: RATIO | R2: EGU | S2: NEGU | T2: EGU | U2: NEGU
A3: Extinction (Mm-1) | B3: Species | R3: Adjust | S3: Adjust | T3: Adjust | U3: Adjust
A4: Row Labels | B4: Nitrate | C4: Sulfate | D4: Total | G4: Source Region | H4: Total Sulfate | I4: EGU Sulfate | J4: Non-EGU Sulfate | K4: Total Nitrate | L4: EGU Nitrate | M4: Non-EGU Nitrate | O4: Pt. Sulfate | P4: Pt. Nitrate | R4: Sulfate | S4: Sulfate | T4: Nitrate | U4: Nitrate | W4: Source Region | X4: Total Sulfate | Y4: EGU Sulfate | Z4: Non-EGU Sulfate | AA4: Total Nitrate | AB4: EGU Nitrate | AC4: Non-EGU Nitrate
A5: Alabama | B5: 0.597 | C5: 2.283 | D5: 2.88 | G5: Alabama | H5: =GETPIVOTDATA("delta_extw",$A$3,"Region",G5,"Sector","ALL","Species","S")-(Y5-I5)-(Z5-J5) -> 1.528903133 | I5: =GETPIVOTDATA("delta_extw",$A$3,"Region",G5,"Sector","EGU","Species","S")*(R5) -> 0.04809588017 | J5: =GETPIVOTDATA("delta_extw",$A$3,"Region",G5,"Sector","NEG","Species","S")*(S5) -> 0.3418072531 | K5: =GETPIVOTDATA("delta_extw",$A$3,"Region",G5,"Sector","ALL","Species","Nitrate")-(AB5-L5)-(AC5-M5) -> 0.4526434842 | L5: =GETPIVOTDATA("delta_extw",$A$3,"Region",G5,"Sector","EGU","Species","N")*(T5) -> 0.02454954399 | M5: =GETPIVOTDATA("delta_extw",$A$3,"Region",G5,"Sector","NEG","Species","N")*(U5) -> 0.09309394022 | O5: =(I5+J5)/(H5) -> 0.2550214757 | P5: =(L5+M5)/K5 -> 0.2599031872 | R5: 0.540403148 | S5: 0.7076754722 | T5: 0.7439255753 | U5: 0.9499381655 | W5: Alabama | X5: =GETPIVOTDATA("delta_extw",$A$3,"Region",W5,"Sector","ALL","Species","S") -> 1.711 | Y5: =GETPIVOTDATA("delta_extw",$A$3,"Region",W5,"Sector","EGU","Species","S") -> 0.089 | Z5: =GETPIVOTDATA("delta_extw",$A$3,"Region",W5,"Sector","NEG","Species","S") -> 0.483 | AA5: =GETPIVOTDATA("delta_extw",$A$3,"Region",W5,"Sector","ALL","Species","Nitrate") -> 0.466 | AB5: =GETPIVOTDATA("delta_extw",$A$3,"Region",W5,"Sector","EGU","Species","N") -> 0.033 | AC5: =GETPIVOTDATA("delta_extw",$A$3,"Region",W5,"Sector","NEG","Species","N") -> 0.098
A6: ALL | B6: 0.466 | C6: 1.711 | D6: 2.177 | G6: Florida | H6: 0.1764862844 | I6: =GETPIVOTDATA("delta_extw",$A$3,"Region",G6,"Sector","EGU","Species","S")*(R6) -> 0.07736006929 | J6: =GETPIVOTDATA("delta_extw",$A$3,"Region",G6,"Sector","NEG","Species","S")*(S6) -> 0.07212621507 | K6: 0.005031012972 | L6: =GETPIVOTDATA("delta_extw",$A$3,"Region",G6,"Sector","EGU","Species","N")*(T6) -> 0.0009542554222 | M6: =GETPIVOTDATA("delta_extw",$A$3,"Region",G6,"Sector","NEG","Species","N")*(U6) -> 0.00107675755 | O6: =(I6+J6)/(H6) -> 0.8470136073 | P6: =(L6+M6)/K6 -> 0.4036986156 | R6: 0.8408703184 | S6: 0.8290369548 | T6: 0.9542554222 | U6: 1.07675755 | W6: Florida | X6: =GETPIVOTDATA("delta_extw",$A$3,"Region",W6,"Sector","ALL","Species","S") -> 0.206 | Y6: 0.092 | Z6: 0.087 | AA6: 0.005 | AB6: 0.001 | AC6: 0.001
A7: EGU | B7: 0.033 | C7: 0.089 | D7: 0.122 | G7: Georgia | H7: 0.1500776965 | I7: 0.05707769624 | J7: 0.06900000029 | K7: 0.05654410728 | L7: 0.008544107283 | M7: 0.008999999993 | O7: 0.8400828334 | P7: 0.3102729554 | R7: 0.9512949373 | S7: 1.000000004 | T7: 0.9493452536 | U7: 0.9999999993 | W7: Georgia | X7: 0.153 | Y7: 0.06 | Z7: 0.069 | AA7: 0.057 | AB7: 0.009 | AC7: 0.009
A8: NEG | B8: 0.098 | C8: 0.483 | D8: 0.581 | G8: Kentucky | H8: 1.203896494 | I8: 0.818763999 | J8: 0.3001324949 | K8: 0.4728332763 | L8: 0.04889049883 | M8: 0.07194277749 | O8: 0.9293959236 | P8: 0.2555515493 | R8: 0.8813390732 | S8: 0.8502336967 | T8: 0.8889181606 | U8: 0.9992052429 | W8: Kentucky | X8: 1.367 | Y8: 0.929 | Z8: 0.353 | AA8: 0.479 | AB8: 0.055 | AC8: 0.072
A9: Florida | B9: 0.007 | C9: 0.385 | D9: 0.392 | G9: Mississippi | H9: 0.06275722129 | I9: 0.006023506128 | J9: 0.03373371516 | K9: 0.05730007924 | L9: 0.0006678999229 | M9: 0.02863217932 | O9: 0.6335083114 | P9: 0.5113444803 | R9: 0.4633466252 | S9: 0.36272812 | T9: 0.6678999229 | U9: 1.022577833 | W9: Mississippi | X9: 0.129 | Y9: 0.013 | Z9: 0.093 | AA9: 0.057 | AB9: 0.001 | AC9: 0.028
A10: ALL | B10: 0.005 | C10: 0.206 | D10: 0.211 | G10: North Carolina | H10: 0.07656213558 | I10: 0.0291002754 | J10: 0.03146186018 | K10: 0.01700688886 | L10: 0.003013789386 | M10: 0.003993099471 | O10: 0.7910194135 | P10: 0.4120029781 | R10: 0.48500459 | S10: 0.9533897024 | T10: 0.7534473464 | U10: 0.9982748679 | W10: North Carolina | X10: 0.109 | Y10: 0.06 | Z10: 0.033 | AA10: 0.018 | AB10: 0.004 | AC10: 0.004
A11: EGU | B11: 0.001 | C11: 0.092 | D11: 0.093 | G11: South Carolina | H11: 0.1060023332 | I11: 0.039005657 | J11: 0.05499667618 | K11: 0.009012447699 | L11: 0.001017546858 | M11: 0.001994900841 | O11: 0.8867949446 | P11: 0.3342541116 | R11: 1.000145051 | S11: 0.999939567 | T11: 1.017546858 | U11: 0.9974504206 | W11: South Carolina | X11: 0.106 | Y11: 0.039 | Z11: 0.055 | AA11: 0.009 | AB11: 0.001 | AC11: 0.002
A12: NEG | B12: 0.001 | C12: 0.087 | D12: 0.088 | G12: Tennessee | H12: 0.5152203732 | I12: 0.244245364 | J12: 0.1449750092 | K12: 0.6772465352 | L12: 0.0340889865 | M12: 0.09915754873 | O12: 0.7554444534 | P12: 0.1967474595 | R12: 0.8279503864 | S12: 0.9729866388 | T12: 0.7747496932 | U12: 0.9817579082 | W12: Tennessee | X12: 0.57 | Y12: 0.295 | Z12: 0.149 | AA12: 0.689 | AB12: 0.044 | AC12: 0.101
A13: Georgia | B13: 0.075 | C13: 0.282 | D13: 0.357 | G13: Virginia | H13: 0.07823812254 | I13: 0.004238122514 | J13: 0.06200000003 | K13: 0.01674307536 | L13: 0.001743075363 | M13: 0.002999999996 | O13: 0.8466220864 | P13: 0.2832857917 | R13: 0.6054460734 | S13: 1 | T13: 0.8715376814 | U13: 0.9999999986 | W13: Virginia | X13: 0.081 | Y13: 0.007 | Z13: 0.062 | AA13: 0.017 | AB13: 0.002 | AC13: 0.003
A14: ALL | B14: 0.057 | C14: 0.153 | D14: 0.21 | G14: West Virginia | H14: 0.2330718395 | I14: 0.1981487368 | J14: 0.01392310272 | K14: 0.04580779619 | L14: 0.01280965531 | M14: 0.005998140883 | O14: 0.9098990249 | P14: 0.4105806818 | R14: 0.8256197365 | S14: 1.071007902 | T14: 1.067471276 | U14: 0.9996901471 | W14: West Virginia | X14: 0.274 | Y14: 0.24 | Z14: 0.013 | AA14: 0.045 | AB14: 0.012 | AC14: 0.006
A15: EGU | B15: 0.009 | C15: 0.06 | D15: 0.069 | G15: CENRAP | H15: 2.786058238 | I15: 1.821060288 | J15: 0.6889979508 | K15: 1.258713777 | L15: 0.2047336006 | M15: 0.1779801764 | O15: 0.9009353085 | P15: 0.3040514723 | R15: 0.4937799044 | S15: 0.9999970259 | T15: 0.7059779332 | U15: 0.9998886317 | W15: CENRAP | X15: 4.653 | Y15: =GETPIVOTDATA("delta_extw",$A$3,"Region",W15,"Sector","EGU","Species","S") -> 3.688 | Z15: 0.689 | AA15: 1.344 | AB15: 0.29 | AC15: 0.178
A16: NEG | B16: 0.009 | C16: 0.069 | D16: 0.078 | G16: LADCO | H16: 9.032698202 | I16: 5.555698222 | J16: 3.04499998 | K16: 2.605445541 | L16: 0.5854455415 | M16: 0.6109999995 | O16: 0.9521737591 | P16: 0.4592095756 | R16: 0.6355179847 | S16: 0.9999999935 | T16: 0.7642892187 | U16: 0.9999999992 | W16: LADCO | X16: 12.219 | Y16: =GETPIVOTDATA("delta_extw",$A$3,"Region",W16,"Sector","EGU","Species","S") -> 8.742 | Z16: 3.045 | AA16: 2.786 | AB16: 0.766 | AC16: 0.611
A17: Kentucky | B17: 0.606 | C17: 2.649 | D17: 3.255 | G17: MANE-VU | H17: 0.4274269131 | I17: 0.2665569537 | J17: 0.1068699594 | K17: 0.06191363607 | L17: 0.0119136361 | M17: 0.01099999997 | O17: 0.8736626114 | P17: 0.3700902988 | R17: 0.4668247876 | S17: 0.8096209045 | T17: 0.7942424069 | U17: 0.9999999973 | W17: MANE-VU | X17: 0.757 | Y17: =GETPIVOTDATA("delta_extw",$A$3,"Region",W17,"Sector","EGU","Species","S") -> 0.571 | Z17: 0.132 | AA17: 0.065 | AB17: 0.015 | AC17: 0.011
A18: ALL | B18: 0.479 | C18: 1.367 | D18: 1.846 | G18: All Other Regions | H18: =GETPIVOTDATA("delta_extw",$A$3,"Region",G18,"Sector","ALL","Species","S") -> 1.612 | I18: =GETPIVOTDATA("delta_extw",$A$3,"Region",G18,"Sector","EGU","Species","S") -> 0.123 | J18: =GETPIVOTDATA("delta_extw",$A$3,"Region",G18,"Sector","NEG","Species","S") -> 0.037 | K18: =GETPIVOTDATA("delta_extw",$A$3,"Region",G18,"Sector","ALL","Species","Nitrate") -> 0.245 | L18: =GETPIVOTDATA("delta_extw",$A$3,"Region",G18,"Sector","EGU","Species","N") -> 0.01 | M18: =GETPIVOTDATA("delta_extw",$A$3,"Region",G18,"Sector","NEG","Species","N") -> 0.013 | O18: 0.09925558313 | P18: 0.09387755102 | W18: All Other Regions | X18: 1.612 | Y18: 0.123 | Z18: 0.037 | AA18: 0.245 | AB18: 0.01 | AC18: 0.013
A19: EGU | B19: 0.055 | C19: 0.929 | D19: 0.984 | G19: Northern Boundary | H19: =GETPIVOTDATA("delta_extw",$A$3,"Region","Boundary","Sector","NBC","Species","S") -> 3.056 | K19: =GETPIVOTDATA("delta_extw",$A$3,"Region","Boundary","Sector","NBC","Species","N") -> 0.249 | W19: Northern Boundary | X19: =GETPIVOTDATA("delta_extw",$A$3,"Region","Boundary","Sector","NBC","Species","S") -> 3.056 | AA19: =GETPIVOTDATA("delta_extw",$A$3,"Region","Boundary","Sector","NBC","Species","N") -> 0.249
A20: NEG | B20: 0.072 | C20: 0.353 | D20: 0.425 | G20: Eastern Boundary | H20: =GETPIVOTDATA("delta_extw",$A$3,"Region","Boundary","Sector","EBC","Species","S") -> 0.025 | K20: =GETPIVOTDATA("delta_extw",$A$3,"Region","Boundary","Sector","EBC","Species","N") -> 0 | W20: Eastern Boundary | X20: =GETPIVOTDATA("delta_extw",$A$3,"Region","Boundary","Sector","EBC","Species","S") -> 0.025 | AA20: =GETPIVOTDATA("delta_extw",$A$3,"Region","Boundary","Sector","EBC","Species","N") -> 0
A21: Mississippi | B21: 0.086 | C21: 0.235 | D21: 0.321 | G21: Southern Boundary | H21: =GETPIVOTDATA("delta_extw",$A$3,"Region","Boundary","Sector","SBC","Species","S") -> 0.621 | K21: =GETPIVOTDATA("delta_extw",$A$3,"Region","Boundary","Sector","SBC","Species","N") -> 0.009 | W21: Southern Boundary | X21: =GETPIVOTDATA("delta_extw",$A$3,"Region","Boundary","Sector","SBC","Species","S") -> 0.621 | AA21: =GETPIVOTDATA("delta_extw",$A$3,"Region","Boundary","Sector","SBC","Species","N") -> 0.009
A22: ALL | B22: 0.057 | C22: 0.129 | D22: 0.186 | G22: Western Boundary | H22: =GETPIVOTDATA("delta_extw",$A$3,"Region","Boundary","Sector","WBC","Species","S") -> 1.104 | K22: =GETPIVOTDATA("delta_extw",$A$3,"Region","Boundary","Sector","WBC","Species","N") -> 0.116 | W22: Western Boundary | X22: =GETPIVOTDATA("delta_extw",$A$3,"Region","Boundary","Sector","WBC","Species","S") -> 1.104 | AA22: =GETPIVOTDATA("delta_extw",$A$3,"Region","Boundary","Sector","WBC","Species","N") -> 0.116
A23: EGU | B23: 0.001 | C23: 0.013 | D23: 0.014 | G23: Lateral Bounday | H23: =GETPIVOTDATA("delta_extw",$A$3,"Region","Boundary","Sector","TBC","Species","S") -> 0 | K23: =GETPIVOTDATA("delta_extw",$A$3,"Region","Boundary","Sector","TBC","Species","N") -> 0 | W23: Lateral Bounday | X23: =GETPIVOTDATA("delta_extw",$A$3,"Region","Boundary","Sector","TBC","Species","S") -> 0 | AA23: =GETPIVOTDATA("delta_extw",$A$3,"Region","Boundary","Sector","TBC","Species","N") -> 0
A24: NEG | B24: 0.028 | C24: 0.093 | D24: 0.121 | G24: TOTAL | H24: =SUM(H5:H23) -> 22.79539899 | I24: =SUM(I5:I23) -> 9.28837477 | J24: 5.002024217 | K24: 6.355241658 | L24: 0.9483721371 | M24: 1.13086952 | O24: =(I24+J24)/(H24) -> 0.6268983927 | P24: =(L24+M24)/K24 -> 0.3271695664 | W24: TOTAL | X24: =SUM(X5:X23) -> 28.753 | Y24: =SUM(Y5:Y23) -> 14.948 | Z24: 5.3 | AA24: 6.656 | AB24: 1.243 | AC24: 1.137
A25: North Carolina | B25: 0.026 | C25: 0.202 | D25: 0.228
A26: ALL | B26: 0.018 | C26: 0.109 | D26: 0.127 | X26: D Mm-1 | Z26: Sulfate+Nitrate | AA26: Sulfate | AB26: Nitrate
A27: EGU | B27: 0.004 | C27: 0.06 | D27: 0.064 | W27: Sulfate | X27: =X24-H24 -> 5.957601013 | Z27: =(Y24+Z24+AB24+AC24)/(I24+J24+L24+M24) -> 1.382315012 | AA27: =(Y24+Z24)/(I24+J24) -> 1.416895359 | AB27: =(AB24+AC24)/(L24+M24) -> 1.144648094
A28: NEG | B28: 0.004 | C28: 0.033 | D28: 0.037 | W28: Nitrate | X28: =AA24-K24 -> 0.3007583425
A29: South Carolina | B29: 0.012 | C29: 0.2 | D29: 0.212 | W29: TOTAL | X29: =SUM(X27:X28) -> 6.258359356
A30: ALL | B30: 0.009 | C30: 0.106 | D30: 0.115
A31: EGU | B31: 0.001 | C31: 0.039 | D31: 0.04
A32: NEG | B32: 0.002 | C32: 0.055 | D32: 0.057
A33: Tennessee | B33: 0.834 | C33: 1.014 | D33: 1.848
A34: ALL | B34: 0.689 | C34: 0.57 | D34: 1.259
A35: EGU | B35: 0.044 | C35: 0.295 | D35: 0.339
A36: NEG | B36: 0.101 | C36: 0.149 | D36: 0.25
A37: Virginia | B37: 0.022 | C37: 0.15 | D37: 0.172
A38: ALL | B38: 0.017 | C38: 0.081 | D38: 0.098
A39: EGU | B39: 0.002 | C39: 0.007 | D39: 0.009
A40: NEG | B40: 0.003 | C40: 0.062 | D40: 0.065
A41: West Virginia | B41: 0.063 | C41: 0.527 | D41: 0.59
A42: ALL | B42: 0.045 | C42: 0.274 | D42: 0.319
A43: EGU | B43: 0.012 | C43: 0.24 | D43: 0.252
A44: NEG | B44: 0.006 | C44: 0.013 | D44: 0.019
A45: CENRAP | B45: 1.812 | C45: 9.03 | D45: 10.842
A46: ALL | B46: 1.344 | C46: 4.653 | D46: 5.997
A47: EGU | B47: 0.29 | C47: 3.688 | D47: 3.978
A48: NEG | B48: 0.178 | C48: 0.689 | D48: 0.867
A49: LADCO | B49: 4.163 | C49: 24.006 | D49: 28.169
A50: ALL | B50: 2.786 | C50: 12.219 | D50: 15.005
A51: EGU | B51: 0.766 | C51: 8.742 | D51: 9.508
A52: NEG | B52: 0.611 | C52: 3.045 | D52: 3.656
A53: MANE-VU | B53: 0.091 | C53: 1.46 | D53: 1.551
A54: ALL | B54: 0.065 | C54: 0.757 | D54: 0.822
A55: EGU | B55: 0.015 | C55: 0.571 | D55: 0.586
A56: NEG | B56: 0.011 | C56: 0.132 | D56: 0.143
A57: All Other Regions | B57: 0.268 | C57: 1.772 | D57: 2.04
A58: ALL | B58: 0.245 | C58: 1.612 | D58: 1.857
A59: EGU | B59: 0.01 | C59: 0.123 | D59: 0.133
A60: NEG | B60: 0.013 | C60: 0.037 | D60: 0.05
A61: Boundary | B61: 0.749 | C61: 9.636 | D61: 10.385
A62: BC | B62: 0.375 | C62: 4.83 | D62: 5.205
A63: EBC | B63: 0 | C63: 0.025 | D63: 0.025
A64: NBC | B64: 0.249 | C64: 3.056 | D64: 3.305
A65: SBC | B65: 0.009 | C65: 0.621 | D65: 0.63
A66: TBC | B66: 0 | C66: 0 | D66: 0
A67: WBC | B67: 0.116 | C67: 1.104 | D67: 1.22
A68: Initial | B68: 0 | C68: 0 | D68: 0
A69: IC | B69: 0 | C69: 0 | D69: 0
A70: Total | B70: 9.411 | C70: 53.831 | D70: 63.242

Sheet Region Sector to Area
A1: Sector | B1: (Multiple Items) | C1: =VLOOKUP(B1,Sheet3!Q:R,2,FALSE) ->  | F1: ="2028 Contribution of "&C1&" from "&C2&" on 20% Most Impaired Days (Mm-1)" -> 
A2: Species | B2: (All) | C2: =IF(B2="S","Sulfate",IF(B2="N","Nitrate","Sulfate + Nitrate")) -> Sulfate + Nitrate
A4: Light Extinction (Mm-1) | B4: Region
A5: Class I Area | B5: Alabama | C5: Florida | D5: Georgia | E5: Kentucky | F5: Mississippi | G5: North Carolina | H5: South Carolina | I5: Tennessee | J5: Virginia | K5: West Virginia | L5: CENRAP | M5: LADCO | N5: MANE-VU | O5: All Other Regions
A6: ACAD | B6: 0.03 | C6: 0.024 | D6: 0.025 | E6: 0.153 | F6: 0.006 | G6: 0.12 | H6: 0.04 | I6: 0.029 | J6: 0.083 | K6: 0.09 | L6: 0.635 | M6: 1.712 | N6: 1.993 | O6: 0.074 | P6: =SUM(B6:O6) -> 5.014
A7: BADL | B7: 0.003 | C7: 0.001 | D7: 0 | E7: 0.018 | F7: 0.001 | G7: 0 | H7: 0 | I7: 0.003 | J7: 0 | K7: 0 | L7: 4.066 | M7: 1.134 | N7: 0.005 | O7: 1.325 | P7: =SUM(B7:O7) -> 6.556
A8: BAND | B8: 0.002 | C8: 0 | D8: 0 | E8: 0 | F8: 0 | G8: 0 | H8: 0 | I8: 0 | J8: 0 | K8: 0 | L8: 0.66 | M8: 0.022 | N8: 0 | O8: 0.218 | P8: 0.902
A9: BIBE | B9: 0.032 | C9: 0.006 | D9: 0.003 | E9: 0.009 | F9: 0.01 | G9: 0.001 | H9: 0.002 | I9: 0.003 | J9: 0 | K9: 0.001 | L9: 2.308 | M9: 0.093 | N9: 0.004 | O9: 0.088 | P9: 2.56
A10: BOAP | B10: 0.009 | C10: 0.004 | D10: 0.004 | E10: 0.003 | F10: 0.005 | G10: 0.002 | H10: 0.002 | I10: 0.004 | J10: 0.001 | K10: 0.001 | L10: 0.783 | M10: 0.012 | N10: 0.002 | O10: 0.255 | P10: 1.087
A11: BOWA | B11: 0.025 | C11: 0.002 | D11: 0.007 | E11: 0.095 | F11: 0.009 | G11: 0.004 | H11: 0.005 | I11: 0.014 | J11: 0.005 | K11: 0.019 | L11: 7.218 | M11: 2.919 | N11: 0.178 | O11: 0.796 | P11: 11.296
A12: BRET2 | B12: 1.987 | C12: 0.708 | D12: 0.17 | E12: 0.771 | F12: 0.759 | G12: 0.052 | H12: 0.068 | I12: 0.231 | J12: 0.018 | K12: 0.051 | L12: 9.074 | M12: 6.092 | N12: 0.139 | O12: 0.255 | P12: 20.375
A13: BRIG | B13: 0.021 | C13: 0.008 | D13: 0.031 | E13: 0.464 | F13: 0.011 | G13: 0.327 | H13: 0.072 | I13: 0.083 | J13: 0.309 | K13: 0.341 | L13: 1.831 | M13: 8.245 | N13: 8.039 | O13: 0.374 | P13: 20.156
A14: CACR | B14: 0.2 | C14: 0.03 | D14: 0.05 | E14: 0.333 | F14: 0.077 | G14: 0.02 | H14: 0.033 | I14: 0.088 | J14: 0.012 | K14: 0.021 | L14: 18.72 | M14: 3.799 | N14: 0.076 | O14: 0.461 | P14: 23.92
A15: CAVE | B15: 0.061 | C15: 0.01 | D15: 0.006 | E15: 0.013 | F15: 0.023 | G15: 0.002 | H15: 0.002 | I15: 0.006 | J15: 0.001 | K15: 0.001 | L15: 2.896 | M15: 0.124 | N15: 0.003 | O15: 0.138 | P15: 3.286
A16: CHAS | B16: 1.183 | C16: 3.263 | D16: 0.741 | E16: 0.304 | F16: 0.265 | G16: 0.205 | H16: 0.417 | I16: 0.159 | J16: 0.064 | K16: 0.066 | L16: 3.964 | M16: 2.298 | N16: 0.319 | O16: 0.129 | P16: 13.377
A17: COHU | B17: 0.754 | C17: 0.192 | D17: 0.675 | E17: 1.09 | F17: 0.08 | G17: 0.413 | H17: 0.481 | I17: 0.865 | J17: 0.213 | K17: 0.285 | L17: 2.577 | M17: 8.911 | N17: 1.349 | O17: 0.144 | P17: 18.029
A18: DOSO | B18: 0.107 | C18: 0.009 | D18: 0.071 | E18: 1.418 | F18: 0.047 | G18: 0.133 | H18: 0.016 | I18: 0.283 | J18: 0.248 | K18: 2.376 | L18: 2.83 | M18: 15.986 | N18: 3.635 | O18: 0.254 | P18: 27.413
A19: EANE | B19: 0 | C19: 0 | D19: 0 | E19: 0 | F19: 0 | G19: 0 | H19: 0 | I19: 0 | J19: 0 | K19: 0 | L19: 0.045 | M19: 0.002 | N19: 0 | O19: 0.15 | P19: 0.197
A20: EVER | B20: 0.044 | C20: 0.554 | D20: 0.034 | E20: 0.02 | F20: 0.014 | G20: 0.023 | H20: 0.041 | I20: 0.009 | J20: 0.008 | K20: 0.006 | L20: 0.681 | M20: 0.204 | N20: 0.037 | O20: 0.045 | P20: 1.72
A21: FLTO | B21: 0 | C21: 0 | D21: 0 | E21: 0 | F21: 0 | G21: 0 | H21: 0 | I21: 0 | J21: 0 | K21: 0 | L21: 0.045 | M21: 0.002 | N21: 0 | O21: 0.15 | P21: 0.197
A22: GRGU | B22: 0.03 | C22: 0.008 | D22: 0.014 | E22: 0.262 | F22: 0.009 | G22: 0.06 | H22: 0.018 | I22: 0.059 | J22: 0.057 | K22: 0.169 | L22: 1.476 | M22: 3.922 | N22: 2.314 | O22: 0.156 | P22: 8.554
A23: GRSA | B23: 0.003 | C23: 0.002 | D23: 0.002 | E23: 0.002 | F23: 0.002 | G23: 0.001 | H23: 0.001 | I23: 0.002 | J23: 0 | K23: 0 | L23: 0.394 | M23: 0.009 | N23: 0.001 | O23: 0.462 | P23: 0.881
A24: GRSM | B24: 0.879 | C24: 0.053 | D24: 0.366 | E24: 0.998 | F24: 0.122 | G24: 0.414 | H24: 0.375 | I24: 1.159 | J24: 0.229 | K24: 0.343 | L24: 3.961 | M24: 8.829 | N24: 1.404 | O24: 0.266 | P24: 19.398
A25: GUMO | B25: 0.061 | C25: 0.01 | D25: 0.006 | E25: 0.013 | F25: 0.023 | G25: 0.002 | H25: 0.002 | I25: 0.006 | J25: 0.001 | K25: 0.001 | L25: 2.896 | M25: 0.124 | N25: 0.003 | O25: 0.138 | P25: 3.286
A26: HEGL | B26: 0.102 | C26: 0.009 | D26: 0.044 | E26: 0.661 | F26: 0.037 | G26: 0.019 | H26: 0.03 | I26: 0.118 | J26: 0.012 | K26: 0.01 | L26: 16.663 | M26: 8.083 | N26: 0.111 | O26: 0.941 | P26: 26.84
A27: ISLE | B27: 0.013 | C27: 0 | D27: 0.002 | E27: 0.208 | F27: 0.01 | G27: 0.011 | H27: 0.002 | I27: 0.033 | J27: 0.008 | K27: 0.028 | L27: 5.203 | M27: 6.388 | N27: 0.333 | O27: 0.765 | P27: 13.004
A28: JARI | B28: 0.134 | C28: 0.028 | D28: 0.1 | E28: 0.783 | F28: 0.036 | G28: 0.58 | H28: 0.101 | I28: 0.207 | J28: 0.738 | K28: 1.245 | L28: 2.411 | M28: 10.684 | N28: 3.141 | O28: 0.204 | P28: 20.392
A29: JOYC | B29: 1.052 | C29: 0.06 | D29: 0.43 | E29: 0.981 | F29: 0.145 | G29: 0.43 | H29: 0.395 | I29: 0.943 | J29: 0.242 | K29: 0.309 | L29: 4.289 | M29: 8.327 | N29: 1.309 | O29: 0.272 | P29: 19.184
A30: LIGO | B30: 0.607 | C30: 0.043 | D30: 0.366 | E30: 0.826 | F30: 0.103 | G30: 0.995 | H30: 0.413 | I30: 1.049 | J30: 0.297 | K30: 0.262 | L30: 3.627 | M30: 7.338 | N30: 2.066 | O30: 0.189 | P30: 18.181
A31: LYBR2 | B31: 0.156 | C31: 0.025 | D31: 0.056 | E31: 0.292 | F31: 0.042 | G31: 0.147 | H31: 0.081 | I31: 0.076 | J31: 0.137 | K31: 0.212 | L31: 1.737 | M31: 5.203 | N31: 5.324 | O31: 0.164 | P31: 13.652
A32: MABE | B32: 0 | C32: 0 | D32: 0 | E32: 0 | F32: 0 | G32: 0 | H32: 0 | I32: 0 | J32: 0 | K32: 0 | L32: 0.045 | M32: 0.002 | N32: 0 | O32: 0.15 | P32: 0.197
A33: MACA | B33: 0.23 | C33: 0.006 | D33: 0.058 | E33: 2.753 | F33: 0.138 | G33: 0.011 | H33: 0.018 | I33: 0.456 | J33: 0.015 | K33: 0.213 | L33: 5.997 | M33: 22.455 | N33: 0.871 | O33: 0.595 | P33: 33.816
A34: MELA | B34: 0 | C34: 0 | D34: 0 | E34: 0 | F34: 0 | G34: 0 | H34: 0 | I34: 0 | J34: 0 | K34: 0 | L34: 1.071 | M34: 0.47 | N34: 0.012 | O34: 3.988 | P34: 5.541
A35: MING | B35: 0.254 | C35: 0.044 | D35: 0.132 | E35: 1.811 | F35: 0.135 | G35: 0.039 | H35: 0.037 | I35: 0.281 | J35: 0.017 | K35: 0.026 | L35: 11.009 | M35: 15.26 | N35: 0.266 | O35: 0.741 | P35: 30.052
A36: MOOS | B36: 0.012 | C36: 0.012 | D36: 0.011 | E36: 0.099 | F36: 0.002 | G36: 0.053 | H36: 0.017 | I36: 0.015 | J36: 0.041 | K36: 0.079 | L36: 0.57 | M36: 1.433 | N36: 1.82 | O36: 0.079 | P36: 4.243
A37: MOZI | B37: 0 | C37: 0 | D37: 0 | E37: 0 | F37: 0 | G37: 0 | H37: 0 | I37: 0 | J37: 0 | K37: 0 | L37: 0.048 | M37: 0 | N37: 0 | O37: 0.46 | P37: 0.508
A38: OKEF | B38: 1.24 | C38: 2.326 | D38: 1.475 | E38: 0.647 | F38: 0.153 | G38: 0.594 | H38: 0.961 | I38: 0.299 | J38: 0.246 | K38: 0.274 | L38: 2.984 | M38: 4.758 | N38: 1.489 | O38: 0.208 | P38: 17.654
A39: OTCR | B39: 0.118 | C39: 0.013 | D39: 0.075 | E39: 1.486 | F39: 0.051 | G39: 0.15 | H39: 0.019 | I39: 0.308 | J39: 0.276 | K39: 2.194 | L39: 2.886 | M39: 16.003 | N39: 3.099 | O39: 0.251 | P39: 26.929
A40: PECO | B40: 0.003 | C40: 0 | D40: 0 | E40: 0.001 | F40: 0.001 | G40: 0 | H40: 0 | I40: 0 | J40: 0 | K40: 0 | L40: 0.529 | M40: 0.012 | N40: 0 | O40: 0.191 | P40: 0.737
A41: PRRA | B41: 0.03 | C41: 0.008 | D41: 0.014 | E41: 0.262 | F41: 0.009 | G41: 0.06 | H41: 0.018 | I41: 0.059 | J41: 0.057 | K41: 0.169 | L41: 1.476 | M41: 3.922 | N41: 2.314 | O41: 0.156 | P41: 8.554
A42: RAWA | B42: 0 | C42: 0 | D42: 0 | E42: 0 | F42: 0 | G42: 0 | H42: 0 | I42: 0 | J42: 0 | K42: 0 | L42: 0.048 | M42: 0 | N42: 0 | O42: 0.46 | P42: 0.508
A43: ROCA | B43: 0.012 | C43: 0.012 | D43: 0.011 | E43: 0.099 | F43: 0.002 | G43: 0.053 | H43: 0.017 | I43: 0.015 | J43: 0.041 | K43: 0.079 | L43: 0.57 | M43: 1.433 | N43: 1.82 | O43: 0.079 | P43: 4.243
A44: ROMA | B44: 0.587 | C44: 0.622 | D44: 1.634 | E44: 0.568 | F44: 0.075 | G44: 0.808 | H44: 3.01 | I44: 0.329 | J44: 0.3 | K44: 0.281 | L44: 2.363 | M44: 4.821 | N44: 2.716 | O44: 0.152 | P44: 18.266
A45: ROMO | B45: 0 | C45: 0 | D45: 0 | E45: 0 | F45: 0 | G45: 0 | H45: 0 | I45: 0 | J45: 0 | K45: 0 | L45: 0.395 | M45: 0.001 | N45: 0 | O45: 0.86 | P45: 1.256
A46: SACR | B46: 0.021 | C46: 0.006 | D46: 0.002 | E46: 0.006 | F46: 0.007 | G46: 0.001 | H46: 0.001 | I46: 0.001 | J46: 0 | K46: 0 | L46: 4.02 | M46: 0.083 | N46: 0.002 | O46: 1.314 | P46: 5.464
A47: SAMA | B47: 2.446 | C47: 1.74 | D47: 0.977 | E47: 0.293 | F47: 0.408 | G47: 0.128 | H47: 0.133 | I47: 0.153 | J47: 0.037 | K47: 0.046 | L47: 5.821 | M47: 2.953 | N47: 0.666 | O47: 0.186 | P47: 15.987
A48: SAPE | B48: 0.001 | C48: 0 | D48: 0 | E48: 0 | F48: 0 | G48: 0 | H48: 0 | I48: 0 | J48: 0 | K48: 0 | L48: 0.277 | M48: 0.006 | N48: 0 | O48: 0.111 | P48: 0.395
A49: SENE | B49: 0.04 | C49: 0.001 | D49: 0.023 | E49: 0.348 | F49: 0.024 | G49: 0.031 | H49: 0.014 | I49: 0.064 | J49: 0.027 | K49: 0.115 | L49: 3.968 | M49: 11.415 | N49: 0.954 | O49: 0.871 | P49: 17.895
A50: SHEN | B50: 0.108 | C50: 0.016 | D50: 0.065 | E50: 0.829 | F50: 0.033 | G50: 0.302 | H50: 0.047 | I50: 0.178 | J50: 0.288 | K50: 1.308 | L50: 1.993 | M50: 11.281 | N50: 5.888 | O50: 0.164 | P50: 22.5
A51: SHRO | B51: 0.722 | C51: 0.068 | D51: 0.439 | E51: 0.956 | F51: 0.12 | G51: 1.149 | H51: 0.432 | I51: 0.601 | J51: 0.206 | K51: 0.19 | L51: 4.036 | M51: 6.893 | N51: 1.342 | O51: 0.207 | P51: 17.361
A52: SIPS | B52: 0.703 | C52: 0.181 | D52: 0.147 | E52: 1.409 | F52: 0.135 | G52: 0.101 | H52: 0.097 | I52: 0.589 | J52: 0.074 | K52: 0.271 | L52: 4.845 | M52: 13.164 | N52: 0.729 | O52: 0.183 | P52: 22.628
A53: SWAN | B53: 0.147 | C53: 0.218 | D53: 0.303 | E53: 0.407 | F53: 0.02 | G53: 1.573 | H53: 0.439 | I53: 0.198 | J53: 0.77 | K53: 0.455 | L53: 0.934 | M53: 5.262 | N53: 4.382 | O53: 0.12 | P53: 15.228
A54: THRO | B54: 0 | C54: 0 | D54: 0 | E54: 0.004 | F54: 0 | G54: 0 | H54: 0 | I54: 0 | J54: 0 | K54: 0 | L54: 1.491 | M54: 0.453 | N54: 0.011 | O54: 3.455 | P54: 5.414
A55: ULBE | B55: 0 | C55: 0 | D55: 0 | E55: 0 | F55: 0 | G55: 0 | H55: 0 | I55: 0 | J55: 0 | K55: 0 | L55: 0.423 | M55: 0.381 | N55: 0 | O55: 0.963 | P55: 1.767
A56: UPBU | B56: 0.223 | C56: 0.038 | D56: 0.267 | E56: 0.231 | F56: 0.106 | G56: 0.029 | H56: 0.044 | I56: 0.09 | J56: 0.016 | K56: 0.015 | L56: 15.236 | M56: 3.542 | N56: 0.11 | O56: 0.684 | P56: 20.631
A57: WEEL | B57: 0 | C57: 0 | D57: 0 | E57: 0 | F57: 0 | G57: 0 | H57: 0 | I57: 0 | J57: 0 | K57: 0 | L57: 0.045 | M57: 0.002 | N57: 0 | O57: 0.15 | P57: 0.197
A58: WHIT | B58: 0.029 | C58: 0.006 | D58: 0.007 | E58: 0.006 | F58: 0.006 | G58: 0.003 | H58: 0.003 | I58: 0.003 | J58: 0.001 | K58: 0.001 | L58: 1.655 | M58: 0.078 | N58: 0.008 | O58: 0.219 | P58: 2.025
A59: WHPE | B59: 0.003 | C59: 0 | D59: 0 | E59: 0.001 | F59: 0.001 | G59: 0 | H59: 0 | I59: 0 | J59: 0 | K59: 0 | L59: 0.529 | M59: 0.012 | N59: 0 | O59: 0.191 | P59: 0.737
A60: WICA | B60: 0 | C60: 0 | D60: 0 | E60: 0 | F60: 0 | G60: 0 | H60: 0 | I60: 0 | J60: 0 | K60: 0 | L60: 1.911 | M60: 0.328 | N60: 0 | O60: 2.034 | P60: 4.273
A61: WIMO | B61: 0.109 | C61: 0.012 | D61: 0.018 | E61: 0.072 | F61: 0.026 | G61: 0.005 | H61: 0.003 | I61: 0.018 | J61: 0.002 | K61: 0.002 | L61: 10.183 | M61: 1.45 | N61: 0.013 | O61: 0.808 | P61: 12.721
A62: WOLF | B62: 0.97 | C62: 1.489 | D62: 1.878 | E62: 0.585 | F62: 0.13 | G62: 0.654 | H62: 1.1 | I62: 0.302 | J62: 0.272 | K62: 0.308 | L62: 2.914 | M62: 4.59 | N62: 1.587 | O62: 0.208 | P62: 16.987

Sheet Boundary to Area
A1: Species | B1: (All) | C1: =IF(B1="S","Sulfate",IF(B1="N","Nitrate","Sulfate + Nitrate")) -> Sulfate + Nitrate | D1: ="2028 Contribution of Boundary Conditions from "&C1&" on 20% Most Impaired Days (Mm-1)" -> 2028 Contribution of Boundary Conditions from Sulfate + Nitrate on 20% Most Impaired Days (Mm-1)
A3: Light Extinction (Mm-1) | B3: Region
B4: Boundary | G4: Boundary Total
A5: Class I Area | B5: Northern Boundary | C5: Eastern Boundary | D5: Southern Boundary | E5: Western Boundary | F5: Lateral Boundary
A6: ACAD | B6: 2.752 | C6: 12.373 | D6: 0.126 | E6: 0.403 | F6: 0 | G6: 15.654
A7: BADL | B7: 7.345 | C7: 0 | D7: 0.397 | E7: 2.911 | F7: 0 | G7: 10.653
A8: BAND | B8: 0.328 | C8: 0 | D8: 0.281 | E8: 5.571 | F8: 0 | G8: 6.18
A9: BIBE | B9: 0.414 | C9: 0 | D9: 8.046 | E9: 3.966 | F9: 0 | G9: 12.426
A10: BOAP | B10: 0.298 | C10: 0.002 | D10: 0.427 | E10: 5.7 | F10: 0.002 | G10: 6.429
A11: BOWA | B11: 5.851 | C11: 0.01 | D11: 0.398 | E11: 2.171 | F11: 0 | G11: 8.43
A12: BRET2 | B12: 2.091 | C12: 0.127 | D12: 10.483 | E12: 1.849 | F12: 0.001 | G12: 14.551
A13: BRIG | B13: 4.983 | C13: 1.654 | D13: 0.104 | E13: 1.14 | F13: 0 | G13: 7.881
A14: CACR | B14: 1.898 | C14: 0.028 | D14: 11.121 | E14: 2.1 | F14: 0 | G14: 15.147
A15: CAVE | B15: 0.248 | C15: 0.001 | D15: 3.06 | E15: 2.257 | F15: 0 | G15: 5.566
A16: CHAS | B16: 1.233 | C16: 0.533 | D16: 9.288 | E16: 1.253 | F16: 0.001 | G16: 12.308
A17: COHU | B17: 2.03 | C17: 0.025 | D17: 0.519 | E17: 0.946 | F17: 0 | G17: 3.52
A18: DOSO | B18: 1.468 | C18: 0.029 | D18: 0.723 | E18: 1.06 | F18: 0 | G18: 3.28
A19: EANE | B19: 0.117 | C19: 0 | D19: 0.001 | E19: 4.455 | F19: 0 | G19: 4.573
A20: EVER | B20: 0.392 | C20: 3.861 | D20: 16.138 | E20: 0.492 | F20: 0 | G20: 20.883
A21: FLTO | B21: 0.117 | C21: 0 | D21: 0.001 | E21: 4.455 | F21: 0 | G21: 4.573
A22: GRGU | B22: 3.034 | C22: 0.598 | D22: 0.16 | E22: 0.916 | F22: 0 | G22: 4.708
A23: GRSA | B23: 0.341 | C23: 0.001 | D23: 0.097 | E23: 3.955 | F23: 0 | G23: 4.394
A24: GRSM | B24: 2.58 | C24: 0.017 | D24: 0.174 | E24: 1.18 | F24: 0 | G24: 3.951
A25: GUMO | B25: 0.248 | C25: 0.001 | D25: 3.06 | E25: 2.257 | F25: 0 | G25: 5.566
A26: HEGL | B26: 4.252 | C26: 0 | D26: 2.554 | E26: 3.627 | F26: 0 | G26: 10.433
A27: ISLE | B27: 6.409 | C27: 0.091 | D27: 0.804 | E27: 1.917 | F27: 0 | G27: 9.221
A28: JARI | B28: 2.84 | C28: 0.114 | D28: 0.14 | E28: 1.031 | F28: 0 | G28: 4.125
A29: JOYC | B29: 2.54 | C29: 0.019 | D29: 0.202 | E29: 1.268 | F29: 0 | G29: 4.029
A30: LIGO | B30: 1.889 | C30: 0.03 | D30: 0.534 | E30: 1.002 | F30: 0 | G30: 3.455
A31: LYBR2 | B31: 3.697 | C31: 0.425 | D31: 0.283 | E31: 0.87 | F31: 0 | G31: 5.275
A32: MABE | B32: 0.117 | C32: 0 | D32: 0.001 | E32: 4.455 | F32: 0 | G32: 4.573
A33: MACA | B33: 6.787 | C33: 0.042 | D33: 0.209 | E33: 1.771 | F33: 0 | G33: 8.809
A34: MELA | B34: 18.066 | C34: 0.001 | D34: 0.008 | E34: 4.926 | F34: 0 | G34: 23.001
A35: MING | B35: 5.658 | C35: 0 | D35: 1.503 | E35: 2.235 | F35: 0 | G35: 9.396
A36: MOOS | B36: 3.347 | C36: 12.618 | D36: 0.069 | E36: 0.406 | F36: 0 | G36: 16.44
A37: MOZI | B37: 0.321 | C37: 0 | D37: 0 | E37: 4.378 | F37: 0 | G37: 4.699
A38: OKEF | B38: 3.076 | C38: 1.318 | D38: 3.427 | E38: 1.684 | F38: 0.001 | G38: 9.506
A39: OTCR | B39: 1.44 | C39: 0.021 | D39: 0.811 | E39: 1.054 | F39: 0 | G39: 3.326
A40: PECO | B40: 0.233 | C40: 0 | D40: 0.159 | E40: 4.268 | F40: 0 | G40: 4.66
A41: PRRA | B41: 3.034 | C41: 0.598 | D41: 0.16 | E41: 0.916 | F41: 0 | G41: 4.708
A42: RAWA | B42: 0.321 | C42: 0 | D42: 0 | E42: 4.378 | F42: 0 | G42: 4.699
A43: ROCA | B43: 3.347 | C43: 12.618 | D43: 0.069 | E43: 0.406 | F43: 0 | G43: 16.44
A44: ROMA | B44: 2.244 | C44: 0.612 | D44: 0.661 | E44: 1.039 | F44: 0.001 | G44: 4.557
A45: ROMO | B45: 0.442 | C45: 0 | D45: 0.029 | E45: 4.564 | F45: 0 | G45: 5.035
A46: SACR | B46: 0.528 | C46: 0.002 | D46: 2.423 | E46: 3.912 | F46: 0 | G46: 6.865
A47: SAMA | B47: 1.493 | C47: 0.374 | D47: 5.953 | E47: 2.155 | F47: 0 | G47: 9.975
A48: SAPE | B48: 0.147 | C48: 0 | D48: 0.112 | E48: 4.833 | F48: 0 | G48: 5.092
A49: SENE | B49: 7.19 | C49: 0.244 | D49: 0.235 | E49: 2.688 | F49: 0 | G49: 10.357
A50: SHEN | B50: 2.118 | C50: 0.146 | D50: 0.241 | E50: 1.032 | F50: 0 | G50: 3.537
A51: SHRO | B51: 1.908 | C51: 0.038 | D51: 0.61 | E51: 1.197 | F51: 0 | G51: 3.753
A52: SIPS | B52: 3.305 | C52: 0.025 | D52: 0.63 | E52: 1.22 | F52: 0 | G52: 5.18
A53: SWAN | B53: 3.512 | C53: 0.462 | D53: 0.191 | E53: 0.574 | F53: 0 | G53: 4.739
A54: THRO | B54: 14.046 | C54: 0 | D54: 0.067 | E54: 4.212 | F54: 0 | G54: 18.325
A55: ULBE | B55: 3.919 | C55: 0 | D55: 0.001 | E55: 9.572 | F55: 0 | G55: 13.492
A56: UPBU | B56: 2.571 | C56: 0.001 | D56: 7.707 | E56: 2.579 | F56: 0 | G56: 12.858
A57: WEEL | B57: 0.117 | C57: 0 | D57: 0.001 | E57: 4.455 | F57: 0 | G57: 4.573
A58: WHIT | B58: 0.175 | C58: 0.023 | D58: 1.02 | E58: 3.782 | F58: 0 | G58: 5
A59: WHPE | B59: 0.233 | C59: 0 | D59: 0.159 | E59: 4.268 | F59: 0 | G59: 4.66
A60: WICA | B60: 3.925 | C60: 0 | D60: 0.135 | E60: 4.402 | F60: 0 | G60: 8.462
A61: WIMO | B61: 2.138 | C61: 0.015 | D61: 9.471 | E61: 2.938 | F61: 0 | G61: 14.562
A62: WOLF | B62: 3.169 | C62: 1.701 | D62: 2.524 | E62: 1.437 | F62: 0.001 | G62: 8.832

Sheet rh_results_ALL_v3
A1: Site ID | B1: grid_lat | C1: grid_lon | D1: mon_lat | E1: mon_lon | F1: scenario | G1: Region | H1: Sector | I1: Species | J1: dv_b_b | K1: dv_b_f | L1: dv_b_fx | M1: delta_dvb | N1: dv_w_b | O1: dv_w_f | P1: dv_w_fx | Q1: delta_dvw | R1: bext_b_b | S1: bext_b_f | T1: bext_b_fx | U1: delta_extb | V1: bext_w_b | W1: bext_w_f | X1: bext_w_fx | Y1: delta_extw
A2: ACAD | B2: 44.4219 | C2: -68.3115 | D2: 44.3771 | E2: -68.261 | F2: 201N | G2: 001 | H2: IND | I2: N | J2: 7.02 | K2: 6.7 | L2: 6.7 | M2: 0 | N2: 16.84 | O2: 14.87 | P2: 14.87 | Q2: 0 | R2: 20.367 | S2: 19.714 | T2: 19.714 | U2: 0 | V2: 58.272 | W2: 47.149 | X2: 47.149 | Y2: 0
A3: ACAD | B3: 44.4219 | C3: -68.3115 | D3: 44.3771 | E3: -68.261 | F3: 201S | G3: 001 | H3: IND | I3: S | J3: 7.02 | K3: 6.7 | L3: 6.7 | M3: 0 | N3: 16.84 | O3: 14.87 | P3: 14.87 | Q3: 0 | R3: 20.367 | S3: 19.714 | T3: 19.714 | U3: 0 | V3: 58.272 | W3: 47.149 | X3: 47.144 | Y3: 0.005
A4: ACAD | B4: 44.4219 | C4: -68.3115 | D4: 44.3771 | E4: -68.261 | F4: 202N | G4: 002 | H4: IND | I4: N | J4: 7.02 | K4: 6.7 | L4: 6.7 | M4: 0 | N4: 16.84 | O4: 14.87 | P4: 14.87 | Q4: 0 | R4: 20.367 | S4: 19.714 | T4: 19.714 | U4: 0 | V4: 58.272 | W4: 47.149 | X4: 47.149 | Y4: 0
A5: ACAD | B5: 44.4219 | C5: -68.3115 | D5: 44.3771 | E5: -68.261 | F5: 202S | G5: 002 | H5: IND | I5: S | J5: 7.02 | K5: 6.7 | L5: 6.7 | M5: 0 | N5: 16.84 | O5: 14.87 | P5: 14.87 | Q5: 0 | R5: 20.367 | S5: 19.714 | T5: 19.714 | U5: 0 | V5: 58.272 | W5: 47.149 | X5: 47.147 | Y5: 0.002
A6: ACAD | B6: 44.4219 | C6: -68.3115 | D6: 44.3771 | E6: -68.261 | F6: 203N | G6: 003 | H6: IND | I6: N | J6: 7.02 | K6: 6.7 | L6: 6.7 | M6: 0 | N6: 16.84 | O6: 14.87 | P6: 14.87 | Q6: 0 | R6: 20.367 | S6: 19.714 | T6: 19.714 | U6: 0 | V6: 58.272 | W6: 47.149 | X6: 47.149 | Y6: 0
A7: ACAD | B7: 44.4219 | C7: -68.3115 | D7: 44.3771 | E7: -68.261 | F7: 203S | G7: 003 | H7: IND | I7: S | J7: 7.02 | K7: 6.7 | L7: 6.7 | M7: 0 | N7: 16.84 | O7: 14.87 | P7: 14.87 | Q7: 0 | R7: 20.367 | S7: 19.714 | T7: 19.714 | U7: 0 | V7: 58.272 | W7: 47.149 | X7: 47.148 | Y7: 0.001
A8: ACAD | B8: 44.4219 | C8: -68.3115 | D8: 44.3771 | E8: -68.261 | F8: 204N | G8: 004 | H8: IND | I8: N | J8: 7.02 | K8: 6.7 | L8: 6.7 | M8: 0 | N8: 16.84 | O8: 14.87 | P8: 14.87 | Q8: 0 | R8: 20.367 | S8: 19.714 | T8: 19.714 | U8: 0 | V8: 58.272 | W8: 47.149 | X8: 47.149 | Y8: 0
A9: ACAD | B9: 44.4219 | C9: -68.3115 | D9: 44.3771 | E9: -68.261 | F9: 204S | G9: 004 | H9: IND | I9: S | J9: 7.02 | K9: 6.7 | L9: 6.7 | M9: 0 | N9: 16.84 | O9: 14.87 | P9: 14.87 | Q9: 0 | R9: 20.367 | S9: 19.714 | T9: 19.714 | U9: 0 | V9: 58.272 | W9: 47.149 | X9: 47.147 | Y9: 0.002
A10: ACAD | B10: 44.4219 | C10: -68.3115 | D10: 44.3771 | E10: -68.261 | F10: 205N | G10: 005 | H10: IND | I10: N | J10: 7.02 | K10: 6.7 | L10: 6.7 | M10: 0 | N10: 16.84 | O10: 14.87 | P10: 14.87 | Q10: 0 | R10: 20.367 | S10: 19.714 | T10: 19.714 | U10: 0 | V10: 58.272 | W10: 47.149 | X10: 47.149 | Y10: 0
A11: ACAD | B11: 44.4219 | C11: -68.3115 | D11: 44.3771 | E11: -68.261 | F11: 205S | G11: 005 | H11: IND | I11: S | J11: 7.02 | K11: 6.7 | L11: 6.7 | M11: 0 | N11: 16.84 | O11: 14.87 | P11: 14.87 | Q11: 0 | R11: 20.367 | S11: 19.714 | T11: 19.714 | U11: 0 | V11: 58.272 | W11: 47.149 | X11: 47.148 | Y11: 0.001
A12: ACAD | B12: 44.4219 | C12: -68.3115 | D12: 44.3771 | E12: -68.261 | F12: 206N | G12: 006 | H12: IND | I12: N | J12: 7.02 | K12: 6.7 | L12: 6.7 | M12: 0 | N12: 16.84 | O12: 14.87 | P12: 14.87 | Q12: 0 | R12: 20.367 | S12: 19.714 | T12: 19.714 | U12: 0 | V12: 58.272 | W12: 47.149 | X12: 47.149 | Y12: 0
A13: ACAD | B13: 44.4219 | C13: -68.3115 | D13: 44.3771 | E13: -68.261 | F13: 206S | G13: 006 | H13: IND | I13: S | J13: 7.02 | K13: 6.7 | L13: 6.7 | M13: 0 | N13: 16.84 | O13: 14.87 | P13: 14.87 | Q13: 0 | R13: 20.367 | S13: 19.714 | T13: 19.714 | U13: 0 | V13: 58.272 | W13: 47.149 | X13: 47.148 | Y13: 0.001
A14: ACAD | B14: 44.4219 | C14: -68.3115 | D14: 44.3771 | E14: -68.261 | F14: 207N | G14: 007 | H14: IND | I14: N | J14: 7.02 | K14: 6.7 | L14: 6.7 | M14: 0 | N14: 16.84 | O14: 14.87 | P14: 14.87 | Q14: 0 | R14: 20.367 | S14: 19.714 | T14: 19.714 | U14: 0 | V14: 58.272 | W14: 47.149 | X14: 47.149 | Y14: 0
A15: ACAD | B15: 44.4219 | C15: -68.3115 | D15: 44.3771 | E15: -68.261 | F15: 207S | G15: 007 | H15: IND | I15: S | J15: 7.02 | K15: 6.7 | L15: 6.7 | M15: 0 | N15: 16.84 | O15: 14.87 | P15: 14.87 | Q15: 0 | R15: 20.367 | S15: 19.714 | T15: 19.714 | U15: 0 | V15: 58.272 | W15: 47.149 | X15: 47.149 | Y15: 0
A16: ACAD | B16: 44.4219 | C16: -68.3115 | D16: 44.3771 | E16: -68.261 | F16: 208N | G16: 008 | H16: IND | I16: N | J16: 7.02 | K16: 6.7 | L16: 6.7 | M16: 0 | N16: 16.84 | O16: 14.87 | P16: 14.87 | Q16: 0 | R16: 20.367 | S16: 19.714 | T16: 19.714 | U16: 0 | V16: 58.272 | W16: 47.149 | X16: 47.149 | Y16: 0
A17: ACAD | B17: 44.4219 | C17: -68.3115 | D17: 44.3771 | E17: -68.261 | F17: 208S | G17: 008 | H17: IND | I17: S | J17: 7.02 | K17: 6.7 | L17: 6.7 | M17: 0 | N17: 16.84 | O17: 14.87 | P17: 14.87 | Q17: 0 | R17: 20.367 | S17: 19.714 | T17: 19.714 | U17: 0 | V17: 58.272 | W17: 47.149 | X17: 47.146 | Y17: 0.003
A18: ACAD | B18: 44.4219 | C18: -68.3115 | D18: 44.3771 | E18: -68.261 | F18: 209N | G18: 009 | H18: IND | I18: N | J18: 7.02 | K18: 6.7 | L18: 6.7 | M18: 0 | N18: 16.84 | O18: 14.87 | P18: 14.87 | Q18: 0 | R18: 20.367 | S18: 19.714 | T18: 19.714 | U18: 0 | V18: 58.272 | W18: 47.149 | X18: 47.149 | Y18: 0
A19: ACAD | B19: 44.4219 | C19: -68.3115 | D19: 44.3771 | E19: -68.261 | F19: 209S | G19: 009 | H19: IND | I19: S | J19: 7.02 | K19: 6.7 | L19: 6.7 | M19: 0 | N19: 16.84 | O19: 14.87 | P19: 14.87 | Q19: 0 | R19: 20.367 | S19: 19.714 | T19: 19.714 | U19: 0 | V19: 58.272 | W19: 47.149 | X19: 47.148 | Y19: 0.001
A20: ACAD | B20: 44.4219 | C20: -68.3115 | D20: 44.3771 | E20: -68.261 | F20: 210N | G20: 010 | H20: IND | I20: N | J20: 7.02 | K20: 6.7 | L20: 6.7 | M20: 0 | N20: 16.84 | O20: 14.87 | P20: 14.87 | Q20: 0 | R20: 20.367 | S20: 19.714 | T20: 19.714 | U20: 0 | V20: 58.272 | W20: 47.149 | X20: 47.149 | Y20: 0
A21: ACAD | B21: 44.4219 | C21: -68.3115 | D21: 44.3771 | E21: -68.261 | F21: 210S | G21: 010 | H21: IND | I21: S | J21: 7.02 | K21: 6.7 | L21: 6.7 | M21: 0 | N21: 16.84 | O21: 14.87 | P21: 14.87 | Q21: 0 | R21: 20.367 | S21: 19.714 | T21: 19.714 | U21: 0 | V21: 58.272 | W21: 47.149 | X21: 47.147 | Y21: 0.002
A22: ACAD | B22: 44.4219 | C22: -68.3115 | D22: 44.3771 | E22: -68.261 | F22: 211N | G22: 011 | H22: IND | I22: N | J22: 7.02 | K22: 6.7 | L22: 6.7 | M22: 0 | N22: 16.84 | O22: 14.87 | P22: 14.87 | Q22: 0 | R22: 20.367 | S22: 19.714 | T22: 19.714 | U22: 0 | V22: 58.272 | W22: 47.149 | X22: 47.149 | Y22: 0
A23: ACAD | B23: 44.4219 | C23: -68.3115 | D23: 44.3771 | E23: -68.261 | F23: 211S | G23: 011 | H23: IND | I23: S | J23: 7.02 | K23: 6.7 | L23: 6.7 | M23: 0 | N23: 16.84 | O23: 14.87 | P23: 14.87 | Q23: 0 | R23: 20.367 | S23: 19.714 | T23: 19.714 | U23: 0 | V23: 58.272 | W23: 47.149 | X23: 47.148 | Y23: 0.001
A24: ACAD | B24: 44.4219 | C24: -68.3115 | D24: 44.3771 | E24: -68.261 | F24: 212N | G24: 012 | H24: IND | I24: N | J24: 7.02 | K24: 6.7 | L24: 6.7 | M24: 0 | N24: 16.84 | O24: 14.87 | P24: 14.87 | Q24: 0 | R24: 20.367 | S24: 19.714 | T24: 19.714 | U24: 0 | V24: 58.272 | W24: 47.149 | X24: 47.149 | Y24: 0
A25: ACAD | B25: 44.4219 | C25: -68.3115 | D25: 44.3771 | E25: -68.261 | F25: 212S | G25: 012 | H25: IND | I25: S | J25: 7.02 | K25: 6.7 | L25: 6.7 | M25: 0 | N25: 16.84 | O25: 14.87 | P25: 14.87 | Q25: 0 | R25: 20.367 | S25: 19.714 | T25: 19.714 | U25: 0 | V25: 58.272 | W25: 47.149 | X25: 47.148 | Y25: 0.001
A26: ACAD | B26: 44.4219 | C26: -68.3115 | D26: 44.3771 | E26: -68.261 | F26: 213N | G26: 013 | H26: IND | I26: N | J26: 7.02 | K26: 6.7 | L26: 6.7 | M26: 0 | N26: 16.84 | O26: 14.87 | P26: 14.87 | Q26: 0 | R26: 20.367 | S26: 19.714 | T26: 19.714 | U26: 0 | V26: 58.272 | W26: 47.149 | X26: 47.149 | Y26: 0
A27: ACAD | B27: 44.4219 | C27: -68.3115 | D27: 44.3771 | E27: -68.261 | F27: 213S | G27: 013 | H27: IND | I27: S | J27: 7.02 | K27: 6.7 | L27: 6.7 | M27: 0 | N27: 16.84 | O27: 14.87 | P27: 14.87 | Q27: 0 | R27: 20.367 | S27: 19.714 | T27: 19.714 | U27: 0 | V27: 58.272 | W27: 47.149 | X27: 47.147 | Y27: 0.002
A28: ACAD | B28: 44.4219 | C28: -68.3115 | D28: 44.3771 | E28: -68.261 | F28: 214N | G28: 014 | H28: IND | I28: N | J28: 7.02 | K28: 6.7 | L28: 6.7 | M28: 0 | N28: 16.84 | O28: 14.87 | P28: 14.87 | Q28: 0 | R28: 20.367 | S28: 19.714 | T28: 19.714 | U28: 0 | V28: 58.272 | W28: 47.149 | X28: 47.149 | Y28: 0
A29: ACAD | B29: 44.4219 | C29: -68.3115 | D29: 44.3771 | E29: -68.261 | F29: 214S | G29: 014 | H29: IND | I29: S | J29: 7.02 | K29: 6.7 | L29: 6.7 | M29: 0 | N29: 16.84 | O29: 14.87 | P29: 14.87 | Q29: 0 | R29: 20.367 | S29: 19.714 | T29: 19.714 | U29: 0 | V29: 58.272 | W29: 47.149 | X29: 47.147 | Y29: 0.002
A30: ACAD | B30: 44.4219 | C30: -68.3115 | D30: 44.3771 | E30: -68.261 | F30: 215N | G30: 015 | H30: IND | I30: N | J30: 7.02 | K30: 6.7 | L30: 6.7 | M30: 0 | N30: 16.84 | O30: 14.87 | P30: 14.87 | Q30: 0 | R30: 20.367 | S30: 19.714 | T30: 19.714 | U30: 0 | V30: 58.272 | W30: 47.149 | X30: 47.149 | Y30: 0
A31: ACAD | B31: 44.4219 | C31: -68.3115 | D31: 44.3771 | E31: -68.261 | F31: 215S | G31: 015 | H31: IND | I31: S | J31: 7.02 | K31: 6.7 | L31: 6.7 | M31: 0 | N31: 16.84 | O31: 14.87 | P31: 14.87 | Q31: 0 | R31: 20.367 | S31: 19.714 | T31: 19.714 | U31: 0 | V31: 58.272 | W31: 47.149 | X31: 47.148 | Y31: 0.001
A32: ACAD | B32: 44.4219 | C32: -68.3115 | D32: 44.3771 | E32: -68.261 | F32: 216N | G32: 016 | H32: IND | I32: N | J32: 7.02 | K32: 6.7 | L32: 6.7 | M32: 0 | N32: 16.84 | O32: 14.87 | P32: 14.87 | Q32: 0 | R32: 20.367 | S32: 19.714 | T32: 19.714 | U32: 0 | V32: 58.272 | W32: 47.149 | X32: 47.149 | Y32: 0
A33: ACAD | B33: 44.4219 | C33: -68.3115 | D33: 44.3771 | E33: -68.261 | F33: 216S | G33: 016 | H33: IND | I33: S | J33: 7.02 | K33: 6.7 | L33: 6.7 | M33: 0 | N33: 16.84 | O33: 14.87 | P33: 14.87 | Q33: 0 | R33: 20.367 | S33: 19.714 | T33: 19.714 | U33: 0 | V33: 58.272 | W33: 47.149 | X33: 47.147 | Y33: 0.002
A34: ACAD | B34: 44.4219 | C34: -68.3115 | D34: 44.3771 | E34: -68.261 | F34: 217N | G34: 017 | H34: IND | I34: N | J34: 7.02 | K34: 6.7 | L34: 6.7 | M34: 0 | N34: 16.84 | O34: 14.87 | P34: 14.87 | Q34: 0 | R34: 20.367 | S34: 19.714 | T34: 19.714 | U34: 0 | V34: 58.272 | W34: 47.149 | X34: 47.149 | Y34: 0
A35: ACAD | B35: 44.4219 | C35: -68.3115 | D35: 44.3771 | E35: -68.261 | F35: 217S | G35: 017 | H35: IND | I35: S | J35: 7.02 | K35: 6.7 | L35: 6.7 | M35: 0 | N35: 16.84 | O35: 14.87 | P35: 14.87 | Q35: 0 | R35: 20.367 | S35: 19.714 | T35: 19.714 | U35: 0 | V35: 58.272 | W35: 47.149 | X35: 47.148 | Y35: 0.001
A36: ACAD | B36: 44.4219 | C36: -68.3115 | D36: 44.3771 | E36: -68.261 | F36: 218N | G36: 018 | H36: IND | I36: N | J36: 7.02 | K36: 6.7 | L36: 6.7 | M36: 0 | N36: 16.84 | O36: 14.87 | P36: 14.87 | Q36: 0 | R36: 20.367 | S36: 19.714 | T36: 19.714 | U36: 0 | V36: 58.272 | W36: 47.149 | X36: 47.149 | Y36: 0
A37: ACAD | B37: 44.4219 | C37: -68.3115 | D37: 44.3771 | E37: -68.261 | F37: 218S | G37: 018 | H37: IND | I37: S | J37: 7.02 | K37: 6.7 | L37: 6.7 | M37: 0 | N37: 16.84 | O37: 14.87 | P37: 14.87 | Q37: 0 | R37: 20.367 | S37: 19.714 | T37: 19.714 | U37: 0 | V37: 58.272 | W37: 47.149 | X37: 47.147 | Y37: 0.002
A38: ACAD | B38: 44.4219 | C38: -68.3115 | D38: 44.3771 | E38: -68.261 | F38: 219N | G38: 019 | H38: IND | I38: N | J38: 7.02 | K38: 6.7 | L38: 6.7 | M38: 0 | N38: 16.84 | O38: 14.87 | P38: 14.87 | Q38: 0 | R38: 20.367 | S38: 19.714 | T38: 19.714 | U38: 0 | V38: 58.272 | W38: 47.149 | X38: 47.149 | Y38: 0
A39: ACAD | B39: 44.4219 | C39: -68.3115 | D39: 44.3771 | E39: -68.261 | F39: 219S | G39: 019 | H39: IND | I39: S | J39: 7.02 | K39: 6.7 | L39: 6.7 | M39: 0 | N39: 16.84 | O39: 14.87 | P39: 14.87 | Q39: 0 | R39: 20.367 | S39: 19.714 | T39: 19.714 | U39: 0 | V39: 58.272 | W39: 47.149 | X39: 47.148 | Y39: 0.001
A40: ACAD | B40: 44.4219 | C40: -68.3115 | D40: 44.3771 | E40: -68.261 | F40: 220N | G40: 020 | H40: IND | I40: N | J40: 7.02 | K40: 6.7 | L40: 6.7 | M40: 0 | N40: 16.84 | O40: 14.87 | P40: 14.87 | Q40: 0 | R40: 20.367 | S40: 19.714 | T40: 19.714 | U40: 0 | V40: 58.272 | W40: 47.149 | X40: 47.149 | Y40: 0
A41: ACAD | B41: 44.4219 | C41: -68.3115 | D41: 44.3771 | E41: -68.261 | F41: 220S | G41: 020 | H41: IND | I41: S | J41: 7.02 | K41: 6.7 | L41: 6.7 | M41: 0 | N41: 16.84 | O41: 14.87 | P41: 14.87 | Q41: 0 | R41: 20.367 | S41: 19.714 | T41: 19.714 | U41: 0 | V41: 58.272 | W41: 47.149 | X41: 47.148 | Y41: 0.001
A42: ACAD | B42: 44.4219 | C42: -68.3115 | D42: 44.3771 | E42: -68.261 | F42: 221N | G42: 021 | H42: IND | I42: N | J42: 7.02 | K42: 6.7 | L42: 6.7 | M42: 0 | N42: 16.84 | O42: 14.87 | P42: 14.87 | Q42: 0 | R42: 20.367 | S42: 19.714 | T42: 19.714 | U42: 0 | V42: 58.272 | W42: 47.149 | X42: 47.148 | Y42: 0.001
A43: ACAD | B43: 44.4219 | C43: -68.3115 | D43: 44.3771 | E43: -68.261 | F43: 221S | G43: 021 | H43: IND | I43: S | J43: 7.02 | K43: 6.7 | L43: 6.7 | M43: 0 | N43: 16.84 | O43: 14.87 | P43: 14.87 | Q43: 0 | R43: 20.367 | S43: 19.714 | T43: 19.714 | U43: 0 | V43: 58.272 | W43: 47.149 | X43: 47.14 | Y43: 0.009
A44: ACAD | B44: 44.4219 | C44: -68.3115 | D44: 44.3771 | E44: -68.261 | F44: 222N | G44: 022 | H44: IND | I44: N | J44: 7.02 | K44: 6.7 | L44: 6.7 | M44: 0 | N44: 16.84 | O44: 14.87 | P44: 14.87 | Q44: 0 | R44: 20.367 | S44: 19.714 | T44: 19.714 | U44: 0 | V44: 58.272 | W44: 47.149 | X44: 47.149 | Y44: 0
A45: ACAD | B45: 44.4219 | C45: -68.3115 | D45: 44.3771 | E45: -68.261 | F45: 222S | G45: 022 | H45: IND | I45: S | J45: 7.02 | K45: 6.7 | L45: 6.7 | M45: 0 | N45: 16.84 | O45: 14.87 | P45: 14.87 | Q45: 0 | R45: 20.367 | S45: 19.714 | T45: 19.714 | U45: 0 | V45: 58.272 | W45: 47.149 | X45: 47.146 | Y45: 0.003
A46: ACAD | B46: 44.4219 | C46: -68.3115 | D46: 44.3771 | E46: -68.261 | F46: 223N | G46: 023 | H46: IND | I46: N | J46: 7.02 | K46: 6.7 | L46: 6.7 | M46: 0 | N46: 16.84 | O46: 14.87 | P46: 14.87 | Q46: 0 | R46: 20.367 | S46: 19.714 | T46: 19.714 | U46: 0 | V46: 58.272 | W46: 47.149 | X46: 47.149 | Y46: 0
A47: ACAD | B47: 44.4219 | C47: -68.3115 | D47: 44.3771 | E47: -68.261 | F47: 223S | G47: 023 | H47: IND | I47: S | J47: 7.02 | K47: 6.7 | L47: 6.7 | M47: 0 | N47: 16.84 | O47: 14.87 | P47: 14.87 | Q47: 0 | R47: 20.367 | S47: 19.714 | T47: 19.714 | U47: 0 | V47: 58.272 | W47: 47.149 | X47: 47.148 | Y47: 0.001
A48: ACAD | B48: 44.4219 | C48: -68.3115 | D48: 44.3771 | E48: -68.261 | F48: 224N | G48: 024 | H48: IND | I48: N | J48: 7.02 | K48: 6.7 | L48: 6.7 | M48: 0 | N48: 16.84 | O48: 14.87 | P48: 14.87 | Q48: 0 | R48: 20.367 | S48: 19.714 | T48: 19.714 | U48: 0 | V48: 58.272 | W48: 47.149 | X48: 47.149 | Y48: 0
A49: ACAD | B49: 44.4219 | C49: -68.3115 | D49: 44.3771 | E49: -68.261 | F49: 224S | G49: 024 | H49: IND | I49: S | J49: 7.02 | K49: 6.7 | L49: 6.7 | M49: 0 | N49: 16.84 | O49: 14.87 | P49: 14.87 | Q49: 0 | R49: 20.367 | S49: 19.714 | T49: 19.714 | U49: 0 | V49: 58.272 | W49: 47.149 | X49: 47.14 | Y49: 0.009
A50: ACAD | B50: 44.4219 | C50: -68.3115 | D50: 44.3771 | E50: -68.261 | F50: 225N | G50: 025 | H50: IND | I50: N | J50: 7.02 | K50: 6.7 | L50: 6.7 | M50: 0 | N50: 16.84 | O50: 14.87 | P50: 14.87 | Q50: 0 | R50: 20.367 | S50: 19.714 | T50: 19.714 | U50: 0 | V50: 58.272 | W50: 47.149 | X50: 47.148 | Y50: 0.001
A51: ACAD | B51: 44.4219 | C51: -68.3115 | D51: 44.3771 | E51: -68.261 | F51: 225S | G51: 025 | H51: IND | I51: S | J51: 7.02 | K51: 6.7 | L51: 6.7 | M51: 0 | N51: 16.84 | O51: 14.87 | P51: 14.87 | Q51: 0 | R51: 20.367 | S51: 19.714 | T51: 19.714 | U51: 0 | V51: 58.272 | W51: 47.149 | X51: 47.119 | Y51: 0.03
A52: ACAD | B52: 44.4219 | C52: -68.3115 | D52: 44.3771 | E52: -68.261 | F52: 226N | G52: 026 | H52: IND | I52: N | J52: 7.02 | K52: 6.7 | L52: 6.7 | M52: 0 | N52: 16.84 | O52: 14.87 | P52: 14.87 | Q52: 0 | R52: 20.367 | S52: 19.714 | T52: 19.714 | U52: 0 | V52: 58.272 | W52: 47.149 | X52: 47.148 | Y52: 0.001
A53: ACAD | B53: 44.4219 | C53: -68.3115 | D53: 44.3771 | E53: -68.261 | F53: 226S | G53: 026 | H53: IND | I53: S | J53: 7.02 | K53: 6.7 | L53: 6.7 | M53: 0 | N53: 16.84 | O53: 14.87 | P53: 14.87 | Q53: 0 | R53: 20.367 | S53: 19.714 | T53: 19.714 | U53: 0 | V53: 58.272 | W53: 47.149 | X53: 47.145 | Y53: 0.004
A54: ACAD | B54: 44.4219 | C54: -68.3115 | D54: 44.3771 | E54: -68.261 | F54: 227N | G54: 027 | H54: IND | I54: N | J54: 7.02 | K54: 6.7 | L54: 6.7 | M54: 0 | N54: 16.84 | O54: 14.87 | P54: 14.87 | Q54: 0 | R54: 20.367 | S54: 19.714 | T54: 19.714 | U54: 0 | V54: 58.272 | W54: 47.149 | X54: 47.148 | Y54: 0.001
A55: ACAD | B55: 44.4219 | C55: -68.3115 | D55: 44.3771 | E55: -68.261 | F55: 227S | G55: 027 | H55: IND | I55: S | J55: 7.02 | K55: 6.7 | L55: 6.7 | M55: 0 | N55: 16.84 | O55: 14.87 | P55: 14.87 | Q55: 0 | R55: 20.367 | S55: 19.714 | T55: 19.714 | U55: 0 | V55: 58.272 | W55: 47.149 | X55: 47.134 | Y55: 0.015
A56: ACAD | B56: 44.4219 | C56: -68.3115 | D56: 44.3771 | E56: -68.261 | F56: 228N | G56: 028 | H56: IND | I56: N | J56: 7.02 | K56: 6.7 | L56: 6.7 | M56: 0 | N56: 16.84 | O56: 14.87 | P56: 14.87 | Q56: 0 | R56: 20.367 | S56: 19.714 | T56: 19.714 | U56: 0 | V56: 58.272 | W56: 47.149 | X56: 47.148 | Y56: 0.001
A57: ACAD | B57: 44.4219 | C57: -68.3115 | D57: 44.3771 | E57: -68.261 | F57: 228S | G57: 028 | H57: IND | I57: S | J57: 7.02 | K57: 6.7 | L57: 6.7 | M57: 0 | N57: 16.84 | O57: 14.87 | P57: 14.87 | Q57: 0 | R57: 20.367 | S57: 19.714 | T57: 19.714 | U57: 0 | V57: 58.272 | W57: 47.149 | X57: 47.124 | Y57: 0.025
A58: ACAD | B58: 44.4219 | C58: -68.3115 | D58: 44.3771 | E58: -68.261 | F58: 229N | G58: 029 | H58: IND | I58: N | J58: 7.02 | K58: 6.7 | L58: 6.7 | M58: 0 | N58: 16.84 | O58: 14.87 | P58: 14.87 | Q58: 0 | R58: 20.367 | S58: 19.714 | T58: 19.714 | U58: 0 | V58: 58.272 | W58: 47.149 | X58: 47.148 | Y58: 0.001
A59: ACAD | B59: 44.4219 | C59: -68.3115 | D59: 44.3771 | E59: -68.261 | F59: 229S | G59: 029 | H59: IND | I59: S | J59: 7.02 | K59: 6.7 | L59: 6.7 | M59: 0 | N59: 16.84 | O59: 14.87 | P59: 14.87 | Q59: 0 | R59: 20.367 | S59: 19.714 | T59: 19.714 | U59: 0 | V59: 58.272 | W59: 47.149 | X59: 47.148 | Y59: 0.001
A60: ACAD | B60: 44.4219 | C60: -68.3115 | D60: 44.3771 | E60: -68.261 | F60: 230N | G60: 030 | H60: IND | I60: N | J60: 7.02 | K60: 6.7 | L60: 6.7 | M60: 0 | N60: 16.84 | O60: 14.87 | P60: 14.87 | Q60: 0 | R60: 20.367 | S60: 19.714 | T60: 19.714 | U60: 0 | V60: 58.272 | W60: 47.149 | X60: 47.149 | Y60: 0
A61: ACAD | B61: 44.4219 | C61: -68.3115 | D61: 44.3771 | E61: -68.261 | F61: 230S | G61: 030 | H61: IND | I61: S | J61: 7.02 | K61: 6.7 | L61: 6.7 | M61: 0 | N61: 16.84 | O61: 14.87 | P61: 14.87 | Q61: 0 | R61: 20.367 | S61: 19.714 | T61: 19.714 | U61: 0 | V61: 58.272 | W61: 47.149 | X61: 47.145 | Y61: 0.004
A62: ACAD | B62: 44.4219 | C62: -68.3115 | D62: 44.3771 | E62: -68.261 | F62: 231N | G62: 031 | H62: IND | I62: N | J62: 7.02 | K62: 6.7 | L62: 6.7 | M62: 0 | N62: 16.84 | O62: 14.87 | P62: 14.87 | Q62: 0 | R62: 20.367 | S62: 19.714 | T62: 19.714 | U62: 0 | V62: 58.272 | W62: 47.149 | X62: 47.148 | Y62: 0.001
A63: ACAD | B63: 44.4219 | C63: -68.3115 | D63: 44.3771 | E63: -68.261 | F63: 231S | G63: 031 | H63: IND | I63: S | J63: 7.02 | K63: 6.7 | L63: 6.7 | M63: 0 | N63: 16.84 | O63: 14.87 | P63: 14.87 | Q63: 0 | R63: 20.367 | S63: 19.714 | T63: 19.714 | U63: 0 | V63: 58.272 | W63: 47.149 | X63: 47.147 | Y63: 0.002
A64: ACAD | B64: 44.4219 | C64: -68.3115 | D64: 44.3771 | E64: -68.261 | F64: 232N | G64: 032 | H64: IND | I64: N | J64: 7.02 | K64: 6.7 | L64: 6.7 | M64: 0 | N64: 16.84 | O64: 14.87 | P64: 14.87 | Q64: 0 | R64: 20.367 | S64: 19.714 | T64: 19.714 | U64: 0 | V64: 58.272 | W64: 47.149 | X64: 47.148 | Y64: 0.001
A65: ACAD | B65: 44.4219 | C65: -68.3115 | D65: 44.3771 | E65: -68.261 | F65: 232S | G65: 032 | H65: IND | I65: S | J65: 7.02 | K65: 6.7 | L65: 6.7 | M65: 0 | N65: 16.84 | O65: 14.87 | P65: 14.87 | Q65: 0 | R65: 20.367 | S65: 19.714 | T65: 19.714 | U65: 0 | V65: 58.272 | W65: 47.149 | X65: 47.145 | Y65: 0.004
A66: ACAD | B66: 44.4219 | C66: -68.3115 | D66: 44.3771 | E66: -68.261 | F66: 233N | G66: 033 | H66: IND | I66: N | J66: 7.02 | K66: 6.7 | L66: 6.7 | M66: 0 | N66: 16.84 | O66: 14.87 | P66: 14.87 | Q66: 0 | R66: 20.367 | S66: 19.714 | T66: 19.714 | U66: 0 | V66: 58.272 | W66: 47.149 | X66: 47.149 | Y66: 0
A67: ACAD | B67: 44.4219 | C67: -68.3115 | D67: 44.3771 | E67: -68.261 | F67: 233S | G67: 033 | H67: IND | I67: S | J67: 7.02 | K67: 6.7 | L67: 6.7 | M67: 0 | N67: 16.84 | O67: 14.87 | P67: 14.87 | Q67: 0 | R67: 20.367 | S67: 19.714 | T67: 19.714 | U67: 0 | V67: 58.272 | W67: 47.149 | X67: 47.148 | Y67: 0.001
A68: ACAD | B68: 44.4219 | C68: -68.3115 | D68: 44.3771 | E68: -68.261 | F68: 234N | G68: 034 | H68: IND | I68: N | J68: 7.02 | K68: 6.7 | L68: 6.7 | M68: 0 | N68: 16.84 | O68: 14.87 | P68: 14.87 | Q68: 0 | R68: 20.367 | S68: 19.714 | T68: 19.714 | U68: 0 | V68: 58.272 | W68: 47.149 | X68: 47.149 | Y68: 0
A69: ACAD | B69: 44.4219 | C69: -68.3115 | D69: 44.3771 | E69: -68.261 | F69: 234S | G69: 034 | H69: IND | I69: S | J69: 7.02 | K69: 6.7 | L69: 6.7 | M69: 0 | N69: 16.84 | O69: 14.87 | P69: 14.87 | Q69: 0 | R69: 20.367 | S69: 19.714 | T69: 19.714 | U69: 0 | V69: 58.272 | W69: 47.149 | X69: 47.149 | Y69: 0
A70: ACAD | B70: 44.4219 | C70: -68.3115 | D70: 44.3771 | E70: -68.261 | F70: 235N | G70: 035 | H70: IND | I70: N | J70: 7.02 | K70: 6.7 | L70: 6.7 | M70: 0 | N70: 16.84 | O70: 14.87 | P70: 14.87 | Q70: 0 | R70: 20.367 | S70: 19.714 | T70: 19.714 | U70: 0 | V70: 58.272 | W70: 47.149 | X70: 47.149 | Y70: 0
A71: ACAD | B71: 44.4219 | C71: -68.3115 | D71: 44.3771 | E71: -68.261 | F71: 235S | G71: 035 | H71: IND | I71: S | J71: 7.02 | K71: 6.7 | L71: 6.7 | M71: 0 | N71: 16.84 | O71: 14.87 | P71: 14.87 | Q71: 0 | R71: 20.367 | S71: 19.714 | T71: 19.714 | U71: 0 | V71: 58.272 | W71: 47.149 | X71: 47.149 | Y71: 0
A72: ACAD | B72: 44.4219 | C72: -68.3115 | D72: 44.3771 | E72: -68.261 | F72: 236N | G72: 036 | H72: IND | I72: N | J72: 7.02 | K72: 6.7 | L72: 6.7 | M72: 0 | N72: 16.84 | O72: 14.87 | P72: 14.87 | Q72: 0 | R72: 20.367 | S72: 19.714 | T72: 19.714 | U72: 0 | V72: 58.272 | W72: 47.149 | X72: 47.149 | Y72: 0
A73: ACAD | B73: 44.4219 | C73: -68.3115 | D73: 44.3771 | E73: -68.261 | F73: 236S | G73: 036 | H73: IND | I73: S | J73: 7.02 | K73: 6.7 | L73: 6.7 | M73: 0 | N73: 16.84 | O73: 14.87 | P73: 14.87 | Q73: 0 | R73: 20.367 | S73: 19.714 | T73: 19.714 | U73: 0 | V73: 58.272 | W73: 47.149 | X73: 47.148 | Y73: 0.001
A74: ACAD | B74: 44.4219 | C74: -68.3115 | D74: 44.3771 | E74: -68.261 | F74: 237N | G74: 037 | H74: IND | I74: N | J74: 7.02 | K74: 6.7 | L74: 6.7 | M74: 0 | N74: 16.84 | O74: 14.87 | P74: 14.87 | Q74: 0 | R74: 20.367 | S74: 19.714 | T74: 19.714 | U74: 0 | V74: 58.272 | W74: 47.149 | X74: 47.149 | Y74: 0
A75: ACAD | B75: 44.4219 | C75: -68.3115 | D75: 44.3771 | E75: -68.261 | F75: 237S | G75: 037 | H75: IND | I75: S | J75: 7.02 | K75: 6.7 | L75: 6.7 | M75: 0 | N75: 16.84 | O75: 14.87 | P75: 14.87 | Q75: 0 | R75: 20.367 | S75: 19.714 | T75: 19.714 | U75: 0 | V75: 58.272 | W75: 47.149 | X75: 47.147 | Y75: 0.002
A76: ACAD | B76: 44.4219 | C76: -68.3115 | D76: 44.3771 | E76: -68.261 | F76: 238N | G76: 038 | H76: IND | I76: N | J76: 7.02 | K76: 6.7 | L76: 6.7 | M76: 0 | N76: 16.84 | O76: 14.87 | P76: 14.87 | Q76: 0 | R76: 20.367 | S76: 19.714 | T76: 19.714 | U76: 0 | V76: 58.272 | W76: 47.149 | X76: 47.148 | Y76: 0.001
A77: ACAD | B77: 44.4219 | C77: -68.3115 | D77: 44.3771 | E77: -68.261 | F77: 238S | G77: 038 | H77: IND | I77: S | J77: 7.02 | K77: 6.7 | L77: 6.7 | M77: 0 | N77: 16.84 | O77: 14.87 | P77: 14.87 | Q77: 0 | R77: 20.367 | S77: 19.714 | T77: 19.714 | U77: 0 | V77: 58.272 | W77: 47.149 | X77: 47.139 | Y77: 0.01
A78: ACAD | B78: 44.4219 | C78: -68.3115 | D78: 44.3771 | E78: -68.261 | F78: 239N | G78: 039 | H78: IND | I78: N | J78: 7.02 | K78: 6.7 | L78: 6.7 | M78: 0 | N78: 16.84 | O78: 14.87 | P78: 14.87 | Q78: 0 | R78: 20.367 | S78: 19.714 | T78: 19.714 | U78: 0 | V78: 58.272 | W78: 47.149 | X78: 47.148 | Y78: 0.001
A79: ACAD | B79: 44.4219 | C79: -68.3115 | D79: 44.3771 | E79: -68.261 | F79: 239S | G79: 039 | H79: IND | I79: S | J79: 7.02 | K79: 6.7 | L79: 6.7 | M79: 0 | N79: 16.84 | O79: 14.87 | P79: 14.87 | Q79: 0 | R79: 20.367 | S79: 19.714 | T79: 19.714 | U79: 0 | V79: 58.272 | W79: 47.149 | X79: 47.14 | Y79: 0.009
A80: ACAD | B80: 44.4219 | C80: -68.3115 | D80: 44.3771 | E80: -68.261 | F80: 240N | G80: 040 | H80: IND | I80: N | J80: 7.02 | K80: 6.7 | L80: 6.7 | M80: 0 | N80: 16.84 | O80: 14.87 | P80: 14.87 | Q80: 0 | R80: 20.367 | S80: 19.714 | T80: 19.714 | U80: 0 | V80: 58.272 | W80: 47.149 | X80: 47.148 | Y80: 0.001
A81: ACAD | B81: 44.4219 | C81: -68.3115 | D81: 44.3771 | E81: -68.261 | F81: 240S | G81: 040 | H81: IND | I81: S | J81: 7.02 | K81: 6.7 | L81: 6.7 | M81: 0 | N81: 16.84 | O81: 14.87 | P81: 14.87 | Q81: 0 | R81: 20.367 | S81: 19.714 | T81: 19.714 | U81: 0 | V81: 58.272 | W81: 47.149 | X81: 47.143 | Y81: 0.006
A82: ACAD | B82: 44.4219 | C82: -68.3115 | D82: 44.3771 | E82: -68.261 | F82: 241N | G82: 041 | H82: IND | I82: N | J82: 7.02 | K82: 6.7 | L82: 6.7 | M82: 0 | N82: 16.84 | O82: 14.87 | P82: 14.87 | Q82: 0 | R82: 20.367 | S82: 19.714 | T82: 19.714 | U82: 0 | V82: 58.272 | W82: 47.149 | X82: 47.149 | Y82: 0
A83: ACAD | B83: 44.4219 | C83: -68.3115 | D83: 44.3771 | E83: -68.261 | F83: 241S | G83: 041 | H83: IND | I83: S | J83: 7.02 | K83: 6.7 | L83: 6.7 | M83: 0 | N83: 16.84 | O83: 14.87 | P83: 14.87 | Q83: 0 | R83: 20.367 | S83: 19.714 | T83: 19.714 | U83: 0 | V83: 58.272 | W83: 47.149 | X83: 47.141 | Y83: 0.008
A84: ACAD | B84: 44.4219 | C84: -68.3115 | D84: 44.3771 | E84: -68.261 | F84: 242N | G84: 042 | H84: IND | I84: N | J84: 7.02 | K84: 6.7 | L84: 6.7 | M84: 0 | N84: 16.84 | O84: 14.87 | P84: 14.87 | Q84: 0 | R84: 20.367 | S84: 19.714 | T84: 19.714 | U84: 0 | V84: 58.272 | W84: 47.149 | X84: 47.148 | Y84: 0.001
A85: ACAD | B85: 44.4219 | C85: -68.3115 | D85: 44.3771 | E85: -68.261 | F85: 242S | G85: 042 | H85: IND | I85: S | J85: 7.02 | K85: 6.7 | L85: 6.7 | M85: 0 | N85: 16.84 | O85: 14.87 | P85: 14.87 | Q85: 0 | R85: 20.367 | S85: 19.714 | T85: 19.714 | U85: 0 | V85: 58.272 | W85: 47.149 | X85: 47.144 | Y85: 0.005
A86: ACAD | B86: 44.4219 | C86: -68.3115 | D86: 44.3771 | E86: -68.261 | F86: 243N | G86: 043 | H86: IND | I86: N | J86: 7.02 | K86: 6.7 | L86: 6.7 | M86: 0 | N86: 16.84 | O86: 14.87 | P86: 14.87 | Q86: 0 | R86: 20.367 | S86: 19.714 | T86: 19.714 | U86: 0 | V86: 58.272 | W86: 47.149 | X86: 47.148 | Y86: 0.001
A87: ACAD | B87: 44.4219 | C87: -68.3115 | D87: 44.3771 | E87: -68.261 | F87: 243S | G87: 043 | H87: IND | I87: S | J87: 7.02 | K87: 6.7 | L87: 6.7 | M87: 0 | N87: 16.84 | O87: 14.87 | P87: 14.87 | Q87: 0 | R87: 20.367 | S87: 19.714 | T87: 19.714 | U87: 0 | V87: 58.272 | W87: 47.149 | X87: 47.141 | Y87: 0.008
A88: ACAD | B88: 44.4219 | C88: -68.3115 | D88: 44.3771 | E88: -68.261 | F88: 244N | G88: 044 | H88: IND | I88: N | J88: 7.02 | K88: 6.7 | L88: 6.7 | M88: 0 | N88: 16.84 | O88: 14.87 | P88: 14.87 | Q88: 0 | R88: 20.367 | S88: 19.714 | T88: 19.714 | U88: 0 | V88: 58.272 | W88: 47.149 | X88: 47.145 | Y88: 0.004
A89: ACAD | B89: 44.4219 | C89: -68.3115 | D89: 44.3771 | E89: -68.261 | F89: 244S | G89: 044 | H89: IND | I89: S | J89: 7.02 | K89: 6.7 | L89: 6.7 | M89: 0 | N89: 16.84 | O89: 14.87 | P89: 14.87 | Q89: 0 | R89: 20.367 | S89: 19.714 | T89: 19.714 | U89: 0 | V89: 58.272 | W89: 47.149 | X89: 47.115 | Y89: 0.034
A90: ACAD | B90: 44.4219 | C90: -68.3115 | D90: 44.3771 | E90: -68.261 | F90: 245N | G90: 045 | H90: IND | I90: N | J90: 7.02 | K90: 6.7 | L90: 6.7 | M90: 0 | N90: 16.84 | O90: 14.87 | P90: 14.87 | Q90: 0 | R90: 20.367 | S90: 19.714 | T90: 19.714 | U90: 0 | V90: 58.272 | W90: 47.149 | X90: 47.148 | Y90: 0.001
A91: ACAD | B91: 44.4219 | C91: -68.3115 | D91: 44.3771 | E91: -68.261 | F91: 245S | G91: 045 | H91: IND | I91: S | J91: 7.02 | K91: 6.7 | L91: 6.7 | M91: 0 | N91: 16.84 | O91: 14.87 | P91: 14.87 | Q91: 0 | R91: 20.367 | S91: 19.714 | T91: 19.714 | U91: 0 | V91: 58.272 | W91: 47.149 | X91: 47.149 | Y91: 0
A92: ACAD | B92: 44.4219 | C92: -68.3115 | D92: 44.3771 | E92: -68.261 | F92: 246N | G92: 046 | H92: IND | I92: N | J92: 7.02 | K92: 6.7 | L92: 6.7 | M92: 0 | N92: 16.84 | O92: 14.87 | P92: 14.87 | Q92: 0 | R92: 20.367 | S92: 19.714 | T92: 19.714 | U92: 0 | V92: 58.272 | W92: 47.149 | X92: 47.148 | Y92: 0.001
A93: ACAD | B93: 44.4219 | C93: -68.3115 | D93: 44.3771 | E93: -68.261 | F93: 246S | G93: 046 | H93: IND | I93: S | J93: 7.02 | K93: 6.7 | L93: 6.7 | M93: 0 | N93: 16.84 | O93: 14.87 | P93: 14.87 | Q93: 0 | R93: 20.367 | S93: 19.714 | T93: 19.714 | U93: 0 | V93: 58.272 | W93: 47.149 | X93: 47.143 | Y93: 0.006
A94: ACAD | B94: 44.4219 | C94: -68.3115 | D94: 44.3771 | E94: -68.261 | F94: 247N | G94: 047 | H94: IND | I94: N | J94: 7.02 | K94: 6.7 | L94: 6.7 | M94: 0 | N94: 16.84 | O94: 14.87 | P94: 14.87 | Q94: 0 | R94: 20.367 | S94: 19.714 | T94: 19.714 | U94: 0 | V94: 58.272 | W94: 47.149 | X94: 47.148 | Y94: 0.001
A95: ACAD | B95: 44.4219 | C95: -68.3115 | D95: 44.3771 | E95: -68.261 | F95: 247S | G95: 047 | H95: IND | I95: S | J95: 7.02 | K95: 6.7 | L95: 6.7 | M95: 0 | N95: 16.84 | O95: 14.87 | P95: 14.87 | Q95: 0 | R95: 20.367 | S95: 19.714 | T95: 19.714 | U95: 0 | V95: 58.272 | W95: 47.149 | X95: 47.132 | Y95: 0.017
A96: ACAD | B96: 44.4219 | C96: -68.3115 | D96: 44.3771 | E96: -68.261 | F96: 248N | G96: 048 | H96: IND | I96: N | J96: 7.02 | K96: 6.7 | L96: 6.7 | M96: 0 | N96: 16.84 | O96: 14.87 | P96: 14.87 | Q96: 0 | R96: 20.367 | S96: 19.714 | T96: 19.714 | U96: 0 | V96: 58.272 | W96: 47.149 | X96: 47.149 | Y96: 0
A97: ACAD | B97: 44.4219 | C97: -68.3115 | D97: 44.3771 | E97: -68.261 | F97: 248S | G97: 048 | H97: IND | I97: S | J97: 7.02 | K97: 6.7 | L97: 6.7 | M97: 0 | N97: 16.84 | O97: 14.87 | P97: 14.87 | Q97: 0 | R97: 20.367 | S97: 19.714 | T97: 19.714 | U97: 0 | V97: 58.272 | W97: 47.149 | X97: 47.148 | Y97: 0.001
A98: ACAD | B98: 44.4219 | C98: -68.3115 | D98: 44.3771 | E98: -68.261 | F98: 249N | G98: 049 | H98: IND | I98: N | J98: 7.02 | K98: 6.7 | L98: 6.7 | M98: 0 | N98: 16.84 | O98: 14.87 | P98: 14.87 | Q98: 0 | R98: 20.367 | S98: 19.714 | T98: 19.714 | U98: 0 | V98: 58.272 | W98: 47.149 | X98: 47.145 | Y98: 0.004
A99: ACAD | B99: 44.4219 | C99: -68.3115 | D99: 44.3771 | E99: -68.261 | F99: 249S | G99: 049 | H99: IND | I99: S | J99: 7.02 | K99: 6.7 | L99: 6.7 | M99: 0 | N99: 16.84 | O99: 14.87 | P99: 14.87 | Q99: 0 | R99: 20.367 | S99: 19.714 | T99: 19.714 | U99: 0 | V99: 58.272 | W99: 47.149 | X99: 47.136 | Y99: 0.013
A100: ACAD | B100: 44.4219 | C100: -68.3115 | D100: 44.3771 | E100: -68.261 | F100: 250N | G100: 050 | H100: IND | I100: N | J100: 7.02 | K100: 6.7 | L100: 6.7 | M100: 0 | N100: 16.84 | O100: 14.87 | P100: 14.87 | Q100: 0 | R100: 20.367 | S100: 19.714 | T100: 19.714 | U100: 0 | V100: 58.272 | W100: 47.149 | X100: 47.149 | Y100: 0
A101: ACAD | B101: 44.4219 | C101: -68.3115 | D101: 44.3771 | E101: -68.261 | F101: 250S | G101: 050 | H101: IND | I101: S | J101: 7.02 | K101: 6.7 | L101: 6.7 | M101: 0 | N101: 16.84 | O101: 14.87 | P101: 14.87 | Q101: 0 | R101: 20.367 | S101: 19.714 | T101: 19.714 | U101: 0 | V101: 58.272 | W101: 47.149 | X101: 47.147 | Y101: 0.002
A102: ACAD | B102: 44.4219 | C102: -68.3115 | D102: 44.3771 | E102: -68.261 | F102: 251N | G102: 051 | H102: IND | I102: N | J102: 7.02 | K102: 6.7 | L102: 6.7 | M102: 0 | N102: 16.84 | O102: 14.87 | P102: 14.87 | Q102: 0 | R102: 20.367 | S102: 19.714 | T102: 19.714 | U102: 0 | V102: 58.272 | W102: 47.149 | X102: 47.147 | Y102: 0.002
A103: ACAD | B103: 44.4219 | C103: -68.3115 | D103: 44.3771 | E103: -68.261 | F103: 251S | G103: 051 | H103: IND | I103: S | J103: 7.02 | K103: 6.7 | L103: 6.7 | M103: 0 | N103: 16.84 | O103: 14.87 | P103: 14.86 | Q103: 0.01 | R103: 20.367 | S103: 19.714 | T103: 19.714 | U103: 0 | V103: 58.272 | W103: 47.149 | X103: 47.113 | Y103: 0.036
A104: ACAD | B104: 44.4219 | C104: -68.3115 | D104: 44.3771 | E104: -68.261 | F104: 252N | G104: 052 | H104: IND | I104: N | J104: 7.02 | K104: 6.7 | L104: 6.7 | M104: 0 | N104: 16.84 | O104: 14.87 | P104: 14.87 | Q104: 0 | R104: 20.367 | S104: 19.714 | T104: 19.714 | U104: 0 | V104: 58.272 | W104: 47.149 | X104: 47.146 | Y104: 0.003
A105: ACAD | B105: 44.4219 | C105: -68.3115 | D105: 44.3771 | E105: -68.261 | F105: 252S | G105: 052 | H105: IND | I105: S | J105: 7.02 | K105: 6.7 | L105: 6.7 | M105: 0 | N105: 16.84 | O105: 14.87 | P105: 14.87 | Q105: 0 | R105: 20.367 | S105: 19.714 | T105: 19.714 | U105: 0 | V105: 58.272 | W105: 47.149 | X105: 47.126 | Y105: 0.023
A106: ACAD | B106: 44.4219 | C106: -68.3115 | D106: 44.3771 | E106: -68.261 | F106: 253N | G106: 053 | H106: IND | I106: N | J106: 7.02 | K106: 6.7 | L106: 6.7 | M106: 0 | N106: 16.84 | O106: 14.87 | P106: 14.87 | Q106: 0 | R106: 20.367 | S106: 19.714 | T106: 19.714 | U106: 0 | V106: 58.272 | W106: 47.149 | X106: 47.149 | Y106: 0
A107: ACAD | B107: 44.4219 | C107: -68.3115 | D107: 44.3771 | E107: -68.261 | F107: 253S | G107: 053 | H107: IND | I107: S | J107: 7.02 | K107: 6.7 | L107: 6.7 | M107: 0 | N107: 16.84 | O107: 14.87 | P107: 14.87 | Q107: 0 | R107: 20.367 | S107: 19.714 | T107: 19.714 | U107: 0 | V107: 58.272 | W107: 47.149 | X107: 47.149 | Y107: 0
A108: ACAD | B108: 44.4219 | C108: -68.3115 | D108: 44.3771 | E108: -68.261 | F108: 254N | G108: 054 | H108: IND | I108: N | J108: 7.02 | K108: 6.7 | L108: 6.7 | M108: 0 | N108: 16.84 | O108: 14.87 | P108: 14.87 | Q108: 0 | R108: 20.367 | S108: 19.714 | T108: 19.714 | U108: 0 | V108: 58.272 | W108: 47.149 | X108: 47.148 | Y108: 0.001
A109: ACAD | B109: 44.4219 | C109: -68.3115 | D109: 44.3771 | E109: -68.261 | F109: 254S | G109: 054 | H109: IND | I109: S | J109: 7.02 | K109: 6.7 | L109: 6.7 | M109: 0 | N109: 16.84 | O109: 14.87 | P109: 14.87 | Q109: 0 | R109: 20.367 | S109: 19.714 | T109: 19.714 | U109: 0 | V109: 58.272 | W109: 47.149 | X109: 47.149 | Y109: 0
A110: ACAD | B110: 44.4219 | C110: -68.3115 | D110: 44.3771 | E110: -68.261 | F110: 255N | G110: 055 | H110: IND | I110: N | J110: 7.02 | K110: 6.7 | L110: 6.7 | M110: 0 | N110: 16.84 | O110: 14.87 | P110: 14.87 | Q110: 0 | R110: 20.367 | S110: 19.714 | T110: 19.714 | U110: 0 | V110: 58.272 | W110: 47.149 | X110: 47.149 | Y110: 0
A111: ACAD | B111: 44.4219 | C111: -68.3115 | D111: 44.3771 | E111: -68.261 | F111: 255S | G111: 055 | H111: IND | I111: S | J111: 7.02 | K111: 6.7 | L111: 6.7 | M111: 0 | N111: 16.84 | O111: 14.87 | P111: 14.87 | Q111: 0 | R111: 20.367 | S111: 19.714 | T111: 19.714 | U111: 0 | V111: 58.272 | W111: 47.149 | X111: 47.149 | Y111: 0
A112: ACAD | B112: 44.4219 | C112: -68.3115 | D112: 44.3771 | E112: -68.261 | F112: no013N | G112: 056 | H112: IND | I112: N | J112: 7.02 | K112: 6.7 | L112: 6.7 | M112: 0 | N112: 16.84 | O112: 14.87 | P112: 14.87 | Q112: 0 | R112: 20.367 | S112: 19.714 | T112: 19.714 | U112: 0 | V112: 58.272 | W112: 47.149 | X112: 47.148 | Y112: 0.001
A113: ACAD | B113: 44.4219 | C113: -68.3115 | D113: 44.3771 | E113: -68.261 | F113: no013S | G113: 056 | H113: IND | I113: S | J113: 7.02 | K113: 6.7 | L113: 6.7 | M113: 0 | N113: 16.84 | O113: 14.87 | P113: 14.87 | Q113: 0 | R113: 20.367 | S113: 19.714 | T113: 19.714 | U113: 0 | V113: 58.272 | W113: 47.149 | X113: 47.126 | Y113: 0.023
A114: ACAD | B114: 44.4219 | C114: -68.3115 | D114: 44.3771 | E114: -68.261 | F114: no028N | G114: 057 | H114: IND | I114: N | J114: 7.02 | K114: 6.7 | L114: 6.7 | M114: 0 | N114: 16.84 | O114: 14.87 | P114: 14.87 | Q114: 0 | R114: 20.367 | S114: 19.714 | T114: 19.714 | U114: 0 | V114: 58.272 | W114: 47.149 | X114: 47.148 | Y114: 0.001
A115: ACAD | B115: 44.4219 | C115: -68.3115 | D115: 44.3771 | E115: -68.261 | F115: no028S | G115: 057 | H115: IND | I115: S | J115: 7.02 | K115: 6.7 | L115: 6.7 | M115: 0 | N115: 16.84 | O115: 14.87 | P115: 14.87 | Q115: 0 | R115: 20.367 | S115: 19.714 | T115: 19.714 | U115: 0 | V115: 58.272 | W115: 47.149 | X115: 47.129 | Y115: 0.02
A116: ACAD | B116: 44.4219 | C116: -68.3115 | D116: 44.3771 | E116: -68.261 | F116: no025N | G116: 058 | H116: IND | I116: N | J116: 7.02 | K116: 6.7 | L116: 6.7 | M116: 0 | N116: 16.84 | O116: 14.87 | P116: 14.87 | Q116: 0 | R116: 20.367 | S116: 19.714 | T116: 19.714 | U116: 0 | V116: 58.272 | W116: 47.149 | X116: 47.147 | Y116: 0.002
A117: ACAD | B117: 44.4219 | C117: -68.3115 | D117: 44.3771 | E117: -68.261 | F117: no025S | G117: 058 | H117: IND | I117: S | J117: 7.02 | K117: 6.7 | L117: 6.7 | M117: 0 | N117: 16.84 | O117: 14.87 | P117: 14.86 | Q117: 0.01 | R117: 20.367 | S117: 19.714 | T117: 19.714 | U117: 0 | V117: 58.272 | W117: 47.149 | X117: 47.072 | Y117: 0.077
A118: ACAD | B118: 44.4219 | C118: -68.3115 | D118: 44.3771 | E118: -68.261 | F118: no016N | G118: 059 | H118: IND | I118: N | J118: 7.02 | K118: 6.7 | L118: 6.7 | M118: 0 | N118: 16.84 | O118: 14.87 | P118: 14.87 | Q118: 0 | R118: 20.367 | S118: 19.714 | T118: 19.714 | U118: 0 | V118: 58.272 | W118: 47.149 | X118: 47.146 | Y118: 0.003
A119: ACAD | B119: 44.4219 | C119: -68.3115 | D119: 44.3771 | E119: -68.261 | F119: no016S | G119: 059 | H119: IND | I119: S | J119: 7.02 | K119: 6.7 | L119: 6.7 | M119: 0 | N119: 16.84 | O119: 14.87 | P119: 14.84 | Q119: 0.03 | R119: 20.367 | S119: 19.714 | T119: 19.714 | U119: 0 | V119: 58.272 | W119: 47.149 | X119: 46.974 | Y119: 0.175
A120: ACAD | B120: 44.4219 | C120: -68.3115 | D120: 44.3771 | E120: -68.261 | F120: no019N | G120: 060 | H120: IND | I120: N | J120: 7.02 | K120: 6.7 | L120: 6.7 | M120: 0 | N120: 16.84 | O120: 14.87 | P120: 14.87 | Q120: 0 | R120: 20.367 | S120: 19.714 | T120: 19.714 | U120: 0 | V120: 58.272 | W120: 47.149 | X120: 47.147 | Y120: 0.002
A121: ACAD | B121: 44.4219 | C121: -68.3115 | D121: 44.3771 | E121: -68.261 | F121: no019S | G121: 060 | H121: IND | I121: S | J121: 7.02 | K121: 6.7 | L121: 6.7 | M121: 0 | N121: 16.84 | O121: 14.87 | P121: 14.86 | Q121: 0.01 | R121: 20.367 | S121: 19.714 | T121: 19.714 | U121: 0 | V121: 58.272 | W121: 47.149 | X121: 47.11 | Y121: 0.039
A122: ACAD | B122: 44.4219 | C122: -68.3115 | D122: 44.3771 | E122: -68.261 | F122: no029N | G122: 061 | H122: IND | I122: N | J122: 7.02 | K122: 6.7 | L122: 6.7 | M122: 0 | N122: 16.84 | O122: 14.87 | P122: 14.87 | Q122: 0 | R122: 20.367 | S122: 19.714 | T122: 19.714 | U122: 0 | V122: 58.272 | W122: 47.149 | X122: 47.148 | Y122: 0.001
A123: ACAD | B123: 44.4219 | C123: -68.3115 | D123: 44.3771 | E123: -68.261 | F123: no029S | G123: 061 | H123: IND | I123: S | J123: 7.02 | K123: 6.7 | L123: 6.7 | M123: 0 | N123: 16.84 | O123: 14.87 | P123: 14.87 | Q123: 0 | R123: 20.367 | S123: 19.714 | T123: 19.714 | U123: 0 | V123: 58.272 | W123: 47.149 | X123: 47.124 | Y123: 0.025
A124: ACAD | B124: 44.4219 | C124: -68.3115 | D124: 44.3771 | E124: -68.261 | F124: no024N | G124: 062 | H124: IND | I124: N | J124: 7.02 | K124: 6.7 | L124: 6.7 | M124: 0 | N124: 16.84 | O124: 14.87 | P124: 14.87 | Q124: 0 | R124: 20.367 | S124: 19.714 | T124: 19.714 | U124: 0 | V124: 58.272 | W124: 47.149 | X124: 47.148 | Y124: 0.001
A125: ACAD | B125: 44.4219 | C125: -68.3115 | D125: 44.3771 | E125: -68.261 | F125: no024S | G125: 062 | H125: IND | I125: S | J125: 7.02 | K125: 6.7 | L125: 6.7 | M125: 0 | N125: 16.84 | O125: 14.87 | P125: 14.87 | Q125: 0 | R125: 20.367 | S125: 19.714 | T125: 19.714 | U125: 0 | V125: 58.272 | W125: 47.149 | X125: 47.118 | Y125: 0.031
A126: ACAD | B126: 44.4219 | C126: -68.3115 | D126: 44.3771 | E126: -68.261 | F126: no001N | G126: 063 | H126: IND | I126: N | J126: 7.02 | K126: 6.7 | L126: 6.7 | M126: 0 | N126: 16.84 | O126: 14.87 | P126: 14.87 | Q126: 0 | R126: 20.367 | S126: 19.714 | T126: 19.714 | U126: 0 | V126: 58.272 | W126: 47.149 | X126: 47.144 | Y126: 0.005
A127: ACAD | B127: 44.4219 | C127: -68.3115 | D127: 44.3771 | E127: -68.261 | F127: no001S | G127: 063 | H127: IND | I127: S | J127: 7.02 | K127: 6.7 | L127: 6.7 | M127: 0 | N127: 16.84 | O127: 14.87 | P127: 14.87 | Q127: 0 | R127: 20.367 | S127: 19.714 | T127: 19.714 | U127: 0 | V127: 58.272 | W127: 47.149 | X127: 47.134 | Y127: 0.015
A128: ACAD | B128: 44.4219 | C128: -68.3115 | D128: 44.3771 | E128: -68.261 | F128: no018N | G128: 064 | H128: IND | I128: N | J128: 7.02 | K128: 6.7 | L128: 6.7 | M128: 0 | N128: 16.84 | O128: 14.87 | P128: 14.87 | Q128: 0 | R128: 20.367 | S128: 19.714 | T128: 19.714 | U128: 0 | V128: 58.272 | W128: 47.149 | X128: 47.146 | Y128: 0.003
A129: ACAD | B129: 44.4219 | C129: -68.3115 | D129: 44.3771 | E129: -68.261 | F129: no018S | G129: 064 | H129: IND | I129: S | J129: 7.02 | K129: 6.7 | L129: 6.7 | M129: 0 | N129: 16.84 | O129: 14.87 | P129: 14.86 | Q129: 0.01 | R129: 20.367 | S129: 19.714 | T129: 19.714 | U129: 0 | V129: 58.272 | W129: 47.149 | X129: 47.099 | Y129: 0.05
A130: ACAD | B130: 44.4219 | C130: -68.3115 | D130: 44.3771 | E130: -68.261 | F130: no021N | G130: 065 | H130: IND | I130: N | J130: 7.02 | K130: 6.7 | L130: 6.7 | M130: 0 | N130: 16.84 | O130: 14.87 | P130: 14.87 | Q130: 0 | R130: 20.367 | S130: 19.714 | T130: 19.714 | U130: 0 | V130: 58.272 | W130: 47.149 | X130: 47.146 | Y130: 0.003
A131: ACAD | B131: 44.4219 | C131: -68.3115 | D131: 44.3771 | E131: -68.261 | F131: no021S | G131: 065 | H131: IND | I131: S | J131: 7.02 | K131: 6.7 | L131: 6.7 | M131: 0 | N131: 16.84 | O131: 14.87 | P131: 14.86 | Q131: 0.01 | R131: 20.367 | S131: 19.714 | T131: 19.714 | U131: 0 | V131: 58.272 | W131: 47.149 | X131: 47.083 | Y131: 0.066
A132: ACAD | B132: 44.4219 | C132: -68.3115 | D132: 44.3771 | E132: -68.261 | F132: no022N | G132: 066 | H132: IND | I132: N | J132: 7.02 | K132: 6.7 | L132: 6.7 | M132: 0 | N132: 16.84 | O132: 14.87 | P132: 14.87 | Q132: 0 | R132: 20.367 | S132: 19.714 | T132: 19.714 | U132: 0 | V132: 58.272 | W132: 47.149 | X132: 47.146 | Y132: 0.003
A133: ACAD | B133: 44.4219 | C133: -68.3115 | D133: 44.3771 | E133: -68.261 | F133: no022S | G133: 066 | H133: IND | I133: S | J133: 7.02 | K133: 6.7 | L133: 6.7 | M133: 0 | N133: 16.84 | O133: 14.87 | P133: 14.86 | Q133: 0.01 | R133: 20.367 | S133: 19.714 | T133: 19.714 | U133: 0 | V133: 58.272 | W133: 47.149 | X133: 47.111 | Y133: 0.038
A134: ACAD | B134: 44.4219 | C134: -68.3115 | D134: 44.3771 | E134: -68.261 | F134: no037N | G134: 067 | H134: IND | I134: N | J134: 7.02 | K134: 6.7 | L134: 6.7 | M134: 0 | N134: 16.84 | O134: 14.87 | P134: 14.87 | Q134: 0 | R134: 20.367 | S134: 19.714 | T134: 19.714 | U134: 0 | V134: 58.272 | W134: 47.149 | X134: 47.148 | Y134: 0.001
A135: ACAD | B135: 44.4219 | C135: -68.3115 | D135: 44.3771 | E135: -68.261 | F135: no037S | G135: 067 | H135: IND | I135: S | J135: 7.02 | K135: 6.7 | L135: 6.7 | M135: 0 | N135: 16.84 | O135: 14.87 | P135: 14.87 | Q135: 0 | R135: 20.367 | S135: 19.714 | T135: 19.714 | U135: 0 | V135: 58.272 | W135: 47.149 | X135: 47.14 | Y135: 0.009
A136: ACAD | B136: 44.4219 | C136: -68.3115 | D136: 44.3771 | E136: -68.261 | F136: no006N | G136: 068 | H136: IND | I136: N | J136: 7.02 | K136: 6.7 | L136: 6.7 | M136: 0 | N136: 16.84 | O136: 14.87 | P136: 14.87 | Q136: 0 | R136: 20.367 | S136: 19.714 | T136: 19.714 | U136: 0 | V136: 58.272 | W136: 47.149 | X136: 47.148 | Y136: 0.001
A137: ACAD | B137: 44.4219 | C137: -68.3115 | D137: 44.3771 | E137: -68.261 | F137: no006S | G137: 068 | H137: IND | I137: S | J137: 7.02 | K137: 6.7 | L137: 6.7 | M137: 0 | N137: 16.84 | O137: 14.87 | P137: 14.87 | Q137: 0 | R137: 20.367 | S137: 19.714 | T137: 19.714 | U137: 0 | V137: 58.272 | W137: 47.149 | X137: 47.134 | Y137: 0.015
A138: ACAD | B138: 44.4219 | C138: -68.3115 | D138: 44.3771 | E138: -68.261 | F138: no009N | G138: 069 | H138: IND | I138: N | J138: 7.02 | K138: 6.7 | L138: 6.7 | M138: 0 | N138: 16.84 | O138: 14.87 | P138: 14.87 | Q138: 0 | R138: 20.367 | S138: 19.714 | T138: 19.714 | U138: 0 | V138: 58.272 | W138: 47.149 | X138: 47.147 | Y138: 0.002
A139: ACAD | B139: 44.4219 | C139: -68.3115 | D139: 44.3771 | E139: -68.261 | F139: no009S | G139: 069 | H139: IND | I139: S | J139: 7.02 | K139: 6.7 | L139: 6.7 | M139: 0 | N139: 16.84 | O139: 14.87 | P139: 14.87 | Q139: 0 | R139: 20.367 | S139: 19.714 | T139: 19.714 | U139: 0 | V139: 58.272 | W139: 47.149 | X139: 47.137 | Y139: 0.012
A140: ACAD | B140: 44.4219 | C140: -68.3115 | D140: 44.3771 | E140: -68.261 | F140: no012N | G140: 070 | H140: IND | I140: N | J140: 7.02 | K140: 6.7 | L140: 6.7 | M140: 0 | N140: 16.84 | O140: 14.87 | P140: 14.87 | Q140: 0 | R140: 20.367 | S140: 19.714 | T140: 19.714 | U140: 0 | V140: 58.272 | W140: 47.149 | X140: 47.145 | Y140: 0.004
A141: ACAD | B141: 44.4219 | C141: -68.3115 | D141: 44.3771 | E141: -68.261 | F141: no012S | G141: 070 | H141: IND | I141: S | J141: 7.02 | K141: 6.7 | L141: 6.7 | M141: 0 | N141: 16.84 | O141: 14.87 | P141: 14.86 | Q141: 0.01 | R141: 20.367 | S141: 19.714 | T141: 19.714 | U141: 0 | V141: 58.272 | W141: 47.149 | X141: 47.09 | Y141: 0.059
A142: ACAD | B142: 44.4219 | C142: -68.3115 | D142: 44.3771 | E142: -68.261 | F142: no015N | G142: 071 | H142: IND | I142: N | J142: 7.02 | K142: 6.7 | L142: 6.7 | M142: 0 | N142: 16.84 | O142: 14.87 | P142: 14.87 | Q142: 0 | R142: 20.367 | S142: 19.714 | T142: 19.714 | U142: 0 | V142: 58.272 | W142: 47.149 | X142: 47.146 | Y142: 0.003
A143: ACAD | B143: 44.4219 | C143: -68.3115 | D143: 44.3771 | E143: -68.261 | F143: no015S | G143: 071 | H143: IND | I143: S | J143: 7.02 | K143: 6.7 | L143: 6.7 | M143: 0 | N143: 16.84 | O143: 14.87 | P143: 14.85 | Q143: 0.02 | R143: 20.367 | S143: 19.714 | T143: 19.714 | U143: 0 | V143: 58.272 | W143: 47.149 | X143: 47.032 | Y143: 0.117
A144: ACAD | B144: 44.4219 | C144: -68.3115 | D144: 44.3771 | E144: -68.261 | F144: no030N | G144: 072 | H144: IND | I144: N | J144: 7.02 | K144: 6.7 | L144: 6.7 | M144: 0 | N144: 16.84 | O144: 14.87 | P144: 14.87 | Q144: 0 | R144: 20.367 | S144: 19.714 | T144: 19.714 | U144: 0 | V144: 58.272 | W144: 47.149 | X144: 47.145 | Y144: 0.004
A145: ACAD | B145: 44.4219 | C145: -68.3115 | D145: 44.3771 | E145: -68.261 | F145: no030S | G145: 072 | H145: IND | I145: S | J145: 7.02 | K145: 6.7 | L145: 6.7 | M145: 0 | N145: 16.84 | O145: 14.87 | P145: 14.87 | Q145: 0 | R145: 20.367 | S145: 19.714 | T145: 19.714 | U145: 0 | V145: 58.272 | W145: 47.149 | X145: 47.139 | Y145: 0.01
A146: ACAD | B146: 44.4219 | C146: -68.3115 | D146: 44.3771 | E146: -68.261 | F146: no002N | G146: 073 | H146: IND | I146: N | J146: 7.02 | K146: 6.7 | L146: 6.7 | M146: 0 | N146: 16.84 | O146: 14.87 | P146: 14.87 | Q146: 0 | R146: 20.367 | S146: 19.714 | T146: 19.714 | U146: 0 | V146: 58.272 | W146: 47.149 | X146: 47.149 | Y146: 0
A147: ACAD | B147: 44.4219 | C147: -68.3115 | D147: 44.3771 | E147: -68.261 | F147: no002S | G147: 073 | H147: IND | I147: S | J147: 7.02 | K147: 6.7 | L147: 6.7 | M147: 0 | N147: 16.84 | O147: 14.87 | P147: 14.87 | Q147: 0 | R147: 20.367 | S147: 19.714 | T147: 19.714 | U147: 0 | V147: 58.272 | W147: 47.149 | X147: 47.148 | Y147: 0.001
A148: ACAD | B148: 44.4219 | C148: -68.3115 | D148: 44.3771 | E148: -68.261 | F148: no005N | G148: 074 | H148: IND | I148: N | J148: 7.02 | K148: 6.7 | L148: 6.7 | M148: 0 | N148: 16.84 | O148: 14.87 | P148: 14.87 | Q148: 0 | R148: 20.367 | S148: 19.714 | T148: 19.714 | U148: 0 | V148: 58.272 | W148: 47.149 | X148: 47.149 | Y148: 0
A149: ACAD | B149: 44.4219 | C149: -68.3115 | D149: 44.3771 | E149: -68.261 | F149: no005S | G149: 074 | H149: IND | I149: S | J149: 7.02 | K149: 6.7 | L149: 6.7 | M149: 0 | N149: 16.84 | O149: 14.87 | P149: 14.87 | Q149: 0 | R149: 20.367 | S149: 19.714 | T149: 19.714 | U149: 0 | V149: 58.272 | W149: 47.149 | X149: 47.148 | Y149: 0.001
A150: ACAD | B150: 44.4219 | C150: -68.3115 | D150: 44.3771 | E150: -68.261 | F150: no007N | G150: 075 | H150: IND | I150: N | J150: 7.02 | K150: 6.7 | L150: 6.7 | M150: 0 | N150: 16.84 | O150: 14.87 | P150: 14.87 | Q150: 0 | R150: 20.367 | S150: 19.714 | T150: 19.714 | U150: 0 | V150: 58.272 | W150: 47.149 | X150: 47.149 | Y150: 0
A151: ACAD | B151: 44.4219 | C151: -68.3115 | D151: 44.3771 | E151: -68.261 | F151: no007S | G151: 075 | H151: IND | I151: S | J151: 7.02 | K151: 6.7 | L151: 6.7 | M151: 0 | N151: 16.84 | O151: 14.87 | P151: 14.87 | Q151: 0 | R151: 20.367 | S151: 19.714 | T151: 19.714 | U151: 0 | V151: 58.272 | W151: 47.149 | X151: 47.149 | Y151: 0
A152: ACAD | B152: 44.4219 | C152: -68.3115 | D152: 44.3771 | E152: -68.261 | F152: no014N | G152: 076 | H152: IND | I152: N | J152: 7.02 | K152: 6.7 | L152: 6.7 | M152: 0 | N152: 16.84 | O152: 14.87 | P152: 14.87 | Q152: 0 | R152: 20.367 | S152: 19.714 | T152: 19.714 | U152: 0 | V152: 58.272 | W152: 47.149 | X152: 47.149 | Y152: 0
A153: ACAD | B153: 44.4219 | C153: -68.3115 | D153: 44.3771 | E153: -68.261 | F153: no014S | G153: 076 | H153: IND | I153: S | J153: 7.02 | K153: 6.7 | L153: 6.7 | M153: 0 | N153: 16.84 | O153: 14.87 | P153: 14.87 | Q153: 0 | R153: 20.367 | S153: 19.714 | T153: 19.714 | U153: 0 | V153: 58.272 | W153: 47.149 | X153: 47.149 | Y153: 0
A154: ACAD | B154: 44.4219 | C154: -68.3115 | D154: 44.3771 | E154: -68.261 | F154: no020N | G154: 077 | H154: IND | I154: N | J154: 7.02 | K154: 6.7 | L154: 6.7 | M154: 0 | N154: 16.84 | O154: 14.87 | P154: 14.87 | Q154: 0 | R154: 20.367 | S154: 19.714 | T154: 19.714 | U154: 0 | V154: 58.272 | W154: 47.149 | X154: 47.149 | Y154: 0
A155: ACAD | B155: 44.4219 | C155: -68.3115 | D155: 44.3771 | E155: -68.261 | F155: no020S | G155: 077 | H155: IND | I155: S | J155: 7.02 | K155: 6.7 | L155: 6.7 | M155: 0 | N155: 16.84 | O155: 14.87 | P155: 14.87 | Q155: 0 | R155: 20.367 | S155: 19.714 | T155: 19.714 | U155: 0 | V155: 58.272 | W155: 47.149 | X155: 47.149 | Y155: 0
A156: ACAD | B156: 44.4219 | C156: -68.3115 | D156: 44.3771 | E156: -68.261 | F156: no038N | G156: 078 | H156: IND | I156: N | J156: 7.02 | K156: 6.7 | L156: 6.7 | M156: 0 | N156: 16.84 | O156: 14.87 | P156: 14.87 | Q156: 0 | R156: 20.367 | S156: 19.714 | T156: 19.714 | U156: 0 | V156: 58.272 | W156: 47.149 | X156: 47.149 | Y156: 0
A157: ACAD | B157: 44.4219 | C157: -68.3115 | D157: 44.3771 | E157: -68.261 | F157: no038S | G157: 078 | H157: IND | I157: S | J157: 7.02 | K157: 6.7 | L157: 6.7 | M157: 0 | N157: 16.84 | O157: 14.87 | P157: 14.87 | Q157: 0 | R157: 20.367 | S157: 19.714 | T157: 19.714 | U157: 0 | V157: 58.272 | W157: 47.149 | X157: 47.149 | Y157: 0
A158: ACAD | B158: 44.4219 | C158: -68.3115 | D158: 44.3771 | E158: -68.261 | F158: no039N | G158: 079 | H158: IND | I158: N | J158: 7.02 | K158: 6.7 | L158: 6.7 | M158: 0 | N158: 16.84 | O158: 14.87 | P158: 14.87 | Q158: 0 | R158: 20.367 | S158: 19.714 | T158: 19.714 | U158: 0 | V158: 58.272 | W158: 47.149 | X158: 47.149 | Y158: 0
A159: ACAD | B159: 44.4219 | C159: -68.3115 | D159: 44.3771 | E159: -68.261 | F159: no039S | G159: 079 | H159: IND | I159: S | J159: 7.02 | K159: 6.7 | L159: 6.7 | M159: 0 | N159: 16.84 | O159: 14.87 | P159: 14.87 | Q159: 0 | R159: 20.367 | S159: 19.714 | T159: 19.714 | U159: 0 | V159: 58.272 | W159: 47.149 | X159: 47.149 | Y159: 0
A160: ACAD | B160: 44.4219 | C160: -68.3115 | D160: 44.3771 | E160: -68.261 | F160: no004N | G160: 080 | H160: IND | I160: N | J160: 7.02 | K160: 6.7 | L160: 6.7 | M160: 0 | N160: 16.84 | O160: 14.87 | P160: 14.87 | Q160: 0 | R160: 20.367 | S160: 19.714 | T160: 19.714 | U160: 0 | V160: 58.272 | W160: 47.149 | X160: 47.149 | Y160: 0
A161: ACAD | B161: 44.4219 | C161: -68.3115 | D161: 44.3771 | E161: -68.261 | F161: no004S | G161: 080 | H161: IND | I161: S | J161: 7.02 | K161: 6.7 | L161: 6.7 | M161: 0 | N161: 16.84 | O161: 14.87 | P161: 14.87 | Q161: 0 | R161: 20.367 | S161: 19.714 | T161: 19.714 | U161: 0 | V161: 58.272 | W161: 47.149 | X161: 47.148 | Y161: 0.001
A162: ACAD | B162: 44.4219 | C162: -68.3115 | D162: 44.3771 | E162: -68.261 | F162: no017N | G162: 081 | H162: IND | I162: N | J162: 7.02 | K162: 6.7 | L162: 6.7 | M162: 0 | N162: 16.84 | O162: 14.87 | P162: 14.87 | Q162: 0 | R162: 20.367 | S162: 19.714 | T162: 19.714 | U162: 0 | V162: 58.272 | W162: 47.149 | X162: 47.149 | Y162: 0
A163: ACAD | B163: 44.4219 | C163: -68.3115 | D163: 44.3771 | E163: -68.261 | F163: no017S | G163: 081 | H163: IND | I163: S | J163: 7.02 | K163: 6.7 | L163: 6.7 | M163: 0 | N163: 16.84 | O163: 14.87 | P163: 14.87 | Q163: 0 | R163: 20.367 | S163: 19.714 | T163: 19.714 | U163: 0 | V163: 58.272 | W163: 47.149 | X163: 47.148 | Y163: 0.001
A164: ACAD | B164: 44.4219 | C164: -68.3115 | D164: 44.3771 | E164: -68.261 | F164: no040N | G164: 082 | H164: IND | I164: N | J164: 7.02 | K164: 6.7 | L164: 6.7 | M164: 0 | N164: 16.84 | O164: 14.87 | P164: 14.87 | Q164: 0 | R164: 20.367 | S164: 19.714 | T164: 19.714 | U164: 0 | V164: 58.272 | W164: 47.149 | X164: 47.149 | Y164: 0
A165: ACAD | B165: 44.4219 | C165: -68.3115 | D165: 44.3771 | E165: -68.261 | F165: no040S | G165: 082 | H165: IND | I165: S | J165: 7.02 | K165: 6.7 | L165: 6.7 | M165: 0 | N165: 16.84 | O165: 14.87 | P165: 14.87 | Q165: 0 | R165: 20.367 | S165: 19.714 | T165: 19.714 | U165: 0 | V165: 58.272 | W165: 47.149 | X165: 47.148 | Y165: 0.001
A166: ACAD | B166: 44.4219 | C166: -68.3115 | D166: 44.3771 | E166: -68.261 | F166: no008N | G166: 083 | H166: IND | I166: N | J166: 7.02 | K166: 6.7 | L166: 6.7 | M166: 0 | N166: 16.84 | O166: 14.87 | P166: 14.87 | Q166: 0 | R166: 20.367 | S166: 19.714 | T166: 19.714 | U166: 0 | V166: 58.272 | W166: 47.149 | X166: 47.149 | Y166: 0
A167: ACAD | B167: 44.4219 | C167: -68.3115 | D167: 44.3771 | E167: -68.261 | F167: no008S | G167: 083 | H167: IND | I167: S | J167: 7.02 | K167: 6.7 | L167: 6.7 | M167: 0 | N167: 16.84 | O167: 14.87 | P167: 14.87 | Q167: 0 | R167: 20.367 | S167: 19.714 | T167: 19.714 | U167: 0 | V167: 58.272 | W167: 47.149 | X167: 47.149 | Y167: 0
A168: ACAD | B168: 44.4219 | C168: -68.3115 | D168: 44.3771 | E168: -68.261 | F168: no027N | G168: 084 | H168: IND | I168: N | J168: 7.02 | K168: 6.7 | L168: 6.7 | M168: 0 | N168: 16.84 | O168: 14.87 | P168: 14.87 | Q168: 0 | R168: 20.367 | S168: 19.714 | T168: 19.714 | U168: 0 | V168: 58.272 | W168: 47.149 | X168: 47.149 | Y168: 0
A169: ACAD | B169: 44.4219 | C169: -68.3115 | D169: 44.3771 | E169: -68.261 | F169: no027S | G169: 084 | H169: IND | I169: S | J169: 7.02 | K169: 6.7 | L169: 6.7 | M169: 0 | N169: 16.84 | O169: 14.87 | P169: 14.87 | Q169: 0 | R169: 20.367 | S169: 19.714 | T169: 19.714 | U169: 0 | V169: 58.272 | W169: 47.149 | X169: 47.149 | Y169: 0
A170: ACAD | B170: 44.4219 | C170: -68.3115 | D170: 44.3771 | E170: -68.261 | F170: no003N | G170: 085 | H170: IND | I170: N | J170: 7.02 | K170: 6.7 | L170: 6.7 | M170: 0 | N170: 16.84 | O170: 14.87 | P170: 14.87 | Q170: 0 | R170: 20.367 | S170: 19.714 | T170: 19.714 | U170: 0 | V170: 58.272 | W170: 47.149 | X170: 47.148 | Y170: 0.001
A171: ACAD | B171: 44.4219 | C171: -68.3115 | D171: 44.3771 | E171: -68.261 | F171: no003S | G171: 085 | H171: IND | I171: S | J171: 7.02 | K171: 6.7 | L171: 6.7 | M171: 0 | N171: 16.84 | O171: 14.87 | P171: 14.87 | Q171: 0 | R171: 20.367 | S171: 19.714 | T171: 19.714 | U171: 0 | V171: 58.272 | W171: 47.149 | X171: 47.148 | Y171: 0.001
A172: ACAD | B172: 44.4219 | C172: -68.3115 | D172: 44.3771 | E172: -68.261 | F172: no010N | G172: 086 | H172: IND | I172: N | J172: 7.02 | K172: 6.7 | L172: 6.7 | M172: 0 | N172: 16.84 | O172: 14.87 | P172: 14.87 | Q172: 0 | R172: 20.367 | S172: 19.714 | T172: 19.714 | U172: 0 | V172: 58.272 | W172: 47.149 | X172: 47.148 | Y172: 0.001
A173: ACAD | B173: 44.4219 | C173: -68.3115 | D173: 44.3771 | E173: -68.261 | F173: no010S | G173: 086 | H173: IND | I173: S | J173: 7.02 | K173: 6.7 | L173: 6.7 | M173: 0 | N173: 16.84 | O173: 14.87 | P173: 14.87 | Q173: 0 | R173: 20.367 | S173: 19.714 | T173: 19.714 | U173: 0 | V173: 58.272 | W173: 47.149 | X173: 47.144 | Y173: 0.005
A174: ACAD | B174: 44.4219 | C174: -68.3115 | D174: 44.3771 | E174: -68.261 | F174: no011N | G174: 087 | H174: IND | I174: N | J174: 7.02 | K174: 6.7 | L174: 6.7 | M174: 0 | N174: 16.84 | O174: 14.87 | P174: 14.87 | Q174: 0 | R174: 20.367 | S174: 19.714 | T174: 19.714 | U174: 0 | V174: 58.272 | W174: 47.149 | X174: 47.148 | Y174: 0.001
A175: ACAD | B175: 44.4219 | C175: -68.3115 | D175: 44.3771 | E175: -68.261 | F175: no011S | G175: 087 | H175: IND | I175: S | J175: 7.02 | K175: 6.7 | L175: 6.7 | M175: 0 | N175: 16.84 | O175: 14.87 | P175: 14.87 | Q175: 0 | R175: 20.367 | S175: 19.714 | T175: 19.714 | U175: 0 | V175: 58.272 | W175: 47.149 | X175: 47.142 | Y175: 0.007
A176: ACAD | B176: 44.4219 | C176: -68.3115 | D176: 44.3771 | E176: -68.261 | F176: no031N | G176: 088 | H176: IND | I176: N | J176: 7.02 | K176: 6.7 | L176: 6.7 | M176: 0 | N176: 16.84 | O176: 14.87 | P176: 14.87 | Q176: 0 | R176: 20.367 | S176: 19.714 | T176: 19.714 | U176: 0 | V176: 58.272 | W176: 47.149 | X176: 47.148 | Y176: 0.001
A177: ACAD | B177: 44.4219 | C177: -68.3115 | D177: 44.3771 | E177: -68.261 | F177: no031S | G177: 088 | H177: IND | I177: S | J177: 7.02 | K177: 6.7 | L177: 6.7 | M177: 0 | N177: 16.84 | O177: 14.87 | P177: 14.87 | Q177: 0 | R177: 20.367 | S177: 19.714 | T177: 19.714 | U177: 0 | V177: 58.272 | W177: 47.149 | X177: 47.124 | Y177: 0.025
A178: ACAD | B178: 44.4219 | C178: -68.3115 | D178: 44.3771 | E178: -68.261 | F178: no036N | G178: 089 | H178: IND | I178: N | J178: 7.02 | K178: 6.7 | L178: 6.7 | M178: 0 | N178: 16.84 | O178: 14.87 | P178: 14.87 | Q178: 0 | R178: 20.367 | S178: 19.714 | T178: 19.714 | U178: 0 | V178: 58.272 | W178: 47.149 | X178: 47.149 | Y178: 0
A179: ACAD | B179: 44.4219 | C179: -68.3115 | D179: 44.3771 | E179: -68.261 | F179: no036S | G179: 089 | H179: IND | I179: S | J179: 7.02 | K179: 6.7 | L179: 6.7 | M179: 0 | N179: 16.84 | O179: 14.87 | P179: 14.87 | Q179: 0 | R179: 20.367 | S179: 19.714 | T179: 19.714 | U179: 0 | V179: 58.272 | W179: 47.149 | X179: 47.148 | Y179: 0.001
A180: ACAD | B180: 44.4219 | C180: -68.3115 | D180: 44.3771 | E180: -68.261 | F180: no033N | G180: 090 | H180: IND | I180: N | J180: 7.02 | K180: 6.7 | L180: 6.7 | M180: 0 | N180: 16.84 | O180: 14.87 | P180: 14.87 | Q180: 0 | R180: 20.367 | S180: 19.714 | T180: 19.714 | U180: 0 | V180: 58.272 | W180: 47.149 | X180: 47.148 | Y180: 0.001
A181: ACAD | B181: 44.4219 | C181: -68.3115 | D181: 44.3771 | E181: -68.261 | F181: no033S | G181: 090 | H181: IND | I181: S | J181: 7.02 | K181: 6.7 | L181: 6.7 | M181: 0 | N181: 16.84 | O181: 14.87 | P181: 14.87 | Q181: 0 | R181: 20.367 | S181: 19.714 | T181: 19.714 | U181: 0 | V181: 58.272 | W181: 47.149 | X181: 47.143 | Y181: 0.006
A182: ACAD | B182: 44.4219 | C182: -68.3115 | D182: 44.3771 | E182: -68.261 | F182: no034N | G182: 091 | H182: IND | I182: N | J182: 7.02 | K182: 6.7 | L182: 6.7 | M182: 0 | N182: 16.84 | O182: 14.87 | P182: 14.87 | Q182: 0 | R182: 20.367 | S182: 19.714 | T182: 19.714 | U182: 0 | V182: 58.272 | W182: 47.149 | X182: 47.148 | Y182: 0.001
A183: ACAD | B183: 44.4219 | C183: -68.3115 | D183: 44.3771 | E183: -68.261 | F183: no034S | G183: 091 | H183: IND | I183: S | J183: 7.02 | K183: 6.7 | L183: 6.7 | M183: 0 | N183: 16.84 | O183: 14.87 | P183: 14.87 | Q183: 0 | R183: 20.367 | S183: 19.714 | T183: 19.714 | U183: 0 | V183: 58.272 | W183: 47.149 | X183: 47.146 | Y183: 0.003
A184: ACAD | B184: 44.4219 | C184: -68.3115 | D184: 44.3771 | E184: -68.261 | F184: no035N | G184: 092 | H184: IND | I184: N | J184: 7.02 | K184: 6.7 | L184: 6.7 | M184: 0 | N184: 16.84 | O184: 14.87 | P184: 14.87 | Q184: 0 | R184: 20.367 | S184: 19.714 | T184: 19.714 | U184: 0 | V184: 58.272 | W184: 47.149 | X184: 47.149 | Y184: 0
A185: ACAD | B185: 44.4219 | C185: -68.3115 | D185: 44.3771 | E185: -68.261 | F185: no035S | G185: 092 | H185: IND | I185: S | J185: 7.02 | K185: 6.7 | L185: 6.7 | M185: 0 | N185: 16.84 | O185: 14.87 | P185: 14.87 | Q185: 0 | R185: 20.367 | S185: 19.714 | T185: 19.714 | U185: 0 | V185: 58.272 | W185: 47.149 | X185: 47.148 | Y185: 0.001
A186: ACAD | B186: 44.4219 | C186: -68.3115 | D186: 44.3771 | E186: -68.261 | F186: no023N | G186: 093 | H186: IND | I186: N | J186: 7.02 | K186: 6.7 | L186: 6.7 | M186: 0 | N186: 16.84 | O186: 14.87 | P186: 14.87 | Q186: 0 | R186: 20.367 | S186: 19.714 | T186: 19.714 | U186: 0 | V186: 58.272 | W186: 47.149 | X186: 47.149 | Y186: 0
A187: ACAD | B187: 44.4219 | C187: -68.3115 | D187: 44.3771 | E187: -68.261 | F187: no023S | G187: 093 | H187: IND | I187: S | J187: 7.02 | K187: 6.7 | L187: 6.7 | M187: 0 | N187: 16.84 | O187: 14.87 | P187: 14.87 | Q187: 0 | R187: 20.367 | S187: 19.714 | T187: 19.714 | U187: 0 | V187: 58.272 | W187: 47.149 | X187: 47.141 | Y187: 0.008
A188: ACAD | B188: 44.4219 | C188: -68.3115 | D188: 44.3771 | E188: -68.261 | F188: no026N | G188: 094 | H188: IND | I188: N | J188: 7.02 | K188: 6.7 | L188: 6.7 | M188: 0 | N188: 16.84 | O188: 14.87 | P188: 14.87 | Q188: 0 | R188: 20.367 | S188: 19.714 | T188: 19.714 | U188: 0 | V188: 58.272 | W188: 47.149 | X188: 47.148 | Y188: 0.001
A189: ACAD | B189: 44.4219 | C189: -68.3115 | D189: 44.3771 | E189: -68.261 | F189: no026S | G189: 094 | H189: IND | I189: S | J189: 7.02 | K189: 6.7 | L189: 6.7 | M189: 0 | N189: 16.84 | O189: 14.87 | P189: 14.87 | Q189: 0 | R189: 20.367 | S189: 19.714 | T189: 19.714 | U189: 0 | V189: 58.272 | W189: 47.149 | X189: 47.144 | Y189: 0.005
A190: ACAD | B190: 44.4219 | C190: -68.3115 | D190: 44.3771 | E190: -68.261 | F190: no032N | G190: 095 | H190: IND | I190: N | J190: 7.02 | K190: 6.7 | L190: 6.7 | M190: 0 | N190: 16.84 | O190: 14.87 | P190: 14.87 | Q190: 0 | R190: 20.367 | S190: 19.714 | T190: 19.714 | U190: 0 | V190: 58.272 | W190: 47.149 | X190: 47.148 | Y190: 0.001
A191: ACAD | B191: 44.4219 | C191: -68.3115 | D191: 44.3771 | E191: -68.261 | F191: no032S | G191: 095 | H191: IND | I191: S | J191: 7.02 | K191: 6.7 | L191: 6.7 | M191: 0 | N191: 16.84 | O191: 14.87 | P191: 14.87 | Q191: 0 | R191: 20.367 | S191: 19.714 | T191: 19.714 | U191: 0 | V191: 58.272 | W191: 47.149 | X191: 47.143 | Y191: 0.006
A192: ACAD | B192: 44.4219 | C192: -68.3115 | D192: 44.3771 | E192: -68.261 | F192: noALALLN | G192: Alabama | H192: ALL | I192: N | J192: 7.02 | K192: 6.7 | L192: 6.7 | M192: 0 | N192: 16.84 | O192: 14.87 | P192: 14.87 | Q192: 0 | R192: 20.367 | S192: 19.714 | T192: 19.714 | U192: 0 | V192: 58.272 | W192: 47.149 | X192: 47.144 | Y192: 0.005
A193: ACAD | B193: 44.4219 | C193: -68.3115 | D193: 44.3771 | E193: -68.261 | F193: noALALLS | G193: Alabama | H193: ALL | I193: S | J193: 7.02 | K193: 6.7 | L193: 6.7 | M193: 0 | N193: 16.84 | O193: 14.87 | P193: 14.87 | Q193: 0 | R193: 20.367 | S193: 19.714 | T193: 19.714 | U193: 0 | V193: 58.272 | W193: 47.149 | X193: 47.117 | Y193: 0.032
A194: ACAD | B194: 44.4219 | C194: -68.3115 | D194: 44.3771 | E194: -68.261 | F194: noALEGUN | G194: Alabama | H194: EGU | I194: N | J194: 7.02 | K194: 6.7 | L194: 6.7 | M194: 0 | N194: 16.84 | O194: 14.87 | P194: 14.87 | Q194: 0 | R194: 20.367 | S194: 19.714 | T194: 19.714 | U194: 0 | V194: 58.272 | W194: 47.149 | X194: 47.148 | Y194: 0.001
A195: ACAD | B195: 44.4219 | C195: -68.3115 | D195: 44.3771 | E195: -68.261 | F195: noALEGUS | G195: Alabama | H195: EGU | I195: S | J195: 7.02 | K195: 6.7 | L195: 6.7 | M195: 0 | N195: 16.84 | O195: 14.87 | P195: 14.87 | Q195: 0 | R195: 20.367 | S195: 19.714 | T195: 19.714 | U195: 0 | V195: 58.272 | W195: 47.149 | X195: 47.142 | Y195: 0.007
A196: ACAD | B196: 44.4219 | C196: -68.3115 | D196: 44.3771 | E196: -68.261 | F196: noALNEGN | G196: Alabama | H196: NEG | I196: N | J196: 7.02 | K196: 6.7 | L196: 6.7 | M196: 0 | N196: 16.84 | O196: 14.87 | P196: 14.87 | Q196: 0 | R196: 20.367 | S196: 19.714 | T196: 19.714 | U196: 0 | V196: 58.272 | W196: 47.149 | X196: 47.147 | Y196: 0.002
A197: ACAD | B197: 44.4219 | C197: -68.3115 | D197: 44.3771 | E197: -68.261 | F197: noALNEGS | G197: Alabama | H197: NEG | I197: S | J197: 7.02 | K197: 6.7 | L197: 6.7 | M197: 0 | N197: 16.84 | O197: 14.87 | P197: 14.87 | Q197: 0 | R197: 20.367 | S197: 19.714 | T197: 19.714 | U197: 0 | V197: 58.272 | W197: 47.149 | X197: 47.129 | Y197: 0.02
A198: ACAD | B198: 44.4219 | C198: -68.3115 | D198: 44.3771 | E198: -68.261 | F198: noOTALLN | G198: All Other Regions | H198: ALL | I198: N | J198: 7.02 | K198: 6.7 | L198: 6.67 | M198: 0.03 | N198: 16.84 | O198: 14.87 | P198: 14.75 | Q198: 0.12 | R198: 20.367 | S198: 19.714 | T198: 19.642 | U198: 0.072 | V198: 58.272 | W198: 47.149 | X198: 46.566 | Y198: 0.583
A199: ACAD | B199: 44.4219 | C199: -68.3115 | D199: 44.3771 | E199: -68.261 | F199: noOTALLS | G199: All Other Regions | H199: ALL | I199: S | J199: 7.02 | K199: 6.7 | L199: 6.65 | M199: 0.05 | N199: 16.84 | O199: 14.87 | P199: 14.49 | Q199: 0.38 | R199: 20.367 | S199: 19.714 | T199: 19.595 | U199: 0.119 | V199: 58.272 | W199: 47.149 | X199: 45.289 | Y199: 1.86
A200: ACAD | B200: 44.4219 | C200: -68.3115 | D200: 44.3771 | E200: -68.261 | F200: noOTEGUN | G200: All Other Regions | H200: EGU | I200: N | J200: 7.02 | K200: 6.7 | L200: 6.7 | M200: 0 | N200: 16.84 | O200: 14.87 | P200: 14.87 | Q200: 0 | R200: 20.367 | S200: 19.714 | T200: 19.714 | U200: 0 | V200: 58.272 | W200: 47.149 | X200: 47.143 | Y200: 0.006
... 2050 more rows

Sheet rh_results_SEC_v3
A1: Site ID | B1: grid_lat | C1: grid_lon | D1: mon_lat | E1: mon_lon | F1: scenario | G1: Region | H1: Sector | I1: Species | J1: dv_b_b | K1: dv_b_f | L1: dv_b_fx | M1: delta_dvb | N1: dv_w_b | O1: dv_w_f | P1: dv_w_fx | Q1: delta_dvw | R1: bext_b_b | S1: bext_b_f | T1: bext_b_fx | U1: delta_extb | V1: bext_w_b | W1: bext_w_f | X1: bext_w_fx | Y1: delta_extw
A2: MACA | B2: 37.1516 | C2: -86.1551 | D2: 37.1318 | E2: -86.1479 | F2: noLDALLS | G2: LADCO | H2: ALL | I2: S | J2: 13.69 | K2: 11.96 | L2: 11.19 | M2: 0.77 | N2: 24.04 | O2: 20.23 | P2: 17.28 | Q2: 2.95 | R2: 39.997 | S2: 33.541 | T2: 30.977 | U2: 2.564 | V2: 115.33 | W2: 78.16 | X2: 58.129 | Y2: 20.031
A3: CACR | B3: 34.4879 | C3: -94.1775 | D3: 34.4544 | E3: -94.1429 | F3: noCNALLS | G3: CENRAP | H3: ALL | I3: S | J3: 9.74 | K3: 9.13 | L3: 8.08 | M3: 1.05 | N3: 20.87 | O3: 19.41 | P3: 16.82 | Q3: 2.59 | R3: 27.343 | S3: 25.65 | T3: 22.988 | U3: 2.662 | V3: 83.305 | W3: 71.871 | X3: 55.298 | Y3: 16.573
A4: DOSO | B4: 39.0739 | C4: -79.4869 | D4: 39.1053 | E4: -79.4261 | F4: noLDALLS | G4: LADCO | H4: ALL | I4: S | J4: 9.03 | K4: 7.84 | L4: 7.08 | M4: 0.76 | N4: 21.59 | O4: 16.7 | P4: 13.39 | Q4: 3.31 | R4: 25.475 | S4: 22.47 | T4: 20.753 | U4: 1.717 | V4: 92.099 | W4: 55.369 | X4: 39.338 | Y4: 16.031
A5: OTCR | B5: 38.988 | C5: -79.6506 | D5: 38.99 | E5: -79.65 | F5: noLDALLS | G5: LADCO | H5: ALL | I5: S | J5: 9.03 | K5: 7.82 | L5: 7.04 | M5: 0.78 | N5: 21.59 | O5: 16.64 | P5: 13.3 | Q5: 3.34 | R5: 25.475 | S5: 22.426 | T5: 20.673 | U5: 1.753 | V5: 92.099 | W5: 55.01 | X5: 38.996 | Y5: 16.014
A6: HEGL | B6: 36.6155 | C6: -92.8783 | D6: 36.6138 | E6: -92.9221 | F6: noCNALLS | G6: CENRAP | H6: ALL | I6: S | J6: 10.96 | K6: 10.12 | L6: 9.19 | M6: 0.93 | N6: 21.63 | O6: 19.78 | P6: 17.66 | Q6: 2.12 | R6: 30.39 | S6: 27.917 | T6: 25.416 | U6: 2.501 | V6: 90.901 | W6: 74.949 | X6: 60.777 | Y6: 14.172
A7: UPBU | B7: 35.8669 | C7: -93.1879 | D7: 35.8258 | E7: -93.203 | F7: noCNALLS | G7: CENRAP | H7: ALL | I7: S | J7: 9.95 | K7: 9.22 | L7: 8.43 | M7: 0.79 | N7: 20.52 | O7: 18.91 | P7: 16.71 | Q7: 2.2 | R7: 27.872 | S7: 25.835 | T7: 23.821 | U7: 2.014 | V7: 79.846 | W7: 67.826 | X7: 54.434 | Y7: 13.392
A8: MACA | B8: 37.1516 | C8: -86.1551 | D8: 37.1318 | E8: -86.1479 | F8: noLDEGUS | G8: LADCO | H8: EGU | I8: S | J8: 13.69 | K8: 11.96 | L8: 11.53 | M8: 0.43 | N8: 24.04 | O8: 20.23 | P8: 18.41 | Q8: 1.82 | R8: 39.997 | S8: 33.541 | T8: 32.075 | U8: 1.466 | V8: 115.33 | W8: 78.16 | X8: 65.014 | Y8: 13.146
A9: MING | B9: 36.9176 | C9: -90.1431 | D9: 36.9717 | E9: -90.1432 | F9: noLDALLS | G9: LADCO | H9: ALL | I9: S | J9: 12.47 | K9: 11.44 | L9: 10.95 | M9: 0.49 | N9: 22.7 | O9: 20.43 | P9: 18.66 | Q9: 1.77 | R9: 35.343 | S9: 31.853 | T9: 30.303 | U9: 1.55 | V9: 100.89 | W9: 79.777 | X9: 66.906 | Y9: 12.871
A10: CACR | B10: 34.4879 | C10: -94.1775 | D10: 34.4544 | E10: -94.1429 | F10: noCNEGUS | G10: CENRAP | H10: EGU | I10: S | J10: 9.74 | K10: 9.13 | L10: 8.47 | M10: 0.66 | N10: 20.87 | O10: 19.41 | P10: 17.49 | Q10: 1.92 | R10: 27.343 | S10: 25.65 | T10: 23.929 | U10: 1.721 | V10: 83.305 | W10: 71.871 | X10: 59.143 | Y10: 12.728
A11: OTCR | B11: 38.988 | C11: -79.6506 | D11: 38.99 | E11: -79.65 | F11: noLDEGUS | G11: LADCO | H11: EGU | I11: S | J11: 9.03 | K11: 7.82 | L11: 7.27 | M11: 0.55 | N11: 21.59 | O11: 16.64 | P11: 14.17 | Q11: 2.47 | R11: 25.475 | S11: 22.426 | T11: 21.167 | U11: 1.259 | V11: 92.099 | W11: 55.01 | X11: 42.624 | Y11: 12.386
A12: DOSO | B12: 39.0739 | C12: -79.4869 | D12: 39.1053 | E12: -79.4261 | F12: noLDEGUS | G12: LADCO | H12: EGU | I12: S | J12: 9.03 | K12: 7.84 | L12: 7.3 | M12: 0.54 | N12: 21.59 | O12: 16.7 | P12: 14.25 | Q12: 2.45 | R12: 25.475 | S12: 22.47 | T12: 21.232 | U12: 1.238 | V12: 92.099 | W12: 55.369 | X12: 42.991 | Y12: 12.378
A13: SIPS | B13: 34.3181 | C13: -87.3563 | D13: 34.3433 | E13: -87.3388 | F13: noLDALLS | G13: LADCO | H13: ALL | I13: S | J13: 12.84 | K13: 11.45 | L13: 10.98 | M13: 0.47 | N13: 21.67 | O13: 17.63 | P13: 15.39 | Q13: 2.24 | R13: 36.68 | S13: 31.848 | T13: 30.348 | U13: 1.5 | V13: 90.545 | W13: 60.036 | X13: 47.817 | Y13: 12.219
A14: SHEN | B14: 38.5836 | C14: -78.4765 | D14: 38.5229 | E14: -78.4348 | F14: noLDALLS | G14: LADCO | H14: ALL | I14: S | J14: 8.6 | K14: 7.51 | L14: 7.16 | M14: 0.35 | N14: 20.72 | O14: 15.91 | P14: 13.52 | Q14: 2.39 | R14: 24.402 | S14: 21.736 | T14: 20.941 | U14: 0.795 | V14: 84.028 | W14: 51.163 | X14: 39.888 | Y14: 11.275
A15: HEGL | B15: 36.6155 | C15: -92.8783 | D15: 36.6138 | E15: -92.9221 | F15: noCNALLN | G15: CENRAP | H15: ALL | I15: N | J15: 10.96 | K15: 10.12 | L15: 9.66 | M15: 0.46 | N15: 21.63 | O15: 19.78 | P15: 18.16 | Q15: 1.62 | R15: 30.39 | S15: 27.917 | T15: 26.659 | U15: 1.258 | V15: 90.901 | W15: 74.949 | X15: 63.812 | Y15: 11.137
A16: HEGL | B16: 36.6155 | C16: -92.8783 | D16: 36.6138 | E16: -92.9221 | F16: noCNEGUS | G16: CENRAP | H16: EGU | I16: S | J16: 10.96 | K16: 10.12 | L16: 9.47 | M16: 0.65 | N16: 21.63 | O16: 19.78 | P16: 18.21 | Q16: 1.57 | R16: 30.39 | S16: 27.917 | T16: 26.141 | U16: 1.776 | V16: 90.901 | W16: 74.949 | X16: 64.179 | Y16: 10.77
A17: JARI | B17: 37.6477 | C17: -79.559 | D17: 37.6266 | E17: -79.5125 | F17: noLDALLS | G17: LADCO | H17: ALL | I17: S | J17: 11.79 | K17: 10.12 | L17: 9.22 | M17: 0.9 | N17: 21.37 | O17: 16.88 | P17: 14.81 | Q17: 2.07 | R17: 33.299 | S17: 28.042 | T17: 25.555 | U17: 2.487 | V17: 88.503 | W17: 55.929 | X17: 45.31 | Y17: 10.619
A18: UPBU | B18: 35.8669 | C18: -93.1879 | D18: 35.8258 | E18: -93.203 | F18: noCNEGUS | G18: CENRAP | H18: EGU | I18: S | J18: 9.95 | K18: 9.22 | L18: 8.71 | M18: 0.51 | N18: 20.52 | O18: 18.91 | P18: 17.28 | Q18: 1.63 | R18: 27.872 | S18: 25.835 | T18: 24.515 | U18: 1.32 | V18: 79.846 | W18: 67.826 | X18: 57.57 | Y18: 10.256
A19: MING | B19: 36.9176 | C19: -90.1431 | D19: 36.9717 | E19: -90.1432 | F19: noCNALLS | G19: CENRAP | H19: ALL | I19: S | J19: 12.47 | K19: 11.44 | L19: 10.69 | M19: 0.75 | N19: 22.7 | O19: 20.43 | P19: 19.07 | Q19: 1.36 | R19: 35.343 | S19: 31.853 | T19: 29.5 | U19: 2.353 | V19: 100.89 | W19: 79.777 | X19: 69.645 | Y19: 10.132
A20: WIMO | B20: 34.7261 | C20: -98.7778 | D20: 34.7323 | E20: -98.713 | F20: noCNALLN | G20: CENRAP | H20: ALL | I20: N | J20: 9.22 | K20: 8.73 | L20: 8.24 | M20: 0.49 | N20: 20.32 | O20: 18.68 | P20: 17 | Q20: 1.68 | R20: 25.591 | S20: 24.329 | T20: 23.167 | U20: 1.162 | V20: 78.992 | W20: 66.354 | X20: 56.306 | Y20: 10.048
A21: BRET2 | B21: 30.0692 | C21: -89.743 | D21: 30.1086 | E21: -89.7617 | F21: noCNALLS | G21: CENRAP | H21: ALL | I21: S | J21: 13.81 | K21: 12.59 | L21: 11.43 | M21: 1.16 | N21: 22.49 | O21: 18.93 | P21: 17.39 | Q21: 1.54 | R21: 40.628 | S21: 35.846 | T21: 31.871 | U21: 3.975 | V21: 98.659 | W21: 68.69 | X21: 58.915 | Y21: 9.775
A22: COHU | B22: 34.8086 | C22: -84.6365 | D22: 34.7852 | E22: -84.6265 | F22: noLDALLS | G22: LADCO | H22: ALL | I22: S | J22: 10.94 | K22: 9.43 | L22: 8.84 | M22: 0.59 | N22: 21.19 | O22: 15.95 | P22: 13.99 | Q22: 1.96 | R22: 30.749 | S22: 26.277 | T22: 24.69 | U22: 1.587 | V22: 86.468 | W22: 50.746 | X22: 41.593 | Y22: 9.153
A23: SENE | B23: 46.2994 | C23: -85.9893 | D23: 46.2889 | E23: -85.9503 | F23: noLDALLS | G23: LADCO | H23: ALL | I23: S | J23: 5.51 | K23: 5.34 | L23: 5.27 | M23: 0.07 | N23: 19.84 | O23: 17.38 | P23: 15.82 | Q23: 1.56 | R23: 17.476 | S23: 17.168 | T23: 17.049 | U23: 0.119 | V23: 79.085 | W23: 61.067 | X23: 52.291 | Y23: 8.776
A24: SIPS | B24: 34.3181 | C24: -87.3563 | D24: 34.3433 | E24: -87.3388 | F24: noLDEGUS | G24: LADCO | H24: EGU | I24: S | J24: 12.84 | K24: 11.45 | L24: 11.14 | M24: 0.31 | N24: 21.67 | O24: 17.63 | P24: 16.09 | Q24: 1.54 | R24: 36.68 | S24: 31.848 | T24: 30.836 | U24: 1.012 | V24: 90.545 | W24: 60.036 | X24: 51.294 | Y24: 8.742
A25: WIMO | B25: 34.7261 | C25: -98.7778 | D25: 34.7323 | E25: -98.713 | F25: noCNALLS | G25: CENRAP | H25: ALL | I25: S | J25: 9.22 | K25: 8.73 | L25: 8.22 | M25: 0.51 | N25: 20.32 | O25: 18.68 | P25: 17.31 | Q25: 1.37 | R25: 25.591 | S25: 24.329 | T25: 23.092 | U25: 1.237 | V25: 78.992 | W25: 66.354 | X25: 57.912 | Y25: 8.442
A26: SHEN | B26: 38.5836 | C26: -78.4765 | D26: 38.5229 | E26: -78.4348 | F26: noLDEGUS | G26: LADCO | H26: EGU | I26: S | J26: 8.6 | K26: 7.51 | L26: 7.27 | M26: 0.24 | N26: 20.72 | O26: 15.91 | P26: 14.18 | Q26: 1.73 | R26: 24.402 | S26: 21.736 | T26: 21.203 | U26: 0.533 | V26: 84.028 | W26: 51.163 | X26: 42.721 | Y26: 8.442
A27: GRSM | B27: 35.6061 | C27: -83.9639 | D27: 35.6334 | E27: -83.9416 | F27: noLDALLS | G27: LADCO | H27: ALL | I27: S | J27: 10.63 | K27: 9.2 | L27: 8.52 | M27: 0.68 | N27: 21.39 | O27: 16.21 | P27: 14.48 | Q27: 1.73 | R27: 29.756 | S27: 25.63 | T27: 23.885 | U27: 1.745 | V27: 88.031 | W27: 51.925 | X27: 43.586 | Y27: 8.339
A28: SENE | B28: 46.2994 | C28: -85.9893 | D28: 46.2889 | E28: -85.9503 | F28: noLDALLN | G28: LADCO | H28: ALL | I28: N | J28: 5.51 | K28: 5.34 | L28: 5.3 | M28: 0.04 | N28: 19.84 | O28: 17.38 | P28: 15.99 | Q28: 1.39 | R28: 17.476 | S28: 17.168 | T28: 17.092 | U28: 0.076 | V28: 79.085 | W28: 61.067 | X28: 52.749 | Y28: 8.318
A29: MING | B29: 36.9176 | C29: -90.1431 | D29: 36.9717 | E29: -90.1432 | F29: noLDEGUS | G29: LADCO | H29: EGU | I29: S | J29: 12.47 | K29: 11.44 | L29: 11.14 | M29: 0.3 | N29: 22.7 | O29: 20.43 | P29: 19.33 | Q29: 1.1 | R29: 35.343 | S29: 31.853 | T29: 30.892 | U29: 0.961 | V29: 100.89 | W29: 79.777 | X29: 71.513 | Y29: 8.264
A30: JARI | B30: 37.6477 | C30: -79.559 | D30: 37.6266 | E30: -79.5125 | F30: noLDEGUS | G30: LADCO | H30: EGU | I30: S | J30: 11.79 | K30: 10.12 | L30: 9.54 | M30: 0.58 | N30: 21.37 | O30: 16.88 | P30: 15.38 | Q30: 1.5 | R30: 33.299 | S30: 28.042 | T30: 26.419 | U30: 1.623 | V30: 88.503 | W30: 55.929 | X30: 48.025 | Y30: 7.904
A31: JOYC | B31: 35.3917 | C31: -84.0019 | D31: 35.44 | E31: -83.99 | F31: noLDALLS | G31: LADCO | H31: ALL | I31: S | J31: 10.63 | K31: 9.19 | L31: 8.51 | M31: 0.68 | N31: 21.39 | O31: 16.09 | P31: 14.43 | Q31: 1.66 | R31: 29.756 | S31: 25.625 | T31: 23.853 | U31: 1.772 | V31: 88.031 | W31: 51.27 | X31: 43.378 | Y31: 7.892
A32: UPBU | B32: 35.8669 | C32: -93.1879 | D32: 35.8258 | E32: -93.203 | F32: noCNALLN | G32: CENRAP | H32: ALL | I32: N | J32: 9.95 | K32: 9.22 | L32: 8.78 | M32: 0.44 | N32: 20.52 | O32: 18.91 | P32: 17.6 | Q32: 1.31 | R32: 27.872 | S32: 25.835 | T32: 24.679 | U32: 1.156 | V32: 79.846 | W32: 67.826 | X32: 60.01 | Y32: 7.816
A33: HEGL | B33: 36.6155 | C33: -92.8783 | D33: 36.6138 | E33: -92.9221 | F33: noLDALLS | G33: LADCO | H33: ALL | I33: S | J33: 10.96 | K33: 10.12 | L33: 10.01 | M33: 0.11 | N33: 21.63 | O33: 19.78 | P33: 18.71 | Q33: 1.07 | R33: 30.39 | S33: 27.917 | T33: 27.596 | U33: 0.321 | V33: 90.901 | W33: 74.949 | X33: 67.408 | Y33: 7.541
A34: CACR | B34: 34.4879 | C34: -94.1775 | D34: 34.4544 | E34: -94.1429 | F34: noCNALLN | G34: CENRAP | H34: ALL | I34: N | J34: 9.74 | K34: 9.13 | L34: 8.64 | M34: 0.49 | N34: 20.87 | O34: 19.41 | P34: 18.2 | Q34: 1.21 | R34: 27.343 | S34: 25.65 | T34: 24.367 | U34: 1.283 | V34: 83.305 | W34: 71.871 | X34: 64.395 | Y34: 7.476
A35: BRIG | B35: 39.4332 | C35: -74.4993 | D35: 39.465 | E35: -74.4492 | F35: noLDALLS | G35: LADCO | H35: ALL | I35: S | J35: 12.25 | K35: 11.17 | L35: 10.95 | M35: 0.22 | N35: 22.26 | O35: 19.06 | P35: 17.95 | Q35: 1.11 | R35: 34.385 | S35: 30.848 | T35: 30.146 | U35: 0.702 | V35: 96.79 | W35: 69.683 | X35: 62.358 | Y35: 7.325
A36: MING | B36: 36.9176 | C36: -90.1431 | D36: 36.9717 | E36: -90.1432 | F36: noCNEGUS | G36: CENRAP | H36: EGU | I36: S | J36: 12.47 | K36: 11.44 | L36: 10.89 | M36: 0.55 | N36: 22.7 | O36: 20.43 | P36: 19.47 | Q36: 0.96 | R36: 35.343 | S36: 31.853 | T36: 30.125 | U36: 1.728 | V36: 100.89 | W36: 79.777 | X36: 72.47 | Y36: 7.307
A37: LIGO | B37: 35.9975 | C37: -81.8601 | D37: 35.9723 | E37: -81.9331 | F37: noLDALLS | G37: LADCO | H37: ALL | I37: S | J37: 9.7 | K37: 8.45 | L37: 7.93 | M37: 0.52 | N37: 20.39 | O37: 15.51 | P37: 13.91 | Q37: 1.6 | R37: 26.93 | S37: 23.639 | T37: 22.41 | U37: 1.229 | V37: 79.816 | W37: 48.439 | X37: 41.191 | Y37: 7.248
A38: BRIG | B38: 39.4332 | C38: -74.4993 | D38: 39.465 | E38: -74.4492 | F38: noMVALLS | G38: MANE-VU | H38: ALL | I38: S | J38: 12.25 | K38: 11.17 | L38: 10.71 | M38: 0.46 | N38: 22.26 | O38: 19.06 | P38: 17.96 | Q38: 1.1 | R38: 34.385 | S38: 30.848 | T38: 29.437 | U38: 1.411 | V38: 96.79 | W38: 69.683 | X38: 62.439 | Y38: 7.244
A39: MACA | B39: 37.1516 | C39: -86.1551 | D39: 37.1318 | E39: -86.1479 | F39: noLDALLN | G39: LADCO | H39: ALL | I39: N | J39: 13.69 | K39: 11.96 | L39: 11.56 | M39: 0.4 | N39: 24.04 | O39: 20.23 | P39: 19.2 | Q39: 1.03 | R39: 39.997 | S39: 33.541 | T39: 32.227 | U39: 1.314 | V39: 115.33 | W39: 78.16 | X39: 71.016 | Y39: 7.144
A40: SHRO | B40: 35.3535 | C40: -82.8 | D40: 35.3937 | E40: -82.7744 | F40: noLDALLS | G40: LADCO | H40: ALL | I40: S | J40: 9.7 | K40: 8.25 | L40: 7.73 | M40: 0.52 | N40: 20.39 | O40: 15.36 | P40: 13.84 | Q40: 1.52 | R40: 26.93 | S40: 23.172 | T40: 21.94 | U40: 1.232 | V40: 79.816 | W40: 47.705 | X40: 40.889 | Y40: 6.816
A41: COHU | B41: 34.8086 | C41: -84.6365 | D41: 34.7852 | E41: -84.6265 | F41: noLDEGUS | G41: LADCO | H41: EGU | I41: S | J41: 10.94 | K41: 9.43 | L41: 9.05 | M41: 0.38 | N41: 21.19 | O41: 15.95 | P41: 14.6 | Q41: 1.35 | R41: 30.749 | S41: 26.277 | T41: 25.239 | U41: 1.038 | V41: 86.468 | W41: 50.746 | X41: 44.273 | Y41: 6.473
A42: GRSM | B42: 35.6061 | C42: -83.9639 | D42: 35.6334 | E42: -83.9416 | F42: noLDEGUS | G42: LADCO | H42: EGU | I42: S | J42: 10.63 | K42: 9.2 | L42: 8.74 | M42: 0.46 | N42: 21.39 | O42: 16.21 | P42: 14.91 | Q42: 1.3 | R42: 29.756 | S42: 25.63 | T42: 24.435 | U42: 1.195 | V42: 88.031 | W42: 51.925 | X42: 45.548 | Y42: 6.377
A43: BRET2 | B43: 30.0692 | C43: -89.743 | D43: 30.1086 | E43: -89.7617 | F43: noLDALLS | G43: LADCO | H43: ALL | I43: S | J43: 13.81 | K43: 12.59 | L43: 12.12 | M43: 0.47 | N43: 22.49 | O43: 18.93 | P43: 17.98 | Q43: 0.95 | R43: 40.628 | S43: 35.846 | T43: 34.197 | U43: 1.649 | V43: 98.659 | W43: 68.69 | X43: 62.464 | Y43: 6.226
A44: MING | B44: 36.9176 | C44: -90.1431 | D44: 36.9717 | E44: -90.1432 | F44: noLDALLN | G44: LADCO | H44: ALL | I44: N | J44: 12.47 | K44: 11.44 | L44: 11.26 | M44: 0.18 | N44: 22.7 | O44: 20.43 | P44: 19.64 | Q44: 0.79 | R44: 35.343 | S44: 31.853 | T44: 31.274 | U44: 0.579 | V44: 100.89 | W44: 79.777 | X44: 73.66 | Y44: 6.117
A45: SAMA | B45: 30.0689 | C45: -84.1315 | D45: 30.0926 | E45: -84.1614 | F45: noCNALLS | G45: CENRAP | H45: ALL | I45: S | J45: 13.33 | K45: 11.84 | L45: 11.45 | M45: 0.39 | N45: 20.11 | O45: 17.22 | P45: 16.13 | Q45: 1.09 | R45: 38.46 | S45: 33.036 | T45: 31.729 | U45: 1.307 | V45: 77.538 | W45: 57.506 | X45: 51.451 | Y45: 6.055
A46: JOYC | B46: 35.3917 | C46: -84.0019 | D46: 35.44 | E46: -83.99 | F46: noLDEGUS | G46: LADCO | H46: EGU | I46: S | J46: 10.63 | K46: 9.19 | L46: 8.73 | M46: 0.46 | N46: 21.39 | O46: 16.09 | P46: 14.85 | Q46: 1.24 | R46: 29.756 | S46: 25.625 | T46: 24.413 | U46: 1.212 | V46: 88.031 | W46: 51.27 | X46: 45.23 | Y46: 6.04
A47: BRIG | B47: 39.4332 | C47: -74.4993 | D47: 39.465 | E47: -74.4492 | F47: noMVALLN | G47: MANE-VU | H47: ALL | I47: N | J47: 12.25 | K47: 11.17 | L47: 10.87 | M47: 0.3 | N47: 22.26 | O47: 19.06 | P47: 18.16 | Q47: 0.9 | R47: 34.385 | S47: 30.848 | T47: 29.892 | U47: 0.956 | V47: 96.79 | W47: 69.683 | X47: 63.69 | Y47: 5.993
A48: SHEN | B48: 38.5836 | C48: -78.4765 | D48: 38.5229 | E48: -78.4348 | F48: noMVALLS | G48: MANE-VU | H48: ALL | I48: S | J48: 8.6 | K48: 7.51 | L48: 6.97 | M48: 0.54 | N48: 20.72 | O48: 15.91 | P48: 14.74 | Q48: 1.17 | R48: 24.402 | S48: 21.736 | T48: 20.544 | U48: 1.192 | V48: 84.028 | W48: 51.163 | X48: 45.29 | Y48: 5.873
A49: MACA | B49: 37.1516 | C49: -86.1551 | D49: 37.1318 | E49: -86.1479 | F49: noLDNEGS | G49: LADCO | H49: NEG | I49: S | J49: 13.69 | K49: 11.96 | L49: 11.69 | M49: 0.27 | N49: 24.04 | O49: 20.23 | P49: 19.47 | Q49: 0.76 | R49: 39.997 | S49: 33.541 | T49: 32.61 | U49: 0.931 | V49: 115.33 | W49: 78.16 | X49: 72.383 | Y49: 5.777
A50: MING | B50: 36.9176 | C50: -90.1431 | D50: 36.9717 | E50: -90.1432 | F50: noCNALLN | G50: CENRAP | H50: ALL | I50: N | J50: 12.47 | K50: 11.44 | L50: 11.26 | M50: 0.18 | N50: 22.7 | O50: 20.43 | P50: 19.69 | Q50: 0.74 | R50: 35.343 | S50: 31.853 | T50: 31.283 | U50: 0.57 | V50: 100.89 | W50: 79.777 | X50: 74.059 | Y50: 5.718
A51: LYBR2 | B51: 42.9452 | C51: -72.9798 | D51: 42.953 | E51: -72.9103 | F51: noMVALLS | G51: MANE-VU | H51: ALL | I51: S | J51: 4.89 | K51: 4.26 | L51: 4.1 | M51: 0.16 | N51: 18.06 | O51: 14.97 | P51: 13.77 | Q51: 1.2 | R51: 16.502 | S51: 15.447 | T51: 15.186 | U51: 0.261 | V51: 65.868 | W51: 47.241 | X51: 41.539 | Y51: 5.702
A52: BOWA | B52: 47.9351 | C52: -91.4775 | D52: 47.9466 | E52: -91.4955 | F52: noCNALLN | G52: CENRAP | H52: ALL | I52: N | J52: 4.86 | K52: 4.76 | L52: 4.74 | M52: 0.02 | N52: 16.43 | O52: 14.48 | P52: 13.28 | Q52: 1.2 | R52: 16.381 | S52: 16.225 | T52: 16.19 | U52: 0.035 | V52: 56.176 | W52: 45.593 | X52: 40.014 | Y52: 5.579
A53: MACA | B53: 37.1516 | C53: -86.1551 | D53: 37.1318 | E53: -86.1479 | F53: noCNALLS | G53: CENRAP | H53: ALL | I53: S | J53: 13.69 | K53: 11.96 | L53: 11.68 | M53: 0.28 | N53: 24.04 | O53: 20.23 | P53: 19.5 | Q53: 0.73 | R53: 39.997 | S53: 33.541 | T53: 32.576 | U53: 0.965 | V53: 115.33 | W53: 78.16 | X53: 72.588 | Y53: 5.572
A54: LIGO | B54: 35.9975 | C54: -81.8601 | D54: 35.9723 | E54: -81.9331 | F54: noLDEGUS | G54: LADCO | H54: EGU | I54: S | J54: 9.7 | K54: 8.45 | L54: 8.08 | M54: 0.37 | N54: 20.39 | O54: 15.51 | P54: 14.33 | Q54: 1.18 | R54: 26.93 | S54: 23.639 | T54: 22.767 | U54: 0.872 | V54: 79.816 | W54: 48.439 | X54: 42.959 | Y54: 5.48
A55: BOWA | B55: 47.9351 | C55: -91.4775 | D55: 47.9466 | E55: -91.4955 | F55: noCNALLS | G55: CENRAP | H55: ALL | I55: S | J55: 4.86 | K55: 4.76 | L55: 4.72 | M55: 0.04 | N55: 16.43 | O55: 14.48 | P55: 13.22 | Q55: 1.26 | R55: 16.381 | S55: 16.225 | T55: 16.149 | U55: 0.076 | V55: 56.176 | W55: 45.593 | X55: 40.184 | Y55: 5.409
A56: MELA | B56: 48.484 | C56: -104.5151 | D56: 48.4871 | E56: -104.4757 | F56: noOTALLS | G56: All Other Regions | H56: ALL | I56: S | J56: 6.56 | K56: 6.32 | L56: 5.97 | M56: 0.35 | N56: 16.59 | O56: 15.94 | P56: 14.89 | Q56: 1.05 | R56: 19.455 | S56: 18.975 | T56: 18.309 | U56: 0.666 | V56: 56.056 | W56: 52.35 | X56: 47.026 | Y56: 5.324
A57: SWAN | B57: 35.3996 | C57: -76.1558 | D57: 35.451 | E57: -76.2075 | F57: noLDALLS | G57: LADCO | H57: ALL | I57: S | J57: 11.76 | K57: 10.89 | L57: 10.72 | M57: 0.17 | N57: 19.76 | O57: 16.03 | P57: 14.96 | Q57: 1.07 | R57: 32.749 | S57: 29.965 | T57: 29.464 | U57: 0.501 | V57: 75.643 | W57: 51.328 | X57: 46.013 | Y57: 5.315
A58: WIMO | B58: 34.7261 | C58: -98.7778 | D58: 34.7323 | E58: -98.713 | F58: noCNEGUS | G58: CENRAP | H58: EGU | I58: S | J58: 9.22 | K58: 8.73 | L58: 8.46 | M58: 0.27 | N58: 20.32 | O58: 18.68 | P58: 17.84 | Q58: 0.84 | R58: 25.591 | S58: 24.329 | T58: 23.66 | U58: 0.669 | V58: 78.992 | W58: 66.354 | X58: 61.043 | Y58: 5.311
A59: ISLE | B59: 47.4367 | C59: -88.1796 | D59: 47.4596 | E59: -88.1491 | F59: noLDALLS | G59: LADCO | H59: ALL | I59: S | J59: 5.4 | K59: 5.26 | L59: 5.24 | M59: 0.02 | N59: 17.63 | O59: 15.58 | P59: 14.51 | Q59: 1.07 | R59: 17.272 | S59: 17.028 | T59: 16.99 | U59: 0.038 | V59: 63.565 | W59: 51.075 | X59: 45.793 | Y59: 5.282
A60: HEGL | B60: 36.6155 | C60: -92.8783 | D60: 36.6138 | E60: -92.9221 | F60: noLDEGUS | G60: LADCO | H60: EGU | I60: S | J60: 10.96 | K60: 10.12 | L60: 10.06 | M60: 0.06 | N60: 21.63 | O60: 19.78 | P60: 19.05 | Q60: 0.73 | R60: 30.39 | S60: 27.917 | T60: 27.727 | U60: 0.19 | V60: 90.901 | W60: 74.949 | X60: 69.73 | Y60: 5.219
A61: SHRO | B61: 35.3535 | C61: -82.8 | D61: 35.3937 | E61: -82.7744 | F61: noLDEGUS | G61: LADCO | H61: EGU | I61: S | J61: 9.7 | K61: 8.25 | L61: 7.88 | M61: 0.37 | N61: 20.39 | O61: 15.36 | P61: 14.24 | Q61: 1.12 | R61: 26.93 | S61: 23.172 | T61: 22.3 | U61: 0.872 | V61: 79.816 | W61: 47.705 | X61: 42.557 | Y61: 5.148
A62: SACR | B62: 33.4043 | C62: -104.4479 | D62: 33.4598 | E62: -104.4042 | F62: noOTALLS | G62: All Other Regions | H62: ALL | I62: S | J62: 7.37 | K62: 7.75 | L62: 7.56 | M62: 0.19 | N62: 15.31 | O62: 15.34 | P62: 14.22 | Q62: 1.12 | R62: 21.24 | S62: 22.11 | T62: 21.682 | U62: 0.428 | V62: 47.318 | W62: 47.411 | X62: 42.372 | Y62: 5.039
A63: LYBR2 | B63: 42.9452 | C63: -72.9798 | D63: 42.953 | E63: -72.9103 | F63: noLDALLS | G63: LADCO | H63: ALL | I63: S | J63: 4.89 | K63: 4.26 | L63: 4.21 | M63: 0.05 | N63: 18.06 | O63: 14.97 | P63: 13.92 | Q63: 1.05 | R63: 16.502 | S63: 15.447 | T63: 15.373 | U63: 0.074 | V63: 65.868 | W63: 47.241 | X63: 42.204 | Y63: 5.037
A64: CAVE | B64: 31.8634 | C64: -104.8081 | D64: 31.833 | E64: -104.8094 | F64: noOTALLS | G64: All Other Regions | H64: ALL | I64: S | J64: 5.25 | K64: 5.08 | L64: 4.89 | M64: 0.19 | N64: 12.81 | O64: 12.5 | P64: 11.01 | Q64: 1.49 | R64: 17.13 | S64: 16.837 | T64: 16.512 | U64: 0.325 | V64: 36.706 | W64: 35.567 | X64: 30.563 | Y64: 5.004
A65: GUMO | B65: 31.8634 | C65: -104.8081 | D65: 31.833 | E65: -104.8094 | F65: noOTALLS | G65: All Other Regions | H65: ALL | I65: S | J65: 5.25 | K65: 5.08 | L65: 4.89 | M65: 0.19 | N65: 12.81 | O65: 12.5 | P65: 11.01 | Q65: 1.49 | R65: 17.13 | S65: 16.837 | T65: 16.512 | U65: 0.325 | V65: 36.706 | W65: 35.567 | X65: 30.563 | Y65: 5.004
A66: BIBE | B66: 29.2779 | C66: -103.2003 | D66: 29.3027 | E66: -103.178 | F66: noOTALLS | G66: All Other Regions | H66: ALL | I66: S | J66: 5.65 | K66: 5.63 | L66: 5.4 | M66: 0.23 | N66: 14.37 | O66: 14.22 | P66: 13.01 | Q66: 1.21 | R66: 17.808 | S66: 17.791 | T66: 17.372 | U66: 0.419 | V66: 43.381 | W66: 42.706 | X66: 37.75 | Y66: 4.956
A67: OKEF | B67: 30.7788 | C67: -82.1156 | D67: 30.7405 | E67: -82.1283 | F67: noLDALLS | G67: LADCO | H67: ALL | I67: S | J67: 13.34 | K67: 11.84 | L67: 11.57 | M67: 0.27 | N67: 20.7 | O67: 17.55 | P67: 16.7 | Q67: 0.85 | R67: 38.427 | S67: 33.003 | T67: 32.111 | U67: 0.892 | V67: 81.978 | W67: 59.364 | X67: 54.466 | Y67: 4.898
A68: BRIG | B68: 39.4332 | C68: -74.4993 | D68: 39.465 | E68: -74.4492 | F68: noLDEGUS | G68: LADCO | H68: EGU | I68: S | J68: 12.25 | K68: 11.17 | L68: 11.04 | M68: 0.13 | N68: 22.26 | O68: 19.06 | P68: 18.36 | Q68: 0.7 | R68: 34.385 | S68: 30.848 | T68: 30.425 | U68: 0.423 | V68: 96.79 | W68: 69.683 | X68: 64.922 | Y68: 4.761
A69: MELA | B69: 48.484 | C69: -104.5151 | D69: 48.4871 | E69: -104.4757 | F69: noOTALLN | G69: All Other Regions | H69: ALL | I69: N | J69: 6.56 | K69: 6.32 | L69: 6.11 | M69: 0.21 | N69: 16.59 | O69: 15.94 | P69: 15.04 | Q69: 0.9 | R69: 19.455 | S69: 18.975 | T69: 18.575 | U69: 0.4 | V69: 56.056 | W69: 52.35 | X69: 47.622 | Y69: 4.728
A70: WOLF | B70: 31.3065 | C70: -81.2471 | D70: 31.33 | E70: -81.3 | F70: noLDALLS | G70: LADCO | H70: ALL | I70: S | J70: 13.34 | K70: 11.77 | L70: 11.5 | M70: 0.27 | N70: 20.7 | O70: 17.33 | P70: 16.5 | Q70: 0.83 | R70: 38.427 | S70: 32.761 | T70: 31.871 | U70: 0.89 | V70: 81.978 | W70: 58.067 | X70: 53.36 | Y70: 4.707
A71: BRET2 | B71: 30.0692 | C71: -89.743 | D71: 30.1086 | E71: -89.7617 | F71: noCNNEGS | G71: CENRAP | H71: NEG | I71: S | J71: 13.81 | K71: 12.59 | L71: 12.25 | M71: 0.34 | N71: 22.49 | O71: 18.93 | P71: 18.22 | Q71: 0.71 | R71: 40.628 | S71: 35.846 | T71: 34.649 | U71: 1.197 | V71: 98.659 | W71: 68.69 | X71: 63.994 | Y71: 4.696
A72: ROMA | B72: 32.9125 | C72: -79.6039 | D72: 32.941 | E72: -79.6572 | F72: noLDALLS | G72: LADCO | H72: ALL | I72: S | J72: 13.59 | K72: 12.29 | L72: 11.98 | M72: 0.31 | N72: 21.48 | O72: 17.31 | P72: 16.47 | Q72: 0.84 | R72: 39.323 | S72: 34.493 | T72: 33.412 | U72: 1.081 | V72: 88.276 | W72: 57.602 | X72: 52.931 | Y72: 4.671
A73: BADL | B73: 43.7531 | C73: -101.8689 | D73: 43.7435 | E73: -101.9412 | F73: noCNALLS | G73: CENRAP | H73: ALL | I73: S | J73: 5.78 | K73: 5.58 | L73: 5.53 | M73: 0.05 | N73: 14.33 | O73: 13.38 | P73: 12.17 | Q73: 1.21 | R73: 17.92 | S73: 17.563 | T73: 17.471 | U73: 0.092 | V73: 43.625 | W73: 39.578 | X73: 34.923 | Y73: 4.655
A74: SIPS | B74: 34.3181 | C74: -87.3563 | D74: 34.3433 | E74: -87.3388 | F74: noCNALLS | G74: CENRAP | H74: ALL | I74: S | J74: 12.84 | K74: 11.45 | L74: 10.76 | M74: 0.69 | N74: 21.67 | O74: 17.63 | P74: 16.84 | Q74: 0.79 | R74: 36.68 | S74: 31.848 | T74: 29.668 | U74: 2.18 | V74: 90.545 | W74: 60.036 | X74: 55.383 | Y74: 4.653
A75: SHEN | B75: 38.5836 | C75: -78.4765 | D75: 38.5229 | E75: -78.4348 | F75: noMVEGUS | G75: MANE-VU | H75: EGU | I75: S | J75: 8.6 | K75: 7.51 | L75: 7.15 | M75: 0.36 | N75: 20.72 | O75: 15.91 | P75: 15 | Q75: 0.91 | R75: 24.402 | S75: 21.736 | T75: 20.921 | U75: 0.815 | V75: 84.028 | W75: 51.163 | X75: 46.557 | Y75: 4.606
A76: THRO | B76: 46.9291 | C76: -103.3791 | D76: 46.8948 | E76: -103.3777 | F76: noOTALLS | G76: All Other Regions | H76: ALL | I76: S | J76: 6.38 | K76: 6.15 | L76: 5.91 | M76: 0.24 | N76: 15.71 | O76: 14.91 | P76: 13.9 | Q76: 1.01 | R76: 19.07 | S76: 18.626 | T76: 18.185 | U76: 0.441 | V76: 50.733 | W76: 46.698 | X76: 42.122 | Y76: 4.576
A77: SWAN | B77: 35.3996 | C77: -76.1558 | D77: 35.451 | E77: -76.2075 | F77: noMVALLS | G77: MANE-VU | H77: ALL | I77: S | J77: 11.76 | K77: 10.89 | L77: 10.71 | M77: 0.18 | N77: 19.76 | O77: 16.03 | P77: 15.15 | Q77: 0.88 | R77: 32.749 | S77: 29.965 | T77: 29.431 | U77: 0.534 | V77: 75.643 | W77: 51.328 | X77: 46.892 | Y77: 4.436
A78: BRET2 | B78: 30.0692 | C78: -89.743 | D78: 30.1086 | E78: -89.7617 | F78: noLDEGUS | G78: LADCO | H78: EGU | I78: S | J78: 13.81 | K78: 12.59 | L78: 12.24 | M78: 0.35 | N78: 22.49 | O78: 18.93 | P78: 18.27 | Q78: 0.66 | R78: 40.628 | S78: 35.846 | T78: 34.617 | U78: 1.229 | V78: 98.659 | W78: 68.69 | X78: 64.306 | Y78: 4.384
A79: SENE | B79: 46.2994 | C79: -85.9893 | D79: 46.2889 | E79: -85.9503 | F79: noLDEGUS | G79: LADCO | H79: EGU | I79: S | J79: 5.51 | K79: 5.34 | L79: 5.33 | M79: 0.01 | N79: 19.84 | O79: 17.38 | P79: 16.64 | Q79: 0.74 | R79: 17.476 | S79: 17.168 | T79: 17.15 | U79: 0.018 | V79: 79.085 | W79: 61.067 | X79: 56.705 | Y79: 4.362
A80: MACA | B80: 37.1516 | C80: -86.1551 | D80: 37.1318 | E80: -86.1479 | F80: noCNEGUS | G80: CENRAP | H80: EGU | I80: S | J80: 13.69 | K80: 11.96 | L80: 11.78 | M80: 0.18 | N80: 24.04 | O80: 20.23 | P80: 19.67 | Q80: 0.56 | R80: 39.997 | S80: 33.541 | T80: 32.927 | U80: 0.614 | V80: 115.33 | W80: 78.16 | X80: 73.844 | Y80: 4.316
A81: JOYC | B81: 35.3917 | C81: -84.0019 | D81: 35.44 | E81: -83.99 | F81: noCNALLS | G81: CENRAP | H81: ALL | I81: S | J81: 10.63 | K81: 9.19 | L81: 8.82 | M81: 0.37 | N81: 21.39 | O81: 16.09 | P81: 15.22 | Q81: 0.87 | R81: 29.756 | S81: 25.625 | T81: 24.65 | U81: 0.975 | V81: 88.031 | W81: 51.27 | X81: 46.958 | Y81: 4.312
A82: BRIG | B82: 39.4332 | C82: -74.4993 | D82: 39.465 | E82: -74.4492 | F82: noMVEGUS | G82: MANE-VU | H82: EGU | I82: S | J82: 12.25 | K82: 11.17 | L82: 11 | M82: 0.17 | N82: 22.26 | O82: 19.06 | P82: 18.43 | Q82: 0.63 | R82: 34.385 | S82: 30.848 | T82: 30.302 | U82: 0.546 | V82: 96.79 | W82: 69.683 | X82: 65.404 | Y82: 4.279
A83: SHRO | B83: 35.3535 | C83: -82.8 | D83: 35.3937 | E83: -82.7744 | F83: noCNALLS | G83: CENRAP | H83: ALL | I83: S | J83: 9.7 | K83: 8.25 | L83: 8.04 | M83: 0.21 | N83: 20.39 | O83: 15.36 | P83: 14.44 | Q83: 0.92 | R83: 26.93 | S83: 23.172 | T83: 22.661 | U83: 0.511 | V83: 79.816 | W83: 47.705 | X83: 43.446 | Y83: 4.259
A84: ISLE | B84: 47.4367 | C84: -88.1796 | D84: 47.4596 | E84: -88.1491 | F84: noCNALLS | G84: CENRAP | H84: ALL | I84: S | J84: 5.4 | K84: 5.26 | L84: 5.23 | M84: 0.03 | N84: 17.63 | O84: 15.58 | P84: 14.75 | Q84: 0.83 | R84: 17.272 | S84: 17.028 | T84: 16.969 | U84: 0.059 | V84: 63.565 | W84: 51.075 | X84: 46.908 | Y84: 4.167
A85: ISLE | B85: 47.4367 | C85: -88.1796 | D85: 47.4596 | E85: -88.1491 | F85: noLDALLN | G85: LADCO | H85: ALL | I85: N | J85: 5.4 | K85: 5.26 | L85: 5.25 | M85: 0.01 | N85: 17.63 | O85: 15.58 | P85: 14.82 | Q85: 0.76 | R85: 17.272 | S85: 17.028 | T85: 17.002 | U85: 0.026 | V85: 63.565 | W85: 51.075 | X85: 47.003 | Y85: 4.072
A86: GRGU | B86: 44.2733 | C86: -71.2226 | D86: 44.3082 | E86: -71.2177 | F86: noLDALLS | G86: LADCO | H86: ALL | I86: S | J86: 5.87 | K86: 5.4 | L86: 5.37 | M86: 0.03 | N86: 15.43 | O86: 12.94 | P86: 11.89 | Q86: 1.05 | R86: 18.1 | S86: 17.26 | T86: 17.204 | U86: 0.056 | V86: 50.127 | W86: 38.62 | X86: 34.582 | Y86: 4.038
A87: PRRA | B87: 44.2733 | C87: -71.2226 | D87: 44.3082 | E87: -71.2177 | F87: noLDALLS | G87: LADCO | H87: ALL | I87: S | J87: 5.87 | K87: 5.4 | L87: 5.37 | M87: 0.03 | N87: 15.43 | O87: 12.94 | P87: 11.89 | Q87: 1.05 | R87: 18.1 | S87: 17.26 | T87: 17.204 | U87: 0.056 | V87: 50.127 | W87: 38.62 | X87: 34.582 | Y87: 4.038
A88: GRSM | B88: 35.6061 | C88: -83.9639 | D88: 35.6334 | E88: -83.9416 | F88: noCNALLS | G88: CENRAP | H88: ALL | I88: S | J88: 10.63 | K88: 9.2 | L88: 8.84 | M88: 0.36 | N88: 21.39 | O88: 16.21 | P88: 15.42 | Q88: 0.79 | R88: 29.756 | S88: 25.63 | T88: 24.708 | U88: 0.922 | V88: 88.031 | W88: 51.925 | X88: 47.929 | Y88: 3.996
A89: MING | B89: 36.9176 | C89: -90.1431 | D89: 36.9717 | E89: -90.1432 | F89: noLDNEGS | G89: LADCO | H89: NEG | I89: S | J89: 12.47 | K89: 11.44 | L89: 11.29 | M89: 0.15 | N89: 22.7 | O89: 20.43 | P89: 19.92 | Q89: 0.51 | R89: 35.343 | S89: 31.853 | T89: 31.362 | U89: 0.491 | V89: 100.89 | W89: 79.777 | X89: 75.827 | Y89: 3.95
A90: CHAS | B90: 28.7695 | C90: -82.4932 | D90: 28.7484 | E90: -82.5549 | F90: noCNALLS | G90: CENRAP | H90: ALL | I90: S | J90: 13.76 | K90: 12.74 | L90: 12.49 | M90: 0.25 | N90: 19.94 | O90: 17.32 | P90: 16.62 | Q90: 0.7 | R90: 39.884 | S90: 35.998 | T90: 35.101 | U90: 0.897 | V90: 75.326 | W90: 57.541 | X90: 53.612 | Y90: 3.929
A91: CHAS | B91: 28.7695 | C91: -82.4932 | D91: 28.7484 | E91: -82.5549 | F91: noFLALLS | G91: Florida | H91: ALL | I91: S | J91: 13.76 | K91: 12.74 | L91: 12.24 | M91: 0.5 | N91: 19.94 | O91: 17.32 | P91: 16.62 | Q91: 0.7 | R91: 39.884 | S91: 35.998 | T91: 34.236 | U91: 1.762 | V91: 75.326 | W91: 57.541 | X91: 53.619 | Y91: 3.922
A92: ISLE | B92: 47.4367 | C92: -88.1796 | D92: 47.4596 | E92: -88.1491 | F92: noCNALLN | G92: CENRAP | H92: ALL | I92: N | J92: 5.4 | K92: 5.26 | L92: 5.23 | M92: 0.03 | N92: 17.63 | O92: 15.58 | P92: 14.85 | Q92: 0.73 | R92: 17.272 | S92: 17.028 | T92: 16.973 | U92: 0.055 | V92: 63.565 | W92: 51.075 | X92: 47.177 | Y92: 3.898
A93: LIGO | B93: 35.9975 | C93: -81.8601 | D93: 35.9723 | E93: -81.9331 | F93: noCNALLS | G93: CENRAP | H93: ALL | I93: S | J93: 9.7 | K93: 8.45 | L93: 8.26 | M93: 0.19 | N93: 20.39 | O93: 15.51 | P93: 14.7 | Q93: 0.81 | R93: 26.93 | S93: 23.639 | T93: 23.176 | U93: 0.463 | V93: 79.816 | W93: 48.439 | X93: 44.614 | Y93: 3.825
A94: SWAN | B94: 35.3996 | C94: -76.1558 | D94: 35.451 | E94: -76.2075 | F94: noLDEGUS | G94: LADCO | H94: EGU | I94: S | J94: 11.76 | K94: 10.89 | L94: 10.79 | M94: 0.1 | N94: 19.76 | O94: 16.03 | P94: 15.28 | Q94: 0.75 | R94: 32.749 | S94: 29.965 | T94: 29.671 | U94: 0.294 | V94: 75.643 | W94: 51.328 | X94: 47.534 | Y94: 3.794
A95: DOSO | B95: 39.0739 | C95: -79.4869 | D95: 39.1053 | E95: -79.4261 | F95: noMVALLS | G95: MANE-VU | H95: ALL | I95: S | J95: 9.03 | K95: 7.84 | L95: 7.54 | M95: 0.3 | N95: 21.59 | O95: 16.7 | P95: 16.03 | Q95: 0.67 | R95: 25.475 | S95: 22.47 | T95: 21.777 | U95: 0.693 | V95: 92.099 | W95: 55.369 | X95: 51.653 | Y95: 3.716
A96: CACR | B96: 34.4879 | C96: -94.1775 | D96: 34.4544 | E96: -94.1429 | F96: noLDALLS | G96: LADCO | H96: ALL | I96: S | J96: 9.74 | K96: 9.13 | L96: 9.06 | M96: 0.07 | N96: 20.87 | O96: 19.41 | P96: 18.89 | Q96: 0.52 | R96: 27.343 | S96: 25.65 | T96: 25.462 | U96: 0.188 | V96: 83.305 | W96: 71.871 | X96: 68.182 | Y96: 3.689
A97: SIPS | B97: 34.3181 | C97: -87.3563 | D97: 34.3433 | E97: -87.3388 | F97: noCNEGUS | G97: CENRAP | H97: EGU | I97: S | J97: 12.84 | K97: 11.45 | L97: 10.99 | M97: 0.46 | N97: 21.67 | O97: 17.63 | P97: 17.01 | Q97: 0.62 | R97: 36.68 | S97: 31.848 | T97: 30.364 | U97: 1.484 | V97: 90.545 | W97: 60.036 | X97: 56.348 | Y97: 3.688
A98: SACR | B98: 33.4043 | C98: -104.4479 | D98: 33.4598 | E98: -104.4042 | F98: noCNALLS | G98: CENRAP | H98: ALL | I98: S | J98: 7.37 | K98: 7.75 | L98: 7.69 | M98: 0.06 | N98: 15.31 | O98: 15.34 | P98: 14.54 | Q98: 0.8 | R98: 21.24 | S98: 22.11 | T98: 21.982 | U98: 0.128 | V98: 47.318 | W98: 47.411 | X98: 43.744 | Y98: 3.667
A99: SENE | B99: 46.2994 | C99: -85.9893 | D99: 46.2889 | E99: -85.9503 | F99: noLDNEGS | G99: LADCO | H99: NEG | I99: S | J99: 5.51 | K99: 5.34 | L99: 5.3 | M99: 0.04 | N99: 19.84 | O99: 17.38 | P99: 16.77 | Q99: 0.61 | R99: 17.476 | S99: 17.168 | T99: 17.098 | U99: 0.07 | V99: 79.085 | W99: 61.067 | X99: 57.415 | Y99: 3.652
A100: BOWA | B100: 47.9351 | C100: -91.4775 | D100: 47.9466 | E100: -91.4955 | F100: noCNEGUS | G100: CENRAP | H100: EGU | I100: S | J100: 4.86 | K100: 4.76 | L100: 4.75 | M100: 0.01 | N100: 16.43 | O100: 14.48 | P100: 13.66 | Q100: 0.82 | R100: 16.381 | S100: 16.225 | T100: 16.198 | U100: 0.027 | V100: 56.176 | W100: 45.593 | X100: 41.978 | Y100: 3.615
A101: LYBR2 | B101: 42.9452 | C101: -72.9798 | D101: 42.953 | E101: -72.9103 | F101: noMVEGUS | G101: MANE-VU | H101: EGU | I101: S | J101: 4.89 | K101: 4.26 | L101: 4.22 | M101: 0.04 | N101: 18.06 | O101: 14.97 | P101: 14.23 | Q101: 0.74 | R101: 16.502 | S101: 15.447 | T101: 15.379 | U101: 0.068 | V101: 65.868 | W101: 47.241 | X101: 43.631 | Y101: 3.61
A102: THRO | B102: 46.9291 | C102: -103.3791 | D102: 46.8948 | E102: -103.3777 | F102: noOTALLN | G102: All Other Regions | H102: ALL | I102: N | J102: 6.38 | K102: 6.15 | L102: 6.03 | M102: 0.12 | N102: 15.71 | O102: 14.91 | P102: 14.17 | Q102: 0.74 | R102: 19.07 | S102: 18.626 | T102: 18.407 | U102: 0.219 | V102: 50.733 | W102: 46.698 | X102: 43.157 | Y102: 3.541
A103: BRIG | B103: 39.4332 | C103: -74.4993 | D103: 39.465 | E103: -74.4492 | F103: noLDALLN | G103: LADCO | H103: ALL | I103: N | J103: 12.25 | K103: 11.17 | L103: 11.15 | M103: 0.02 | N103: 22.26 | O103: 19.06 | P103: 18.55 | Q103: 0.51 | R103: 34.385 | S103: 30.848 | T103: 30.764 | U103: 0.084 | V103: 96.79 | W103: 69.683 | X103: 66.166 | Y103: 3.517
A104: OKEF | B104: 30.7788 | C104: -82.1156 | D104: 30.7405 | E104: -82.1283 | F104: noLDEGUS | G104: LADCO | H104: EGU | I104: S | J104: 13.34 | K104: 11.84 | L104: 11.65 | M104: 0.19 | N104: 20.7 | O104: 17.55 | P104: 16.95 | Q104: 0.6 | R104: 38.427 | S104: 33.003 | T104: 32.375 | U104: 0.628 | V104: 81.978 | W104: 59.364 | X104: 55.854 | Y104: 3.51
A105: ROMA | B105: 32.9125 | C105: -79.6039 | D105: 32.941 | E105: -79.6572 | F105: noLDEGUS | G105: LADCO | H105: EGU | I105: S | J105: 13.59 | K105: 12.29 | L105: 12.08 | M105: 0.21 | N105: 21.48 | O105: 17.31 | P105: 16.7 | Q105: 0.61 | R105: 39.323 | S105: 34.493 | T105: 33.768 | U105: 0.725 | V105: 88.276 | W105: 57.602 | X105: 54.134 | Y105: 3.468
A106: LYBR2 | B106: 42.9452 | C106: -72.9798 | D106: 42.953 | E106: -72.9103 | F106: noLDEGUS | G106: LADCO | H106: EGU | I106: S | J106: 4.89 | K106: 4.26 | L106: 4.23 | M106: 0.03 | N106: 18.06 | O106: 14.97 | P106: 14.26 | Q106: 0.71 | R106: 16.502 | S106: 15.447 | T106: 15.408 | U106: 0.039 | V106: 65.868 | W106: 47.241 | X106: 43.805 | Y106: 3.436
A107: BRET2 | B107: 30.0692 | C107: -89.743 | D107: 30.1086 | E107: -89.7617 | F107: noCNALLN | G107: CENRAP | H107: ALL | I107: N | J107: 13.81 | K107: 12.59 | L107: 12.34 | M107: 0.25 | N107: 22.49 | O107: 18.93 | P107: 18.45 | Q107: 0.48 | R107: 40.628 | S107: 35.846 | T107: 34.956 | U107: 0.89 | V107: 98.659 | W107: 68.69 | X107: 65.258 | Y107: 3.432
A108: WOLF | B108: 31.3065 | C108: -81.2471 | D108: 31.33 | E108: -81.3 | F108: noLDEGUS | G108: LADCO | H108: EGU | I108: S | J108: 13.34 | K108: 11.77 | L108: 11.58 | M108: 0.19 | N108: 20.7 | O108: 17.33 | P108: 16.73 | Q108: 0.6 | R108: 38.427 | S108: 32.761 | T108: 32.139 | U108: 0.622 | V108: 81.978 | W108: 58.067 | X108: 54.645 | Y108: 3.422
A109: SAMA | B109: 30.0689 | C109: -84.1315 | D109: 30.0926 | E109: -84.1614 | F109: noCNEGUS | G109: CENRAP | H109: EGU | I109: S | J109: 13.33 | K109: 11.84 | L109: 11.55 | M109: 0.29 | N109: 20.11 | O109: 17.22 | P109: 16.62 | Q109: 0.6 | R109: 38.46 | S109: 33.036 | T109: 32.076 | U109: 0.96 | V109: 77.538 | W109: 57.506 | X109: 54.132 | Y109: 3.374
A110: UPBU | B110: 35.8669 | C110: -93.1879 | D110: 35.8258 | E110: -93.203 | F110: noLDALLS | G110: LADCO | H110: ALL | I110: S | J110: 9.95 | K110: 9.22 | L110: 9.03 | M110: 0.19 | N110: 20.52 | O110: 18.91 | P110: 18.42 | Q110: 0.49 | R110: 27.872 | S110: 25.835 | T110: 25.327 | U110: 0.508 | V110: 79.846 | W110: 67.826 | X110: 64.529 | Y110: 3.297
A111: MACA | B111: 37.1516 | C111: -86.1551 | D111: 37.1318 | E111: -86.1479 | F111: noOTALLS | G111: All Other Regions | H111: ALL | I111: S | J111: 13.69 | K111: 11.96 | L111: 11.77 | M111: 0.19 | N111: 24.04 | O111: 20.23 | P111: 19.81 | Q111: 0.42 | R111: 39.997 | S111: 33.541 | T111: 32.874 | U111: 0.667 | V111: 115.33 | W111: 78.16 | X111: 74.866 | Y111: 3.294
A112: ROMA | B112: 32.9125 | C112: -79.6039 | D112: 32.941 | E112: -79.6572 | F112: noSCALLS | G112: South Carolina | H112: ALL | I112: S | J112: 13.59 | K112: 12.29 | L112: 12.07 | M112: 0.22 | N112: 21.48 | O112: 17.31 | P112: 16.73 | Q112: 0.58 | R112: 39.323 | S112: 34.493 | T112: 33.731 | U112: 0.762 | V112: 88.276 | W112: 57.602 | X112: 54.316 | Y112: 3.286
A113: JOYC | B113: 35.3917 | C113: -84.0019 | D113: 35.44 | E113: -83.99 | F113: noCNEGUS | G113: CENRAP | H113: EGU | I113: S | J113: 10.63 | K113: 9.19 | L113: 8.9 | M113: 0.29 | N113: 21.39 | O113: 16.09 | P113: 15.44 | Q113: 0.65 | R113: 29.756 | S113: 25.625 | T113: 24.853 | U113: 0.772 | V113: 88.031 | W113: 51.27 | X113: 48 | Y113: 3.27
A114: SHRO | B114: 35.3535 | C114: -82.8 | D114: 35.3937 | E114: -82.7744 | F114: noCNEGUS | G114: CENRAP | H114: EGU | I114: S | J114: 9.7 | K114: 8.25 | L114: 8.09 | M114: 0.16 | N114: 20.39 | O114: 15.36 | P114: 14.67 | Q114: 0.69 | R114: 26.93 | S114: 23.172 | T114: 22.784 | U114: 0.388 | V114: 79.816 | W114: 47.705 | X114: 44.464 | Y114: 3.241
A115: SWAN | B115: 35.3996 | C115: -76.1558 | D115: 35.451 | E115: -76.2075 | F115: noMVEGUS | G115: MANE-VU | H115: EGU | I115: S | J115: 11.76 | K115: 10.89 | L115: 10.78 | M115: 0.11 | N115: 19.76 | O115: 16.03 | P115: 15.41 | Q115: 0.62 | R115: 32.749 | S115: 29.965 | T115: 29.633 | U115: 0.332 | V115: 75.643 | W115: 51.328 | X115: 48.153 | Y115: 3.175
A116: BRET2 | B116: 30.0692 | C116: -89.743 | D116: 30.1086 | E116: -89.7617 | F116: noCNEGUS | G116: CENRAP | H116: EGU | I116: S | J116: 13.81 | K116: 12.59 | L116: 11.97 | M116: 0.62 | N116: 22.49 | O116: 18.93 | P116: 18.45 | Q116: 0.48 | R116: 40.628 | S116: 35.846 | T116: 33.654 | U116: 2.192 | V116: 98.659 | W116: 68.69 | X116: 65.516 | Y116: 3.174
A117: BADL | B117: 43.7531 | C117: -101.8689 | D117: 43.7435 | E117: -101.9412 | F117: noCNEGUS | G117: CENRAP | H117: EGU | I117: S | J117: 5.78 | K117: 5.58 | L117: 5.54 | M117: 0.04 | N117: 14.33 | O117: 13.38 | P117: 12.58 | Q117: 0.8 | R117: 17.92 | S117: 17.563 | T117: 17.483 | U117: 0.08 | V117: 43.625 | W117: 39.578 | X117: 36.42 | Y117: 3.158
A118: JARI | B118: 37.6477 | C118: -79.559 | D118: 37.6266 | E118: -79.5125 | F118: noMVALLS | G118: MANE-VU | H118: ALL | I118: S | J118: 11.79 | K118: 10.12 | L118: 10.02 | M118: 0.1 | N118: 21.37 | O118: 16.88 | P118: 16.31 | Q118: 0.57 | R118: 33.299 | S118: 28.042 | T118: 27.767 | U118: 0.275 | V118: 88.503 | W118: 55.929 | X118: 52.781 | Y118: 3.148
A119: OTCR | B119: 38.988 | C119: -79.6506 | D119: 38.99 | E119: -79.65 | F119: noMVALLS | G119: MANE-VU | H119: ALL | I119: S | J119: 9.03 | K119: 7.82 | L119: 7.55 | M119: 0.27 | N119: 21.59 | O119: 16.64 | P119: 16.07 | Q119: 0.57 | R119: 25.475 | S119: 22.426 | T119: 21.81 | U119: 0.616 | V119: 92.099 | W119: 55.01 | X119: 51.863 | Y119: 3.147
A120: CAVE | B120: 31.8634 | C120: -104.8081 | D120: 31.833 | E120: -104.8094 | F120: noCNALLS | G120: CENRAP | H120: ALL | I120: S | J120: 5.25 | K120: 5.08 | L120: 4.92 | M120: 0.16 | N120: 12.81 | O120: 12.5 | P120: 11.6 | Q120: 0.9 | R120: 17.13 | S120: 16.837 | T120: 16.574 | U120: 0.263 | V120: 36.706 | W120: 35.567 | X120: 32.436 | Y120: 3.131
A121: GUMO | B121: 31.8634 | C121: -104.8081 | D121: 31.833 | E121: -104.8094 | F121: noCNALLS | G121: CENRAP | H121: ALL | I121: S | J121: 5.25 | K121: 5.08 | L121: 4.92 | M121: 0.16 | N121: 12.81 | O121: 12.5 | P121: 11.6 | Q121: 0.9 | R121: 17.13 | S121: 16.837 | T121: 16.574 | U121: 0.263 | V121: 36.706 | W121: 35.567 | X121: 32.436 | Y121: 3.131
A122: WIMO | B122: 34.7261 | C122: -98.7778 | D122: 34.7323 | E122: -98.713 | F122: noOTALLS | G122: All Other Regions | H122: ALL | I122: S | J122: 9.22 | K122: 8.73 | L122: 8.52 | M122: 0.21 | N122: 20.32 | O122: 18.68 | P122: 18.2 | Q122: 0.48 | R122: 25.591 | S122: 24.329 | T122: 23.81 | U122: 0.519 | V122: 78.992 | W122: 66.354 | X122: 63.235 | Y122: 3.119
A123: DOSO | B123: 39.0739 | C123: -79.4869 | D123: 39.1053 | E123: -79.4261 | F123: noLDNEGS | G123: LADCO | H123: NEG | I123: S | J123: 9.03 | K123: 7.84 | L123: 7.67 | M123: 0.17 | N123: 21.59 | O123: 16.7 | P123: 16.14 | Q123: 0.56 | R123: 25.475 | S123: 22.47 | T123: 22.076 | U123: 0.394 | V123: 92.099 | W123: 55.369 | X123: 52.262 | Y123: 3.107
A124: OKEF | B124: 30.7788 | C124: -82.1156 | D124: 30.7405 | E124: -82.1283 | F124: noCNALLS | G124: CENRAP | H124: ALL | I124: S | J124: 13.34 | K124: 11.84 | L124: 11.47 | M124: 0.37 | N124: 20.7 | O124: 17.55 | P124: 17.02 | Q124: 0.53 | R124: 38.427 | S124: 33.003 | T124: 31.798 | U124: 1.205 | V124: 81.978 | W124: 59.364 | X124: 56.268 | Y124: 3.096
A125: OTCR | B125: 38.988 | C125: -79.6506 | D125: 38.99 | E125: -79.65 | F125: noLDNEGS | G125: LADCO | H125: NEG | I125: S | J125: 9.03 | K125: 7.82 | L125: 7.64 | M125: 0.18 | N125: 21.59 | O125: 16.64 | P125: 16.08 | Q125: 0.56 | R125: 25.475 | S125: 22.426 | T125: 22.02 | U125: 0.406 | V125: 92.099 | W125: 55.01 | X125: 51.922 | Y125: 3.088
A126: ISLE | B126: 47.4367 | C126: -88.1796 | D126: 47.4596 | E126: -88.1491 | F126: noCNEGUS | G126: CENRAP | H126: EGU | I126: S | J126: 5.4 | K126: 5.26 | L126: 5.25 | M126: 0.01 | N126: 17.63 | O126: 15.58 | P126: 14.97 | Q126: 0.61 | R126: 17.272 | S126: 17.028 | T126: 17.001 | U126: 0.027 | V126: 63.565 | W126: 51.075 | X126: 47.994 | Y126: 3.081
A127: SENE | B127: 46.2994 | C127: -85.9893 | D127: 46.2889 | E127: -85.9503 | F127: noCNALLS | G127: CENRAP | H127: ALL | I127: S | J127: 5.51 | K127: 5.34 | L127: 5.33 | M127: 0.01 | N127: 19.84 | O127: 17.38 | P127: 16.87 | Q127: 0.51 | R127: 17.476 | S127: 17.168 | T127: 17.144 | U127: 0.024 | V127: 79.085 | W127: 61.067 | X127: 58.013 | Y127: 3.054
A128: WOLF | B128: 31.3065 | C128: -81.2471 | D128: 31.33 | E128: -81.3 | F128: noCNALLS | G128: CENRAP | H128: ALL | I128: S | J128: 13.34 | K128: 11.77 | L128: 11.5 | M128: 0.27 | N128: 20.7 | O128: 17.33 | P128: 16.8 | Q128: 0.53 | R128: 38.427 | S128: 32.761 | T128: 31.884 | U128: 0.877 | V128: 81.978 | W128: 58.067 | X128: 55.02 | Y128: 3.047
A129: SIPS | B129: 34.3181 | C129: -87.3563 | D129: 34.3433 | E129: -87.3388 | F129: noLDNEGS | G129: LADCO | H129: NEG | I129: S | J129: 12.84 | K129: 11.45 | L129: 11.32 | M129: 0.13 | N129: 21.67 | O129: 17.63 | P129: 17.12 | Q129: 0.51 | R129: 36.68 | S129: 31.848 | T129: 31.422 | U129: 0.426 | V129: 90.545 | W129: 60.036 | X129: 56.991 | Y129: 3.045
A130: GRSM | B130: 35.6061 | C130: -83.9639 | D130: 35.6334 | E130: -83.9416 | F130: noCNEGUS | G130: CENRAP | H130: EGU | I130: S | J130: 10.63 | K130: 9.2 | L130: 8.92 | M130: 0.28 | N130: 21.39 | O130: 16.21 | P130: 15.62 | Q130: 0.59 | R130: 29.756 | S130: 25.63 | T130: 24.9 | U130: 0.73 | V130: 88.031 | W130: 51.925 | X130: 48.889 | Y130: 3.036
A131: SACR | B131: 33.4043 | C131: -104.4479 | D131: 33.4598 | E131: -104.4042 | F131: noOTALLN | G131: All Other Regions | H131: ALL | I131: N | J131: 7.37 | K131: 7.75 | L131: 7.55 | M131: 0.2 | N131: 15.31 | O131: 15.34 | P131: 14.69 | Q131: 0.65 | R131: 21.24 | S131: 22.11 | T131: 21.656 | U131: 0.454 | V131: 47.318 | W131: 47.411 | X131: 44.389 | Y131: 3.022
A132: SENE | B132: 46.2994 | C132: -85.9893 | D132: 46.2889 | E132: -85.9503 | F132: noCNALLN | G132: CENRAP | H132: ALL | I132: N | J132: 5.51 | K132: 5.34 | L132: 5.33 | M132: 0.01 | N132: 19.84 | O132: 17.38 | P132: 16.91 | Q132: 0.47 | R132: 17.476 | S132: 17.168 | T132: 17.15 | U132: 0.018 | V132: 79.085 | W132: 61.067 | X132: 58.064 | Y132: 3.003
A133: SAMA | B133: 30.0689 | C133: -84.1315 | D133: 30.0926 | E133: -84.1614 | F133: noLDALLS | G133: LADCO | H133: ALL | I133: S | J133: 13.33 | K133: 11.84 | L133: 11.62 | M133: 0.22 | N133: 20.11 | O133: 17.22 | P133: 16.69 | Q133: 0.53 | R133: 38.46 | S133: 33.036 | T133: 32.284 | U133: 0.752 | V133: 77.538 | W133: 57.506 | X133: 54.507 | Y133: 2.999
A134: OTCR | B134: 38.988 | C134: -79.6506 | D134: 38.99 | E134: -79.65 | F134: noCNALLS | G134: CENRAP | H134: ALL | I134: S | J134: 9.03 | K134: 7.82 | L134: 7.67 | M134: 0.15 | N134: 21.59 | O134: 16.64 | P134: 16.1 | Q134: 0.54 | R134: 25.475 | S134: 22.426 | T134: 22.091 | U134: 0.335 | V134: 92.099 | W134: 55.01 | X134: 52.013 | Y134: 2.997
A135: DOSO | B135: 39.0739 | C135: -79.4869 | D135: 39.1053 | E135: -79.4261 | F135: noCNALLS | G135: CENRAP | H135: ALL | I135: S | J135: 9.03 | K135: 7.84 | L135: 7.7 | M135: 0.14 | N135: 21.59 | O135: 16.7 | P135: 16.17 | Q135: 0.53 | R135: 25.475 | S135: 22.47 | T135: 22.149 | U135: 0.321 | V135: 92.099 | W135: 55.369 | X135: 52.429 | Y135: 2.94
A136: LIGO | B136: 35.9975 | C136: -81.8601 | D136: 35.9723 | E136: -81.9331 | F136: noCNEGUS | G136: CENRAP | H136: EGU | I136: S | J136: 9.7 | K136: 8.45 | L136: 8.3 | M136: 0.15 | N136: 20.39 | O136: 15.51 | P136: 14.91 | Q136: 0.6 | R136: 26.93 | S136: 23.639 | T136: 23.288 | U136: 0.351 | V136: 79.816 | W136: 48.439 | X136: 45.57 | Y136: 2.869
A137: CACR | B137: 34.4879 | C137: -94.1775 | D137: 34.4544 | E137: -94.1429 | F137: noCNNEGS | G137: CENRAP | H137: NEG | I137: S | J137: 9.74 | K137: 9.13 | L137: 8.87 | M137: 0.26 | N137: 20.87 | O137: 19.41 | P137: 19.02 | Q137: 0.39 | R137: 27.343 | S137: 25.65 | T137: 24.964 | U137: 0.686 | V137: 83.305 | W137: 71.871 | X137: 69.033 | Y137: 2.838
A138: DOSO | B138: 39.0739 | C138: -79.4869 | D138: 39.1053 | E138: -79.4261 | F138: noMVEGUS | G138: MANE-VU | H138: EGU | I138: S | J138: 9.03 | K138: 7.84 | L138: 7.64 | M138: 0.2 | N138: 21.59 | O138: 16.7 | P138: 16.19 | Q138: 0.51 | R138: 25.475 | S138: 22.47 | T138: 22.003 | U138: 0.467 | V138: 92.099 | W138: 55.369 | X138: 52.553 | Y138: 2.816
A139: ROMA | B139: 32.9125 | C139: -79.6039 | D139: 32.941 | E139: -79.6572 | F139: noMVALLS | G139: MANE-VU | H139: ALL | I139: S | J139: 13.59 | K139: 12.29 | L139: 12.24 | M139: 0.05 | N139: 21.48 | O139: 17.31 | P139: 16.82 | Q139: 0.49 | R139: 39.323 | S139: 34.493 | T139: 34.294 | U139: 0.199 | V139: 88.276 | W139: 57.602 | X139: 54.794 | Y139: 2.808
A140: MACA | B140: 37.1516 | C140: -86.1551 | D140: 37.1318 | E140: -86.1479 | F140: noKYALLS | G140: Kentucky | H140: ALL | I140: S | J140: 13.69 | K140: 11.96 | L140: 11.79 | M140: 0.17 | N140: 24.04 | O140: 20.23 | P140: 19.87 | Q140: 0.36 | R140: 39.997 | S140: 33.541 | T140: 32.956 | U140: 0.585 | V140: 115.33 | W140: 78.16 | X140: 75.356 | Y140: 2.804
A141: SAMA | B141: 30.0689 | C141: -84.1315 | D141: 30.0926 | E141: -84.1614 | F141: noOTALLS | G141: All Other Regions | H141: ALL | I141: S | J141: 13.33 | K141: 11.84 | L141: 11.63 | M141: 0.21 | N141: 20.11 | O141: 17.22 | P141: 16.73 | Q141: 0.49 | R141: 38.46 | S141: 33.036 | T141: 32.332 | U141: 0.704 | V141: 77.538 | W141: 57.506 | X141: 54.716 | Y141: 2.79
A142: SIPS | B142: 34.3181 | C142: -87.3563 | D142: 34.3433 | E142: -87.3388 | F142: noLDALLN | G142: LADCO | H142: ALL | I142: N | J142: 12.84 | K142: 11.45 | L142: 11.39 | M142: 0.06 | N142: 21.67 | O142: 17.63 | P142: 17.12 | Q142: 0.51 | R142: 36.68 | S142: 31.848 | T142: 31.65 | U142: 0.198 | V142: 90.545 | W142: 60.036 | X142: 57.25 | Y142: 2.786
A143: ISLE | B143: 47.4367 | C143: -88.1796 | D143: 47.4596 | E143: -88.1491 | F143: noLDEGUS | G143: LADCO | H143: EGU | I143: S | J143: 5.4 | K143: 5.26 | L143: 5.26 | M143: 0 | N143: 17.63 | O143: 15.58 | P143: 15.04 | Q143: 0.54 | R143: 17.272 | S143: 17.028 | T143: 17.02 | U143: 0.008 | V143: 63.565 | W143: 51.075 | X143: 48.309 | Y143: 2.766
A144: CHAS | B144: 28.7695 | C144: -82.4932 | D144: 28.7484 | E144: -82.5549 | F144: noCNEGUS | G144: CENRAP | H144: EGU | I144: S | J144: 13.76 | K144: 12.74 | L144: 12.56 | M144: 0.18 | N144: 19.94 | O144: 17.32 | P144: 16.84 | Q144: 0.48 | R144: 39.884 | S144: 35.998 | T144: 35.337 | U144: 0.661 | V144: 75.326 | W144: 57.541 | X144: 54.806 | Y144: 2.735
A145: GRGU | B145: 44.2733 | C145: -71.2226 | D145: 44.3082 | E145: -71.2177 | F145: noOTALLS | G145: All Other Regions | H145: ALL | I145: S | J145: 5.87 | K145: 5.4 | L145: 5.2 | M145: 0.2 | N145: 15.43 | O145: 12.94 | P145: 12.24 | Q145: 0.7 | R145: 18.1 | S145: 17.26 | T145: 16.902 | U145: 0.358 | V145: 50.127 | W145: 38.62 | X145: 35.889 | Y145: 2.731
A146: PRRA | B146: 44.2733 | C146: -71.2226 | D146: 44.3082 | E146: -71.2177 | F146: noOTALLS | G146: All Other Regions | H146: ALL | I146: S | J146: 5.87 | K146: 5.4 | L146: 5.2 | M146: 0.2 | N146: 15.43 | O146: 12.94 | P146: 12.24 | Q146: 0.7 | R146: 18.1 | S146: 17.26 | T146: 16.902 | U146: 0.358 | V146: 50.127 | W146: 38.62 | X146: 35.889 | Y146: 2.731
A147: COHU | B147: 34.8086 | C147: -84.6365 | D147: 34.7852 | E147: -84.6265 | F147: noCNALLS | G147: CENRAP | H147: ALL | I147: S | J147: 10.94 | K147: 9.43 | L147: 9 | M147: 0.43 | N147: 21.19 | O147: 15.95 | P147: 15.4 | Q147: 0.55 | R147: 30.749 | S147: 26.277 | T147: 25.113 | U147: 1.164 | V147: 86.468 | W147: 50.746 | X147: 48.026 | Y147: 2.72
A148: GRGU | B148: 44.2733 | C148: -71.2226 | D148: 44.3082 | E148: -71.2177 | F148: noLDEGUS | G148: LADCO | H148: EGU | I148: S | J148: 5.87 | K148: 5.4 | L148: 5.39 | M148: 0.01 | N148: 15.43 | O148: 12.94 | P148: 12.25 | Q148: 0.69 | R148: 18.1 | S148: 17.26 | T148: 17.237 | U148: 0.023 | V148: 50.127 | W148: 38.62 | X148: 35.91 | Y148: 2.71
A149: PRRA | B149: 44.2733 | C149: -71.2226 | D149: 44.3082 | E149: -71.2177 | F149: noLDEGUS | G149: LADCO | H149: EGU | I149: S | J149: 5.87 | K149: 5.4 | L149: 5.39 | M149: 0.01 | N149: 15.43 | O149: 12.94 | P149: 12.25 | Q149: 0.69 | R149: 18.1 | S149: 17.26 | T149: 17.237 | U149: 0.023 | V149: 50.127 | W149: 38.62 | X149: 35.91 | Y149: 2.71
A150: SAMA | B150: 30.0689 | C150: -84.1315 | D150: 30.0926 | E150: -84.1614 | F150: noALALLS | G150: Alabama | H150: ALL | I150: S | J150: 13.33 | K150: 11.84 | L150: 11.44 | M150: 0.4 | N150: 20.11 | O150: 17.22 | P150: 16.75 | Q150: 0.47 | R150: 38.46 | S150: 33.036 | T150: 31.712 | U150: 1.324 | V150: 77.538 | W150: 57.506 | X150: 54.815 | Y150: 2.691
A151: SAMA | B151: 30.0689 | C151: -84.1315 | D151: 30.0926 | E151: -84.1614 | F151: noFLALLS | G151: Florida | H151: ALL | I151: S | J151: 13.33 | K151: 11.84 | L151: 11.68 | M151: 0.16 | N151: 20.11 | O151: 17.22 | P151: 16.75 | Q151: 0.47 | R151: 38.46 | S151: 33.036 | T151: 32.474 | U151: 0.562 | V151: 77.538 | W151: 57.506 | X151: 54.83 | Y151: 2.676
A152: OKEF | B152: 30.7788 | C152: -82.1156 | D152: 30.7405 | E152: -82.1283 | F152: noFLALLS | G152: Florida | H152: ALL | I152: S | J152: 13.34 | K152: 11.84 | L152: 11.55 | M152: 0.29 | N152: 20.7 | O152: 17.55 | P152: 17.1 | Q152: 0.45 | R152: 38.427 | S152: 33.003 | T152: 32.036 | U152: 0.967 | V152: 81.978 | W152: 59.364 | X152: 56.7 | Y152: 2.664
A153: BIBE | B153: 29.2779 | C153: -103.2003 | D153: 29.3027 | E153: -103.178 | F153: noCNALLS | G153: CENRAP | H153: ALL | I153: S | J153: 5.65 | K153: 5.63 | L153: 5.52 | M153: 0.11 | N153: 14.37 | O153: 14.22 | P153: 13.6 | Q153: 0.62 | R153: 17.808 | S153: 17.791 | T153: 17.592 | U153: 0.199 | V153: 43.381 | W153: 42.706 | X153: 40.097 | Y153: 2.609
A154: GRGU | B154: 44.2733 | C154: -71.2226 | D154: 44.3082 | E154: -71.2177 | F154: noMVALLS | G154: MANE-VU | H154: ALL | I154: S | J154: 5.87 | K154: 5.4 | L154: 5.27 | M154: 0.13 | N154: 15.43 | O154: 12.94 | P154: 12.28 | Q154: 0.66 | R154: 18.1 | S154: 17.26 | T154: 17.035 | U154: 0.225 | V154: 50.127 | W154: 38.62 | X154: 36.016 | Y154: 2.604
A155: PRRA | B155: 44.2733 | C155: -71.2226 | D155: 44.3082 | E155: -71.2177 | F155: noMVALLS | G155: MANE-VU | H155: ALL | I155: S | J155: 5.87 | K155: 5.4 | L155: 5.27 | M155: 0.13 | N155: 15.43 | O155: 12.94 | P155: 12.28 | Q155: 0.66 | R155: 18.1 | S155: 17.26 | T155: 17.035 | U155: 0.225 | V155: 50.127 | W155: 38.62 | X155: 36.016 | Y155: 2.604
A156: WOLF | B156: 31.3065 | C156: -81.2471 | D156: 31.33 | E156: -81.3 | F156: noOTALLS | G156: All Other Regions | H156: ALL | I156: S | J156: 13.34 | K156: 11.77 | L156: 11.52 | M156: 0.25 | N156: 20.7 | O156: 17.33 | P156: 16.88 | Q156: 0.45 | R156: 38.427 | S156: 32.761 | T156: 31.953 | U156: 0.808 | V156: 81.978 | W156: 58.067 | X156: 55.469 | Y156: 2.598
A157: MING | B157: 36.9176 | C157: -90.1431 | D157: 36.9717 | E157: -90.1432 | F157: noOTALLS | G157: All Other Regions | H157: ALL | I157: S | J157: 12.47 | K157: 11.44 | L157: 11.28 | M157: 0.16 | N157: 22.7 | O157: 20.43 | P157: 20.1 | Q157: 0.33 | R157: 35.343 | S157: 31.853 | T157: 31.337 | U157: 0.516 | V157: 100.89 | W157: 79.777 | X157: 77.189 | Y157: 2.588
A158: CACR | B158: 34.4879 | C158: -94.1775 | D158: 34.4544 | E158: -94.1429 | F158: noLDEGUS | G158: LADCO | H158: EGU | I158: S | J158: 9.74 | K158: 9.13 | L158: 9.09 | M158: 0.04 | N158: 20.87 | O158: 19.41 | P158: 19.05 | Q158: 0.36 | R158: 27.343 | S158: 25.65 | T158: 25.527 | U158: 0.123 | V158: 83.305 | W158: 71.871 | X158: 69.29 | Y158: 2.581
A159: BRIG | B159: 39.4332 | C159: -74.4993 | D159: 39.465 | E159: -74.4492 | F159: noOTALLS | G159: All Other Regions | H159: ALL | I159: S | J159: 12.25 | K159: 11.17 | L159: 10.83 | M159: 0.34 | N159: 22.26 | O159: 19.06 | P159: 18.68 | Q159: 0.38 | R159: 34.385 | S159: 30.848 | T159: 29.808 | U159: 1.04 | V159: 96.79 | W159: 69.683 | X159: 67.103 | Y159: 2.58
A160: LYBR2 | B160: 42.9452 | C160: -72.9798 | D160: 42.953 | E160: -72.9103 | F160: noOTALLS | G160: All Other Regions | H160: ALL | I160: S | J160: 4.89 | K160: 4.26 | L160: 4 | M160: 0.26 | N160: 18.06 | O160: 14.97 | P160: 14.45 | Q160: 0.52 | R160: 16.502 | S160: 15.447 | T160: 15.034 | U160: 0.413 | V160: 65.868 | W160: 47.241 | X160: 44.678 | Y160: 2.563
A161: JARI | B161: 37.6477 | C161: -79.559 | D161: 37.6266 | E161: -79.5125 | F161: noCNALLS | G161: CENRAP | H161: ALL | I161: S | J161: 11.79 | K161: 10.12 | L161: 9.91 | M161: 0.21 | N161: 21.37 | O161: 16.88 | P161: 16.43 | Q161: 0.45 | R161: 33.299 | S161: 28.042 | T161: 27.434 | U161: 0.608 | V161: 88.503 | W161: 55.929 | X161: 53.41 | Y161: 2.519
A162: DOSO | B162: 39.0739 | C162: -79.4869 | D162: 39.1053 | E162: -79.4261 | F162: noWVALLS | G162: West Virginia | H162: ALL | I162: S | J162: 9.03 | K162: 7.84 | L162: 7.69 | M162: 0.15 | N162: 21.59 | O162: 16.7 | P162: 16.25 | Q162: 0.45 | R162: 25.475 | S162: 22.47 | T162: 22.114 | U162: 0.356 | V162: 92.099 | W162: 55.369 | X162: 52.85 | Y162: 2.519
A163: BOWA | B163: 47.9351 | C163: -91.4775 | D163: 47.9466 | E163: -91.4955 | F163: noLDALLS | G163: LADCO | H163: ALL | I163: S | J163: 4.86 | K163: 4.76 | L163: 4.75 | M163: 0.01 | N163: 16.43 | O163: 14.48 | P163: 13.92 | Q163: 0.56 | R163: 16.381 | S163: 16.225 | T163: 16.207 | U163: 0.018 | V163: 56.176 | W163: 45.593 | X163: 43.085 | Y163: 2.508
A164: MACA | B164: 37.1516 | C164: -86.1551 | D164: 37.1318 | E164: -86.1479 | F164: noCNALLN | G164: CENRAP | H164: ALL | I164: N | J164: 13.69 | K164: 11.96 | L164: 11.86 | M164: 0.1 | N164: 24.04 | O164: 20.23 | P164: 19.9 | Q164: 0.33 | R164: 39.997 | S164: 33.541 | T164: 33.185 | U164: 0.356 | V164: 115.33 | W164: 78.16 | X164: 75.696 | Y164: 2.464
A165: OTCR | B165: 38.988 | C165: -79.6506 | D165: 38.99 | E165: -79.65 | F165: noMVEGUS | G165: MANE-VU | H165: EGU | I165: S | J165: 9.03 | K165: 7.82 | L165: 7.63 | M165: 0.19 | N165: 21.59 | O165: 16.64 | P165: 16.2 | Q165: 0.44 | R165: 25.475 | S165: 22.426 | T165: 21.998 | U165: 0.428 | V165: 92.099 | W165: 55.01 | X165: 52.556 | Y165: 2.454
A166: WHIT | B166: 33.4362 | C166: -105.4906 | D166: 33.4687 | E166: -105.5349 | F166: noOTALLS | G166: All Other Regions | H166: ALL | I166: S | J166: 3.34 | K166: 3.35 | L166: 3.21 | M166: 0.14 | N166: 10.58 | O166: 10.42 | P166: 9.55 | Q166: 0.87 | R166: 14.045 | S166: 14.064 | T166: 13.86 | U166: 0.204 | V166: 29.304 | W166: 28.859 | X166: 26.421 | Y166: 2.438
A167: SACR | B167: 33.4043 | C167: -104.4479 | D167: 33.4598 | E167: -104.4042 | F167: noCNEGUS | G167: CENRAP | H167: EGU | I167: S | J167: 7.37 | K167: 7.75 | L167: 7.71 | M167: 0.04 | N167: 15.31 | O167: 15.34 | P167: 14.82 | Q167: 0.52 | R167: 21.24 | S167: 22.11 | T167: 22.021 | U167: 0.089 | V167: 47.318 | W167: 47.411 | X167: 44.983 | Y167: 2.428
A168: JARI | B168: 37.6477 | C168: -79.559 | D168: 37.6266 | E168: -79.5125 | F168: noMVEGUS | G168: MANE-VU | H168: EGU | I168: S | J168: 11.79 | K168: 10.12 | L168: 10.06 | M168: 0.06 | N168: 21.37 | O168: 16.88 | P168: 16.45 | Q168: 0.43 | R168: 33.299 | S168: 28.042 | T168: 27.858 | U168: 0.184 | V168: 88.503 | W168: 55.929 | X168: 53.533 | Y168: 2.396
A169: OTCR | B169: 38.988 | C169: -79.6506 | D169: 38.99 | E169: -79.65 | F169: noWVALLS | G169: West Virginia | H169: ALL | I169: S | J169: 9.03 | K169: 7.82 | L169: 7.68 | M169: 0.14 | N169: 21.59 | O169: 16.64 | P169: 16.21 | Q169: 0.43 | R169: 25.475 | S169: 22.426 | T169: 22.112 | U169: 0.314 | V169: 92.099 | W169: 55.01 | X169: 52.627 | Y169: 2.383
A170: SHEN | B170: 38.5836 | C170: -78.4765 | D170: 38.5229 | E170: -78.4348 | F170: noLDNEGS | G170: LADCO | H170: NEG | I170: S | J170: 8.6 | K170: 7.51 | L170: 7.42 | M170: 0.09 | N170: 20.72 | O170: 15.91 | P170: 15.46 | Q170: 0.45 | R170: 24.402 | S170: 21.736 | T170: 21.533 | U170: 0.203 | V170: 84.028 | W170: 51.163 | X170: 48.815 | Y170: 2.348
A171: ROMA | B171: 32.9125 | C171: -79.6039 | D171: 32.941 | E171: -79.6572 | F171: noCNALLS | G171: CENRAP | H171: ALL | I171: S | J171: 13.59 | K171: 12.29 | L171: 12.15 | M171: 0.14 | N171: 21.48 | O171: 17.31 | P171: 16.9 | Q171: 0.41 | R171: 39.323 | S171: 34.493 | T171: 33.983 | U171: 0.51 | V171: 88.276 | W171: 57.602 | X171: 55.264 | Y171: 2.338
A172: HEGL | B172: 36.6155 | C172: -92.8783 | D172: 36.6138 | E172: -92.9221 | F172: noCNEGUN | G172: CENRAP | H172: EGU | I172: N | J172: 10.96 | K172: 10.12 | L172: 10.07 | M172: 0.05 | N172: 21.63 | O172: 19.78 | P172: 19.47 | Q172: 0.31 | R172: 30.39 | S172: 27.917 | T172: 27.753 | U172: 0.164 | V172: 90.901 | W172: 74.949 | X172: 72.626 | Y172: 2.323
A173: SENE | B173: 46.2994 | C173: -85.9893 | D173: 46.2889 | E173: -85.9503 | F173: noCNEGUS | G173: CENRAP | H173: EGU | I173: S | J173: 5.51 | K173: 5.34 | L173: 5.33 | M173: 0.01 | N173: 19.84 | O173: 17.38 | P173: 17 | Q173: 0.38 | R173: 17.476 | S173: 17.168 | T173: 17.154 | U173: 0.014 | V173: 79.085 | W173: 61.067 | X173: 58.77 | Y173: 2.297
A174: SENE | B174: 46.2994 | C174: -85.9893 | D174: 46.2889 | E174: -85.9503 | F174: noLDNEGN | G174: LADCO | H174: NEG | I174: N | J174: 5.51 | K174: 5.34 | L174: 5.32 | M174: 0.02 | N174: 19.84 | O174: 17.38 | P174: 17.03 | Q174: 0.35 | R174: 17.476 | S174: 17.168 | T174: 17.121 | U174: 0.047 | V174: 79.085 | W174: 61.067 | X174: 58.785 | Y174: 2.282
A175: JARI | B175: 37.6477 | C175: -79.559 | D175: 37.6266 | E175: -79.5125 | F175: noLDNEGS | G175: LADCO | H175: NEG | I175: S | J175: 11.79 | K175: 10.12 | L175: 9.87 | M175: 0.25 | N175: 21.37 | O175: 16.88 | P175: 16.48 | Q175: 0.4 | R175: 33.299 | S175: 28.042 | T175: 27.327 | U175: 0.715 | V175: 88.503 | W175: 55.929 | X175: 53.657 | Y175: 2.272
A176: OTCR | B176: 38.988 | C176: -79.6506 | D176: 38.99 | E176: -79.65 | F176: noCNEGUS | G176: CENRAP | H176: EGU | I176: S | J176: 9.03 | K176: 7.82 | L176: 7.72 | M176: 0.1 | N176: 21.59 | O176: 16.64 | P176: 16.23 | Q176: 0.41 | R176: 25.475 | S176: 22.426 | T176: 22.187 | U176: 0.239 | V176: 92.099 | W176: 55.01 | X176: 52.739 | Y176: 2.271
A177: CHAS | B177: 28.7695 | C177: -82.4932 | D177: 28.7484 | E177: -82.5549 | F177: noLDALLS | G177: LADCO | H177: ALL | I177: S | J177: 13.76 | K177: 12.74 | L177: 12.65 | M177: 0.09 | N177: 19.94 | O177: 17.32 | P177: 16.92 | Q177: 0.4 | R177: 39.884 | S177: 35.998 | T177: 35.68 | U177: 0.318 | V177: 75.326 | W177: 57.541 | X177: 55.285 | Y177: 2.256
A178: WICA | B178: 43.5707 | C178: -103.5013 | D178: 43.5576 | E178: -103.4838 | F178: noOTALLS | G178: All Other Regions | H178: ALL | I178: S | J178: 3.99 | K178: 3.83 | L178: 3.57 | M178: 0.26 | N178: 12.31 | O178: 11.48 | P178: 10.77 | Q178: 0.71 | R178: 14.968 | S178: 14.722 | T178: 14.348 | U178: 0.374 | V178: 35.541 | W178: 32.539 | X178: 30.286 | Y178: 2.253
A179: BRET2 | B179: 30.0692 | C179: -89.743 | D179: 30.1086 | E179: -89.7617 | F179: noALALLS | G179: Alabama | H179: ALL | I179: S | J179: 13.81 | K179: 12.59 | L179: 12.46 | M179: 0.13 | N179: 22.49 | O179: 18.93 | P179: 18.59 | Q179: 0.34 | R179: 40.628 | S179: 35.846 | T179: 35.398 | U179: 0.448 | V179: 98.659 | W179: 68.69 | X179: 66.448 | Y179: 2.242
A180: DOSO | B180: 39.0739 | C180: -79.4869 | D180: 39.1053 | E180: -79.4261 | F180: noCNEGUS | G180: CENRAP | H180: EGU | I180: S | J180: 9.03 | K180: 7.84 | L180: 7.74 | M180: 0.1 | N180: 21.59 | O180: 16.7 | P180: 16.3 | Q180: 0.4 | R180: 25.475 | S180: 22.47 | T180: 22.243 | U180: 0.227 | V180: 92.099 | W180: 55.369 | X180: 53.13 | Y180: 2.239
A181: CHAS | B181: 28.7695 | C181: -82.4932 | D181: 28.7484 | E181: -82.5549 | F181: noFLEGUS | G181: Florida | H181: EGU | I181: S | J181: 13.76 | K181: 12.74 | L181: 12.55 | M181: 0.19 | N181: 19.94 | O181: 17.32 | P181: 16.93 | Q181: 0.39 | R181: 39.884 | S181: 35.998 | T181: 35.312 | U181: 0.686 | V181: 75.326 | W181: 57.541 | X181: 55.33 | Y181: 2.211
A182: UPBU | B182: 35.8669 | C182: -93.1879 | D182: 35.8258 | E182: -93.203 | F182: noLDEGUS | G182: LADCO | H182: EGU | I182: S | J182: 9.95 | K182: 9.22 | L182: 9.11 | M182: 0.11 | N182: 20.52 | O182: 18.91 | P182: 18.58 | Q182: 0.33 | R182: 27.872 | S182: 25.835 | T182: 25.543 | U182: 0.292 | V182: 79.846 | W182: 67.826 | X182: 65.619 | Y182: 2.207
A183: ROMA | B183: 32.9125 | C183: -79.6039 | D183: 32.941 | E183: -79.6572 | F183: noMVEGUS | G183: MANE-VU | H183: EGU | I183: S | J183: 13.59 | K183: 12.29 | L183: 12.26 | M183: 0.03 | N183: 21.48 | O183: 17.31 | P183: 16.93 | Q183: 0.38 | R183: 39.323 | S183: 34.493 | T183: 34.371 | U183: 0.122 | V183: 88.276 | W183: 57.602 | X183: 55.397 | Y183: 2.205
A184: OKEF | B184: 30.7788 | C184: -82.1156 | D184: 30.7405 | E184: -82.1283 | F184: noCNEGUS | G184: CENRAP | H184: EGU | I184: S | J184: 13.34 | K184: 11.84 | L184: 11.57 | M184: 0.27 | N184: 20.7 | O184: 17.55 | P184: 17.18 | Q184: 0.37 | R184: 38.427 | S184: 33.003 | T184: 32.099 | U184: 0.904 | V184: 81.978 | W184: 59.364 | X184: 57.173 | Y184: 2.191
A185: WICA | B185: 43.5707 | C185: -103.5013 | D185: 43.5576 | E185: -103.4838 | F185: noCNALLS | G185: CENRAP | H185: ALL | I185: S | J185: 3.99 | K185: 3.83 | L185: 3.77 | M185: 0.06 | N185: 12.31 | O185: 11.48 | P185: 10.8 | Q185: 0.68 | R185: 14.968 | S185: 14.722 | T185: 14.642 | U185: 0.08 | V185: 35.541 | W185: 32.539 | X185: 30.36 | Y185: 2.179
A186: OKEF | B186: 30.7788 | C186: -82.1156 | D186: 30.7405 | E186: -82.1283 | F186: noOTALLS | G186: All Other Regions | H186: ALL | I186: S | J186: 13.34 | K186: 11.84 | L186: 11.64 | M186: 0.2 | N186: 20.7 | O186: 17.55 | P186: 17.18 | Q186: 0.37 | R186: 38.427 | S186: 33.003 | T186: 32.326 | U186: 0.677 | V186: 81.978 | W186: 59.364 | X186: 57.189 | Y186: 2.175
A187: WOLF | B187: 31.3065 | C187: -81.2471 | D187: 31.33 | E187: -81.3 | F187: noCNEGUS | G187: CENRAP | H187: EGU | I187: S | J187: 13.34 | K187: 11.77 | L187: 11.57 | M187: 0.2 | N187: 20.7 | O187: 17.33 | P187: 16.95 | Q187: 0.38 | R187: 38.427 | S187: 32.761 | T187: 32.116 | U187: 0.645 | V187: 81.978 | W187: 58.067 | X187: 55.897 | Y187: 2.17
A188: SACR | B188: 33.4043 | C188: -104.4479 | D188: 33.4598 | E188: -104.4042 | F188: noCNALLN | G188: CENRAP | H188: ALL | I188: N | J188: 7.37 | K188: 7.75 | L188: 7.68 | M188: 0.07 | N188: 15.31 | O188: 15.34 | P188: 14.89 | Q188: 0.45 | R188: 21.24 | S188: 22.11 | T188: 21.953 | U188: 0.157 | V188: 47.318 | W188: 47.411 | X188: 45.247 | Y188: 2.164
A189: LIGO | B189: 35.9975 | C189: -81.8601 | D189: 35.9723 | E189: -81.9331 | F189: noMVALLS | G189: MANE-VU | H189: ALL | I189: S | J189: 9.7 | K189: 8.45 | L189: 8.32 | M189: 0.13 | N189: 20.39 | O189: 15.51 | P189: 15.06 | Q189: 0.45 | R189: 26.93 | S189: 23.639 | T189: 23.34 | U189: 0.299 | V189: 79.816 | W189: 48.439 | X189: 46.277 | Y189: 2.162
A190: WOLF | B190: 31.3065 | C190: -81.2471 | D190: 31.33 | E190: -81.3 | F190: noGAALLS | G190: Georgia | H190: ALL | I190: S | J190: 13.34 | K190: 11.77 | L190: 11.52 | M190: 0.25 | N190: 20.7 | O190: 17.33 | P190: 16.96 | Q190: 0.37 | R190: 38.427 | S190: 32.761 | T190: 31.949 | U190: 0.812 | V190: 81.978 | W190: 58.067 | X190: 55.908 | Y190: 2.159
A191: ACAD | B191: 44.4219 | C191: -68.3115 | D191: 44.3771 | E191: -68.261 | F191: noMVALLS | G191: MANE-VU | H191: ALL | I191: S | J191: 7.02 | K191: 6.7 | L191: 6.67 | M191: 0.03 | N191: 16.84 | O191: 14.87 | P191: 14.43 | Q191: 0.44 | R191: 20.367 | S191: 19.714 | T191: 19.644 | U191: 0.07 | V191: 58.272 | W191: 47.149 | X191: 45.005 | Y191: 2.144
A192: WICA | B192: 43.5707 | C192: -103.5013 | D192: 43.5576 | E192: -103.4838 | F192: noOTALLN | G192: All Other Regions | H192: ALL | I192: N | J192: 3.99 | K192: 3.83 | L192: 3.72 | M192: 0.11 | N192: 12.31 | O192: 11.48 | P192: 10.84 | Q192: 0.64 | R192: 14.968 | S192: 14.722 | T192: 14.563 | U192: 0.159 | V192: 35.541 | W192: 32.539 | X192: 30.399 | Y192: 2.14
A193: COHU | B193: 34.8086 | C193: -84.6365 | D193: 34.7852 | E193: -84.6265 | F193: noLDNEGS | G193: LADCO | H193: NEG | I193: S | J193: 10.94 | K193: 9.43 | L193: 9.26 | M193: 0.17 | N193: 21.19 | O193: 15.95 | P193: 15.52 | Q193: 0.43 | R193: 30.749 | S193: 26.277 | T193: 25.812 | U193: 0.465 | V193: 86.468 | W193: 50.746 | X193: 48.607 | Y193: 2.139
A194: MELA | B194: 48.484 | C194: -104.5151 | D194: 48.4871 | E194: -104.4757 | F194: noOTEGUS | G194: All Other Regions | H194: EGU | I194: S | J194: 6.56 | K194: 6.32 | L194: 6.3 | M194: 0.02 | N194: 16.59 | O194: 15.94 | P194: 15.53 | Q194: 0.41 | R194: 19.455 | S194: 18.975 | T194: 18.945 | U194: 0.03 | V194: 56.056 | W194: 52.35 | X194: 50.222 | Y194: 2.128
A195: COHU | B195: 34.8086 | C195: -84.6365 | D195: 34.7852 | E195: -84.6265 | F195: noOTALLS | G195: All Other Regions | H195: ALL | I195: S | J195: 10.94 | K195: 9.43 | L195: 9.32 | M195: 0.11 | N195: 21.19 | O195: 15.95 | P195: 15.53 | Q195: 0.42 | R195: 30.749 | S195: 26.277 | T195: 25.968 | U195: 0.309 | V195: 86.468 | W195: 50.746 | X195: 48.638 | Y195: 2.108
A196: COHU | B196: 34.8086 | C196: -84.6365 | D196: 34.7852 | E196: -84.6265 | F196: noCNEGUS | G196: CENRAP | H196: EGU | I196: S | J196: 10.94 | K196: 9.43 | L196: 9.09 | M196: 0.34 | N196: 21.19 | O196: 15.95 | P196: 15.53 | Q196: 0.42 | R196: 30.749 | S196: 26.277 | T196: 25.367 | U196: 0.91 | V196: 86.468 | W196: 50.746 | X196: 48.649 | Y196: 2.097
A197: ISLE | B197: 47.4367 | C197: -88.1796 | D197: 47.4596 | E197: -88.1491 | F197: noLDNEGS | G197: LADCO | H197: NEG | I197: S | J197: 5.4 | K197: 5.26 | L197: 5.25 | M197: 0.01 | N197: 17.63 | O197: 15.58 | P197: 15.17 | Q197: 0.41 | R197: 17.272 | S197: 17.028 | T197: 17.009 | U197: 0.019 | V197: 63.565 | W197: 51.075 | X197: 48.981 | Y197: 2.094
A198: BADL | B198: 43.7531 | C198: -101.8689 | D198: 43.7435 | E198: -101.9412 | F198: noOTALLS | G198: All Other Regions | H198: ALL | I198: S | J198: 5.78 | K198: 5.58 | L198: 5.38 | M198: 0.2 | N198: 14.33 | O198: 13.38 | P198: 12.86 | Q198: 0.52 | R198: 17.92 | S198: 17.563 | T198: 17.202 | U198: 0.361 | V198: 43.625 | W198: 39.578 | X198: 37.487 | Y198: 2.091
A199: BRIG | B199: 39.4332 | C199: -74.4993 | D199: 39.465 | E199: -74.4492 | F199: noLDNEGS | G199: LADCO | H199: NEG | I199: S | J199: 12.25 | K199: 11.17 | L199: 11.1 | M199: 0.07 | N199: 22.26 | O199: 19.06 | P199: 18.76 | Q199: 0.3 | R199: 34.385 | S199: 30.848 | T199: 30.622 | U199: 0.226 | V199: 96.79 | W199: 69.683 | X199: 67.593 | Y199: 2.09
A200: SAMA | B200: 30.0689 | C200: -84.1315 | D200: 30.0926 | E200: -84.1614 | F200: noLDEGUS | G200: LADCO | H200: EGU | I200: S | J200: 13.33 | K200: 11.84 | L200: 11.68 | M200: 0.16 | N200: 20.11 | O200: 17.22 | P200: 16.85 | Q200: 0.37 | R200: 38.46 | S200: 33.036 | T200: 32.499 | U200: 0.537 | V200: 77.538 | W200: 57.506 | X200: 55.42 | Y200: 2.086
... 2050 more rows

Sheet rh_results_IND_v3
A1: Site ID | B1: grid_lat | C1: grid_lon | D1: mon_lat | E1: mon_lon | F1: scenario | G1: Region | H1: Sector | I1: Species | J1: dv_b_b | K1: dv_b_f | L1: dv_b_fx | M1: delta_dvb | N1: dv_w_b | O1: dv_w_f | P1: dv_w_fx | Q1: delta_dvw | R1: bext_b_b | S1: bext_b_f | T1: bext_b_fx | U1: delta_extb | V1: bext_w_b | W1: bext_w_f | X1: bext_w_fx | Y1: delta_extw
A2: ACAD | B2: 44.4219 | C2: -68.3115 | D2: 44.3771 | E2: -68.261 | F2: 201S | G2: 001: Escambia Operating Company LLC | H2: IND | I2: S | J2: 7.02 | K2: 6.7 | L2: 6.7 | M2: 0 | N2: 16.84 | O2: 14.87 | P2: 14.87 | Q2: 0 | R2: 20.367 | S2: 19.714 | T2: 19.714 | U2: 0 | V2: 58.272 | W2: 47.149 | X2: 47.144 | Y2: 0.005
A3: ACAD | B3: 44.4219 | C3: -68.3115 | D3: 44.3771 | E3: -68.261 | F3: 201N | G3: 001: Escambia Operating Company LLC | H3: IND | I3: N | J3: 7.02 | K3: 6.7 | L3: 6.7 | M3: 0 | N3: 16.84 | O3: 14.87 | P3: 14.87 | Q3: 0 | R3: 20.367 | S3: 19.714 | T3: 19.714 | U3: 0 | V3: 58.272 | W3: 47.149 | X3: 47.149 | Y3: 0
A4: BADL | B4: 43.7531 | C4: -101.8689 | D4: 43.7435 | E4: -101.9412 | F4: 201S | G4: 001: Escambia Operating Company LLC | H4: IND | I4: S | J4: 5.78 | K4: 5.58 | L4: 5.58 | M4: 0 | N4: 14.33 | O4: 13.38 | P4: 13.38 | Q4: 0 | R4: 17.92 | S4: 17.563 | T4: 17.563 | U4: 0 | V4: 43.625 | W4: 39.578 | X4: 39.577 | Y4: 0.001
A5: BADL | B5: 43.7531 | C5: -101.8689 | D5: 43.7435 | E5: -101.9412 | F5: 201N | G5: 001: Escambia Operating Company LLC | H5: IND | I5: N | J5: 5.78 | K5: 5.58 | L5: 5.58 | M5: 0 | N5: 14.33 | O5: 13.38 | P5: 13.38 | Q5: 0 | R5: 17.92 | S5: 17.563 | T5: 17.563 | U5: 0 | V5: 43.625 | W5: 39.578 | X5: 39.578 | Y5: 0
A6: BAND | B6: 35.7629 | C6: -106.2965 | D6: 35.7797 | E6: -106.2664 | F6: 201N | G6: 001: Escambia Operating Company LLC | H6: IND | I6: N | J6: 3.99 | K6: 3.99 | L6: 3.99 | M6: 0 | N6: 9.17 | O6: 9.03 | P6: 9.03 | Q6: 0 | R6: 14.954 | S6: 14.96 | T6: 14.96 | U6: 0 | V6: 25.882 | W6: 25.571 | X6: 25.571 | Y6: 0
A7: BAND | B7: 35.7629 | C7: -106.2965 | D7: 35.7797 | E7: -106.2664 | F7: 201S | G7: 001: Escambia Operating Company LLC | H7: IND | I7: S | J7: 3.99 | K7: 3.99 | L7: 3.99 | M7: 0 | N7: 9.17 | O7: 9.03 | P7: 9.03 | Q7: 0 | R7: 14.954 | S7: 14.96 | T7: 14.96 | U7: 0 | V7: 25.882 | W7: 25.571 | X7: 25.571 | Y7: 0
A8: BIBE | B8: 29.2779 | C8: -103.2003 | D8: 29.3027 | E8: -103.178 | F8: 201S | G8: 001: Escambia Operating Company LLC | H8: IND | I8: S | J8: 5.65 | K8: 5.63 | L8: 5.63 | M8: 0 | N8: 14.37 | O8: 14.22 | P8: 14.22 | Q8: 0 | R8: 17.808 | S8: 17.791 | T8: 17.791 | U8: 0 | V8: 43.381 | W8: 42.706 | X8: 42.699 | Y8: 0.007
A9: BIBE | B9: 29.2779 | C9: -103.2003 | D9: 29.3027 | E9: -103.178 | F9: 201N | G9: 001: Escambia Operating Company LLC | H9: IND | I9: N | J9: 5.65 | K9: 5.63 | L9: 5.63 | M9: 0 | N9: 14.37 | O9: 14.22 | P9: 14.22 | Q9: 0 | R9: 17.808 | S9: 17.791 | T9: 17.791 | U9: 0 | V9: 43.381 | W9: 42.706 | X9: 42.706 | Y9: 0
A10: BOAP | B10: 33.8765 | C10: -106.718 | D10: 33.8695 | E10: -106.852 | F10: 201S | G10: 001: Escambia Operating Company LLC | H10: IND | I10: S | J10: 5.72 | K10: 5.72 | L10: 5.72 | M10: 0 | N10: 11.19 | O10: 11.06 | P10: 11.06 | Q10: 0 | R10: 17.839 | S10: 17.846 | T10: 17.846 | U10: 0 | V10: 31.03 | W10: 30.615 | X10: 30.613 | Y10: 0.002
A11: BOAP | B11: 33.8765 | C11: -106.718 | D11: 33.8695 | E11: -106.852 | F11: 201N | G11: 001: Escambia Operating Company LLC | H11: IND | I11: N | J11: 5.72 | K11: 5.72 | L11: 5.72 | M11: 0 | N11: 11.19 | O11: 11.06 | P11: 11.06 | Q11: 0 | R11: 17.839 | S11: 17.846 | T11: 17.846 | U11: 0 | V11: 31.03 | W11: 30.615 | X11: 30.615 | Y11: 0
A12: BOWA | B12: 47.9351 | C12: -91.4775 | D12: 47.9466 | E12: -91.4955 | F12: 201S | G12: 001: Escambia Operating Company LLC | H12: IND | I12: S | J12: 4.86 | K12: 4.76 | L12: 4.76 | M12: 0 | N12: 16.43 | O12: 14.48 | P12: 14.48 | Q12: 0 | R12: 16.381 | S12: 16.225 | T12: 16.225 | U12: 0 | V12: 56.176 | W12: 45.593 | X12: 45.59 | Y12: 0.003
A13: BOWA | B13: 47.9351 | C13: -91.4775 | D13: 47.9466 | E13: -91.4955 | F13: 201N | G13: 001: Escambia Operating Company LLC | H13: IND | I13: N | J13: 4.86 | K13: 4.76 | L13: 4.76 | M13: 0 | N13: 16.43 | O13: 14.48 | P13: 14.48 | Q13: 0 | R13: 16.381 | S13: 16.225 | T13: 16.225 | U13: 0 | V13: 56.176 | W13: 45.593 | X13: 45.593 | Y13: 0
A14: BRET2 | B14: 30.0692 | C14: -89.743 | D14: 30.1086 | E14: -89.7617 | F14: 201S | G14: 001: Escambia Operating Company LLC | H14: IND | I14: S | J14: 13.81 | K14: 12.59 | L14: 12.56 | M14: 0.03 | N14: 22.49 | O14: 18.93 | P14: 18.86 | Q14: 0.07 | R14: 40.628 | S14: 35.846 | T14: 35.763 | U14: 0.083 | V14: 98.659 | W14: 68.69 | X14: 68.262 | Y14: 0.428
A15: BRET2 | B15: 30.0692 | C15: -89.743 | D15: 30.1086 | E15: -89.7617 | F15: 201N | G15: 001: Escambia Operating Company LLC | H15: IND | I15: N | J15: 13.81 | K15: 12.59 | L15: 12.59 | M15: 0 | N15: 22.49 | O15: 18.93 | P15: 18.93 | Q15: 0 | R15: 40.628 | S15: 35.846 | T15: 35.846 | U15: 0 | V15: 98.659 | W15: 68.69 | X15: 68.69 | Y15: 0
A16: BRIG | B16: 39.4332 | C16: -74.4993 | D16: 39.465 | E16: -74.4492 | F16: 201S | G16: 001: Escambia Operating Company LLC | H16: IND | I16: S | J16: 12.25 | K16: 11.17 | L16: 11.17 | M16: 0 | N16: 22.26 | O16: 19.06 | P16: 19.06 | Q16: 0 | R16: 34.385 | S16: 30.848 | T16: 30.847 | U16: 0.001 | V16: 96.79 | W16: 69.683 | X16: 69.68 | Y16: 0.003
A17: BRIG | B17: 39.4332 | C17: -74.4993 | D17: 39.465 | E17: -74.4492 | F17: 201N | G17: 001: Escambia Operating Company LLC | H17: IND | I17: N | J17: 12.25 | K17: 11.17 | L17: 11.17 | M17: 0 | N17: 22.26 | O17: 19.06 | P17: 19.06 | Q17: 0 | R17: 34.385 | S17: 30.848 | T17: 30.848 | U17: 0 | V17: 96.79 | W17: 69.683 | X17: 69.683 | Y17: 0
A18: CACR | B18: 34.4879 | C18: -94.1775 | D18: 34.4544 | E18: -94.1429 | F18: 201S | G18: 001: Escambia Operating Company LLC | H18: IND | I18: S | J18: 9.74 | K18: 9.13 | L18: 9.13 | M18: 0 | N18: 20.87 | O18: 19.41 | P18: 19.41 | Q18: 0 | R18: 27.343 | S18: 25.65 | T18: 25.634 | U18: 0.016 | V18: 83.305 | W18: 71.871 | X18: 71.842 | Y18: 0.029
A19: CACR | B19: 34.4879 | C19: -94.1775 | D19: 34.4544 | E19: -94.1429 | F19: 201N | G19: 001: Escambia Operating Company LLC | H19: IND | I19: N | J19: 9.74 | K19: 9.13 | L19: 9.13 | M19: 0 | N19: 20.87 | O19: 19.41 | P19: 19.41 | Q19: 0 | R19: 27.343 | S19: 25.65 | T19: 25.65 | U19: 0 | V19: 83.305 | W19: 71.871 | X19: 71.871 | Y19: 0
A20: CAVE | B20: 31.8634 | C20: -104.8081 | D20: 31.833 | E20: -104.8094 | F20: 201S | G20: 001: Escambia Operating Company LLC | H20: IND | I20: S | J20: 5.25 | K20: 5.08 | L20: 5.08 | M20: 0 | N20: 12.81 | O20: 12.5 | P20: 12.5 | Q20: 0 | R20: 17.13 | S20: 16.837 | T20: 16.837 | U20: 0 | V20: 36.706 | W20: 35.567 | X20: 35.553 | Y20: 0.014
A21: CAVE | B21: 31.8634 | C21: -104.8081 | D21: 31.833 | E21: -104.8094 | F21: 201N | G21: 001: Escambia Operating Company LLC | H21: IND | I21: N | J21: 5.25 | K21: 5.08 | L21: 5.08 | M21: 0 | N21: 12.81 | O21: 12.5 | P21: 12.5 | Q21: 0 | R21: 17.13 | S21: 16.837 | T21: 16.837 | U21: 0 | V21: 36.706 | W21: 35.567 | X21: 35.567 | Y21: 0
A22: CHAS | B22: 28.7695 | C22: -82.4932 | D22: 28.7484 | E22: -82.5549 | F22: 201S | G22: 001: Escambia Operating Company LLC | H22: IND | I22: S | J22: 13.76 | K22: 12.74 | L22: 12.72 | M22: 0.02 | N22: 19.94 | O22: 17.32 | P22: 17.28 | Q22: 0.04 | R22: 39.884 | S22: 35.998 | T22: 35.926 | U22: 0.072 | V22: 75.326 | W22: 57.541 | X22: 57.331 | Y22: 0.21
A23: CHAS | B23: 28.7695 | C23: -82.4932 | D23: 28.7484 | E23: -82.5549 | F23: 201N | G23: 001: Escambia Operating Company LLC | H23: IND | I23: N | J23: 13.76 | K23: 12.74 | L23: 12.74 | M23: 0 | N23: 19.94 | O23: 17.32 | P23: 17.32 | Q23: 0 | R23: 39.884 | S23: 35.998 | T23: 35.998 | U23: 0 | V23: 75.326 | W23: 57.541 | X23: 57.54 | Y23: 0.001
A24: COHU | B24: 34.8086 | C24: -84.6365 | D24: 34.7852 | E24: -84.6265 | F24: 201S | G24: 001: Escambia Operating Company LLC | H24: IND | I24: S | J24: 10.94 | K24: 9.43 | L24: 9.42 | M24: 0.01 | N24: 21.19 | O24: 15.95 | P24: 15.93 | Q24: 0.02 | R24: 30.749 | S24: 26.277 | T24: 26.259 | U24: 0.018 | V24: 86.468 | W24: 50.746 | X24: 50.633 | Y24: 0.113
A25: COHU | B25: 34.8086 | C25: -84.6365 | D25: 34.7852 | E25: -84.6265 | F25: 201N | G25: 001: Escambia Operating Company LLC | H25: IND | I25: N | J25: 10.94 | K25: 9.43 | L25: 9.43 | M25: 0 | N25: 21.19 | O25: 15.95 | P25: 15.95 | Q25: 0 | R25: 30.749 | S25: 26.277 | T25: 26.277 | U25: 0 | V25: 86.468 | W25: 50.746 | X25: 50.746 | Y25: 0
A26: DOSO | B26: 39.0739 | C26: -79.4869 | D26: 39.1053 | E26: -79.4261 | F26: 201S | G26: 001: Escambia Operating Company LLC | H26: IND | I26: S | J26: 9.03 | K26: 7.84 | L26: 7.84 | M26: 0 | N26: 21.59 | O26: 16.7 | P26: 16.7 | Q26: 0 | R26: 25.475 | S26: 22.47 | T26: 22.468 | U26: 0.002 | V26: 92.099 | W26: 55.369 | X26: 55.356 | Y26: 0.013
A27: DOSO | B27: 39.0739 | C27: -79.4869 | D27: 39.1053 | E27: -79.4261 | F27: 201N | G27: 001: Escambia Operating Company LLC | H27: IND | I27: N | J27: 9.03 | K27: 7.84 | L27: 7.84 | M27: 0 | N27: 21.59 | O27: 16.7 | P27: 16.7 | Q27: 0 | R27: 25.475 | S27: 22.47 | T27: 22.47 | U27: 0 | V27: 92.099 | W27: 55.369 | X27: 55.369 | Y27: 0
A28: EANE | B28: 39.0954 | C28: -106.8783 | D28: 39.1536 | E28: -106.8209 | F28: 201N | G28: 001: Escambia Operating Company LLC | H28: IND | I28: N | J28: -0.09 | K28: -0.23 | L28: -0.23 | M28: 0 | N28: 5.71 | O28: 5.28 | P28: 5.28 | Q28: 0 | R28: 9.932 | S28: 9.79 | T28: 9.79 | U28: 0 | V28: 18.021 | W28: 17.241 | X28: 17.241 | Y28: 0
A29: EANE | B29: 39.0954 | C29: -106.8783 | D29: 39.1536 | E29: -106.8209 | F29: 201S | G29: 001: Escambia Operating Company LLC | H29: IND | I29: S | J29: -0.09 | K29: -0.23 | L29: -0.23 | M29: 0 | N29: 5.71 | O29: 5.28 | P29: 5.28 | Q29: 0 | R29: 9.932 | S29: 9.79 | T29: 9.79 | U29: 0 | V29: 18.021 | W29: 17.241 | X29: 17.241 | Y29: 0
A30: EVER | B30: 25.3737 | C30: -80.7239 | D30: 25.391 | E30: -80.6806 | F30: 201S | G30: 001: Escambia Operating Company LLC | H30: IND | I30: S | J30: 11.23 | K30: 10.69 | L30: 10.69 | M30: 0 | N30: 16.3 | O30: 15.57 | P30: 15.57 | Q30: 0 | R30: 30.92 | S30: 29.282 | T30: 29.264 | U30: 0.018 | V30: 51.835 | W30: 48.114 | X30: 48.105 | Y30: 0.009
A31: EVER | B31: 25.3737 | C31: -80.7239 | D31: 25.391 | E31: -80.6806 | F31: 201N | G31: 001: Escambia Operating Company LLC | H31: IND | I31: N | J31: 11.23 | K31: 10.69 | L31: 10.69 | M31: 0 | N31: 16.3 | O31: 15.57 | P31: 15.57 | Q31: 0 | R31: 30.92 | S31: 29.282 | T31: 29.282 | U31: 0 | V31: 51.835 | W31: 48.114 | X31: 48.114 | Y31: 0
A32: FLTO | B32: 39.0954 | C32: -106.8783 | D32: 39.1536 | E32: -106.8209 | F32: 201N | G32: 001: Escambia Operating Company LLC | H32: IND | I32: N | J32: -0.09 | K32: -0.23 | L32: -0.23 | M32: 0 | N32: 5.71 | O32: 5.28 | P32: 5.28 | Q32: 0 | R32: 9.932 | S32: 9.79 | T32: 9.79 | U32: 0 | V32: 18.021 | W32: 17.241 | X32: 17.241 | Y32: 0
A33: FLTO | B33: 39.0954 | C33: -106.8783 | D33: 39.1536 | E33: -106.8209 | F33: 201S | G33: 001: Escambia Operating Company LLC | H33: IND | I33: S | J33: -0.09 | K33: -0.23 | L33: -0.23 | M33: 0 | N33: 5.71 | O33: 5.28 | P33: 5.28 | Q33: 0 | R33: 9.932 | S33: 9.79 | T33: 9.79 | U33: 0 | V33: 18.021 | W33: 17.241 | X33: 17.241 | Y33: 0
A34: GRGU | B34: 44.2733 | C34: -71.2226 | D34: 44.3082 | E34: -71.2177 | F34: 201S | G34: 001: Escambia Operating Company LLC | H34: IND | I34: S | J34: 5.87 | K34: 5.4 | L34: 5.4 | M34: 0 | N34: 15.43 | O34: 12.94 | P34: 12.94 | Q34: 0 | R34: 18.1 | S34: 17.26 | T34: 17.259 | U34: 0.001 | V34: 50.127 | W34: 38.62 | X34: 38.617 | Y34: 0.003
A35: GRGU | B35: 44.2733 | C35: -71.2226 | D35: 44.3082 | E35: -71.2177 | F35: 201N | G35: 001: Escambia Operating Company LLC | H35: IND | I35: N | J35: 5.87 | K35: 5.4 | L35: 5.4 | M35: 0 | N35: 15.43 | O35: 12.94 | P35: 12.94 | Q35: 0 | R35: 18.1 | S35: 17.26 | T35: 17.26 | U35: 0 | V35: 50.127 | W35: 38.62 | X35: 38.62 | Y35: 0
A36: GRSA | B36: 37.6719 | C36: -105.5799 | D36: 37.7249 | E36: -105.5185 | F36: 201S | G36: 001: Escambia Operating Company LLC | H36: IND | I36: S | J36: 3.81 | K36: 3.69 | L36: 3.69 | M36: 0 | N36: 8.78 | O36: 8.35 | P36: 8.35 | Q36: 0 | R36: 14.696 | S36: 14.515 | T36: 14.515 | U36: 0 | V36: 24.401 | W36: 23.372 | X36: 23.371 | Y36: 0.001
A37: GRSA | B37: 37.6719 | C37: -105.5799 | D37: 37.7249 | E37: -105.5185 | F37: 201N | G37: 001: Escambia Operating Company LLC | H37: IND | I37: N | J37: 3.81 | K37: 3.69 | L37: 3.69 | M37: 0 | N37: 8.78 | O37: 8.35 | P37: 8.35 | Q37: 0 | R37: 14.696 | S37: 14.515 | T37: 14.515 | U37: 0 | V37: 24.401 | W37: 23.372 | X37: 23.372 | Y37: 0
A38: GRSM | B38: 35.6061 | C38: -83.9639 | D38: 35.6334 | E38: -83.9416 | F38: 201S | G38: 001: Escambia Operating Company LLC | H38: IND | I38: S | J38: 10.63 | K38: 9.2 | L38: 9.19 | M38: 0.01 | N38: 21.39 | O38: 16.21 | P38: 16.2 | Q38: 0.01 | R38: 29.756 | S38: 25.63 | T38: 25.626 | U38: 0.004 | V38: 88.031 | W38: 51.925 | X38: 51.856 | Y38: 0.069
A39: GRSM | B39: 35.6061 | C39: -83.9639 | D39: 35.6334 | E39: -83.9416 | F39: 201N | G39: 001: Escambia Operating Company LLC | H39: IND | I39: N | J39: 10.63 | K39: 9.2 | L39: 9.2 | M39: 0 | N39: 21.39 | O39: 16.21 | P39: 16.21 | Q39: 0 | R39: 29.756 | S39: 25.63 | T39: 25.63 | U39: 0 | V39: 88.031 | W39: 51.925 | X39: 51.925 | Y39: 0
A40: GUMO | B40: 31.8634 | C40: -104.8081 | D40: 31.833 | E40: -104.8094 | F40: 201S | G40: 001: Escambia Operating Company LLC | H40: IND | I40: S | J40: 5.25 | K40: 5.08 | L40: 5.08 | M40: 0 | N40: 12.81 | O40: 12.5 | P40: 12.5 | Q40: 0 | R40: 17.13 | S40: 16.837 | T40: 16.837 | U40: 0 | V40: 36.706 | W40: 35.567 | X40: 35.553 | Y40: 0.014
A41: GUMO | B41: 31.8634 | C41: -104.8081 | D41: 31.833 | E41: -104.8094 | F41: 201N | G41: 001: Escambia Operating Company LLC | H41: IND | I41: N | J41: 5.25 | K41: 5.08 | L41: 5.08 | M41: 0 | N41: 12.81 | O41: 12.5 | P41: 12.5 | Q41: 0 | R41: 17.13 | S41: 16.837 | T41: 16.837 | U41: 0 | V41: 36.706 | W41: 35.567 | X41: 35.567 | Y41: 0
A42: HEGL | B42: 36.6155 | C42: -92.8783 | D42: 36.6138 | E42: -92.9221 | F42: 201S | G42: 001: Escambia Operating Company LLC | H42: IND | I42: S | J42: 10.96 | K42: 10.12 | L42: 10.12 | M42: 0 | N42: 21.63 | O42: 19.78 | P42: 19.78 | Q42: 0 | R42: 30.39 | S42: 27.917 | T42: 27.899 | U42: 0.018 | V42: 90.901 | W42: 74.949 | X42: 74.942 | Y42: 0.007
A43: HEGL | B43: 36.6155 | C43: -92.8783 | D43: 36.6138 | E43: -92.9221 | F43: 201N | G43: 001: Escambia Operating Company LLC | H43: IND | I43: N | J43: 10.96 | K43: 10.12 | L43: 10.12 | M43: 0 | N43: 21.63 | O43: 19.78 | P43: 19.78 | Q43: 0 | R43: 30.39 | S43: 27.917 | T43: 27.917 | U43: 0 | V43: 90.901 | W43: 74.949 | X43: 74.949 | Y43: 0
A44: ISLE | B44: 47.4367 | C44: -88.1796 | D44: 47.4596 | E44: -88.1491 | F44: 201S | G44: 001: Escambia Operating Company LLC | H44: IND | I44: S | J44: 5.4 | K44: 5.26 | L44: 5.26 | M44: 0 | N44: 17.63 | O44: 15.58 | P44: 15.58 | Q44: 0 | R44: 17.272 | S44: 17.028 | T44: 17.028 | U44: 0 | V44: 63.565 | W44: 51.075 | X44: 51.074 | Y44: 0.001
A45: ISLE | B45: 47.4367 | C45: -88.1796 | D45: 47.4596 | E45: -88.1491 | F45: 201N | G45: 001: Escambia Operating Company LLC | H45: IND | I45: N | J45: 5.4 | K45: 5.26 | L45: 5.26 | M45: 0 | N45: 17.63 | O45: 15.58 | P45: 15.58 | Q45: 0 | R45: 17.272 | S45: 17.028 | T45: 17.028 | U45: 0 | V45: 63.565 | W45: 51.075 | X45: 51.076 | Y45: -0.001
A46: JARI | B46: 37.6477 | C46: -79.559 | D46: 37.6266 | E46: -79.5125 | F46: 201S | G46: 001: Escambia Operating Company LLC | H46: IND | I46: S | J46: 11.79 | K46: 10.12 | L46: 10.12 | M46: 0 | N46: 21.37 | O46: 16.88 | P46: 16.88 | Q46: 0 | R46: 33.299 | S46: 28.042 | T46: 28.036 | U46: 0.006 | V46: 88.503 | W46: 55.929 | X46: 55.915 | Y46: 0.014
A47: JARI | B47: 37.6477 | C47: -79.559 | D47: 37.6266 | E47: -79.5125 | F47: 201N | G47: 001: Escambia Operating Company LLC | H47: IND | I47: N | J47: 11.79 | K47: 10.12 | L47: 10.12 | M47: 0 | N47: 21.37 | O47: 16.88 | P47: 16.88 | Q47: 0 | R47: 33.299 | S47: 28.042 | T47: 28.042 | U47: 0 | V47: 88.503 | W47: 55.929 | X47: 55.929 | Y47: 0
A48: JOYC | B48: 35.3917 | C48: -84.0019 | D48: 35.44 | E48: -83.99 | F48: 201S | G48: 001: Escambia Operating Company LLC | H48: IND | I48: S | J48: 10.63 | K48: 9.19 | L48: 9.19 | M48: 0 | N48: 21.39 | O48: 16.09 | P48: 16.07 | Q48: 0.02 | R48: 29.756 | S48: 25.625 | T48: 25.62 | U48: 0.005 | V48: 88.031 | W48: 51.27 | X48: 51.187 | Y48: 0.083
A49: JOYC | B49: 35.3917 | C49: -84.0019 | D49: 35.44 | E49: -83.99 | F49: 201N | G49: 001: Escambia Operating Company LLC | H49: IND | I49: N | J49: 10.63 | K49: 9.19 | L49: 9.19 | M49: 0 | N49: 21.39 | O49: 16.09 | P49: 16.09 | Q49: 0 | R49: 29.756 | S49: 25.625 | T49: 25.625 | U49: 0 | V49: 88.031 | W49: 51.27 | X49: 51.27 | Y49: 0
A50: LIGO | B50: 35.9975 | C50: -81.8601 | D50: 35.9723 | E50: -81.9331 | F50: 201S | G50: 001: Escambia Operating Company LLC | H50: IND | I50: S | J50: 9.7 | K50: 8.45 | L50: 8.44 | M50: 0.01 | N50: 20.39 | O50: 15.51 | P50: 15.49 | Q50: 0.02 | R50: 26.93 | S50: 23.639 | T50: 23.635 | U50: 0.004 | V50: 79.816 | W50: 48.439 | X50: 48.345 | Y50: 0.094
A51: LIGO | B51: 35.9975 | C51: -81.8601 | D51: 35.9723 | E51: -81.9331 | F51: 201N | G51: 001: Escambia Operating Company LLC | H51: IND | I51: N | J51: 9.7 | K51: 8.45 | L51: 8.45 | M51: 0 | N51: 20.39 | O51: 15.51 | P51: 15.51 | Q51: 0 | R51: 26.93 | S51: 23.639 | T51: 23.639 | U51: 0 | V51: 79.816 | W51: 48.439 | X51: 48.439 | Y51: 0
A52: LYBR2 | B52: 42.9452 | C52: -72.9798 | D52: 42.953 | E52: -72.9103 | F52: 201S | G52: 001: Escambia Operating Company LLC | H52: IND | I52: S | J52: 4.89 | K52: 4.26 | L52: 4.26 | M52: 0 | N52: 18.06 | O52: 14.97 | P52: 14.97 | Q52: 0 | R52: 16.502 | S52: 15.447 | T52: 15.447 | U52: 0 | V52: 65.868 | W52: 47.241 | X52: 47.215 | Y52: 0.026
A53: LYBR2 | B53: 42.9452 | C53: -72.9798 | D53: 42.953 | E53: -72.9103 | F53: 201N | G53: 001: Escambia Operating Company LLC | H53: IND | I53: N | J53: 4.89 | K53: 4.26 | L53: 4.26 | M53: 0 | N53: 18.06 | O53: 14.97 | P53: 14.97 | Q53: 0 | R53: 16.502 | S53: 15.447 | T53: 15.447 | U53: 0 | V53: 65.868 | W53: 47.241 | X53: 47.241 | Y53: 0
A54: MABE | B54: 39.0954 | C54: -106.8783 | D54: 39.1536 | E54: -106.8209 | F54: 201N | G54: 001: Escambia Operating Company LLC | H54: IND | I54: N | J54: -0.09 | K54: -0.23 | L54: -0.23 | M54: 0 | N54: 5.71 | O54: 5.28 | P54: 5.28 | Q54: 0 | R54: 9.932 | S54: 9.79 | T54: 9.79 | U54: 0 | V54: 18.021 | W54: 17.241 | X54: 17.241 | Y54: 0
A55: MABE | B55: 39.0954 | C55: -106.8783 | D55: 39.1536 | E55: -106.8209 | F55: 201S | G55: 001: Escambia Operating Company LLC | H55: IND | I55: S | J55: -0.09 | K55: -0.23 | L55: -0.23 | M55: 0 | N55: 5.71 | O55: 5.28 | P55: 5.28 | Q55: 0 | R55: 9.932 | S55: 9.79 | T55: 9.79 | U55: 0 | V55: 18.021 | W55: 17.241 | X55: 17.241 | Y55: 0
A56: MACA | B56: 37.1516 | C56: -86.1551 | D56: 37.1318 | E56: -86.1479 | F56: 201S | G56: 001: Escambia Operating Company LLC | H56: IND | I56: S | J56: 13.69 | K56: 11.96 | L56: 11.96 | M56: 0 | N56: 24.04 | O56: 20.23 | P56: 20.22 | Q56: 0.01 | R56: 39.997 | S56: 33.541 | T56: 33.522 | U56: 0.019 | V56: 115.33 | W56: 78.16 | X56: 78.131 | Y56: 0.029
A57: MACA | B57: 37.1516 | C57: -86.1551 | D57: 37.1318 | E57: -86.1479 | F57: 201N | G57: 001: Escambia Operating Company LLC | H57: IND | I57: N | J57: 13.69 | K57: 11.96 | L57: 11.96 | M57: 0 | N57: 24.04 | O57: 20.23 | P57: 20.23 | Q57: 0 | R57: 39.997 | S57: 33.541 | T57: 33.541 | U57: 0 | V57: 115.33 | W57: 78.16 | X57: 78.16 | Y57: 0
A58: MELA | B58: 48.484 | C58: -104.5151 | D58: 48.4871 | E58: -104.4757 | F58: 201N | G58: 001: Escambia Operating Company LLC | H58: IND | I58: N | J58: 6.56 | K58: 6.32 | L58: 6.32 | M58: 0 | N58: 16.59 | O58: 15.94 | P58: 15.94 | Q58: 0 | R58: 19.455 | S58: 18.975 | T58: 18.975 | U58: 0 | V58: 56.056 | W58: 52.35 | X58: 52.35 | Y58: 0
A59: MELA | B59: 48.484 | C59: -104.5151 | D59: 48.4871 | E59: -104.4757 | F59: 201S | G59: 001: Escambia Operating Company LLC | H59: IND | I59: S | J59: 6.56 | K59: 6.32 | L59: 6.32 | M59: 0 | N59: 16.59 | O59: 15.94 | P59: 15.94 | Q59: 0 | R59: 19.455 | S59: 18.975 | T59: 18.975 | U59: 0 | V59: 56.056 | W59: 52.35 | X59: 52.35 | Y59: 0
A60: MING | B60: 36.9176 | C60: -90.1431 | D60: 36.9717 | E60: -90.1432 | F60: 201S | G60: 001: Escambia Operating Company LLC | H60: IND | I60: S | J60: 12.47 | K60: 11.44 | L60: 11.44 | M60: 0 | N60: 22.7 | O60: 20.43 | P60: 20.42 | Q60: 0.01 | R60: 35.343 | S60: 31.853 | T60: 31.832 | U60: 0.021 | V60: 100.89 | W60: 79.777 | X60: 79.748 | Y60: 0.029
A61: MING | B61: 36.9176 | C61: -90.1431 | D61: 36.9717 | E61: -90.1432 | F61: 201N | G61: 001: Escambia Operating Company LLC | H61: IND | I61: N | J61: 12.47 | K61: 11.44 | L61: 11.44 | M61: 0 | N61: 22.7 | O61: 20.43 | P61: 20.43 | Q61: 0 | R61: 35.343 | S61: 31.853 | T61: 31.853 | U61: 0 | V61: 100.89 | W61: 79.777 | X61: 79.777 | Y61: 0
A62: MOOS | B62: 45.1054 | C62: -67.3504 | D62: 45.1259 | E62: -67.2661 | F62: 201S | G62: 001: Escambia Operating Company LLC | H62: IND | I62: S | J62: 6.71 | K62: 6.61 | L62: 6.61 | M62: 0 | N62: 15.8 | O62: 14.36 | P62: 14.36 | Q62: 0 | R62: 19.71 | S62: 19.519 | T62: 19.519 | U62: 0 | V62: 52.133 | W62: 44.716 | X62: 44.714 | Y62: 0.002
A63: MOOS | B63: 45.1054 | C63: -67.3504 | D63: 45.1259 | E63: -67.2661 | F63: 201N | G63: 001: Escambia Operating Company LLC | H63: IND | I63: N | J63: 6.71 | K63: 6.61 | L63: 6.61 | M63: 0 | N63: 15.8 | O63: 14.36 | P63: 14.36 | Q63: 0 | R63: 19.71 | S63: 19.519 | T63: 19.519 | U63: 0 | V63: 52.133 | W63: 44.716 | X63: 44.716 | Y63: 0
A64: MOZI | B64: 40.5329 | C64: -106.6539 | D64: 40.5383 | E64: -106.6766 | F64: 201N | G64: 001: Escambia Operating Company LLC | H64: IND | I64: N | J64: 0.44 | K64: 0.25 | L64: 0.25 | M64: 0 | N64: 6.05 | O64: 5.53 | P64: 5.53 | Q64: 0 | R64: 10.489 | S64: 10.285 | T64: 10.285 | U64: 0 | V64: 18.627 | W64: 17.657 | X64: 17.657 | Y64: 0
A65: MOZI | B65: 40.5329 | C65: -106.6539 | D65: 40.5383 | E65: -106.6766 | F65: 201S | G65: 001: Escambia Operating Company LLC | H65: IND | I65: S | J65: 0.44 | K65: 0.25 | L65: 0.25 | M65: 0 | N65: 6.05 | O65: 5.53 | P65: 5.53 | Q65: 0 | R65: 10.489 | S65: 10.285 | T65: 10.285 | U65: 0 | V65: 18.627 | W65: 17.657 | X65: 17.657 | Y65: 0
A66: OKEF | B66: 30.7788 | C66: -82.1156 | D66: 30.7405 | E66: -82.1283 | F66: 201S | G66: 001: Escambia Operating Company LLC | H66: IND | I66: S | J66: 13.34 | K66: 11.84 | L66: 11.83 | M66: 0.01 | N66: 20.7 | O66: 17.55 | P66: 17.52 | Q66: 0.03 | R66: 38.427 | S66: 33.003 | T66: 32.949 | U66: 0.054 | V66: 81.978 | W66: 59.364 | X66: 59.213 | Y66: 0.151
A67: OKEF | B67: 30.7788 | C67: -82.1156 | D67: 30.7405 | E67: -82.1283 | F67: 201N | G67: 001: Escambia Operating Company LLC | H67: IND | I67: N | J67: 13.34 | K67: 11.84 | L67: 11.84 | M67: 0 | N67: 20.7 | O67: 17.55 | P67: 17.55 | Q67: 0 | R67: 38.427 | S67: 33.003 | T67: 33.003 | U67: 0 | V67: 81.978 | W67: 59.364 | X67: 59.363 | Y67: 0.001
A68: OTCR | B68: 38.988 | C68: -79.6506 | D68: 38.99 | E68: -79.65 | F68: 201S | G68: 001: Escambia Operating Company LLC | H68: IND | I68: S | J68: 9.03 | K68: 7.82 | L68: 7.82 | M68: 0 | N68: 21.59 | O68: 16.64 | P68: 16.64 | Q68: 0 | R68: 25.475 | S68: 22.426 | T68: 22.423 | U68: 0.003 | V68: 92.099 | W68: 55.01 | X68: 54.995 | Y68: 0.015
A69: OTCR | B69: 38.988 | C69: -79.6506 | D69: 38.99 | E69: -79.65 | F69: 201N | G69: 001: Escambia Operating Company LLC | H69: IND | I69: N | J69: 9.03 | K69: 7.82 | L69: 7.82 | M69: 0 | N69: 21.59 | O69: 16.64 | P69: 16.64 | Q69: 0 | R69: 25.475 | S69: 22.426 | T69: 22.426 | U69: 0 | V69: 92.099 | W69: 55.01 | X69: 55.01 | Y69: 0
A70: PECO | B70: 36.592 | C70: -105.4526 | D70: 36.5854 | E70: -105.452 | F70: 201S | G70: 001: Escambia Operating Company LLC | H70: IND | I70: S | J70: 0.57 | K70: 0.57 | L70: 0.57 | M70: 0 | N70: 6.96 | O70: 6.64 | P70: 6.64 | Q70: 0 | R70: 10.636 | S70: 10.638 | T70: 10.638 | U70: 0 | V70: 20.488 | W70: 19.867 | X70: 19.866 | Y70: 0.001
A71: PECO | B71: 36.592 | C71: -105.4526 | D71: 36.5854 | E71: -105.452 | F71: 201N | G71: 001: Escambia Operating Company LLC | H71: IND | I71: N | J71: 0.57 | K71: 0.57 | L71: 0.57 | M71: 0 | N71: 6.96 | O71: 6.64 | P71: 6.64 | Q71: 0 | R71: 10.636 | S71: 10.638 | T71: 10.638 | U71: 0 | V71: 20.488 | W71: 19.867 | X71: 19.867 | Y71: 0
A72: PRRA | B72: 44.2733 | C72: -71.2226 | D72: 44.3082 | E72: -71.2177 | F72: 201S | G72: 001: Escambia Operating Company LLC | H72: IND | I72: S | J72: 5.87 | K72: 5.4 | L72: 5.4 | M72: 0 | N72: 15.43 | O72: 12.94 | P72: 12.94 | Q72: 0 | R72: 18.1 | S72: 17.26 | T72: 17.259 | U72: 0.001 | V72: 50.127 | W72: 38.62 | X72: 38.617 | Y72: 0.003
A73: PRRA | B73: 44.2733 | C73: -71.2226 | D73: 44.3082 | E73: -71.2177 | F73: 201N | G73: 001: Escambia Operating Company LLC | H73: IND | I73: N | J73: 5.87 | K73: 5.4 | L73: 5.4 | M73: 0 | N73: 15.43 | O73: 12.94 | P73: 12.94 | Q73: 0 | R73: 18.1 | S73: 17.26 | T73: 17.26 | U73: 0 | V73: 50.127 | W73: 38.62 | X73: 38.62 | Y73: 0
A74: RAWA | B74: 40.5329 | C74: -106.6539 | D74: 40.5383 | E74: -106.6766 | F74: 201N | G74: 001: Escambia Operating Company LLC | H74: IND | I74: N | J74: 0.44 | K74: 0.25 | L74: 0.25 | M74: 0 | N74: 6.05 | O74: 5.53 | P74: 5.53 | Q74: 0 | R74: 10.489 | S74: 10.285 | T74: 10.285 | U74: 0 | V74: 18.627 | W74: 17.657 | X74: 17.657 | Y74: 0
A75: RAWA | B75: 40.5329 | C75: -106.6539 | D75: 40.5383 | E75: -106.6766 | F75: 201S | G75: 001: Escambia Operating Company LLC | H75: IND | I75: S | J75: 0.44 | K75: 0.25 | L75: 0.25 | M75: 0 | N75: 6.05 | O75: 5.53 | P75: 5.53 | Q75: 0 | R75: 10.489 | S75: 10.285 | T75: 10.285 | U75: 0 | V75: 18.627 | W75: 17.657 | X75: 17.657 | Y75: 0
A76: ROCA | B76: 45.1054 | C76: -67.3504 | D76: 45.1259 | E76: -67.2661 | F76: 201S | G76: 001: Escambia Operating Company LLC | H76: IND | I76: S | J76: 6.71 | K76: 6.61 | L76: 6.61 | M76: 0 | N76: 15.8 | O76: 14.36 | P76: 14.36 | Q76: 0 | R76: 19.71 | S76: 19.519 | T76: 19.519 | U76: 0 | V76: 52.133 | W76: 44.716 | X76: 44.714 | Y76: 0.002
A77: ROCA | B77: 45.1054 | C77: -67.3504 | D77: 45.1259 | E77: -67.2661 | F77: 201N | G77: 001: Escambia Operating Company LLC | H77: IND | I77: N | J77: 6.71 | K77: 6.61 | L77: 6.61 | M77: 0 | N77: 15.8 | O77: 14.36 | P77: 14.36 | Q77: 0 | R77: 19.71 | S77: 19.519 | T77: 19.519 | U77: 0 | V77: 52.133 | W77: 44.716 | X77: 44.716 | Y77: 0
A78: ROMA | B78: 32.9125 | C78: -79.6039 | D78: 32.941 | E78: -79.6572 | F78: 201S | G78: 001: Escambia Operating Company LLC | H78: IND | I78: S | J78: 13.59 | K78: 12.29 | L78: 12.29 | M78: 0 | N78: 21.48 | O78: 17.31 | P78: 17.3 | Q78: 0.01 | R78: 39.323 | S78: 34.493 | T78: 34.471 | U78: 0.022 | V78: 88.276 | W78: 57.602 | X78: 57.554 | Y78: 0.048
A79: ROMA | B79: 32.9125 | C79: -79.6039 | D79: 32.941 | E79: -79.6572 | F79: 201N | G79: 001: Escambia Operating Company LLC | H79: IND | I79: N | J79: 13.59 | K79: 12.29 | L79: 12.29 | M79: 0 | N79: 21.48 | O79: 17.31 | P79: 17.31 | Q79: 0 | R79: 39.323 | S79: 34.493 | T79: 34.493 | U79: 0 | V79: 88.276 | W79: 57.602 | X79: 57.602 | Y79: 0
A80: ROMO | B80: 40.2955 | C80: -105.4769 | D80: 40.2783 | E80: -105.5457 | F80: 201N | G80: 001: Escambia Operating Company LLC | H80: IND | I80: N | J80: 1.6 | K80: 1.47 | L80: 1.47 | M80: 0 | N80: 9.21 | O80: 8.43 | P80: 8.43 | Q80: 0 | R80: 11.768 | S80: 11.617 | T80: 11.617 | U80: 0 | V80: 25.863 | W80: 23.87 | X80: 23.87 | Y80: 0
A81: ROMO | B81: 40.2955 | C81: -105.4769 | D81: 40.2783 | E81: -105.5457 | F81: 201S | G81: 001: Escambia Operating Company LLC | H81: IND | I81: S | J81: 1.6 | K81: 1.47 | L81: 1.47 | M81: 0 | N81: 9.21 | O81: 8.43 | P81: 8.43 | Q81: 0 | R81: 11.768 | S81: 11.617 | T81: 11.617 | U81: 0 | V81: 25.863 | W81: 23.87 | X81: 23.87 | Y81: 0
A82: SACR | B82: 33.4043 | C82: -104.4479 | D82: 33.4598 | E82: -104.4042 | F82: 201S | G82: 001: Escambia Operating Company LLC | H82: IND | I82: S | J82: 7.37 | K82: 7.75 | L82: 7.75 | M82: 0 | N82: 15.31 | O82: 15.34 | P82: 15.34 | Q82: 0 | R82: 21.24 | S82: 22.11 | T82: 22.11 | U82: 0 | V82: 47.318 | W82: 47.411 | X82: 47.407 | Y82: 0.004
A83: SACR | B83: 33.4043 | C83: -104.4479 | D83: 33.4598 | E83: -104.4042 | F83: 201N | G83: 001: Escambia Operating Company LLC | H83: IND | I83: N | J83: 7.37 | K83: 7.75 | L83: 7.75 | M83: 0 | N83: 15.31 | O83: 15.34 | P83: 15.34 | Q83: 0 | R83: 21.24 | S83: 22.11 | T83: 22.11 | U83: 0 | V83: 47.318 | W83: 47.411 | X83: 47.411 | Y83: 0
A84: SAMA | B84: 30.0689 | C84: -84.1315 | D84: 30.0926 | E84: -84.1614 | F84: 201S | G84: 001: Escambia Operating Company LLC | H84: IND | I84: S | J84: 13.33 | K84: 11.84 | L84: 11.79 | M84: 0.05 | N84: 20.11 | O84: 17.22 | P84: 17.12 | Q84: 0.1 | R84: 38.46 | S84: 33.036 | T84: 32.863 | U84: 0.173 | V84: 77.538 | W84: 57.506 | X84: 56.942 | Y84: 0.564
A85: SAMA | B85: 30.0689 | C85: -84.1315 | D85: 30.0926 | E85: -84.1614 | F85: 201N | G85: 001: Escambia Operating Company LLC | H85: IND | I85: N | J85: 13.33 | K85: 11.84 | L85: 11.84 | M85: 0 | N85: 20.11 | O85: 17.22 | P85: 17.22 | Q85: 0 | R85: 38.46 | S85: 33.036 | T85: 33.036 | U85: 0 | V85: 77.538 | W85: 57.506 | X85: 57.506 | Y85: 0
A86: SAPE | B86: 36.0406 | C86: -106.8709 | D86: 36.0139 | E86: -106.8447 | F86: 201N | G86: 001: Escambia Operating Company LLC | H86: IND | I86: N | J86: 1.22 | K86: 1.16 | L86: 1.16 | M86: 0 | N86: 6.82 | O86: 6.56 | P86: 6.56 | Q86: 0 | R86: 11.342 | S86: 11.267 | T86: 11.267 | U86: 0 | V86: 20.177 | W86: 19.676 | X86: 19.676 | Y86: 0
A87: SAPE | B87: 36.0406 | C87: -106.8709 | D87: 36.0139 | E87: -106.8447 | F87: 201S | G87: 001: Escambia Operating Company LLC | H87: IND | I87: S | J87: 1.22 | K87: 1.16 | L87: 1.16 | M87: 0 | N87: 6.82 | O87: 6.56 | P87: 6.56 | Q87: 0 | R87: 11.342 | S87: 11.267 | T87: 11.267 | U87: 0 | V87: 20.177 | W87: 19.676 | X87: 19.676 | Y87: 0
A88: SENE | B88: 46.2994 | C88: -85.9893 | D88: 46.2889 | E88: -85.9503 | F88: 201S | G88: 001: Escambia Operating Company LLC | H88: IND | I88: S | J88: 5.51 | K88: 5.34 | L88: 5.34 | M88: 0 | N88: 19.84 | O88: 17.38 | P88: 17.38 | Q88: 0 | R88: 17.476 | S88: 17.168 | T88: 17.168 | U88: 0 | V88: 79.085 | W88: 61.067 | X88: 61.064 | Y88: 0.003
A89: SENE | B89: 46.2994 | C89: -85.9893 | D89: 46.2889 | E89: -85.9503 | F89: 201N | G89: 001: Escambia Operating Company LLC | H89: IND | I89: N | J89: 5.51 | K89: 5.34 | L89: 5.34 | M89: 0 | N89: 19.84 | O89: 17.38 | P89: 17.38 | Q89: 0 | R89: 17.476 | S89: 17.168 | T89: 17.168 | U89: 0 | V89: 79.085 | W89: 61.067 | X89: 61.067 | Y89: 0
A90: SHEN | B90: 38.5836 | C90: -78.4765 | D90: 38.5229 | E90: -78.4348 | F90: 201S | G90: 001: Escambia Operating Company LLC | H90: IND | I90: S | J90: 8.6 | K90: 7.51 | L90: 7.51 | M90: 0 | N90: 20.72 | O90: 15.91 | P90: 15.9 | Q90: 0.01 | R90: 24.402 | S90: 21.736 | T90: 21.734 | U90: 0.002 | V90: 84.028 | W90: 51.163 | X90: 51.148 | Y90: 0.015
A91: SHEN | B91: 38.5836 | C91: -78.4765 | D91: 38.5229 | E91: -78.4348 | F91: 201N | G91: 001: Escambia Operating Company LLC | H91: IND | I91: N | J91: 8.6 | K91: 7.51 | L91: 7.51 | M91: 0 | N91: 20.72 | O91: 15.91 | P91: 15.91 | Q91: 0 | R91: 24.402 | S91: 21.736 | T91: 21.736 | U91: 0 | V91: 84.028 | W91: 51.163 | X91: 51.163 | Y91: 0
A92: SHRO | B92: 35.3535 | C92: -82.8 | D92: 35.3937 | E92: -82.7744 | F92: 201S | G92: 001: Escambia Operating Company LLC | H92: IND | I92: S | J92: 9.7 | K92: 8.25 | L92: 8.25 | M92: 0 | N92: 20.39 | O92: 15.36 | P92: 15.34 | Q92: 0.02 | R92: 26.93 | S92: 23.172 | T92: 23.168 | U92: 0.004 | V92: 79.816 | W92: 47.705 | X92: 47.602 | Y92: 0.103
A93: SHRO | B93: 35.3535 | C93: -82.8 | D93: 35.3937 | E93: -82.7744 | F93: 201N | G93: 001: Escambia Operating Company LLC | H93: IND | I93: N | J93: 9.7 | K93: 8.25 | L93: 8.25 | M93: 0 | N93: 20.39 | O93: 15.36 | P93: 15.36 | Q93: 0 | R93: 26.93 | S93: 23.172 | T93: 23.172 | U93: 0 | V93: 79.816 | W93: 47.705 | X93: 47.705 | Y93: 0
A94: SIPS | B94: 34.3181 | C94: -87.3563 | D94: 34.3433 | E94: -87.3388 | F94: 201S | G94: 001: Escambia Operating Company LLC | H94: IND | I94: S | J94: 12.84 | K94: 11.45 | L94: 11.45 | M94: 0 | N94: 21.67 | O94: 17.63 | P94: 17.63 | Q94: 0 | R94: 36.68 | S94: 31.848 | T94: 31.838 | U94: 0.01 | V94: 90.545 | W94: 60.036 | X94: 60.001 | Y94: 0.035
A95: SIPS | B95: 34.3181 | C95: -87.3563 | D95: 34.3433 | E95: -87.3388 | F95: 201N | G95: 001: Escambia Operating Company LLC | H95: IND | I95: N | J95: 12.84 | K95: 11.45 | L95: 11.45 | M95: 0 | N95: 21.67 | O95: 17.63 | P95: 17.63 | Q95: 0 | R95: 36.68 | S95: 31.848 | T95: 31.848 | U95: 0 | V95: 90.545 | W95: 60.036 | X95: 60.036 | Y95: 0
A96: SWAN | B96: 35.3996 | C96: -76.1558 | D96: 35.451 | E96: -76.2075 | F96: 201S | G96: 001: Escambia Operating Company LLC | H96: IND | I96: S | J96: 11.76 | K96: 10.89 | L96: 10.89 | M96: 0 | N96: 19.76 | O96: 16.03 | P96: 16.02 | Q96: 0.01 | R96: 32.749 | S96: 29.965 | T96: 29.96 | U96: 0.005 | V96: 75.643 | W96: 51.328 | X96: 51.307 | Y96: 0.021
A97: SWAN | B97: 35.3996 | C97: -76.1558 | D97: 35.451 | E97: -76.2075 | F97: 201N | G97: 001: Escambia Operating Company LLC | H97: IND | I97: N | J97: 11.76 | K97: 10.89 | L97: 10.89 | M97: 0 | N97: 19.76 | O97: 16.03 | P97: 16.03 | Q97: 0 | R97: 32.749 | S97: 29.965 | T97: 29.965 | U97: 0 | V97: 75.643 | W97: 51.328 | X97: 51.328 | Y97: 0
A98: THRO | B98: 46.9291 | C98: -103.3791 | D98: 46.8948 | E98: -103.3777 | F98: 201N | G98: 001: Escambia Operating Company LLC | H98: IND | I98: N | J98: 6.38 | K98: 6.15 | L98: 6.15 | M98: 0 | N98: 15.71 | O98: 14.91 | P98: 14.91 | Q98: 0 | R98: 19.07 | S98: 18.626 | T98: 18.626 | U98: 0 | V98: 50.733 | W98: 46.698 | X98: 46.697 | Y98: 0.001
A99: THRO | B99: 46.9291 | C99: -103.3791 | D99: 46.8948 | E99: -103.3777 | F99: 201S | G99: 001: Escambia Operating Company LLC | H99: IND | I99: S | J99: 6.38 | K99: 6.15 | L99: 6.15 | M99: 0 | N99: 15.71 | O99: 14.91 | P99: 14.91 | Q99: 0 | R99: 19.07 | S99: 18.626 | T99: 18.626 | U99: 0 | V99: 50.733 | W99: 46.698 | X99: 46.697 | Y99: 0.001
A100: ULBE | B100: 47.5389 | C100: -108.7146 | D100: 47.5823 | E100: -108.7196 | F100: 201N | G100: 001: Escambia Operating Company LLC | H100: IND | I100: N | J100: 4.03 | K100: 3.86 | L100: 3.86 | M100: 0 | N100: 11.9 | O100: 11.45 | P100: 11.45 | Q100: 0 | R100: 15.035 | S100: 14.767 | T100: 14.767 | U100: 0 | V100: 34.557 | W100: 32.903 | X100: 32.903 | Y100: 0
A101: ULBE | B101: 47.5389 | C101: -108.7146 | D101: 47.5823 | E101: -108.7196 | F101: 201S | G101: 001: Escambia Operating Company LLC | H101: IND | I101: S | J101: 4.03 | K101: 3.86 | L101: 3.86 | M101: 0 | N101: 11.9 | O101: 11.45 | P101: 11.45 | Q101: 0 | R101: 15.035 | S101: 14.767 | T101: 14.767 | U101: 0 | V101: 34.557 | W101: 32.903 | X101: 32.903 | Y101: 0
A102: UPBU | B102: 35.8669 | C102: -93.1879 | D102: 35.8258 | E102: -93.203 | F102: 201S | G102: 001: Escambia Operating Company LLC | H102: IND | I102: S | J102: 9.95 | K102: 9.22 | L102: 9.22 | M102: 0 | N102: 20.52 | O102: 18.91 | P102: 18.91 | Q102: 0 | R102: 27.872 | S102: 25.835 | T102: 25.821 | U102: 0.014 | V102: 79.846 | W102: 67.826 | X102: 67.808 | Y102: 0.018
A103: UPBU | B103: 35.8669 | C103: -93.1879 | D103: 35.8258 | E103: -93.203 | F103: 201N | G103: 001: Escambia Operating Company LLC | H103: IND | I103: N | J103: 9.95 | K103: 9.22 | L103: 9.22 | M103: 0 | N103: 20.52 | O103: 18.91 | P103: 18.91 | Q103: 0 | R103: 27.872 | S103: 25.835 | T103: 25.835 | U103: 0 | V103: 79.846 | W103: 67.826 | X103: 67.826 | Y103: 0
A104: WEEL | B104: 39.0954 | C104: -106.8783 | D104: 39.1536 | E104: -106.8209 | F104: 201N | G104: 001: Escambia Operating Company LLC | H104: IND | I104: N | J104: -0.09 | K104: -0.23 | L104: -0.23 | M104: 0 | N104: 5.71 | O104: 5.28 | P104: 5.28 | Q104: 0 | R104: 9.932 | S104: 9.79 | T104: 9.79 | U104: 0 | V104: 18.021 | W104: 17.241 | X104: 17.241 | Y104: 0
A105: WEEL | B105: 39.0954 | C105: -106.8783 | D105: 39.1536 | E105: -106.8209 | F105: 201S | G105: 001: Escambia Operating Company LLC | H105: IND | I105: S | J105: -0.09 | K105: -0.23 | L105: -0.23 | M105: 0 | N105: 5.71 | O105: 5.28 | P105: 5.28 | Q105: 0 | R105: 9.932 | S105: 9.79 | T105: 9.79 | U105: 0 | V105: 18.021 | W105: 17.241 | X105: 17.241 | Y105: 0
A106: WHIT | B106: 33.4362 | C106: -105.4906 | D106: 33.4687 | E106: -105.5349 | F106: 201S | G106: 001: Escambia Operating Company LLC | H106: IND | I106: S | J106: 3.34 | K106: 3.35 | L106: 3.35 | M106: 0 | N106: 10.58 | O106: 10.42 | P106: 10.42 | Q106: 0 | R106: 14.045 | S106: 14.064 | T106: 14.064 | U106: 0 | V106: 29.304 | W106: 28.859 | X106: 28.853 | Y106: 0.006
A107: WHIT | B107: 33.4362 | C107: -105.4906 | D107: 33.4687 | E107: -105.5349 | F107: 201N | G107: 001: Escambia Operating Company LLC | H107: IND | I107: N | J107: 3.34 | K107: 3.35 | L107: 3.35 | M107: 0 | N107: 10.58 | O107: 10.42 | P107: 10.42 | Q107: 0 | R107: 14.045 | S107: 14.064 | T107: 14.064 | U107: 0 | V107: 29.304 | W107: 28.859 | X107: 28.859 | Y107: 0
A108: WHPE | B108: 36.592 | C108: -105.4526 | D108: 36.5854 | E108: -105.452 | F108: 201S | G108: 001: Escambia Operating Company LLC | H108: IND | I108: S | J108: 0.57 | K108: 0.57 | L108: 0.57 | M108: 0 | N108: 6.96 | O108: 6.64 | P108: 6.64 | Q108: 0 | R108: 10.636 | S108: 10.638 | T108: 10.638 | U108: 0 | V108: 20.488 | W108: 19.867 | X108: 19.866 | Y108: 0.001
A109: WHPE | B109: 36.592 | C109: -105.4526 | D109: 36.5854 | E109: -105.452 | F109: 201N | G109: 001: Escambia Operating Company LLC | H109: IND | I109: N | J109: 0.57 | K109: 0.57 | L109: 0.57 | M109: 0 | N109: 6.96 | O109: 6.64 | P109: 6.64 | Q109: 0 | R109: 10.636 | S109: 10.638 | T109: 10.638 | U109: 0 | V109: 20.488 | W109: 19.867 | X109: 19.867 | Y109: 0
A110: WICA | B110: 43.5707 | C110: -103.5013 | D110: 43.5576 | E110: -103.4838 | F110: 201N | G110: 001: Escambia Operating Company LLC | H110: IND | I110: N | J110: 3.99 | K110: 3.83 | L110: 3.83 | M110: 0 | N110: 12.31 | O110: 11.48 | P110: 11.48 | Q110: 0 | R110: 14.968 | S110: 14.722 | T110: 14.722 | U110: 0 | V110: 35.541 | W110: 32.539 | X110: 32.539 | Y110: 0
A111: WICA | B111: 43.5707 | C111: -103.5013 | D111: 43.5576 | E111: -103.4838 | F111: 201S | G111: 001: Escambia Operating Company LLC | H111: IND | I111: S | J111: 3.99 | K111: 3.83 | L111: 3.83 | M111: 0 | N111: 12.31 | O111: 11.48 | P111: 11.48 | Q111: 0 | R111: 14.968 | S111: 14.722 | T111: 14.722 | U111: 0 | V111: 35.541 | W111: 32.539 | X111: 32.539 | Y111: 0
A112: WIMO | B112: 34.7261 | C112: -98.7778 | D112: 34.7323 | E112: -98.713 | F112: 201S | G112: 001: Escambia Operating Company LLC | H112: IND | I112: S | J112: 9.22 | K112: 8.73 | L112: 8.73 | M112: 0 | N112: 20.32 | O112: 18.68 | P112: 18.67 | Q112: 0.01 | R112: 25.591 | S112: 24.329 | T112: 24.328 | U112: 0.001 | V112: 78.992 | W112: 66.354 | X112: 66.336 | Y112: 0.018
A113: WIMO | B113: 34.7261 | C113: -98.7778 | D113: 34.7323 | E113: -98.713 | F113: 201N | G113: 001: Escambia Operating Company LLC | H113: IND | I113: N | J113: 9.22 | K113: 8.73 | L113: 8.73 | M113: 0 | N113: 20.32 | O113: 18.68 | P113: 18.68 | Q113: 0 | R113: 25.591 | S113: 24.329 | T113: 24.329 | U113: 0 | V113: 78.992 | W113: 66.354 | X113: 66.354 | Y113: 0
A114: WOLF | B114: 31.3065 | C114: -81.2471 | D114: 31.33 | E114: -81.3 | F114: 201S | G114: 001: Escambia Operating Company LLC | H114: IND | I114: S | J114: 13.34 | K114: 11.77 | L114: 11.75 | M114: 0.02 | N114: 20.7 | O114: 17.33 | P114: 17.31 | Q114: 0.02 | R114: 38.427 | S114: 32.761 | T114: 32.713 | U114: 0.048 | V114: 81.978 | W114: 58.067 | X114: 57.95 | Y114: 0.117
A115: WOLF | B115: 31.3065 | C115: -81.2471 | D115: 31.33 | E115: -81.3 | F115: 201N | G115: 001: Escambia Operating Company LLC | H115: IND | I115: N | J115: 13.34 | K115: 11.77 | L115: 11.77 | M115: 0 | N115: 20.7 | O115: 17.33 | P115: 17.33 | Q115: 0 | R115: 38.427 | S115: 32.761 | T115: 32.76 | U115: 0.001 | V115: 81.978 | W115: 58.067 | X115: 58.066 | Y115: 0.001
A116: ACAD | B116: 44.4219 | C116: -68.3115 | D116: 44.3771 | E116: -68.261 | F116: 202S | G116: 002: Escambia Operating Company LLC | H116: IND | I116: S | J116: 7.02 | K116: 6.7 | L116: 6.7 | M116: 0 | N116: 16.84 | O116: 14.87 | P116: 14.87 | Q116: 0 | R116: 20.367 | S116: 19.714 | T116: 19.714 | U116: 0 | V116: 58.272 | W116: 47.149 | X116: 47.147 | Y116: 0.002
A117: ACAD | B117: 44.4219 | C117: -68.3115 | D117: 44.3771 | E117: -68.261 | F117: 202N | G117: 002: Escambia Operating Company LLC | H117: IND | I117: N | J117: 7.02 | K117: 6.7 | L117: 6.7 | M117: 0 | N117: 16.84 | O117: 14.87 | P117: 14.87 | Q117: 0 | R117: 20.367 | S117: 19.714 | T117: 19.714 | U117: 0 | V117: 58.272 | W117: 47.149 | X117: 47.149 | Y117: 0
A118: BADL | B118: 43.7531 | C118: -101.8689 | D118: 43.7435 | E118: -101.9412 | F118: 202N | G118: 002: Escambia Operating Company LLC | H118: IND | I118: N | J118: 5.78 | K118: 5.58 | L118: 5.58 | M118: 0 | N118: 14.33 | O118: 13.38 | P118: 13.38 | Q118: 0 | R118: 17.92 | S118: 17.563 | T118: 17.563 | U118: 0 | V118: 43.625 | W118: 39.578 | X118: 39.578 | Y118: 0
A119: BADL | B119: 43.7531 | C119: -101.8689 | D119: 43.7435 | E119: -101.9412 | F119: 202S | G119: 002: Escambia Operating Company LLC | H119: IND | I119: S | J119: 5.78 | K119: 5.58 | L119: 5.58 | M119: 0 | N119: 14.33 | O119: 13.38 | P119: 13.38 | Q119: 0 | R119: 17.92 | S119: 17.563 | T119: 17.563 | U119: 0 | V119: 43.625 | W119: 39.578 | X119: 39.578 | Y119: 0
A120: BAND | B120: 35.7629 | C120: -106.2965 | D120: 35.7797 | E120: -106.2664 | F120: 202N | G120: 002: Escambia Operating Company LLC | H120: IND | I120: N | J120: 3.99 | K120: 3.99 | L120: 3.99 | M120: 0 | N120: 9.17 | O120: 9.03 | P120: 9.03 | Q120: 0 | R120: 14.954 | S120: 14.96 | T120: 14.96 | U120: 0 | V120: 25.882 | W120: 25.571 | X120: 25.571 | Y120: 0
A121: BAND | B121: 35.7629 | C121: -106.2965 | D121: 35.7797 | E121: -106.2664 | F121: 202S | G121: 002: Escambia Operating Company LLC | H121: IND | I121: S | J121: 3.99 | K121: 3.99 | L121: 3.99 | M121: 0 | N121: 9.17 | O121: 9.03 | P121: 9.03 | Q121: 0 | R121: 14.954 | S121: 14.96 | T121: 14.96 | U121: 0 | V121: 25.882 | W121: 25.571 | X121: 25.571 | Y121: 0
A122: BIBE | B122: 29.2779 | C122: -103.2003 | D122: 29.3027 | E122: -103.178 | F122: 202S | G122: 002: Escambia Operating Company LLC | H122: IND | I122: S | J122: 5.65 | K122: 5.63 | L122: 5.63 | M122: 0 | N122: 14.37 | O122: 14.22 | P122: 14.22 | Q122: 0 | R122: 17.808 | S122: 17.791 | T122: 17.791 | U122: 0 | V122: 43.381 | W122: 42.706 | X122: 42.703 | Y122: 0.003
A123: BIBE | B123: 29.2779 | C123: -103.2003 | D123: 29.3027 | E123: -103.178 | F123: 202N | G123: 002: Escambia Operating Company LLC | H123: IND | I123: N | J123: 5.65 | K123: 5.63 | L123: 5.63 | M123: 0 | N123: 14.37 | O123: 14.22 | P123: 14.22 | Q123: 0 | R123: 17.808 | S123: 17.791 | T123: 17.791 | U123: 0 | V123: 43.381 | W123: 42.706 | X123: 42.706 | Y123: 0
A124: BOAP | B124: 33.8765 | C124: -106.718 | D124: 33.8695 | E124: -106.852 | F124: 202S | G124: 002: Escambia Operating Company LLC | H124: IND | I124: S | J124: 5.72 | K124: 5.72 | L124: 5.72 | M124: 0 | N124: 11.19 | O124: 11.06 | P124: 11.06 | Q124: 0 | R124: 17.839 | S124: 17.846 | T124: 17.846 | U124: 0 | V124: 31.03 | W124: 30.615 | X124: 30.614 | Y124: 0.001
A125: BOAP | B125: 33.8765 | C125: -106.718 | D125: 33.8695 | E125: -106.852 | F125: 202N | G125: 002: Escambia Operating Company LLC | H125: IND | I125: N | J125: 5.72 | K125: 5.72 | L125: 5.72 | M125: 0 | N125: 11.19 | O125: 11.06 | P125: 11.06 | Q125: 0 | R125: 17.839 | S125: 17.846 | T125: 17.846 | U125: 0 | V125: 31.03 | W125: 30.615 | X125: 30.615 | Y125: 0
A126: BOWA | B126: 47.9351 | C126: -91.4775 | D126: 47.9466 | E126: -91.4955 | F126: 202S | G126: 002: Escambia Operating Company LLC | H126: IND | I126: S | J126: 4.86 | K126: 4.76 | L126: 4.76 | M126: 0 | N126: 16.43 | O126: 14.48 | P126: 14.48 | Q126: 0 | R126: 16.381 | S126: 16.225 | T126: 16.225 | U126: 0 | V126: 56.176 | W126: 45.593 | X126: 45.592 | Y126: 0.001
A127: BOWA | B127: 47.9351 | C127: -91.4775 | D127: 47.9466 | E127: -91.4955 | F127: 202N | G127: 002: Escambia Operating Company LLC | H127: IND | I127: N | J127: 4.86 | K127: 4.76 | L127: 4.76 | M127: 0 | N127: 16.43 | O127: 14.48 | P127: 14.48 | Q127: 0 | R127: 16.381 | S127: 16.225 | T127: 16.225 | U127: 0 | V127: 56.176 | W127: 45.593 | X127: 45.593 | Y127: 0
A128: BRET2 | B128: 30.0692 | C128: -89.743 | D128: 30.1086 | E128: -89.7617 | F128: 202S | G128: 002: Escambia Operating Company LLC | H128: IND | I128: S | J128: 13.81 | K128: 12.59 | L128: 12.58 | M128: 0.01 | N128: 22.49 | O128: 18.93 | P128: 18.9 | Q128: 0.03 | R128: 40.628 | S128: 35.846 | T128: 35.811 | U128: 0.035 | V128: 98.659 | W128: 68.69 | X128: 68.508 | Y128: 0.182
A129: BRET2 | B129: 30.0692 | C129: -89.743 | D129: 30.1086 | E129: -89.7617 | F129: 202N | G129: 002: Escambia Operating Company LLC | H129: IND | I129: N | J129: 13.81 | K129: 12.59 | L129: 12.59 | M129: 0 | N129: 22.49 | O129: 18.93 | P129: 18.93 | Q129: 0 | R129: 40.628 | S129: 35.846 | T129: 35.846 | U129: 0 | V129: 98.659 | W129: 68.69 | X129: 68.69 | Y129: 0
A130: BRIG | B130: 39.4332 | C130: -74.4993 | D130: 39.465 | E130: -74.4492 | F130: 202S | G130: 002: Escambia Operating Company LLC | H130: IND | I130: S | J130: 12.25 | K130: 11.17 | L130: 11.17 | M130: 0 | N130: 22.26 | O130: 19.06 | P130: 19.06 | Q130: 0 | R130: 34.385 | S130: 30.848 | T130: 30.848 | U130: 0 | V130: 96.79 | W130: 69.683 | X130: 69.682 | Y130: 0.001
A131: BRIG | B131: 39.4332 | C131: -74.4993 | D131: 39.465 | E131: -74.4492 | F131: 202N | G131: 002: Escambia Operating Company LLC | H131: IND | I131: N | J131: 12.25 | K131: 11.17 | L131: 11.17 | M131: 0 | N131: 22.26 | O131: 19.06 | P131: 19.06 | Q131: 0 | R131: 34.385 | S131: 30.848 | T131: 30.848 | U131: 0 | V131: 96.79 | W131: 69.683 | X131: 69.683 | Y131: 0
A132: CACR | B132: 34.4879 | C132: -94.1775 | D132: 34.4544 | E132: -94.1429 | F132: 202S | G132: 002: Escambia Operating Company LLC | H132: IND | I132: S | J132: 9.74 | K132: 9.13 | L132: 9.13 | M132: 0 | N132: 20.87 | O132: 19.41 | P132: 19.41 | Q132: 0 | R132: 27.343 | S132: 25.65 | T132: 25.643 | U132: 0.007 | V132: 83.305 | W132: 71.871 | X132: 71.859 | Y132: 0.012
A133: CACR | B133: 34.4879 | C133: -94.1775 | D133: 34.4544 | E133: -94.1429 | F133: 202N | G133: 002: Escambia Operating Company LLC | H133: IND | I133: N | J133: 9.74 | K133: 9.13 | L133: 9.13 | M133: 0 | N133: 20.87 | O133: 19.41 | P133: 19.41 | Q133: 0 | R133: 27.343 | S133: 25.65 | T133: 25.65 | U133: 0 | V133: 83.305 | W133: 71.871 | X133: 71.871 | Y133: 0
A134: CAVE | B134: 31.8634 | C134: -104.8081 | D134: 31.833 | E134: -104.8094 | F134: 202S | G134: 002: Escambia Operating Company LLC | H134: IND | I134: S | J134: 5.25 | K134: 5.08 | L134: 5.08 | M134: 0 | N134: 12.81 | O134: 12.5 | P134: 12.5 | Q134: 0 | R134: 17.13 | S134: 16.837 | T134: 16.837 | U134: 0 | V134: 36.706 | W134: 35.567 | X134: 35.561 | Y134: 0.006
A135: CAVE | B135: 31.8634 | C135: -104.8081 | D135: 31.833 | E135: -104.8094 | F135: 202N | G135: 002: Escambia Operating Company LLC | H135: IND | I135: N | J135: 5.25 | K135: 5.08 | L135: 5.08 | M135: 0 | N135: 12.81 | O135: 12.5 | P135: 12.5 | Q135: 0 | R135: 17.13 | S135: 16.837 | T135: 16.837 | U135: 0 | V135: 36.706 | W135: 35.567 | X135: 35.567 | Y135: 0
A136: CHAS | B136: 28.7695 | C136: -82.4932 | D136: 28.7484 | E136: -82.5549 | F136: 202S | G136: 002: Escambia Operating Company LLC | H136: IND | I136: S | J136: 13.76 | K136: 12.74 | L136: 12.73 | M136: 0.01 | N136: 19.94 | O136: 17.32 | P136: 17.3 | Q136: 0.02 | R136: 39.884 | S136: 35.998 | T136: 35.965 | U136: 0.033 | V136: 75.326 | W136: 57.541 | X136: 57.444 | Y136: 0.097
A137: CHAS | B137: 28.7695 | C137: -82.4932 | D137: 28.7484 | E137: -82.5549 | F137: 202N | G137: 002: Escambia Operating Company LLC | H137: IND | I137: N | J137: 13.76 | K137: 12.74 | L137: 12.74 | M137: 0 | N137: 19.94 | O137: 17.32 | P137: 17.32 | Q137: 0 | R137: 39.884 | S137: 35.998 | T137: 35.998 | U137: 0 | V137: 75.326 | W137: 57.541 | X137: 57.54 | Y137: 0.001
A138: COHU | B138: 34.8086 | C138: -84.6365 | D138: 34.7852 | E138: -84.6265 | F138: 202S | G138: 002: Escambia Operating Company LLC | H138: IND | I138: S | J138: 10.94 | K138: 9.43 | L138: 9.43 | M138: 0 | N138: 21.19 | O138: 15.95 | P138: 15.94 | Q138: 0.01 | R138: 30.749 | S138: 26.277 | T138: 26.268 | U138: 0.009 | V138: 86.468 | W138: 50.746 | X138: 50.696 | Y138: 0.05
A139: COHU | B139: 34.8086 | C139: -84.6365 | D139: 34.7852 | E139: -84.6265 | F139: 202N | G139: 002: Escambia Operating Company LLC | H139: IND | I139: N | J139: 10.94 | K139: 9.43 | L139: 9.43 | M139: 0 | N139: 21.19 | O139: 15.95 | P139: 15.95 | Q139: 0 | R139: 30.749 | S139: 26.277 | T139: 26.277 | U139: 0 | V139: 86.468 | W139: 50.746 | X139: 50.746 | Y139: 0
A140: DOSO | B140: 39.0739 | C140: -79.4869 | D140: 39.1053 | E140: -79.4261 | F140: 202S | G140: 002: Escambia Operating Company LLC | H140: IND | I140: S | J140: 9.03 | K140: 7.84 | L140: 7.84 | M140: 0 | N140: 21.59 | O140: 16.7 | P140: 16.7 | Q140: 0 | R140: 25.475 | S140: 22.47 | T140: 22.469 | U140: 0.001 | V140: 92.099 | W140: 55.369 | X140: 55.364 | Y140: 0.005
A141: DOSO | B141: 39.0739 | C141: -79.4869 | D141: 39.1053 | E141: -79.4261 | F141: 202N | G141: 002: Escambia Operating Company LLC | H141: IND | I141: N | J141: 9.03 | K141: 7.84 | L141: 7.84 | M141: 0 | N141: 21.59 | O141: 16.7 | P141: 16.7 | Q141: 0 | R141: 25.475 | S141: 22.47 | T141: 22.47 | U141: 0 | V141: 92.099 | W141: 55.369 | X141: 55.369 | Y141: 0
A142: EANE | B142: 39.0954 | C142: -106.8783 | D142: 39.1536 | E142: -106.8209 | F142: 202N | G142: 002: Escambia Operating Company LLC | H142: IND | I142: N | J142: -0.09 | K142: -0.23 | L142: -0.23 | M142: 0 | N142: 5.71 | O142: 5.28 | P142: 5.28 | Q142: 0 | R142: 9.932 | S142: 9.79 | T142: 9.79 | U142: 0 | V142: 18.021 | W142: 17.241 | X142: 17.241 | Y142: 0
A143: EANE | B143: 39.0954 | C143: -106.8783 | D143: 39.1536 | E143: -106.8209 | F143: 202S | G143: 002: Escambia Operating Company LLC | H143: IND | I143: S | J143: -0.09 | K143: -0.23 | L143: -0.23 | M143: 0 | N143: 5.71 | O143: 5.28 | P143: 5.28 | Q143: 0 | R143: 9.932 | S143: 9.79 | T143: 9.79 | U143: 0 | V143: 18.021 | W143: 17.241 | X143: 17.241 | Y143: 0
A144: EVER | B144: 25.3737 | C144: -80.7239 | D144: 25.391 | E144: -80.6806 | F144: 202S | G144: 002: Escambia Operating Company LLC | H144: IND | I144: S | J144: 11.23 | K144: 10.69 | L144: 10.69 | M144: 0 | N144: 16.3 | O144: 15.57 | P144: 15.57 | Q144: 0 | R144: 30.92 | S144: 29.282 | T144: 29.274 | U144: 0.008 | V144: 51.835 | W144: 48.114 | X144: 48.11 | Y144: 0.004
A145: EVER | B145: 25.3737 | C145: -80.7239 | D145: 25.391 | E145: -80.6806 | F145: 202N | G145: 002: Escambia Operating Company LLC | H145: IND | I145: N | J145: 11.23 | K145: 10.69 | L145: 10.69 | M145: 0 | N145: 16.3 | O145: 15.57 | P145: 15.57 | Q145: 0 | R145: 30.92 | S145: 29.282 | T145: 29.282 | U145: 0 | V145: 51.835 | W145: 48.114 | X145: 48.114 | Y145: 0
A146: FLTO | B146: 39.0954 | C146: -106.8783 | D146: 39.1536 | E146: -106.8209 | F146: 202N | G146: 002: Escambia Operating Company LLC | H146: IND | I146: N | J146: -0.09 | K146: -0.23 | L146: -0.23 | M146: 0 | N146: 5.71 | O146: 5.28 | P146: 5.28 | Q146: 0 | R146: 9.932 | S146: 9.79 | T146: 9.79 | U146: 0 | V146: 18.021 | W146: 17.241 | X146: 17.241 | Y146: 0
A147: FLTO | B147: 39.0954 | C147: -106.8783 | D147: 39.1536 | E147: -106.8209 | F147: 202S | G147: 002: Escambia Operating Company LLC | H147: IND | I147: S | J147: -0.09 | K147: -0.23 | L147: -0.23 | M147: 0 | N147: 5.71 | O147: 5.28 | P147: 5.28 | Q147: 0 | R147: 9.932 | S147: 9.79 | T147: 9.79 | U147: 0 | V147: 18.021 | W147: 17.241 | X147: 17.241 | Y147: 0
A148: GRGU | B148: 44.2733 | C148: -71.2226 | D148: 44.3082 | E148: -71.2177 | F148: 202S | G148: 002: Escambia Operating Company LLC | H148: IND | I148: S | J148: 5.87 | K148: 5.4 | L148: 5.4 | M148: 0 | N148: 15.43 | O148: 12.94 | P148: 12.94 | Q148: 0 | R148: 18.1 | S148: 17.26 | T148: 17.26 | U148: 0 | V148: 50.127 | W148: 38.62 | X148: 38.618 | Y148: 0.002
A149: GRGU | B149: 44.2733 | C149: -71.2226 | D149: 44.3082 | E149: -71.2177 | F149: 202N | G149: 002: Escambia Operating Company LLC | H149: IND | I149: N | J149: 5.87 | K149: 5.4 | L149: 5.4 | M149: 0 | N149: 15.43 | O149: 12.94 | P149: 12.94 | Q149: 0 | R149: 18.1 | S149: 17.26 | T149: 17.26 | U149: 0 | V149: 50.127 | W149: 38.62 | X149: 38.62 | Y149: 0
A150: GRSA | B150: 37.6719 | C150: -105.5799 | D150: 37.7249 | E150: -105.5185 | F150: 202S | G150: 002: Escambia Operating Company LLC | H150: IND | I150: S | J150: 3.81 | K150: 3.69 | L150: 3.69 | M150: 0 | N150: 8.78 | O150: 8.35 | P150: 8.35 | Q150: 0 | R150: 14.696 | S150: 14.515 | T150: 14.515 | U150: 0 | V150: 24.401 | W150: 23.372 | X150: 23.371 | Y150: 0.001
A151: GRSA | B151: 37.6719 | C151: -105.5799 | D151: 37.7249 | E151: -105.5185 | F151: 202N | G151: 002: Escambia Operating Company LLC | H151: IND | I151: N | J151: 3.81 | K151: 3.69 | L151: 3.69 | M151: 0 | N151: 8.78 | O151: 8.35 | P151: 8.35 | Q151: 0 | R151: 14.696 | S151: 14.515 | T151: 14.515 | U151: 0 | V151: 24.401 | W151: 23.372 | X151: 23.372 | Y151: 0
A152: GRSM | B152: 35.6061 | C152: -83.9639 | D152: 35.6334 | E152: -83.9416 | F152: 202S | G152: 002: Escambia Operating Company LLC | H152: IND | I152: S | J152: 10.63 | K152: 9.2 | L152: 9.2 | M152: 0 | N152: 21.39 | O152: 16.21 | P152: 16.21 | Q152: 0 | R152: 29.756 | S152: 25.63 | T152: 25.628 | U152: 0.002 | V152: 88.031 | W152: 51.925 | X152: 51.896 | Y152: 0.029
A153: GRSM | B153: 35.6061 | C153: -83.9639 | D153: 35.6334 | E153: -83.9416 | F153: 202N | G153: 002: Escambia Operating Company LLC | H153: IND | I153: N | J153: 10.63 | K153: 9.2 | L153: 9.2 | M153: 0 | N153: 21.39 | O153: 16.21 | P153: 16.21 | Q153: 0 | R153: 29.756 | S153: 25.63 | T153: 25.63 | U153: 0 | V153: 88.031 | W153: 51.925 | X153: 51.925 | Y153: 0
A154: GUMO | B154: 31.8634 | C154: -104.8081 | D154: 31.833 | E154: -104.8094 | F154: 202S | G154: 002: Escambia Operating Company LLC | H154: IND | I154: S | J154: 5.25 | K154: 5.08 | L154: 5.08 | M154: 0 | N154: 12.81 | O154: 12.5 | P154: 12.5 | Q154: 0 | R154: 17.13 | S154: 16.837 | T154: 16.837 | U154: 0 | V154: 36.706 | W154: 35.567 | X154: 35.561 | Y154: 0.006
A155: GUMO | B155: 31.8634 | C155: -104.8081 | D155: 31.833 | E155: -104.8094 | F155: 202N | G155: 002: Escambia Operating Company LLC | H155: IND | I155: N | J155: 5.25 | K155: 5.08 | L155: 5.08 | M155: 0 | N155: 12.81 | O155: 12.5 | P155: 12.5 | Q155: 0 | R155: 17.13 | S155: 16.837 | T155: 16.837 | U155: 0 | V155: 36.706 | W155: 35.567 | X155: 35.567 | Y155: 0
A156: HEGL | B156: 36.6155 | C156: -92.8783 | D156: 36.6138 | E156: -92.9221 | F156: 202S | G156: 002: Escambia Operating Company LLC | H156: IND | I156: S | J156: 10.96 | K156: 10.12 | L156: 10.12 | M156: 0 | N156: 21.63 | O156: 19.78 | P156: 19.78 | Q156: 0 | R156: 30.39 | S156: 27.917 | T156: 27.909 | U156: 0.008 | V156: 90.901 | W156: 74.949 | X156: 74.946 | Y156: 0.003
A157: HEGL | B157: 36.6155 | C157: -92.8783 | D157: 36.6138 | E157: -92.9221 | F157: 202N | G157: 002: Escambia Operating Company LLC | H157: IND | I157: N | J157: 10.96 | K157: 10.12 | L157: 10.12 | M157: 0 | N157: 21.63 | O157: 19.78 | P157: 19.78 | Q157: 0 | R157: 30.39 | S157: 27.917 | T157: 27.917 | U157: 0 | V157: 90.901 | W157: 74.949 | X157: 74.949 | Y157: 0
A158: ISLE | B158: 47.4367 | C158: -88.1796 | D158: 47.4596 | E158: -88.1491 | F158: 202S | G158: 002: Escambia Operating Company LLC | H158: IND | I158: S | J158: 5.4 | K158: 5.26 | L158: 5.26 | M158: 0 | N158: 17.63 | O158: 15.58 | P158: 15.58 | Q158: 0 | R158: 17.272 | S158: 17.028 | T158: 17.028 | U158: 0 | V158: 63.565 | W158: 51.075 | X158: 51.075 | Y158: 0
A159: ISLE | B159: 47.4367 | C159: -88.1796 | D159: 47.4596 | E159: -88.1491 | F159: 202N | G159: 002: Escambia Operating Company LLC | H159: IND | I159: N | J159: 5.4 | K159: 5.26 | L159: 5.26 | M159: 0 | N159: 17.63 | O159: 15.58 | P159: 15.58 | Q159: 0 | R159: 17.272 | S159: 17.028 | T159: 17.028 | U159: 0 | V159: 63.565 | W159: 51.075 | X159: 51.076 | Y159: -0.001
A160: JARI | B160: 37.6477 | C160: -79.559 | D160: 37.6266 | E160: -79.5125 | F160: 202S | G160: 002: Escambia Operating Company LLC | H160: IND | I160: S | J160: 11.79 | K160: 10.12 | L160: 10.12 | M160: 0 | N160: 21.37 | O160: 16.88 | P160: 16.88 | Q160: 0 | R160: 33.299 | S160: 28.042 | T160: 28.039 | U160: 0.003 | V160: 88.503 | W160: 55.929 | X160: 55.923 | Y160: 0.006
A161: JARI | B161: 37.6477 | C161: -79.559 | D161: 37.6266 | E161: -79.5125 | F161: 202N | G161: 002: Escambia Operating Company LLC | H161: IND | I161: N | J161: 11.79 | K161: 10.12 | L161: 10.12 | M161: 0 | N161: 21.37 | O161: 16.88 | P161: 16.88 | Q161: 0 | R161: 33.299 | S161: 28.042 | T161: 28.042 | U161: 0 | V161: 88.503 | W161: 55.929 | X161: 55.929 | Y161: 0
A162: JOYC | B162: 35.3917 | C162: -84.0019 | D162: 35.44 | E162: -83.99 | F162: 202S | G162: 002: Escambia Operating Company LLC | H162: IND | I162: S | J162: 10.63 | K162: 9.19 | L162: 9.19 | M162: 0 | N162: 21.39 | O162: 16.09 | P162: 16.08 | Q162: 0.01 | R162: 29.756 | S162: 25.625 | T162: 25.623 | U162: 0.002 | V162: 88.031 | W162: 51.27 | X162: 51.235 | Y162: 0.035
A163: JOYC | B163: 35.3917 | C163: -84.0019 | D163: 35.44 | E163: -83.99 | F163: 202N | G163: 002: Escambia Operating Company LLC | H163: IND | I163: N | J163: 10.63 | K163: 9.19 | L163: 9.19 | M163: 0 | N163: 21.39 | O163: 16.09 | P163: 16.09 | Q163: 0 | R163: 29.756 | S163: 25.625 | T163: 25.625 | U163: 0 | V163: 88.031 | W163: 51.27 | X163: 51.27 | Y163: 0
A164: LIGO | B164: 35.9975 | C164: -81.8601 | D164: 35.9723 | E164: -81.9331 | F164: 202S | G164: 002: Escambia Operating Company LLC | H164: IND | I164: S | J164: 9.7 | K164: 8.45 | L164: 8.44 | M164: 0.01 | N164: 20.39 | O164: 15.51 | P164: 15.5 | Q164: 0.01 | R164: 26.93 | S164: 23.639 | T164: 23.637 | U164: 0.002 | V164: 79.816 | W164: 48.439 | X164: 48.398 | Y164: 0.041
A165: LIGO | B165: 35.9975 | C165: -81.8601 | D165: 35.9723 | E165: -81.9331 | F165: 202N | G165: 002: Escambia Operating Company LLC | H165: IND | I165: N | J165: 9.7 | K165: 8.45 | L165: 8.45 | M165: 0 | N165: 20.39 | O165: 15.51 | P165: 15.51 | Q165: 0 | R165: 26.93 | S165: 23.639 | T165: 23.639 | U165: 0 | V165: 79.816 | W165: 48.439 | X165: 48.439 | Y165: 0
A166: LYBR2 | B166: 42.9452 | C166: -72.9798 | D166: 42.953 | E166: -72.9103 | F166: 202S | G166: 002: Escambia Operating Company LLC | H166: IND | I166: S | J166: 4.89 | K166: 4.26 | L166: 4.26 | M166: 0 | N166: 18.06 | O166: 14.97 | P166: 14.97 | Q166: 0 | R166: 16.502 | S166: 15.447 | T166: 15.447 | U166: 0 | V166: 65.868 | W166: 47.241 | X166: 47.23 | Y166: 0.011
A167: LYBR2 | B167: 42.9452 | C167: -72.9798 | D167: 42.953 | E167: -72.9103 | F167: 202N | G167: 002: Escambia Operating Company LLC | H167: IND | I167: N | J167: 4.89 | K167: 4.26 | L167: 4.26 | M167: 0 | N167: 18.06 | O167: 14.97 | P167: 14.97 | Q167: 0 | R167: 16.502 | S167: 15.447 | T167: 15.447 | U167: 0 | V167: 65.868 | W167: 47.241 | X167: 47.241 | Y167: 0
A168: MABE | B168: 39.0954 | C168: -106.8783 | D168: 39.1536 | E168: -106.8209 | F168: 202N | G168: 002: Escambia Operating Company LLC | H168: IND | I168: N | J168: -0.09 | K168: -0.23 | L168: -0.23 | M168: 0 | N168: 5.71 | O168: 5.28 | P168: 5.28 | Q168: 0 | R168: 9.932 | S168: 9.79 | T168: 9.79 | U168: 0 | V168: 18.021 | W168: 17.241 | X168: 17.241 | Y168: 0
A169: MABE | B169: 39.0954 | C169: -106.8783 | D169: 39.1536 | E169: -106.8209 | F169: 202S | G169: 002: Escambia Operating Company LLC | H169: IND | I169: S | J169: -0.09 | K169: -0.23 | L169: -0.23 | M169: 0 | N169: 5.71 | O169: 5.28 | P169: 5.28 | Q169: 0 | R169: 9.932 | S169: 9.79 | T169: 9.79 | U169: 0 | V169: 18.021 | W169: 17.241 | X169: 17.241 | Y169: 0
A170: MACA | B170: 37.1516 | C170: -86.1551 | D170: 37.1318 | E170: -86.1479 | F170: 202S | G170: 002: Escambia Operating Company LLC | H170: IND | I170: S | J170: 13.69 | K170: 11.96 | L170: 11.96 | M170: 0 | N170: 24.04 | O170: 20.23 | P170: 20.23 | Q170: 0 | R170: 39.997 | S170: 33.541 | T170: 33.532 | U170: 0.009 | V170: 115.33 | W170: 78.16 | X170: 78.148 | Y170: 0.012
A171: MACA | B171: 37.1516 | C171: -86.1551 | D171: 37.1318 | E171: -86.1479 | F171: 202N | G171: 002: Escambia Operating Company LLC | H171: IND | I171: N | J171: 13.69 | K171: 11.96 | L171: 11.96 | M171: 0 | N171: 24.04 | O171: 20.23 | P171: 20.23 | Q171: 0 | R171: 39.997 | S171: 33.541 | T171: 33.541 | U171: 0 | V171: 115.33 | W171: 78.16 | X171: 78.16 | Y171: 0
A172: MELA | B172: 48.484 | C172: -104.5151 | D172: 48.4871 | E172: -104.4757 | F172: 202N | G172: 002: Escambia Operating Company LLC | H172: IND | I172: N | J172: 6.56 | K172: 6.32 | L172: 6.32 | M172: 0 | N172: 16.59 | O172: 15.94 | P172: 15.94 | Q172: 0 | R172: 19.455 | S172: 18.975 | T172: 18.975 | U172: 0 | V172: 56.056 | W172: 52.35 | X172: 52.35 | Y172: 0
A173: MELA | B173: 48.484 | C173: -104.5151 | D173: 48.4871 | E173: -104.4757 | F173: 202S | G173: 002: Escambia Operating Company LLC | H173: IND | I173: S | J173: 6.56 | K173: 6.32 | L173: 6.32 | M173: 0 | N173: 16.59 | O173: 15.94 | P173: 15.94 | Q173: 0 | R173: 19.455 | S173: 18.975 | T173: 18.975 | U173: 0 | V173: 56.056 | W173: 52.35 | X173: 52.35 | Y173: 0
A174: MING | B174: 36.9176 | C174: -90.1431 | D174: 36.9717 | E174: -90.1432 | F174: 202S | G174: 002: Escambia Operating Company LLC | H174: IND | I174: S | J174: 12.47 | K174: 11.44 | L174: 11.44 | M174: 0 | N174: 22.7 | O174: 20.43 | P174: 20.43 | Q174: 0 | R174: 35.343 | S174: 31.853 | T174: 31.843 | U174: 0.01 | V174: 100.89 | W174: 79.777 | X174: 79.764 | Y174: 0.013
A175: MING | B175: 36.9176 | C175: -90.1431 | D175: 36.9717 | E175: -90.1432 | F175: 202N | G175: 002: Escambia Operating Company LLC | H175: IND | I175: N | J175: 12.47 | K175: 11.44 | L175: 11.44 | M175: 0 | N175: 22.7 | O175: 20.43 | P175: 20.43 | Q175: 0 | R175: 35.343 | S175: 31.853 | T175: 31.853 | U175: 0 | V175: 100.89 | W175: 79.777 | X175: 79.777 | Y175: 0
A176: MOOS | B176: 45.1054 | C176: -67.3504 | D176: 45.1259 | E176: -67.2661 | F176: 202S | G176: 002: Escambia Operating Company LLC | H176: IND | I176: S | J176: 6.71 | K176: 6.61 | L176: 6.61 | M176: 0 | N176: 15.8 | O176: 14.36 | P176: 14.36 | Q176: 0 | R176: 19.71 | S176: 19.519 | T176: 19.519 | U176: 0 | V176: 52.133 | W176: 44.716 | X176: 44.715 | Y176: 0.001
A177: MOOS | B177: 45.1054 | C177: -67.3504 | D177: 45.1259 | E177: -67.2661 | F177: 202N | G177: 002: Escambia Operating Company LLC | H177: IND | I177: N | J177: 6.71 | K177: 6.61 | L177: 6.61 | M177: 0 | N177: 15.8 | O177: 14.36 | P177: 14.36 | Q177: 0 | R177: 19.71 | S177: 19.519 | T177: 19.519 | U177: 0 | V177: 52.133 | W177: 44.716 | X177: 44.716 | Y177: 0
A178: MOZI | B178: 40.5329 | C178: -106.6539 | D178: 40.5383 | E178: -106.6766 | F178: 202N | G178: 002: Escambia Operating Company LLC | H178: IND | I178: N | J178: 0.44 | K178: 0.25 | L178: 0.25 | M178: 0 | N178: 6.05 | O178: 5.53 | P178: 5.53 | Q178: 0 | R178: 10.489 | S178: 10.285 | T178: 10.285 | U178: 0 | V178: 18.627 | W178: 17.657 | X178: 17.657 | Y178: 0
A179: MOZI | B179: 40.5329 | C179: -106.6539 | D179: 40.5383 | E179: -106.6766 | F179: 202S | G179: 002: Escambia Operating Company LLC | H179: IND | I179: S | J179: 0.44 | K179: 0.25 | L179: 0.25 | M179: 0 | N179: 6.05 | O179: 5.53 | P179: 5.53 | Q179: 0 | R179: 10.489 | S179: 10.285 | T179: 10.285 | U179: 0 | V179: 18.627 | W179: 17.657 | X179: 17.657 | Y179: 0
A180: OKEF | B180: 30.7788 | C180: -82.1156 | D180: 30.7405 | E180: -82.1283 | F180: 202S | G180: 002: Escambia Operating Company LLC | H180: IND | I180: S | J180: 13.34 | K180: 11.84 | L180: 11.83 | M180: 0.01 | N180: 20.7 | O180: 17.55 | P180: 17.54 | Q180: 0.01 | R180: 38.427 | S180: 33.003 | T180: 32.979 | U180: 0.024 | V180: 81.978 | W180: 59.364 | X180: 59.296 | Y180: 0.068
A181: OKEF | B181: 30.7788 | C181: -82.1156 | D181: 30.7405 | E181: -82.1283 | F181: 202N | G181: 002: Escambia Operating Company LLC | H181: IND | I181: N | J181: 13.34 | K181: 11.84 | L181: 11.84 | M181: 0 | N181: 20.7 | O181: 17.55 | P181: 17.55 | Q181: 0 | R181: 38.427 | S181: 33.003 | T181: 33.003 | U181: 0 | V181: 81.978 | W181: 59.364 | X181: 59.363 | Y181: 0.001
A182: OTCR | B182: 38.988 | C182: -79.6506 | D182: 38.99 | E182: -79.65 | F182: 202S | G182: 002: Escambia Operating Company LLC | H182: IND | I182: S | J182: 9.03 | K182: 7.82 | L182: 7.82 | M182: 0 | N182: 21.59 | O182: 16.64 | P182: 16.64 | Q182: 0 | R182: 25.475 | S182: 22.426 | T182: 22.425 | U182: 0.001 | V182: 92.099 | W182: 55.01 | X182: 55.004 | Y182: 0.006
A183: OTCR | B183: 38.988 | C183: -79.6506 | D183: 38.99 | E183: -79.65 | F183: 202N | G183: 002: Escambia Operating Company LLC | H183: IND | I183: N | J183: 9.03 | K183: 7.82 | L183: 7.82 | M183: 0 | N183: 21.59 | O183: 16.64 | P183: 16.64 | Q183: 0 | R183: 25.475 | S183: 22.426 | T183: 22.426 | U183: 0 | V183: 92.099 | W183: 55.01 | X183: 55.01 | Y183: 0
A184: PECO | B184: 36.592 | C184: -105.4526 | D184: 36.5854 | E184: -105.452 | F184: 202N | G184: 002: Escambia Operating Company LLC | H184: IND | I184: N | J184: 0.57 | K184: 0.57 | L184: 0.57 | M184: 0 | N184: 6.96 | O184: 6.64 | P184: 6.64 | Q184: 0 | R184: 10.636 | S184: 10.638 | T184: 10.638 | U184: 0 | V184: 20.488 | W184: 19.867 | X184: 19.867 | Y184: 0
A185: PECO | B185: 36.592 | C185: -105.4526 | D185: 36.5854 | E185: -105.452 | F185: 202S | G185: 002: Escambia Operating Company LLC | H185: IND | I185: S | J185: 0.57 | K185: 0.57 | L185: 0.57 | M185: 0 | N185: 6.96 | O185: 6.64 | P185: 6.64 | Q185: 0 | R185: 10.636 | S185: 10.638 | T185: 10.638 | U185: 0 | V185: 20.488 | W185: 19.867 | X185: 19.867 | Y185: 0
A186: PRRA | B186: 44.2733 | C186: -71.2226 | D186: 44.3082 | E186: -71.2177 | F186: 202S | G186: 002: Escambia Operating Company LLC | H186: IND | I186: S | J186: 5.87 | K186: 5.4 | L186: 5.4 | M186: 0 | N186: 15.43 | O186: 12.94 | P186: 12.94 | Q186: 0 | R186: 18.1 | S186: 17.26 | T186: 17.26 | U186: 0 | V186: 50.127 | W186: 38.62 | X186: 38.618 | Y186: 0.002
A187: PRRA | B187: 44.2733 | C187: -71.2226 | D187: 44.3082 | E187: -71.2177 | F187: 202N | G187: 002: Escambia Operating Company LLC | H187: IND | I187: N | J187: 5.87 | K187: 5.4 | L187: 5.4 | M187: 0 | N187: 15.43 | O187: 12.94 | P187: 12.94 | Q187: 0 | R187: 18.1 | S187: 17.26 | T187: 17.26 | U187: 0 | V187: 50.127 | W187: 38.62 | X187: 38.62 | Y187: 0
A188: RAWA | B188: 40.5329 | C188: -106.6539 | D188: 40.5383 | E188: -106.6766 | F188: 202N | G188: 002: Escambia Operating Company LLC | H188: IND | I188: N | J188: 0.44 | K188: 0.25 | L188: 0.25 | M188: 0 | N188: 6.05 | O188: 5.53 | P188: 5.53 | Q188: 0 | R188: 10.489 | S188: 10.285 | T188: 10.285 | U188: 0 | V188: 18.627 | W188: 17.657 | X188: 17.657 | Y188: 0
A189: RAWA | B189: 40.5329 | C189: -106.6539 | D189: 40.5383 | E189: -106.6766 | F189: 202S | G189: 002: Escambia Operating Company LLC | H189: IND | I189: S | J189: 0.44 | K189: 0.25 | L189: 0.25 | M189: 0 | N189: 6.05 | O189: 5.53 | P189: 5.53 | Q189: 0 | R189: 10.489 | S189: 10.285 | T189: 10.285 | U189: 0 | V189: 18.627 | W189: 17.657 | X189: 17.657 | Y189: 0
A190: ROCA | B190: 45.1054 | C190: -67.3504 | D190: 45.1259 | E190: -67.2661 | F190: 202S | G190: 002: Escambia Operating Company LLC | H190: IND | I190: S | J190: 6.71 | K190: 6.61 | L190: 6.61 | M190: 0 | N190: 15.8 | O190: 14.36 | P190: 14.36 | Q190: 0 | R190: 19.71 | S190: 19.519 | T190: 19.519 | U190: 0 | V190: 52.133 | W190: 44.716 | X190: 44.715 | Y190: 0.001
A191: ROCA | B191: 45.1054 | C191: -67.3504 | D191: 45.1259 | E191: -67.2661 | F191: 202N | G191: 002: Escambia Operating Company LLC | H191: IND | I191: N | J191: 6.71 | K191: 6.61 | L191: 6.61 | M191: 0 | N191: 15.8 | O191: 14.36 | P191: 14.36 | Q191: 0 | R191: 19.71 | S191: 19.519 | T191: 19.519 | U191: 0 | V191: 52.133 | W191: 44.716 | X191: 44.716 | Y191: 0
A192: ROMA | B192: 32.9125 | C192: -79.6039 | D192: 32.941 | E192: -79.6572 | F192: 202S | G192: 002: Escambia Operating Company LLC | H192: IND | I192: S | J192: 13.59 | K192: 12.29 | L192: 12.29 | M192: 0 | N192: 21.48 | O192: 17.31 | P192: 17.31 | Q192: 0 | R192: 39.323 | S192: 34.493 | T192: 34.484 | U192: 0.009 | V192: 88.276 | W192: 57.602 | X192: 57.581 | Y192: 0.021
A193: ROMA | B193: 32.9125 | C193: -79.6039 | D193: 32.941 | E193: -79.6572 | F193: 202N | G193: 002: Escambia Operating Company LLC | H193: IND | I193: N | J193: 13.59 | K193: 12.29 | L193: 12.29 | M193: 0 | N193: 21.48 | O193: 17.31 | P193: 17.31 | Q193: 0 | R193: 39.323 | S193: 34.493 | T193: 34.493 | U193: 0 | V193: 88.276 | W193: 57.602 | X193: 57.602 | Y193: 0
A194: ROMO | B194: 40.2955 | C194: -105.4769 | D194: 40.2783 | E194: -105.5457 | F194: 202N | G194: 002: Escambia Operating Company LLC | H194: IND | I194: N | J194: 1.6 | K194: 1.47 | L194: 1.47 | M194: 0 | N194: 9.21 | O194: 8.43 | P194: 8.43 | Q194: 0 | R194: 11.768 | S194: 11.617 | T194: 11.617 | U194: 0 | V194: 25.863 | W194: 23.87 | X194: 23.87 | Y194: 0
A195: ROMO | B195: 40.2955 | C195: -105.4769 | D195: 40.2783 | E195: -105.5457 | F195: 202S | G195: 002: Escambia Operating Company LLC | H195: IND | I195: S | J195: 1.6 | K195: 1.47 | L195: 1.47 | M195: 0 | N195: 9.21 | O195: 8.43 | P195: 8.43 | Q195: 0 | R195: 11.768 | S195: 11.617 | T195: 11.617 | U195: 0 | V195: 25.863 | W195: 23.87 | X195: 23.87 | Y195: 0
A196: SACR | B196: 33.4043 | C196: -104.4479 | D196: 33.4598 | E196: -104.4042 | F196: 202S | G196: 002: Escambia Operating Company LLC | H196: IND | I196: S | J196: 7.37 | K196: 7.75 | L196: 7.75 | M196: 0 | N196: 15.31 | O196: 15.34 | P196: 15.34 | Q196: 0 | R196: 21.24 | S196: 22.11 | T196: 22.11 | U196: 0 | V196: 47.318 | W196: 47.411 | X196: 47.409 | Y196: 0.002
A197: SACR | B197: 33.4043 | C197: -104.4479 | D197: 33.4598 | E197: -104.4042 | F197: 202N | G197: 002: Escambia Operating Company LLC | H197: IND | I197: N | J197: 7.37 | K197: 7.75 | L197: 7.75 | M197: 0 | N197: 15.31 | O197: 15.34 | P197: 15.34 | Q197: 0 | R197: 21.24 | S197: 22.11 | T197: 22.11 | U197: 0 | V197: 47.318 | W197: 47.411 | X197: 47.411 | Y197: 0
A198: SAMA | B198: 30.0689 | C198: -84.1315 | D198: 30.0926 | E198: -84.1614 | F198: 202S | G198: 002: Escambia Operating Company LLC | H198: IND | I198: S | J198: 13.33 | K198: 11.84 | L198: 11.82 | M198: 0.02 | N198: 20.11 | O198: 17.22 | P198: 17.17 | Q198: 0.05 | R198: 38.46 | S198: 33.036 | T198: 32.956 | U198: 0.08 | V198: 77.538 | W198: 57.506 | X198: 57.238 | Y198: 0.268
A199: SAMA | B199: 30.0689 | C199: -84.1315 | D199: 30.0926 | E199: -84.1614 | F199: 202N | G199: 002: Escambia Operating Company LLC | H199: IND | I199: N | J199: 13.33 | K199: 11.84 | L199: 11.84 | M199: 0 | N199: 20.11 | O199: 17.22 | P199: 17.22 | Q199: 0 | R199: 38.46 | S199: 33.036 | T199: 33.036 | U199: 0 | V199: 77.538 | W199: 57.506 | X199: 57.506 | Y199: 0
A200: SAPE | B200: 36.0406 | C200: -106.8709 | D200: 36.0139 | E200: -106.8447 | F200: 202N | G200: 002: Escambia Operating Company LLC | H200: IND | I200: N | J200: 1.22 | K200: 1.16 | L200: 1.16 | M200: 0 | N200: 6.82 | O200: 6.56 | P200: 6.56 | Q200: 0 | R200: 11.342 | S200: 11.267 | T200: 11.267 | U200: 0 | V200: 20.177 | W200: 19.676 | X200: 19.676 | Y200: 0
... 2050 more rows

Sheet rh_results_SEC+BC_v3
A1: Site ID | B1: grid_lat | C1: grid_lon | D1: mon_lat | E1: mon_lon | F1: scenario | G1: Region | H1: Sector | I1: Species | J1: dv_b_b | K1: dv_b_f | L1: dv_b_fx | M1: delta_dvb | N1: dv_w_b | O1: dv_w_f | P1: dv_w_fx | Q1: delta_dvw | R1: bext_b_b | S1: bext_b_f | T1: bext_b_fx | U1: delta_extb | V1: bext_w_b | W1: bext_w_f | X1: bext_w_fx | Y1: delta_extw
A2: MACA | B2: 37.1516 | C2: -86.1551 | D2: 37.1318 | E2: -86.1479 | F2: noLDALLS | G2: LADCO | H2: ALL | I2: S | J2: 13.69 | K2: 11.96 | L2: 11.19 | M2: 0.77 | N2: 24.04 | O2: 20.23 | P2: 17.28 | Q2: 2.95 | R2: 39.997 | S2: 33.541 | T2: 30.977 | U2: 2.564 | V2: 115.33 | W2: 78.16 | X2: 58.129 | Y2: 20.031
A3: CACR | B3: 34.4879 | C3: -94.1775 | D3: 34.4544 | E3: -94.1429 | F3: noCNALLS | G3: CENRAP | H3: ALL | I3: S | J3: 9.74 | K3: 9.13 | L3: 8.08 | M3: 1.05 | N3: 20.87 | O3: 19.41 | P3: 16.82 | Q3: 2.59 | R3: 27.343 | S3: 25.65 | T3: 22.988 | U3: 2.662 | V3: 83.305 | W3: 71.871 | X3: 55.298 | Y3: 16.573
A4: DOSO | B4: 39.0739 | C4: -79.4869 | D4: 39.1053 | E4: -79.4261 | F4: noLDALLS | G4: LADCO | H4: ALL | I4: S | J4: 9.03 | K4: 7.84 | L4: 7.08 | M4: 0.76 | N4: 21.59 | O4: 16.7 | P4: 13.39 | Q4: 3.31 | R4: 25.475 | S4: 22.47 | T4: 20.753 | U4: 1.717 | V4: 92.099 | W4: 55.369 | X4: 39.338 | Y4: 16.031
A5: OTCR | B5: 38.988 | C5: -79.6506 | D5: 38.99 | E5: -79.65 | F5: noLDALLS | G5: LADCO | H5: ALL | I5: S | J5: 9.03 | K5: 7.82 | L5: 7.04 | M5: 0.78 | N5: 21.59 | O5: 16.64 | P5: 13.3 | Q5: 3.34 | R5: 25.475 | S5: 22.426 | T5: 20.673 | U5: 1.753 | V5: 92.099 | W5: 55.01 | X5: 38.996 | Y5: 16.014
A6: HEGL | B6: 36.6155 | C6: -92.8783 | D6: 36.6138 | E6: -92.9221 | F6: noCNALLS | G6: CENRAP | H6: ALL | I6: S | J6: 10.96 | K6: 10.12 | L6: 9.19 | M6: 0.93 | N6: 21.63 | O6: 19.78 | P6: 17.66 | Q6: 2.12 | R6: 30.39 | S6: 27.917 | T6: 25.416 | U6: 2.501 | V6: 90.901 | W6: 74.949 | X6: 60.777 | Y6: 14.172
A7: UPBU | B7: 35.8669 | C7: -93.1879 | D7: 35.8258 | E7: -93.203 | F7: noCNALLS | G7: CENRAP | H7: ALL | I7: S | J7: 9.95 | K7: 9.22 | L7: 8.43 | M7: 0.79 | N7: 20.52 | O7: 18.91 | P7: 16.71 | Q7: 2.2 | R7: 27.872 | S7: 25.835 | T7: 23.821 | U7: 2.014 | V7: 79.846 | W7: 67.826 | X7: 54.434 | Y7: 13.392
A8: MING | B8: 36.9176 | C8: -90.1431 | D8: 36.9717 | E8: -90.1432 | F8: noLDALLS | G8: LADCO | H8: ALL | I8: S | J8: 12.47 | K8: 11.44 | L8: 10.95 | M8: 0.49 | N8: 22.7 | O8: 20.43 | P8: 18.66 | Q8: 1.77 | R8: 35.343 | S8: 31.853 | T8: 30.303 | U8: 1.55 | V8: 100.89 | W8: 79.777 | X8: 66.906 | Y8: 12.871
A9: SIPS | B9: 34.3181 | C9: -87.3563 | D9: 34.3433 | E9: -87.3388 | F9: noLDALLS | G9: LADCO | H9: ALL | I9: S | J9: 12.84 | K9: 11.45 | L9: 10.98 | M9: 0.47 | N9: 21.67 | O9: 17.63 | P9: 15.39 | Q9: 2.24 | R9: 36.68 | S9: 31.848 | T9: 30.348 | U9: 1.5 | V9: 90.545 | W9: 60.036 | X9: 47.817 | Y9: 12.219
A10: SHEN | B10: 38.5836 | C10: -78.4765 | D10: 38.5229 | E10: -78.4348 | F10: noLDALLS | G10: LADCO | H10: ALL | I10: S | J10: 8.6 | K10: 7.51 | L10: 7.16 | M10: 0.35 | N10: 20.72 | O10: 15.91 | P10: 13.52 | Q10: 2.39 | R10: 24.402 | S10: 21.736 | T10: 20.941 | U10: 0.795 | V10: 84.028 | W10: 51.163 | X10: 39.888 | Y10: 11.275
A11: HEGL | B11: 36.6155 | C11: -92.8783 | D11: 36.6138 | E11: -92.9221 | F11: noCNALLN | G11: CENRAP | H11: ALL | I11: N | J11: 10.96 | K11: 10.12 | L11: 9.66 | M11: 0.46 | N11: 21.63 | O11: 19.78 | P11: 18.16 | Q11: 1.62 | R11: 30.39 | S11: 27.917 | T11: 26.659 | U11: 1.258 | V11: 90.901 | W11: 74.949 | X11: 63.812 | Y11: 11.137
A12: JARI | B12: 37.6477 | C12: -79.559 | D12: 37.6266 | E12: -79.5125 | F12: noLDALLS | G12: LADCO | H12: ALL | I12: S | J12: 11.79 | K12: 10.12 | L12: 9.22 | M12: 0.9 | N12: 21.37 | O12: 16.88 | P12: 14.81 | Q12: 2.07 | R12: 33.299 | S12: 28.042 | T12: 25.555 | U12: 2.487 | V12: 88.503 | W12: 55.929 | X12: 45.31 | Y12: 10.619
A13: MING | B13: 36.9176 | C13: -90.1431 | D13: 36.9717 | E13: -90.1432 | F13: noCNALLS | G13: CENRAP | H13: ALL | I13: S | J13: 12.47 | K13: 11.44 | L13: 10.69 | M13: 0.75 | N13: 22.7 | O13: 20.43 | P13: 19.07 | Q13: 1.36 | R13: 35.343 | S13: 31.853 | T13: 29.5 | U13: 2.353 | V13: 100.89 | W13: 79.777 | X13: 69.645 | Y13: 10.132
A14: WIMO | B14: 34.7261 | C14: -98.7778 | D14: 34.7323 | E14: -98.713 | F14: noCNALLN | G14: CENRAP | H14: ALL | I14: N | J14: 9.22 | K14: 8.73 | L14: 8.24 | M14: 0.49 | N14: 20.32 | O14: 18.68 | P14: 17 | Q14: 1.68 | R14: 25.591 | S14: 24.329 | T14: 23.167 | U14: 1.162 | V14: 78.992 | W14: 66.354 | X14: 56.306 | Y14: 10.048
A15: BRET2 | B15: 30.0692 | C15: -89.743 | D15: 30.1086 | E15: -89.7617 | F15: noCNALLS | G15: CENRAP | H15: ALL | I15: S | J15: 13.81 | K15: 12.59 | L15: 11.43 | M15: 1.16 | N15: 22.49 | O15: 18.93 | P15: 17.39 | Q15: 1.54 | R15: 40.628 | S15: 35.846 | T15: 31.871 | U15: 3.975 | V15: 98.659 | W15: 68.69 | X15: 58.915 | Y15: 9.775
A16: COHU | B16: 34.8086 | C16: -84.6365 | D16: 34.7852 | E16: -84.6265 | F16: noLDALLS | G16: LADCO | H16: ALL | I16: S | J16: 10.94 | K16: 9.43 | L16: 8.84 | M16: 0.59 | N16: 21.19 | O16: 15.95 | P16: 13.99 | Q16: 1.96 | R16: 30.749 | S16: 26.277 | T16: 24.69 | U16: 1.587 | V16: 86.468 | W16: 50.746 | X16: 41.593 | Y16: 9.153
A17: SENE | B17: 46.2994 | C17: -85.9893 | D17: 46.2889 | E17: -85.9503 | F17: noLDALLS | G17: LADCO | H17: ALL | I17: S | J17: 5.51 | K17: 5.34 | L17: 5.27 | M17: 0.07 | N17: 19.84 | O17: 17.38 | P17: 15.82 | Q17: 1.56 | R17: 17.476 | S17: 17.168 | T17: 17.049 | U17: 0.119 | V17: 79.085 | W17: 61.067 | X17: 52.291 | Y17: 8.776
A18: WIMO | B18: 34.7261 | C18: -98.7778 | D18: 34.7323 | E18: -98.713 | F18: noCNALLS | G18: CENRAP | H18: ALL | I18: S | J18: 9.22 | K18: 8.73 | L18: 8.22 | M18: 0.51 | N18: 20.32 | O18: 18.68 | P18: 17.31 | Q18: 1.37 | R18: 25.591 | S18: 24.329 | T18: 23.092 | U18: 1.237 | V18: 78.992 | W18: 66.354 | X18: 57.912 | Y18: 8.442
A19: GRSM | B19: 35.6061 | C19: -83.9639 | D19: 35.6334 | E19: -83.9416 | F19: noLDALLS | G19: LADCO | H19: ALL | I19: S | J19: 10.63 | K19: 9.2 | L19: 8.52 | M19: 0.68 | N19: 21.39 | O19: 16.21 | P19: 14.48 | Q19: 1.73 | R19: 29.756 | S19: 25.63 | T19: 23.885 | U19: 1.745 | V19: 88.031 | W19: 51.925 | X19: 43.586 | Y19: 8.339
A20: SENE | B20: 46.2994 | C20: -85.9893 | D20: 46.2889 | E20: -85.9503 | F20: noLDALLN | G20: LADCO | H20: ALL | I20: N | J20: 5.51 | K20: 5.34 | L20: 5.3 | M20: 0.04 | N20: 19.84 | O20: 17.38 | P20: 15.99 | Q20: 1.39 | R20: 17.476 | S20: 17.168 | T20: 17.092 | U20: 0.076 | V20: 79.085 | W20: 61.067 | X20: 52.749 | Y20: 8.318
A21: JOYC | B21: 35.3917 | C21: -84.0019 | D21: 35.44 | E21: -83.99 | F21: noLDALLS | G21: LADCO | H21: ALL | I21: S | J21: 10.63 | K21: 9.19 | L21: 8.51 | M21: 0.68 | N21: 21.39 | O21: 16.09 | P21: 14.43 | Q21: 1.66 | R21: 29.756 | S21: 25.625 | T21: 23.853 | U21: 1.772 | V21: 88.031 | W21: 51.27 | X21: 43.378 | Y21: 7.892
A22: UPBU | B22: 35.8669 | C22: -93.1879 | D22: 35.8258 | E22: -93.203 | F22: noCNALLN | G22: CENRAP | H22: ALL | I22: N | J22: 9.95 | K22: 9.22 | L22: 8.78 | M22: 0.44 | N22: 20.52 | O22: 18.91 | P22: 17.6 | Q22: 1.31 | R22: 27.872 | S22: 25.835 | T22: 24.679 | U22: 1.156 | V22: 79.846 | W22: 67.826 | X22: 60.01 | Y22: 7.816
A23: HEGL | B23: 36.6155 | C23: -92.8783 | D23: 36.6138 | E23: -92.9221 | F23: noLDALLS | G23: LADCO | H23: ALL | I23: S | J23: 10.96 | K23: 10.12 | L23: 10.01 | M23: 0.11 | N23: 21.63 | O23: 19.78 | P23: 18.71 | Q23: 1.07 | R23: 30.39 | S23: 27.917 | T23: 27.596 | U23: 0.321 | V23: 90.901 | W23: 74.949 | X23: 67.408 | Y23: 7.541
A24: CACR | B24: 34.4879 | C24: -94.1775 | D24: 34.4544 | E24: -94.1429 | F24: noCNALLN | G24: CENRAP | H24: ALL | I24: N | J24: 9.74 | K24: 9.13 | L24: 8.64 | M24: 0.49 | N24: 20.87 | O24: 19.41 | P24: 18.2 | Q24: 1.21 | R24: 27.343 | S24: 25.65 | T24: 24.367 | U24: 1.283 | V24: 83.305 | W24: 71.871 | X24: 64.395 | Y24: 7.476
A25: BRIG | B25: 39.4332 | C25: -74.4993 | D25: 39.465 | E25: -74.4492 | F25: noLDALLS | G25: LADCO | H25: ALL | I25: S | J25: 12.25 | K25: 11.17 | L25: 10.95 | M25: 0.22 | N25: 22.26 | O25: 19.06 | P25: 17.95 | Q25: 1.11 | R25: 34.385 | S25: 30.848 | T25: 30.146 | U25: 0.702 | V25: 96.79 | W25: 69.683 | X25: 62.358 | Y25: 7.325
A26: LIGO | B26: 35.9975 | C26: -81.8601 | D26: 35.9723 | E26: -81.9331 | F26: noLDALLS | G26: LADCO | H26: ALL | I26: S | J26: 9.7 | K26: 8.45 | L26: 7.93 | M26: 0.52 | N26: 20.39 | O26: 15.51 | P26: 13.91 | Q26: 1.6 | R26: 26.93 | S26: 23.639 | T26: 22.41 | U26: 1.229 | V26: 79.816 | W26: 48.439 | X26: 41.191 | Y26: 7.248
A27: BRIG | B27: 39.4332 | C27: -74.4993 | D27: 39.465 | E27: -74.4492 | F27: noMVALLS | G27: MANE-VU | H27: ALL | I27: S | J27: 12.25 | K27: 11.17 | L27: 10.71 | M27: 0.46 | N27: 22.26 | O27: 19.06 | P27: 17.96 | Q27: 1.1 | R27: 34.385 | S27: 30.848 | T27: 29.437 | U27: 1.411 | V27: 96.79 | W27: 69.683 | X27: 62.439 | Y27: 7.244
A28: MACA | B28: 37.1516 | C28: -86.1551 | D28: 37.1318 | E28: -86.1479 | F28: noLDALLN | G28: LADCO | H28: ALL | I28: N | J28: 13.69 | K28: 11.96 | L28: 11.56 | M28: 0.4 | N28: 24.04 | O28: 20.23 | P28: 19.2 | Q28: 1.03 | R28: 39.997 | S28: 33.541 | T28: 32.227 | U28: 1.314 | V28: 115.33 | W28: 78.16 | X28: 71.016 | Y28: 7.144
A29: SHRO | B29: 35.3535 | C29: -82.8 | D29: 35.3937 | E29: -82.7744 | F29: noLDALLS | G29: LADCO | H29: ALL | I29: S | J29: 9.7 | K29: 8.25 | L29: 7.73 | M29: 0.52 | N29: 20.39 | O29: 15.36 | P29: 13.84 | Q29: 1.52 | R29: 26.93 | S29: 23.172 | T29: 21.94 | U29: 1.232 | V29: 79.816 | W29: 47.705 | X29: 40.889 | Y29: 6.816
A30: BRET2 | B30: 30.0692 | C30: -89.743 | D30: 30.1086 | E30: -89.7617 | F30: noLDALLS | G30: LADCO | H30: ALL | I30: S | J30: 13.81 | K30: 12.59 | L30: 12.12 | M30: 0.47 | N30: 22.49 | O30: 18.93 | P30: 17.98 | Q30: 0.95 | R30: 40.628 | S30: 35.846 | T30: 34.197 | U30: 1.649 | V30: 98.659 | W30: 68.69 | X30: 62.464 | Y30: 6.226
A31: MING | B31: 36.9176 | C31: -90.1431 | D31: 36.9717 | E31: -90.1432 | F31: noLDALLN | G31: LADCO | H31: ALL | I31: N | J31: 12.47 | K31: 11.44 | L31: 11.26 | M31: 0.18 | N31: 22.7 | O31: 20.43 | P31: 19.64 | Q31: 0.79 | R31: 35.343 | S31: 31.853 | T31: 31.274 | U31: 0.579 | V31: 100.89 | W31: 79.777 | X31: 73.66 | Y31: 6.117
A32: SAMA | B32: 30.0689 | C32: -84.1315 | D32: 30.0926 | E32: -84.1614 | F32: noCNALLS | G32: CENRAP | H32: ALL | I32: S | J32: 13.33 | K32: 11.84 | L32: 11.45 | M32: 0.39 | N32: 20.11 | O32: 17.22 | P32: 16.13 | Q32: 1.09 | R32: 38.46 | S32: 33.036 | T32: 31.729 | U32: 1.307 | V32: 77.538 | W32: 57.506 | X32: 51.451 | Y32: 6.055
A33: BRIG | B33: 39.4332 | C33: -74.4993 | D33: 39.465 | E33: -74.4492 | F33: noMVALLN | G33: MANE-VU | H33: ALL | I33: N | J33: 12.25 | K33: 11.17 | L33: 10.87 | M33: 0.3 | N33: 22.26 | O33: 19.06 | P33: 18.16 | Q33: 0.9 | R33: 34.385 | S33: 30.848 | T33: 29.892 | U33: 0.956 | V33: 96.79 | W33: 69.683 | X33: 63.69 | Y33: 5.993
A34: SHEN | B34: 38.5836 | C34: -78.4765 | D34: 38.5229 | E34: -78.4348 | F34: noMVALLS | G34: MANE-VU | H34: ALL | I34: S | J34: 8.6 | K34: 7.51 | L34: 6.97 | M34: 0.54 | N34: 20.72 | O34: 15.91 | P34: 14.74 | Q34: 1.17 | R34: 24.402 | S34: 21.736 | T34: 20.544 | U34: 1.192 | V34: 84.028 | W34: 51.163 | X34: 45.29 | Y34: 5.873
A35: MING | B35: 36.9176 | C35: -90.1431 | D35: 36.9717 | E35: -90.1432 | F35: noCNALLN | G35: CENRAP | H35: ALL | I35: N | J35: 12.47 | K35: 11.44 | L35: 11.26 | M35: 0.18 | N35: 22.7 | O35: 20.43 | P35: 19.69 | Q35: 0.74 | R35: 35.343 | S35: 31.853 | T35: 31.283 | U35: 0.57 | V35: 100.89 | W35: 79.777 | X35: 74.059 | Y35: 5.718
A36: LYBR2 | B36: 42.9452 | C36: -72.9798 | D36: 42.953 | E36: -72.9103 | F36: noMVALLS | G36: MANE-VU | H36: ALL | I36: S | J36: 4.89 | K36: 4.26 | L36: 4.1 | M36: 0.16 | N36: 18.06 | O36: 14.97 | P36: 13.77 | Q36: 1.2 | R36: 16.502 | S36: 15.447 | T36: 15.186 | U36: 0.261 | V36: 65.868 | W36: 47.241 | X36: 41.539 | Y36: 5.702
A37: BOWA | B37: 47.9351 | C37: -91.4775 | D37: 47.9466 | E37: -91.4955 | F37: noCNALLN | G37: CENRAP | H37: ALL | I37: N | J37: 4.86 | K37: 4.76 | L37: 4.74 | M37: 0.02 | N37: 16.43 | O37: 14.48 | P37: 13.28 | Q37: 1.2 | R37: 16.381 | S37: 16.225 | T37: 16.19 | U37: 0.035 | V37: 56.176 | W37: 45.593 | X37: 40.014 | Y37: 5.579
A38: MACA | B38: 37.1516 | C38: -86.1551 | D38: 37.1318 | E38: -86.1479 | F38: noCNALLS | G38: CENRAP | H38: ALL | I38: S | J38: 13.69 | K38: 11.96 | L38: 11.68 | M38: 0.28 | N38: 24.04 | O38: 20.23 | P38: 19.5 | Q38: 0.73 | R38: 39.997 | S38: 33.541 | T38: 32.576 | U38: 0.965 | V38: 115.33 | W38: 78.16 | X38: 72.588 | Y38: 5.572
A39: BOWA | B39: 47.9351 | C39: -91.4775 | D39: 47.9466 | E39: -91.4955 | F39: noCNALLS | G39: CENRAP | H39: ALL | I39: S | J39: 4.86 | K39: 4.76 | L39: 4.72 | M39: 0.04 | N39: 16.43 | O39: 14.48 | P39: 13.22 | Q39: 1.26 | R39: 16.381 | S39: 16.225 | T39: 16.149 | U39: 0.076 | V39: 56.176 | W39: 45.593 | X39: 40.184 | Y39: 5.409
A40: MELA | B40: 48.484 | C40: -104.5151 | D40: 48.4871 | E40: -104.4757 | F40: noOTALLS | G40: All Other Regions | H40: ALL | I40: S | J40: 6.56 | K40: 6.32 | L40: 5.97 | M40: 0.35 | N40: 16.59 | O40: 15.94 | P40: 14.89 | Q40: 1.05 | R40: 19.455 | S40: 18.975 | T40: 18.309 | U40: 0.666 | V40: 56.056 | W40: 52.35 | X40: 47.026 | Y40: 5.324
A41: SWAN | B41: 35.3996 | C41: -76.1558 | D41: 35.451 | E41: -76.2075 | F41: noLDALLS | G41: LADCO | H41: ALL | I41: S | J41: 11.76 | K41: 10.89 | L41: 10.72 | M41: 0.17 | N41: 19.76 | O41: 16.03 | P41: 14.96 | Q41: 1.07 | R41: 32.749 | S41: 29.965 | T41: 29.464 | U41: 0.501 | V41: 75.643 | W41: 51.328 | X41: 46.013 | Y41: 5.315
A42: ISLE | B42: 47.4367 | C42: -88.1796 | D42: 47.4596 | E42: -88.1491 | F42: noLDALLS | G42: LADCO | H42: ALL | I42: S | J42: 5.4 | K42: 5.26 | L42: 5.24 | M42: 0.02 | N42: 17.63 | O42: 15.58 | P42: 14.51 | Q42: 1.07 | R42: 17.272 | S42: 17.028 | T42: 16.99 | U42: 0.038 | V42: 63.565 | W42: 51.075 | X42: 45.793 | Y42: 5.282
A43: SACR | B43: 33.4043 | C43: -104.4479 | D43: 33.4598 | E43: -104.4042 | F43: noOTALLS | G43: All Other Regions | H43: ALL | I43: S | J43: 7.37 | K43: 7.75 | L43: 7.56 | M43: 0.19 | N43: 15.31 | O43: 15.34 | P43: 14.22 | Q43: 1.12 | R43: 21.24 | S43: 22.11 | T43: 21.682 | U43: 0.428 | V43: 47.318 | W43: 47.411 | X43: 42.372 | Y43: 5.039
A44: LYBR2 | B44: 42.9452 | C44: -72.9798 | D44: 42.953 | E44: -72.9103 | F44: noLDALLS | G44: LADCO | H44: ALL | I44: S | J44: 4.89 | K44: 4.26 | L44: 4.21 | M44: 0.05 | N44: 18.06 | O44: 14.97 | P44: 13.92 | Q44: 1.05 | R44: 16.502 | S44: 15.447 | T44: 15.373 | U44: 0.074 | V44: 65.868 | W44: 47.241 | X44: 42.204 | Y44: 5.037
A45: CAVE | B45: 31.8634 | C45: -104.8081 | D45: 31.833 | E45: -104.8094 | F45: noOTALLS | G45: All Other Regions | H45: ALL | I45: S | J45: 5.25 | K45: 5.08 | L45: 4.89 | M45: 0.19 | N45: 12.81 | O45: 12.5 | P45: 11.01 | Q45: 1.49 | R45: 17.13 | S45: 16.837 | T45: 16.512 | U45: 0.325 | V45: 36.706 | W45: 35.567 | X45: 30.563 | Y45: 5.004
A46: GUMO | B46: 31.8634 | C46: -104.8081 | D46: 31.833 | E46: -104.8094 | F46: noOTALLS | G46: All Other Regions | H46: ALL | I46: S | J46: 5.25 | K46: 5.08 | L46: 4.89 | M46: 0.19 | N46: 12.81 | O46: 12.5 | P46: 11.01 | Q46: 1.49 | R46: 17.13 | S46: 16.837 | T46: 16.512 | U46: 0.325 | V46: 36.706 | W46: 35.567 | X46: 30.563 | Y46: 5.004
A47: BIBE | B47: 29.2779 | C47: -103.2003 | D47: 29.3027 | E47: -103.178 | F47: noOTALLS | G47: All Other Regions | H47: ALL | I47: S | J47: 5.65 | K47: 5.63 | L47: 5.4 | M47: 0.23 | N47: 14.37 | O47: 14.22 | P47: 13.01 | Q47: 1.21 | R47: 17.808 | S47: 17.791 | T47: 17.372 | U47: 0.419 | V47: 43.381 | W47: 42.706 | X47: 37.75 | Y47: 4.956
A48: OKEF | B48: 30.7788 | C48: -82.1156 | D48: 30.7405 | E48: -82.1283 | F48: noLDALLS | G48: LADCO | H48: ALL | I48: S | J48: 13.34 | K48: 11.84 | L48: 11.57 | M48: 0.27 | N48: 20.7 | O48: 17.55 | P48: 16.7 | Q48: 0.85 | R48: 38.427 | S48: 33.003 | T48: 32.111 | U48: 0.892 | V48: 81.978 | W48: 59.364 | X48: 54.466 | Y48: 4.898
A49: MELA | B49: 48.484 | C49: -104.5151 | D49: 48.4871 | E49: -104.4757 | F49: noOTALLN | G49: All Other Regions | H49: ALL | I49: N | J49: 6.56 | K49: 6.32 | L49: 6.11 | M49: 0.21 | N49: 16.59 | O49: 15.94 | P49: 15.04 | Q49: 0.9 | R49: 19.455 | S49: 18.975 | T49: 18.575 | U49: 0.4 | V49: 56.056 | W49: 52.35 | X49: 47.622 | Y49: 4.728
A50: WOLF | B50: 31.3065 | C50: -81.2471 | D50: 31.33 | E50: -81.3 | F50: noLDALLS | G50: LADCO | H50: ALL | I50: S | J50: 13.34 | K50: 11.77 | L50: 11.5 | M50: 0.27 | N50: 20.7 | O50: 17.33 | P50: 16.5 | Q50: 0.83 | R50: 38.427 | S50: 32.761 | T50: 31.871 | U50: 0.89 | V50: 81.978 | W50: 58.067 | X50: 53.36 | Y50: 4.707
A51: ROMA | B51: 32.9125 | C51: -79.6039 | D51: 32.941 | E51: -79.6572 | F51: noLDALLS | G51: LADCO | H51: ALL | I51: S | J51: 13.59 | K51: 12.29 | L51: 11.98 | M51: 0.31 | N51: 21.48 | O51: 17.31 | P51: 16.47 | Q51: 0.84 | R51: 39.323 | S51: 34.493 | T51: 33.412 | U51: 1.081 | V51: 88.276 | W51: 57.602 | X51: 52.931 | Y51: 4.671
A52: BADL | B52: 43.7531 | C52: -101.8689 | D52: 43.7435 | E52: -101.9412 | F52: noCNALLS | G52: CENRAP | H52: ALL | I52: S | J52: 5.78 | K52: 5.58 | L52: 5.53 | M52: 0.05 | N52: 14.33 | O52: 13.38 | P52: 12.17 | Q52: 1.21 | R52: 17.92 | S52: 17.563 | T52: 17.471 | U52: 0.092 | V52: 43.625 | W52: 39.578 | X52: 34.923 | Y52: 4.655
A53: SIPS | B53: 34.3181 | C53: -87.3563 | D53: 34.3433 | E53: -87.3388 | F53: noCNALLS | G53: CENRAP | H53: ALL | I53: S | J53: 12.84 | K53: 11.45 | L53: 10.76 | M53: 0.69 | N53: 21.67 | O53: 17.63 | P53: 16.84 | Q53: 0.79 | R53: 36.68 | S53: 31.848 | T53: 29.668 | U53: 2.18 | V53: 90.545 | W53: 60.036 | X53: 55.383 | Y53: 4.653
A54: THRO | B54: 46.9291 | C54: -103.3791 | D54: 46.8948 | E54: -103.3777 | F54: noOTALLS | G54: All Other Regions | H54: ALL | I54: S | J54: 6.38 | K54: 6.15 | L54: 5.91 | M54: 0.24 | N54: 15.71 | O54: 14.91 | P54: 13.9 | Q54: 1.01 | R54: 19.07 | S54: 18.626 | T54: 18.185 | U54: 0.441 | V54: 50.733 | W54: 46.698 | X54: 42.122 | Y54: 4.576
A55: SWAN | B55: 35.3996 | C55: -76.1558 | D55: 35.451 | E55: -76.2075 | F55: noMVALLS | G55: MANE-VU | H55: ALL | I55: S | J55: 11.76 | K55: 10.89 | L55: 10.71 | M55: 0.18 | N55: 19.76 | O55: 16.03 | P55: 15.15 | Q55: 0.88 | R55: 32.749 | S55: 29.965 | T55: 29.431 | U55: 0.534 | V55: 75.643 | W55: 51.328 | X55: 46.892 | Y55: 4.436
A56: JOYC | B56: 35.3917 | C56: -84.0019 | D56: 35.44 | E56: -83.99 | F56: noCNALLS | G56: CENRAP | H56: ALL | I56: S | J56: 10.63 | K56: 9.19 | L56: 8.82 | M56: 0.37 | N56: 21.39 | O56: 16.09 | P56: 15.22 | Q56: 0.87 | R56: 29.756 | S56: 25.625 | T56: 24.65 | U56: 0.975 | V56: 88.031 | W56: 51.27 | X56: 46.958 | Y56: 4.312
A57: SHRO | B57: 35.3535 | C57: -82.8 | D57: 35.3937 | E57: -82.7744 | F57: noCNALLS | G57: CENRAP | H57: ALL | I57: S | J57: 9.7 | K57: 8.25 | L57: 8.04 | M57: 0.21 | N57: 20.39 | O57: 15.36 | P57: 14.44 | Q57: 0.92 | R57: 26.93 | S57: 23.172 | T57: 22.661 | U57: 0.511 | V57: 79.816 | W57: 47.705 | X57: 43.446 | Y57: 4.259
A58: ISLE | B58: 47.4367 | C58: -88.1796 | D58: 47.4596 | E58: -88.1491 | F58: noCNALLS | G58: CENRAP | H58: ALL | I58: S | J58: 5.4 | K58: 5.26 | L58: 5.23 | M58: 0.03 | N58: 17.63 | O58: 15.58 | P58: 14.75 | Q58: 0.83 | R58: 17.272 | S58: 17.028 | T58: 16.969 | U58: 0.059 | V58: 63.565 | W58: 51.075 | X58: 46.908 | Y58: 4.167
A59: ISLE | B59: 47.4367 | C59: -88.1796 | D59: 47.4596 | E59: -88.1491 | F59: noLDALLN | G59: LADCO | H59: ALL | I59: N | J59: 5.4 | K59: 5.26 | L59: 5.25 | M59: 0.01 | N59: 17.63 | O59: 15.58 | P59: 14.82 | Q59: 0.76 | R59: 17.272 | S59: 17.028 | T59: 17.002 | U59: 0.026 | V59: 63.565 | W59: 51.075 | X59: 47.003 | Y59: 4.072
A60: GRGU | B60: 44.2733 | C60: -71.2226 | D60: 44.3082 | E60: -71.2177 | F60: noLDALLS | G60: LADCO | H60: ALL | I60: S | J60: 5.87 | K60: 5.4 | L60: 5.37 | M60: 0.03 | N60: 15.43 | O60: 12.94 | P60: 11.89 | Q60: 1.05 | R60: 18.1 | S60: 17.26 | T60: 17.204 | U60: 0.056 | V60: 50.127 | W60: 38.62 | X60: 34.582 | Y60: 4.038
A61: PRRA | B61: 44.2733 | C61: -71.2226 | D61: 44.3082 | E61: -71.2177 | F61: noLDALLS | G61: LADCO | H61: ALL | I61: S | J61: 5.87 | K61: 5.4 | L61: 5.37 | M61: 0.03 | N61: 15.43 | O61: 12.94 | P61: 11.89 | Q61: 1.05 | R61: 18.1 | S61: 17.26 | T61: 17.204 | U61: 0.056 | V61: 50.127 | W61: 38.62 | X61: 34.582 | Y61: 4.038
A62: GRSM | B62: 35.6061 | C62: -83.9639 | D62: 35.6334 | E62: -83.9416 | F62: noCNALLS | G62: CENRAP | H62: ALL | I62: S | J62: 10.63 | K62: 9.2 | L62: 8.84 | M62: 0.36 | N62: 21.39 | O62: 16.21 | P62: 15.42 | Q62: 0.79 | R62: 29.756 | S62: 25.63 | T62: 24.708 | U62: 0.922 | V62: 88.031 | W62: 51.925 | X62: 47.929 | Y62: 3.996
A63: CHAS | B63: 28.7695 | C63: -82.4932 | D63: 28.7484 | E63: -82.5549 | F63: noCNALLS | G63: CENRAP | H63: ALL | I63: S | J63: 13.76 | K63: 12.74 | L63: 12.49 | M63: 0.25 | N63: 19.94 | O63: 17.32 | P63: 16.62 | Q63: 0.7 | R63: 39.884 | S63: 35.998 | T63: 35.101 | U63: 0.897 | V63: 75.326 | W63: 57.541 | X63: 53.612 | Y63: 3.929
A64: CHAS | B64: 28.7695 | C64: -82.4932 | D64: 28.7484 | E64: -82.5549 | F64: noFLALLS | G64: Florida | H64: ALL | I64: S | J64: 13.76 | K64: 12.74 | L64: 12.24 | M64: 0.5 | N64: 19.94 | O64: 17.32 | P64: 16.62 | Q64: 0.7 | R64: 39.884 | S64: 35.998 | T64: 34.236 | U64: 1.762 | V64: 75.326 | W64: 57.541 | X64: 53.619 | Y64: 3.922
A65: ISLE | B65: 47.4367 | C65: -88.1796 | D65: 47.4596 | E65: -88.1491 | F65: noCNALLN | G65: CENRAP | H65: ALL | I65: N | J65: 5.4 | K65: 5.26 | L65: 5.23 | M65: 0.03 | N65: 17.63 | O65: 15.58 | P65: 14.85 | Q65: 0.73 | R65: 17.272 | S65: 17.028 | T65: 16.973 | U65: 0.055 | V65: 63.565 | W65: 51.075 | X65: 47.177 | Y65: 3.898
A66: LIGO | B66: 35.9975 | C66: -81.8601 | D66: 35.9723 | E66: -81.9331 | F66: noCNALLS | G66: CENRAP | H66: ALL | I66: S | J66: 9.7 | K66: 8.45 | L66: 8.26 | M66: 0.19 | N66: 20.39 | O66: 15.51 | P66: 14.7 | Q66: 0.81 | R66: 26.93 | S66: 23.639 | T66: 23.176 | U66: 0.463 | V66: 79.816 | W66: 48.439 | X66: 44.614 | Y66: 3.825
A67: DOSO | B67: 39.0739 | C67: -79.4869 | D67: 39.1053 | E67: -79.4261 | F67: noMVALLS | G67: MANE-VU | H67: ALL | I67: S | J67: 9.03 | K67: 7.84 | L67: 7.54 | M67: 0.3 | N67: 21.59 | O67: 16.7 | P67: 16.03 | Q67: 0.67 | R67: 25.475 | S67: 22.47 | T67: 21.777 | U67: 0.693 | V67: 92.099 | W67: 55.369 | X67: 51.653 | Y67: 3.716
A68: CACR | B68: 34.4879 | C68: -94.1775 | D68: 34.4544 | E68: -94.1429 | F68: noLDALLS | G68: LADCO | H68: ALL | I68: S | J68: 9.74 | K68: 9.13 | L68: 9.06 | M68: 0.07 | N68: 20.87 | O68: 19.41 | P68: 18.89 | Q68: 0.52 | R68: 27.343 | S68: 25.65 | T68: 25.462 | U68: 0.188 | V68: 83.305 | W68: 71.871 | X68: 68.182 | Y68: 3.689
A69: SACR | B69: 33.4043 | C69: -104.4479 | D69: 33.4598 | E69: -104.4042 | F69: noCNALLS | G69: CENRAP | H69: ALL | I69: S | J69: 7.37 | K69: 7.75 | L69: 7.69 | M69: 0.06 | N69: 15.31 | O69: 15.34 | P69: 14.54 | Q69: 0.8 | R69: 21.24 | S69: 22.11 | T69: 21.982 | U69: 0.128 | V69: 47.318 | W69: 47.411 | X69: 43.744 | Y69: 3.667
A70: THRO | B70: 46.9291 | C70: -103.3791 | D70: 46.8948 | E70: -103.3777 | F70: noOTALLN | G70: All Other Regions | H70: ALL | I70: N | J70: 6.38 | K70: 6.15 | L70: 6.03 | M70: 0.12 | N70: 15.71 | O70: 14.91 | P70: 14.17 | Q70: 0.74 | R70: 19.07 | S70: 18.626 | T70: 18.407 | U70: 0.219 | V70: 50.733 | W70: 46.698 | X70: 43.157 | Y70: 3.541
A71: BRIG | B71: 39.4332 | C71: -74.4993 | D71: 39.465 | E71: -74.4492 | F71: noLDALLN | G71: LADCO | H71: ALL | I71: N | J71: 12.25 | K71: 11.17 | L71: 11.15 | M71: 0.02 | N71: 22.26 | O71: 19.06 | P71: 18.55 | Q71: 0.51 | R71: 34.385 | S71: 30.848 | T71: 30.764 | U71: 0.084 | V71: 96.79 | W71: 69.683 | X71: 66.166 | Y71: 3.517
A72: BRET2 | B72: 30.0692 | C72: -89.743 | D72: 30.1086 | E72: -89.7617 | F72: noCNALLN | G72: CENRAP | H72: ALL | I72: N | J72: 13.81 | K72: 12.59 | L72: 12.34 | M72: 0.25 | N72: 22.49 | O72: 18.93 | P72: 18.45 | Q72: 0.48 | R72: 40.628 | S72: 35.846 | T72: 34.956 | U72: 0.89 | V72: 98.659 | W72: 68.69 | X72: 65.258 | Y72: 3.432
A73: UPBU | B73: 35.8669 | C73: -93.1879 | D73: 35.8258 | E73: -93.203 | F73: noLDALLS | G73: LADCO | H73: ALL | I73: S | J73: 9.95 | K73: 9.22 | L73: 9.03 | M73: 0.19 | N73: 20.52 | O73: 18.91 | P73: 18.42 | Q73: 0.49 | R73: 27.872 | S73: 25.835 | T73: 25.327 | U73: 0.508 | V73: 79.846 | W73: 67.826 | X73: 64.529 | Y73: 3.297
A74: MACA | B74: 37.1516 | C74: -86.1551 | D74: 37.1318 | E74: -86.1479 | F74: noOTALLS | G74: All Other Regions | H74: ALL | I74: S | J74: 13.69 | K74: 11.96 | L74: 11.77 | M74: 0.19 | N74: 24.04 | O74: 20.23 | P74: 19.81 | Q74: 0.42 | R74: 39.997 | S74: 33.541 | T74: 32.874 | U74: 0.667 | V74: 115.33 | W74: 78.16 | X74: 74.866 | Y74: 3.294
A75: ROMA | B75: 32.9125 | C75: -79.6039 | D75: 32.941 | E75: -79.6572 | F75: noSCALLS | G75: South Carolina | H75: ALL | I75: S | J75: 13.59 | K75: 12.29 | L75: 12.07 | M75: 0.22 | N75: 21.48 | O75: 17.31 | P75: 16.73 | Q75: 0.58 | R75: 39.323 | S75: 34.493 | T75: 33.731 | U75: 0.762 | V75: 88.276 | W75: 57.602 | X75: 54.316 | Y75: 3.286
A76: JARI | B76: 37.6477 | C76: -79.559 | D76: 37.6266 | E76: -79.5125 | F76: noMVALLS | G76: MANE-VU | H76: ALL | I76: S | J76: 11.79 | K76: 10.12 | L76: 10.02 | M76: 0.1 | N76: 21.37 | O76: 16.88 | P76: 16.31 | Q76: 0.57 | R76: 33.299 | S76: 28.042 | T76: 27.767 | U76: 0.275 | V76: 88.503 | W76: 55.929 | X76: 52.781 | Y76: 3.148
A77: OTCR | B77: 38.988 | C77: -79.6506 | D77: 38.99 | E77: -79.65 | F77: noMVALLS | G77: MANE-VU | H77: ALL | I77: S | J77: 9.03 | K77: 7.82 | L77: 7.55 | M77: 0.27 | N77: 21.59 | O77: 16.64 | P77: 16.07 | Q77: 0.57 | R77: 25.475 | S77: 22.426 | T77: 21.81 | U77: 0.616 | V77: 92.099 | W77: 55.01 | X77: 51.863 | Y77: 3.147
A78: CAVE | B78: 31.8634 | C78: -104.8081 | D78: 31.833 | E78: -104.8094 | F78: noCNALLS | G78: CENRAP | H78: ALL | I78: S | J78: 5.25 | K78: 5.08 | L78: 4.92 | M78: 0.16 | N78: 12.81 | O78: 12.5 | P78: 11.6 | Q78: 0.9 | R78: 17.13 | S78: 16.837 | T78: 16.574 | U78: 0.263 | V78: 36.706 | W78: 35.567 | X78: 32.436 | Y78: 3.131
A79: GUMO | B79: 31.8634 | C79: -104.8081 | D79: 31.833 | E79: -104.8094 | F79: noCNALLS | G79: CENRAP | H79: ALL | I79: S | J79: 5.25 | K79: 5.08 | L79: 4.92 | M79: 0.16 | N79: 12.81 | O79: 12.5 | P79: 11.6 | Q79: 0.9 | R79: 17.13 | S79: 16.837 | T79: 16.574 | U79: 0.263 | V79: 36.706 | W79: 35.567 | X79: 32.436 | Y79: 3.131
A80: WIMO | B80: 34.7261 | C80: -98.7778 | D80: 34.7323 | E80: -98.713 | F80: noOTALLS | G80: All Other Regions | H80: ALL | I80: S | J80: 9.22 | K80: 8.73 | L80: 8.52 | M80: 0.21 | N80: 20.32 | O80: 18.68 | P80: 18.2 | Q80: 0.48 | R80: 25.591 | S80: 24.329 | T80: 23.81 | U80: 0.519 | V80: 78.992 | W80: 66.354 | X80: 63.235 | Y80: 3.119
A81: OKEF | B81: 30.7788 | C81: -82.1156 | D81: 30.7405 | E81: -82.1283 | F81: noCNALLS | G81: CENRAP | H81: ALL | I81: S | J81: 13.34 | K81: 11.84 | L81: 11.47 | M81: 0.37 | N81: 20.7 | O81: 17.55 | P81: 17.02 | Q81: 0.53 | R81: 38.427 | S81: 33.003 | T81: 31.798 | U81: 1.205 | V81: 81.978 | W81: 59.364 | X81: 56.268 | Y81: 3.096
A82: SENE | B82: 46.2994 | C82: -85.9893 | D82: 46.2889 | E82: -85.9503 | F82: noCNALLS | G82: CENRAP | H82: ALL | I82: S | J82: 5.51 | K82: 5.34 | L82: 5.33 | M82: 0.01 | N82: 19.84 | O82: 17.38 | P82: 16.87 | Q82: 0.51 | R82: 17.476 | S82: 17.168 | T82: 17.144 | U82: 0.024 | V82: 79.085 | W82: 61.067 | X82: 58.013 | Y82: 3.054
A83: WOLF | B83: 31.3065 | C83: -81.2471 | D83: 31.33 | E83: -81.3 | F83: noCNALLS | G83: CENRAP | H83: ALL | I83: S | J83: 13.34 | K83: 11.77 | L83: 11.5 | M83: 0.27 | N83: 20.7 | O83: 17.33 | P83: 16.8 | Q83: 0.53 | R83: 38.427 | S83: 32.761 | T83: 31.884 | U83: 0.877 | V83: 81.978 | W83: 58.067 | X83: 55.02 | Y83: 3.047
A84: SACR | B84: 33.4043 | C84: -104.4479 | D84: 33.4598 | E84: -104.4042 | F84: noOTALLN | G84: All Other Regions | H84: ALL | I84: N | J84: 7.37 | K84: 7.75 | L84: 7.55 | M84: 0.2 | N84: 15.31 | O84: 15.34 | P84: 14.69 | Q84: 0.65 | R84: 21.24 | S84: 22.11 | T84: 21.656 | U84: 0.454 | V84: 47.318 | W84: 47.411 | X84: 44.389 | Y84: 3.022
A85: SENE | B85: 46.2994 | C85: -85.9893 | D85: 46.2889 | E85: -85.9503 | F85: noCNALLN | G85: CENRAP | H85: ALL | I85: N | J85: 5.51 | K85: 5.34 | L85: 5.33 | M85: 0.01 | N85: 19.84 | O85: 17.38 | P85: 16.91 | Q85: 0.47 | R85: 17.476 | S85: 17.168 | T85: 17.15 | U85: 0.018 | V85: 79.085 | W85: 61.067 | X85: 58.064 | Y85: 3.003
A86: SAMA | B86: 30.0689 | C86: -84.1315 | D86: 30.0926 | E86: -84.1614 | F86: noLDALLS | G86: LADCO | H86: ALL | I86: S | J86: 13.33 | K86: 11.84 | L86: 11.62 | M86: 0.22 | N86: 20.11 | O86: 17.22 | P86: 16.69 | Q86: 0.53 | R86: 38.46 | S86: 33.036 | T86: 32.284 | U86: 0.752 | V86: 77.538 | W86: 57.506 | X86: 54.507 | Y86: 2.999
A87: OTCR | B87: 38.988 | C87: -79.6506 | D87: 38.99 | E87: -79.65 | F87: noCNALLS | G87: CENRAP | H87: ALL | I87: S | J87: 9.03 | K87: 7.82 | L87: 7.67 | M87: 0.15 | N87: 21.59 | O87: 16.64 | P87: 16.1 | Q87: 0.54 | R87: 25.475 | S87: 22.426 | T87: 22.091 | U87: 0.335 | V87: 92.099 | W87: 55.01 | X87: 52.013 | Y87: 2.997
A88: DOSO | B88: 39.0739 | C88: -79.4869 | D88: 39.1053 | E88: -79.4261 | F88: noCNALLS | G88: CENRAP | H88: ALL | I88: S | J88: 9.03 | K88: 7.84 | L88: 7.7 | M88: 0.14 | N88: 21.59 | O88: 16.7 | P88: 16.17 | Q88: 0.53 | R88: 25.475 | S88: 22.47 | T88: 22.149 | U88: 0.321 | V88: 92.099 | W88: 55.369 | X88: 52.429 | Y88: 2.94
A89: ROMA | B89: 32.9125 | C89: -79.6039 | D89: 32.941 | E89: -79.6572 | F89: noMVALLS | G89: MANE-VU | H89: ALL | I89: S | J89: 13.59 | K89: 12.29 | L89: 12.24 | M89: 0.05 | N89: 21.48 | O89: 17.31 | P89: 16.82 | Q89: 0.49 | R89: 39.323 | S89: 34.493 | T89: 34.294 | U89: 0.199 | V89: 88.276 | W89: 57.602 | X89: 54.794 | Y89: 2.808
A90: MACA | B90: 37.1516 | C90: -86.1551 | D90: 37.1318 | E90: -86.1479 | F90: noKYALLS | G90: Kentucky | H90: ALL | I90: S | J90: 13.69 | K90: 11.96 | L90: 11.79 | M90: 0.17 | N90: 24.04 | O90: 20.23 | P90: 19.87 | Q90: 0.36 | R90: 39.997 | S90: 33.541 | T90: 32.956 | U90: 0.585 | V90: 115.33 | W90: 78.16 | X90: 75.356 | Y90: 2.804
A91: SAMA | B91: 30.0689 | C91: -84.1315 | D91: 30.0926 | E91: -84.1614 | F91: noOTALLS | G91: All Other Regions | H91: ALL | I91: S | J91: 13.33 | K91: 11.84 | L91: 11.63 | M91: 0.21 | N91: 20.11 | O91: 17.22 | P91: 16.73 | Q91: 0.49 | R91: 38.46 | S91: 33.036 | T91: 32.332 | U91: 0.704 | V91: 77.538 | W91: 57.506 | X91: 54.716 | Y91: 2.79
A92: SIPS | B92: 34.3181 | C92: -87.3563 | D92: 34.3433 | E92: -87.3388 | F92: noLDALLN | G92: LADCO | H92: ALL | I92: N | J92: 12.84 | K92: 11.45 | L92: 11.39 | M92: 0.06 | N92: 21.67 | O92: 17.63 | P92: 17.12 | Q92: 0.51 | R92: 36.68 | S92: 31.848 | T92: 31.65 | U92: 0.198 | V92: 90.545 | W92: 60.036 | X92: 57.25 | Y92: 2.786
A93: GRGU | B93: 44.2733 | C93: -71.2226 | D93: 44.3082 | E93: -71.2177 | F93: noOTALLS | G93: All Other Regions | H93: ALL | I93: S | J93: 5.87 | K93: 5.4 | L93: 5.2 | M93: 0.2 | N93: 15.43 | O93: 12.94 | P93: 12.24 | Q93: 0.7 | R93: 18.1 | S93: 17.26 | T93: 16.902 | U93: 0.358 | V93: 50.127 | W93: 38.62 | X93: 35.889 | Y93: 2.731
A94: PRRA | B94: 44.2733 | C94: -71.2226 | D94: 44.3082 | E94: -71.2177 | F94: noOTALLS | G94: All Other Regions | H94: ALL | I94: S | J94: 5.87 | K94: 5.4 | L94: 5.2 | M94: 0.2 | N94: 15.43 | O94: 12.94 | P94: 12.24 | Q94: 0.7 | R94: 18.1 | S94: 17.26 | T94: 16.902 | U94: 0.358 | V94: 50.127 | W94: 38.62 | X94: 35.889 | Y94: 2.731
A95: COHU | B95: 34.8086 | C95: -84.6365 | D95: 34.7852 | E95: -84.6265 | F95: noCNALLS | G95: CENRAP | H95: ALL | I95: S | J95: 10.94 | K95: 9.43 | L95: 9 | M95: 0.43 | N95: 21.19 | O95: 15.95 | P95: 15.4 | Q95: 0.55 | R95: 30.749 | S95: 26.277 | T95: 25.113 | U95: 1.164 | V95: 86.468 | W95: 50.746 | X95: 48.026 | Y95: 2.72
A96: SAMA | B96: 30.0689 | C96: -84.1315 | D96: 30.0926 | E96: -84.1614 | F96: noALALLS | G96: Alabama | H96: ALL | I96: S | J96: 13.33 | K96: 11.84 | L96: 11.44 | M96: 0.4 | N96: 20.11 | O96: 17.22 | P96: 16.75 | Q96: 0.47 | R96: 38.46 | S96: 33.036 | T96: 31.712 | U96: 1.324 | V96: 77.538 | W96: 57.506 | X96: 54.815 | Y96: 2.691
A97: SAMA | B97: 30.0689 | C97: -84.1315 | D97: 30.0926 | E97: -84.1614 | F97: noFLALLS | G97: Florida | H97: ALL | I97: S | J97: 13.33 | K97: 11.84 | L97: 11.68 | M97: 0.16 | N97: 20.11 | O97: 17.22 | P97: 16.75 | Q97: 0.47 | R97: 38.46 | S97: 33.036 | T97: 32.474 | U97: 0.562 | V97: 77.538 | W97: 57.506 | X97: 54.83 | Y97: 2.676
A98: OKEF | B98: 30.7788 | C98: -82.1156 | D98: 30.7405 | E98: -82.1283 | F98: noFLALLS | G98: Florida | H98: ALL | I98: S | J98: 13.34 | K98: 11.84 | L98: 11.55 | M98: 0.29 | N98: 20.7 | O98: 17.55 | P98: 17.1 | Q98: 0.45 | R98: 38.427 | S98: 33.003 | T98: 32.036 | U98: 0.967 | V98: 81.978 | W98: 59.364 | X98: 56.7 | Y98: 2.664
A99: BIBE | B99: 29.2779 | C99: -103.2003 | D99: 29.3027 | E99: -103.178 | F99: noCNALLS | G99: CENRAP | H99: ALL | I99: S | J99: 5.65 | K99: 5.63 | L99: 5.52 | M99: 0.11 | N99: 14.37 | O99: 14.22 | P99: 13.6 | Q99: 0.62 | R99: 17.808 | S99: 17.791 | T99: 17.592 | U99: 0.199 | V99: 43.381 | W99: 42.706 | X99: 40.097 | Y99: 2.609
A100: GRGU | B100: 44.2733 | C100: -71.2226 | D100: 44.3082 | E100: -71.2177 | F100: noMVALLS | G100: MANE-VU | H100: ALL | I100: S | J100: 5.87 | K100: 5.4 | L100: 5.27 | M100: 0.13 | N100: 15.43 | O100: 12.94 | P100: 12.28 | Q100: 0.66 | R100: 18.1 | S100: 17.26 | T100: 17.035 | U100: 0.225 | V100: 50.127 | W100: 38.62 | X100: 36.016 | Y100: 2.604
A101: PRRA | B101: 44.2733 | C101: -71.2226 | D101: 44.3082 | E101: -71.2177 | F101: noMVALLS | G101: MANE-VU | H101: ALL | I101: S | J101: 5.87 | K101: 5.4 | L101: 5.27 | M101: 0.13 | N101: 15.43 | O101: 12.94 | P101: 12.28 | Q101: 0.66 | R101: 18.1 | S101: 17.26 | T101: 17.035 | U101: 0.225 | V101: 50.127 | W101: 38.62 | X101: 36.016 | Y101: 2.604
A102: WOLF | B102: 31.3065 | C102: -81.2471 | D102: 31.33 | E102: -81.3 | F102: noOTALLS | G102: All Other Regions | H102: ALL | I102: S | J102: 13.34 | K102: 11.77 | L102: 11.52 | M102: 0.25 | N102: 20.7 | O102: 17.33 | P102: 16.88 | Q102: 0.45 | R102: 38.427 | S102: 32.761 | T102: 31.953 | U102: 0.808 | V102: 81.978 | W102: 58.067 | X102: 55.469 | Y102: 2.598
A103: MING | B103: 36.9176 | C103: -90.1431 | D103: 36.9717 | E103: -90.1432 | F103: noOTALLS | G103: All Other Regions | H103: ALL | I103: S | J103: 12.47 | K103: 11.44 | L103: 11.28 | M103: 0.16 | N103: 22.7 | O103: 20.43 | P103: 20.1 | Q103: 0.33 | R103: 35.343 | S103: 31.853 | T103: 31.337 | U103: 0.516 | V103: 100.89 | W103: 79.777 | X103: 77.189 | Y103: 2.588
A104: BRIG | B104: 39.4332 | C104: -74.4993 | D104: 39.465 | E104: -74.4492 | F104: noOTALLS | G104: All Other Regions | H104: ALL | I104: S | J104: 12.25 | K104: 11.17 | L104: 10.83 | M104: 0.34 | N104: 22.26 | O104: 19.06 | P104: 18.68 | Q104: 0.38 | R104: 34.385 | S104: 30.848 | T104: 29.808 | U104: 1.04 | V104: 96.79 | W104: 69.683 | X104: 67.103 | Y104: 2.58
A105: LYBR2 | B105: 42.9452 | C105: -72.9798 | D105: 42.953 | E105: -72.9103 | F105: noOTALLS | G105: All Other Regions | H105: ALL | I105: S | J105: 4.89 | K105: 4.26 | L105: 4 | M105: 0.26 | N105: 18.06 | O105: 14.97 | P105: 14.45 | Q105: 0.52 | R105: 16.502 | S105: 15.447 | T105: 15.034 | U105: 0.413 | V105: 65.868 | W105: 47.241 | X105: 44.678 | Y105: 2.563
A106: JARI | B106: 37.6477 | C106: -79.559 | D106: 37.6266 | E106: -79.5125 | F106: noCNALLS | G106: CENRAP | H106: ALL | I106: S | J106: 11.79 | K106: 10.12 | L106: 9.91 | M106: 0.21 | N106: 21.37 | O106: 16.88 | P106: 16.43 | Q106: 0.45 | R106: 33.299 | S106: 28.042 | T106: 27.434 | U106: 0.608 | V106: 88.503 | W106: 55.929 | X106: 53.41 | Y106: 2.519
A107: DOSO | B107: 39.0739 | C107: -79.4869 | D107: 39.1053 | E107: -79.4261 | F107: noWVALLS | G107: West Virginia | H107: ALL | I107: S | J107: 9.03 | K107: 7.84 | L107: 7.69 | M107: 0.15 | N107: 21.59 | O107: 16.7 | P107: 16.25 | Q107: 0.45 | R107: 25.475 | S107: 22.47 | T107: 22.114 | U107: 0.356 | V107: 92.099 | W107: 55.369 | X107: 52.85 | Y107: 2.519
A108: BOWA | B108: 47.9351 | C108: -91.4775 | D108: 47.9466 | E108: -91.4955 | F108: noLDALLS | G108: LADCO | H108: ALL | I108: S | J108: 4.86 | K108: 4.76 | L108: 4.75 | M108: 0.01 | N108: 16.43 | O108: 14.48 | P108: 13.92 | Q108: 0.56 | R108: 16.381 | S108: 16.225 | T108: 16.207 | U108: 0.018 | V108: 56.176 | W108: 45.593 | X108: 43.085 | Y108: 2.508
A109: MACA | B109: 37.1516 | C109: -86.1551 | D109: 37.1318 | E109: -86.1479 | F109: noCNALLN | G109: CENRAP | H109: ALL | I109: N | J109: 13.69 | K109: 11.96 | L109: 11.86 | M109: 0.1 | N109: 24.04 | O109: 20.23 | P109: 19.9 | Q109: 0.33 | R109: 39.997 | S109: 33.541 | T109: 33.185 | U109: 0.356 | V109: 115.33 | W109: 78.16 | X109: 75.696 | Y109: 2.464
A110: WHIT | B110: 33.4362 | C110: -105.4906 | D110: 33.4687 | E110: -105.5349 | F110: noOTALLS | G110: All Other Regions | H110: ALL | I110: S | J110: 3.34 | K110: 3.35 | L110: 3.21 | M110: 0.14 | N110: 10.58 | O110: 10.42 | P110: 9.55 | Q110: 0.87 | R110: 14.045 | S110: 14.064 | T110: 13.86 | U110: 0.204 | V110: 29.304 | W110: 28.859 | X110: 26.421 | Y110: 2.438
A111: OTCR | B111: 38.988 | C111: -79.6506 | D111: 38.99 | E111: -79.65 | F111: noWVALLS | G111: West Virginia | H111: ALL | I111: S | J111: 9.03 | K111: 7.82 | L111: 7.68 | M111: 0.14 | N111: 21.59 | O111: 16.64 | P111: 16.21 | Q111: 0.43 | R111: 25.475 | S111: 22.426 | T111: 22.112 | U111: 0.314 | V111: 92.099 | W111: 55.01 | X111: 52.627 | Y111: 2.383
A112: ROMA | B112: 32.9125 | C112: -79.6039 | D112: 32.941 | E112: -79.6572 | F112: noCNALLS | G112: CENRAP | H112: ALL | I112: S | J112: 13.59 | K112: 12.29 | L112: 12.15 | M112: 0.14 | N112: 21.48 | O112: 17.31 | P112: 16.9 | Q112: 0.41 | R112: 39.323 | S112: 34.493 | T112: 33.983 | U112: 0.51 | V112: 88.276 | W112: 57.602 | X112: 55.264 | Y112: 2.338
A113: CHAS | B113: 28.7695 | C113: -82.4932 | D113: 28.7484 | E113: -82.5549 | F113: noLDALLS | G113: LADCO | H113: ALL | I113: S | J113: 13.76 | K113: 12.74 | L113: 12.65 | M113: 0.09 | N113: 19.94 | O113: 17.32 | P113: 16.92 | Q113: 0.4 | R113: 39.884 | S113: 35.998 | T113: 35.68 | U113: 0.318 | V113: 75.326 | W113: 57.541 | X113: 55.285 | Y113: 2.256
A114: WICA | B114: 43.5707 | C114: -103.5013 | D114: 43.5576 | E114: -103.4838 | F114: noOTALLS | G114: All Other Regions | H114: ALL | I114: S | J114: 3.99 | K114: 3.83 | L114: 3.57 | M114: 0.26 | N114: 12.31 | O114: 11.48 | P114: 10.77 | Q114: 0.71 | R114: 14.968 | S114: 14.722 | T114: 14.348 | U114: 0.374 | V114: 35.541 | W114: 32.539 | X114: 30.286 | Y114: 2.253
A115: BRET2 | B115: 30.0692 | C115: -89.743 | D115: 30.1086 | E115: -89.7617 | F115: noALALLS | G115: Alabama | H115: ALL | I115: S | J115: 13.81 | K115: 12.59 | L115: 12.46 | M115: 0.13 | N115: 22.49 | O115: 18.93 | P115: 18.59 | Q115: 0.34 | R115: 40.628 | S115: 35.846 | T115: 35.398 | U115: 0.448 | V115: 98.659 | W115: 68.69 | X115: 66.448 | Y115: 2.242
A116: WICA | B116: 43.5707 | C116: -103.5013 | D116: 43.5576 | E116: -103.4838 | F116: noCNALLS | G116: CENRAP | H116: ALL | I116: S | J116: 3.99 | K116: 3.83 | L116: 3.77 | M116: 0.06 | N116: 12.31 | O116: 11.48 | P116: 10.8 | Q116: 0.68 | R116: 14.968 | S116: 14.722 | T116: 14.642 | U116: 0.08 | V116: 35.541 | W116: 32.539 | X116: 30.36 | Y116: 2.179
A117: OKEF | B117: 30.7788 | C117: -82.1156 | D117: 30.7405 | E117: -82.1283 | F117: noOTALLS | G117: All Other Regions | H117: ALL | I117: S | J117: 13.34 | K117: 11.84 | L117: 11.64 | M117: 0.2 | N117: 20.7 | O117: 17.55 | P117: 17.18 | Q117: 0.37 | R117: 38.427 | S117: 33.003 | T117: 32.326 | U117: 0.677 | V117: 81.978 | W117: 59.364 | X117: 57.189 | Y117: 2.175
A118: SACR | B118: 33.4043 | C118: -104.4479 | D118: 33.4598 | E118: -104.4042 | F118: noCNALLN | G118: CENRAP | H118: ALL | I118: N | J118: 7.37 | K118: 7.75 | L118: 7.68 | M118: 0.07 | N118: 15.31 | O118: 15.34 | P118: 14.89 | Q118: 0.45 | R118: 21.24 | S118: 22.11 | T118: 21.953 | U118: 0.157 | V118: 47.318 | W118: 47.411 | X118: 45.247 | Y118: 2.164
A119: LIGO | B119: 35.9975 | C119: -81.8601 | D119: 35.9723 | E119: -81.9331 | F119: noMVALLS | G119: MANE-VU | H119: ALL | I119: S | J119: 9.7 | K119: 8.45 | L119: 8.32 | M119: 0.13 | N119: 20.39 | O119: 15.51 | P119: 15.06 | Q119: 0.45 | R119: 26.93 | S119: 23.639 | T119: 23.34 | U119: 0.299 | V119: 79.816 | W119: 48.439 | X119: 46.277 | Y119: 2.162
A120: WOLF | B120: 31.3065 | C120: -81.2471 | D120: 31.33 | E120: -81.3 | F120: noGAALLS | G120: Georgia | H120: ALL | I120: S | J120: 13.34 | K120: 11.77 | L120: 11.52 | M120: 0.25 | N120: 20.7 | O120: 17.33 | P120: 16.96 | Q120: 0.37 | R120: 38.427 | S120: 32.761 | T120: 31.949 | U120: 0.812 | V120: 81.978 | W120: 58.067 | X120: 55.908 | Y120: 2.159
A121: ACAD | B121: 44.4219 | C121: -68.3115 | D121: 44.3771 | E121: -68.261 | F121: noMVALLS | G121: MANE-VU | H121: ALL | I121: S | J121: 7.02 | K121: 6.7 | L121: 6.67 | M121: 0.03 | N121: 16.84 | O121: 14.87 | P121: 14.43 | Q121: 0.44 | R121: 20.367 | S121: 19.714 | T121: 19.644 | U121: 0.07 | V121: 58.272 | W121: 47.149 | X121: 45.005 | Y121: 2.144
A122: WICA | B122: 43.5707 | C122: -103.5013 | D122: 43.5576 | E122: -103.4838 | F122: noOTALLN | G122: All Other Regions | H122: ALL | I122: N | J122: 3.99 | K122: 3.83 | L122: 3.72 | M122: 0.11 | N122: 12.31 | O122: 11.48 | P122: 10.84 | Q122: 0.64 | R122: 14.968 | S122: 14.722 | T122: 14.563 | U122: 0.159 | V122: 35.541 | W122: 32.539 | X122: 30.399 | Y122: 2.14
A123: COHU | B123: 34.8086 | C123: -84.6365 | D123: 34.7852 | E123: -84.6265 | F123: noOTALLS | G123: All Other Regions | H123: ALL | I123: S | J123: 10.94 | K123: 9.43 | L123: 9.32 | M123: 0.11 | N123: 21.19 | O123: 15.95 | P123: 15.53 | Q123: 0.42 | R123: 30.749 | S123: 26.277 | T123: 25.968 | U123: 0.309 | V123: 86.468 | W123: 50.746 | X123: 48.638 | Y123: 2.108
A124: BADL | B124: 43.7531 | C124: -101.8689 | D124: 43.7435 | E124: -101.9412 | F124: noOTALLS | G124: All Other Regions | H124: ALL | I124: S | J124: 5.78 | K124: 5.58 | L124: 5.38 | M124: 0.2 | N124: 14.33 | O124: 13.38 | P124: 12.86 | Q124: 0.52 | R124: 17.92 | S124: 17.563 | T124: 17.202 | U124: 0.361 | V124: 43.625 | W124: 39.578 | X124: 37.487 | Y124: 2.091
A125: SHEN | B125: 38.5836 | C125: -78.4765 | D125: 38.5229 | E125: -78.4348 | F125: noCNALLS | G125: CENRAP | H125: ALL | I125: S | J125: 8.6 | K125: 7.51 | L125: 7.41 | M125: 0.1 | N125: 20.72 | O125: 15.91 | P125: 15.51 | Q125: 0.4 | R125: 24.402 | S125: 21.736 | T125: 21.504 | U125: 0.232 | V125: 84.028 | W125: 51.163 | X125: 49.095 | Y125: 2.068
